Workbook

Sheet MOM
A1: =YEAR(表A_RAW!F2)&"年"&MONTH(表A_RAW!F2)&"月" -> 2025年2月
F2: 成長及衰退前五名之產業MOM%
A4: 成長前五名之產業 MOM% | C4: 該產業成長前五名之公司 MOM% | F4: 單月營收金額(千元) | G4: 本月與上月相較 | I4: 本月與去年同期相較 | K4: 累計營收金額(千元) | L4: 累計營收與去年同期相較
A5: 成長 排名 | B5: 產業 | C5: 排名 | D5: 公司代號&簡稱 | G5: 上月營收金額(千元) | H5: 較上月變動比率(%) | I5: 去年同期金額(千元) | J5: 較去年同期變動比率(%) | L5: 去年累計營收金額(千元) | M5: 較去年同期變動比率(%)
A6: 1 | B6: =VLOOKUP(A6,表B_RAW!N:P,3,0) -> 塑膠工業 | C6: 1 | D6: =VLOOKUP($B$6&C6,表B_RAW!A:D,3,0) -> 1312 國喬 | F6: =IF(ISERROR(VLOOKUP($D6,表B_RAW!$C:$I,4,0)),"",VLOOKUP($D6,表B_RAW!$C:$I,4,0)) -> 1791123 | G6: =IF(ISERROR(VLOOKUP($D6,表B_RAW!$C:$I,5,0)),"",VLOOKUP($D6,表B_RAW!$C:$I,5,0)) -> 1259065 | H6: =IF(ISERROR(VLOOKUP($D6,表B_RAW!$C:$I,6,0)),"",VLOOKUP($D6,表B_RAW!$C:$I,6,0)/100) -> 0.4226 | I6: =IF(ISERROR(VLOOKUP($D6,表A_RAW!$C:$I,5,0)),"",VLOOKUP($D6,表A_RAW!$C:$I,5,0)) -> 1082954 | J6: =IF(ISERROR(VLOOKUP($D6,表A_RAW!$C:$I,7,0)),"",VLOOKUP($D6,表A_RAW!$C:$I,7,0)) -> 0.6539234353 | K6: =IF(ISERROR(VLOOKUP($D6,表C_RAW!$C:$I,4,0)),"",VLOOKUP($D6,表C_RAW!$C:$I,4,0)) -> 3050187 | L6: =IF(ISERROR(VLOOKUP($D6,表C_RAW!$C:$I,5,0)),"",VLOOKUP($D6,表C_RAW!$C:$I,5,0)) -> 2338599 | M6: =IF(ISERROR(VLOOKUP($D6,表C_RAW!$C:$I,6,0)),"",VLOOKUP($D6,表C_RAW!$C:$I,6,0)/100) -> 0.3043
C7: 2 | D7: =VLOOKUP($B$6&C7,表B_RAW!A:D,3,0) -> 4303 信立 | F7: =IF(ISERROR(VLOOKUP($D7,表B_RAW!$C:$I,4,0)),"",VLOOKUP($D7,表B_RAW!$C:$I,4,0)) -> 84663 | G7: =IF(ISERROR(VLOOKUP($D7,表B_RAW!$C:$I,5,0)),"",VLOOKUP($D7,表B_RAW!$C:$I,5,0)) -> 63992 | H7: =IF(ISERROR(VLOOKUP($D7,表B_RAW!$C:$I,6,0)),"",VLOOKUP($D7,表B_RAW!$C:$I,6,0)/100) -> 0.323 | I7: =IF(ISERROR(VLOOKUP($D7,表A_RAW!$C:$I,5,0)),"",VLOOKUP($D7,表A_RAW!$C:$I,5,0)) -> 8092 | J7: =IF(ISERROR(VLOOKUP($D7,表A_RAW!$C:$I,7,0)),"",VLOOKUP($D7,表A_RAW!$C:$I,7,0)) -> 9.46255561 | K7: =IF(ISERROR(VLOOKUP($D7,表C_RAW!$C:$I,4,0)),"",VLOOKUP($D7,表C_RAW!$C:$I,4,0)) -> 148655 | L7: =IF(ISERROR(VLOOKUP($D7,表C_RAW!$C:$I,5,0)),"",VLOOKUP($D7,表C_RAW!$C:$I,5,0)) -> 32028 | M7: =IF(ISERROR(VLOOKUP($D7,表C_RAW!$C:$I,6,0)),"",VLOOKUP($D7,表C_RAW!$C:$I,6,0)/100) -> 3.6414
C8: 3 | D8: =VLOOKUP($B$6&C8,表B_RAW!A:D,3,0) -> 1308 亞聚 | F8: =IF(ISERROR(VLOOKUP($D8,表B_RAW!$C:$I,4,0)),"",VLOOKUP($D8,表B_RAW!$C:$I,4,0)) -> 532521 | G8: =IF(ISERROR(VLOOKUP($D8,表B_RAW!$C:$I,5,0)),"",VLOOKUP($D8,表B_RAW!$C:$I,5,0)) -> 437450 | H8: =IF(ISERROR(VLOOKUP($D8,表B_RAW!$C:$I,6,0)),"",VLOOKUP($D8,表B_RAW!$C:$I,6,0)/100) -> 0.2173 | I8: =IF(ISERROR(VLOOKUP($D8,表A_RAW!$C:$I,5,0)),"",VLOOKUP($D8,表A_RAW!$C:$I,5,0)) -> 496084 | J8: =IF(ISERROR(VLOOKUP($D8,表A_RAW!$C:$I,7,0)),"",VLOOKUP($D8,表A_RAW!$C:$I,7,0)) -> 0.07344925456 | K8: =IF(ISERROR(VLOOKUP($D8,表C_RAW!$C:$I,4,0)),"",VLOOKUP($D8,表C_RAW!$C:$I,4,0)) -> 969971 | L8: =IF(ISERROR(VLOOKUP($D8,表C_RAW!$C:$I,5,0)),"",VLOOKUP($D8,表C_RAW!$C:$I,5,0)) -> 1074967 | M8: =IF(ISERROR(VLOOKUP($D8,表C_RAW!$C:$I,6,0)),"",VLOOKUP($D8,表C_RAW!$C:$I,6,0)/100) -> -0.0977
B9: =VLOOKUP(A6,表B_RAW!N:T,7,0) -> 9.74 | C9: 4 | D9: =VLOOKUP($B$6&C9,表B_RAW!A:D,3,0) -> 1301 台塑 | F9: =IF(ISERROR(VLOOKUP($D9,表B_RAW!$C:$I,4,0)),"",VLOOKUP($D9,表B_RAW!$C:$I,4,0)) -> 16129819 | G9: =IF(ISERROR(VLOOKUP($D9,表B_RAW!$C:$I,5,0)),"",VLOOKUP($D9,表B_RAW!$C:$I,5,0)) -> 13980022 | H9: =IF(ISERROR(VLOOKUP($D9,表B_RAW!$C:$I,6,0)),"",VLOOKUP($D9,表B_RAW!$C:$I,6,0)/100) -> 0.1538 | I9: =IF(ISERROR(VLOOKUP($D9,表A_RAW!$C:$I,5,0)),"",VLOOKUP($D9,表A_RAW!$C:$I,5,0)) -> 12932676 | J9: =IF(ISERROR(VLOOKUP($D9,表A_RAW!$C:$I,7,0)),"",VLOOKUP($D9,表A_RAW!$C:$I,7,0)) -> 0.247214343 | K9: =IF(ISERROR(VLOOKUP($D9,表C_RAW!$C:$I,4,0)),"",VLOOKUP($D9,表C_RAW!$C:$I,4,0)) -> 30109841 | L9: =IF(ISERROR(VLOOKUP($D9,表C_RAW!$C:$I,5,0)),"",VLOOKUP($D9,表C_RAW!$C:$I,5,0)) -> 30448890 | M9: =IF(ISERROR(VLOOKUP($D9,表C_RAW!$C:$I,6,0)),"",VLOOKUP($D9,表C_RAW!$C:$I,6,0)/100) -> -0.0111
C10: 5 | D10: =VLOOKUP($B$6&C10,表B_RAW!A:D,3,0) -> 1324 地球 | F10: =IF(ISERROR(VLOOKUP($D10,表B_RAW!$C:$I,4,0)),"",VLOOKUP($D10,表B_RAW!$C:$I,4,0)) -> 62235 | G10: =IF(ISERROR(VLOOKUP($D10,表B_RAW!$C:$I,5,0)),"",VLOOKUP($D10,表B_RAW!$C:$I,5,0)) -> 54847 | H10: =IF(ISERROR(VLOOKUP($D10,表B_RAW!$C:$I,6,0)),"",VLOOKUP($D10,表B_RAW!$C:$I,6,0)/100) -> 0.1347 | I10: =IF(ISERROR(VLOOKUP($D10,表A_RAW!$C:$I,5,0)),"",VLOOKUP($D10,表A_RAW!$C:$I,5,0)) -> 49972 | J10: =IF(ISERROR(VLOOKUP($D10,表A_RAW!$C:$I,7,0)),"",VLOOKUP($D10,表A_RAW!$C:$I,7,0)) -> 0.2453974226 | K10: =IF(ISERROR(VLOOKUP($D10,表C_RAW!$C:$I,4,0)),"",VLOOKUP($D10,表C_RAW!$C:$I,4,0)) -> 117082 | L10: =IF(ISERROR(VLOOKUP($D10,表C_RAW!$C:$I,5,0)),"",VLOOKUP($D10,表C_RAW!$C:$I,5,0)) -> 122834 | M10: =IF(ISERROR(VLOOKUP($D10,表C_RAW!$C:$I,6,0)),"",VLOOKUP($D10,表C_RAW!$C:$I,6,0)/100) -> -0.0468
A11: 2 | B11: =VLOOKUP(A11,表B_RAW!N:P,3,0) -> 建材營造 | C11: 1 | D11: =VLOOKUP($B$11&C11,表B_RAW!A:D,3,0) -> 3056 富華新 | F11: =IF(ISERROR(VLOOKUP($D11,表B_RAW!$C:$I,4,0)),"",VLOOKUP($D11,表B_RAW!$C:$I,4,0)) -> 3077048 | G11: =IF(ISERROR(VLOOKUP($D11,表B_RAW!$C:$I,5,0)),"",VLOOKUP($D11,表B_RAW!$C:$I,5,0)) -> 75381 | H11: =IF(ISERROR(VLOOKUP($D11,表B_RAW!$C:$I,6,0)),"",VLOOKUP($D11,表B_RAW!$C:$I,6,0)/100) -> 39.8199 | I11: =IF(ISERROR(VLOOKUP($D11,表A_RAW!$C:$I,5,0)),"",VLOOKUP($D11,表A_RAW!$C:$I,5,0)) -> 8278 | J11: =IF(ISERROR(VLOOKUP($D11,表A_RAW!$C:$I,7,0)),"",VLOOKUP($D11,表A_RAW!$C:$I,7,0)) -> 370.7139406 | K11: =IF(ISERROR(VLOOKUP($D11,表C_RAW!$C:$I,4,0)),"",VLOOKUP($D11,表C_RAW!$C:$I,4,0)) -> 3152429 | L11: =IF(ISERROR(VLOOKUP($D11,表C_RAW!$C:$I,5,0)),"",VLOOKUP($D11,表C_RAW!$C:$I,5,0)) -> 18739 | M11: =IF(ISERROR(VLOOKUP($D11,表C_RAW!$C:$I,6,0)),"",VLOOKUP($D11,表C_RAW!$C:$I,6,0)/100) -> 167.2282
C12: 2 | D12: =VLOOKUP($B$11&C12,表B_RAW!A:D,3,0) -> 5213 亞昕 | F12: =IF(ISERROR(VLOOKUP($D12,表B_RAW!$C:$I,4,0)),"",VLOOKUP($D12,表B_RAW!$C:$I,4,0)) -> 2458691 | G12: =IF(ISERROR(VLOOKUP($D12,表B_RAW!$C:$I,5,0)),"",VLOOKUP($D12,表B_RAW!$C:$I,5,0)) -> 661098 | H12: =IF(ISERROR(VLOOKUP($D12,表B_RAW!$C:$I,6,0)),"",VLOOKUP($D12,表B_RAW!$C:$I,6,0)/100) -> 2.7191 | I12: =IF(ISERROR(VLOOKUP($D12,表A_RAW!$C:$I,5,0)),"",VLOOKUP($D12,表A_RAW!$C:$I,5,0)) -> 669563 | J12: =IF(ISERROR(VLOOKUP($D12,表A_RAW!$C:$I,7,0)),"",VLOOKUP($D12,表A_RAW!$C:$I,7,0)) -> 2.672083135 | K12: =IF(ISERROR(VLOOKUP($D12,表C_RAW!$C:$I,4,0)),"",VLOOKUP($D12,表C_RAW!$C:$I,4,0)) -> 3119789 | L12: =IF(ISERROR(VLOOKUP($D12,表C_RAW!$C:$I,5,0)),"",VLOOKUP($D12,表C_RAW!$C:$I,5,0)) -> 717723 | M12: =IF(ISERROR(VLOOKUP($D12,表C_RAW!$C:$I,6,0)),"",VLOOKUP($D12,表C_RAW!$C:$I,6,0)/100) -> 3.3468
C13: 3 | D13: =VLOOKUP($B$11&C13,表B_RAW!A:D,3,0) -> 2545 皇翔 | F13: =IF(ISERROR(VLOOKUP($D13,表B_RAW!$C:$I,4,0)),"",VLOOKUP($D13,表B_RAW!$C:$I,4,0)) -> 678111 | G13: =IF(ISERROR(VLOOKUP($D13,表B_RAW!$C:$I,5,0)),"",VLOOKUP($D13,表B_RAW!$C:$I,5,0)) -> 183730 | H13: =IF(ISERROR(VLOOKUP($D13,表B_RAW!$C:$I,6,0)),"",VLOOKUP($D13,表B_RAW!$C:$I,6,0)/100) -> 2.6908 | I13: =IF(ISERROR(VLOOKUP($D13,表A_RAW!$C:$I,5,0)),"",VLOOKUP($D13,表A_RAW!$C:$I,5,0)) -> 84311 | J13: =IF(ISERROR(VLOOKUP($D13,表A_RAW!$C:$I,7,0)),"",VLOOKUP($D13,表A_RAW!$C:$I,7,0)) -> 7.042971854 | K13: =IF(ISERROR(VLOOKUP($D13,表C_RAW!$C:$I,4,0)),"",VLOOKUP($D13,表C_RAW!$C:$I,4,0)) -> 861841 | L13: =IF(ISERROR(VLOOKUP($D13,表C_RAW!$C:$I,5,0)),"",VLOOKUP($D13,表C_RAW!$C:$I,5,0)) -> 384031 | M13: =IF(ISERROR(VLOOKUP($D13,表C_RAW!$C:$I,6,0)),"",VLOOKUP($D13,表C_RAW!$C:$I,6,0)/100) -> 1.2442
B14: =VLOOKUP(A11,表B_RAW!N:T,7,0) -> 9.06 | C14: 4 | D14: =VLOOKUP($B$11&C14,表B_RAW!A:D,3,0) -> 2542 興富發 | F14: =IF(ISERROR(VLOOKUP($D14,表B_RAW!$C:$I,4,0)),"",VLOOKUP($D14,表B_RAW!$C:$I,4,0)) -> 484513 | G14: =IF(ISERROR(VLOOKUP($D14,表B_RAW!$C:$I,5,0)),"",VLOOKUP($D14,表B_RAW!$C:$I,5,0)) -> 184480 | H14: =IF(ISERROR(VLOOKUP($D14,表B_RAW!$C:$I,6,0)),"",VLOOKUP($D14,表B_RAW!$C:$I,6,0)/100) -> 1.6264 | I14: =IF(ISERROR(VLOOKUP($D14,表A_RAW!$C:$I,5,0)),"",VLOOKUP($D14,表A_RAW!$C:$I,5,0)) -> 1712081 | J14: =IF(ISERROR(VLOOKUP($D14,表A_RAW!$C:$I,7,0)),"",VLOOKUP($D14,表A_RAW!$C:$I,7,0)) -> -0.7170034595 | K14: =IF(ISERROR(VLOOKUP($D14,表C_RAW!$C:$I,4,0)),"",VLOOKUP($D14,表C_RAW!$C:$I,4,0)) -> 668993 | L14: =IF(ISERROR(VLOOKUP($D14,表C_RAW!$C:$I,5,0)),"",VLOOKUP($D14,表C_RAW!$C:$I,5,0)) -> 2110079 | M14: =IF(ISERROR(VLOOKUP($D14,表C_RAW!$C:$I,6,0)),"",VLOOKUP($D14,表C_RAW!$C:$I,6,0)/100) -> -0.683
C15: 5 | D15: =VLOOKUP($B$11&C15,表B_RAW!A:D,3,0) -> 2539 櫻花建 | F15: =IF(ISERROR(VLOOKUP($D15,表B_RAW!$C:$I,4,0)),"",VLOOKUP($D15,表B_RAW!$C:$I,4,0)) -> 806659 | G15: =IF(ISERROR(VLOOKUP($D15,表B_RAW!$C:$I,5,0)),"",VLOOKUP($D15,表B_RAW!$C:$I,5,0)) -> 325772 | H15: =IF(ISERROR(VLOOKUP($D15,表B_RAW!$C:$I,6,0)),"",VLOOKUP($D15,表B_RAW!$C:$I,6,0)/100) -> 1.4761 | I15: =IF(ISERROR(VLOOKUP($D15,表A_RAW!$C:$I,5,0)),"",VLOOKUP($D15,表A_RAW!$C:$I,5,0)) -> 277357 | J15: =IF(ISERROR(VLOOKUP($D15,表A_RAW!$C:$I,7,0)),"",VLOOKUP($D15,表A_RAW!$C:$I,7,0)) -> 1.908378011 | K15: =IF(ISERROR(VLOOKUP($D15,表C_RAW!$C:$I,4,0)),"",VLOOKUP($D15,表C_RAW!$C:$I,4,0)) -> 1132431 | L15: =IF(ISERROR(VLOOKUP($D15,表C_RAW!$C:$I,5,0)),"",VLOOKUP($D15,表C_RAW!$C:$I,5,0)) -> 828707 | M15: =IF(ISERROR(VLOOKUP($D15,表C_RAW!$C:$I,6,0)),"",VLOOKUP($D15,表C_RAW!$C:$I,6,0)/100) -> 0.3665
A16: 3 | B16: =VLOOKUP(A16,表B_RAW!N:P,3,0) -> 電器電纜 | C16: 1 | D16: =VLOOKUP($B$16&C16,表B_RAW!A:D,3,0) -> 1618 合機 | F16: =IF(ISERROR(VLOOKUP($D16,表B_RAW!$C:$I,4,0)),"",VLOOKUP($D16,表B_RAW!$C:$I,4,0)) -> 416799 | G16: =IF(ISERROR(VLOOKUP($D16,表B_RAW!$C:$I,5,0)),"",VLOOKUP($D16,表B_RAW!$C:$I,5,0)) -> 127350 | H16: =IF(ISERROR(VLOOKUP($D16,表B_RAW!$C:$I,6,0)),"",VLOOKUP($D16,表B_RAW!$C:$I,6,0)/100) -> 2.2729 | I16: =IF(ISERROR(VLOOKUP($D16,表A_RAW!$C:$I,5,0)),"",VLOOKUP($D16,表A_RAW!$C:$I,5,0)) -> 194236 | J16: =IF(ISERROR(VLOOKUP($D16,表A_RAW!$C:$I,7,0)),"",VLOOKUP($D16,表A_RAW!$C:$I,7,0)) -> 1.145838053 | K16: =IF(ISERROR(VLOOKUP($D16,表C_RAW!$C:$I,4,0)),"",VLOOKUP($D16,表C_RAW!$C:$I,4,0)) -> 544149 | L16: =IF(ISERROR(VLOOKUP($D16,表C_RAW!$C:$I,5,0)),"",VLOOKUP($D16,表C_RAW!$C:$I,5,0)) -> 451572 | M16: =IF(ISERROR(VLOOKUP($D16,表C_RAW!$C:$I,6,0)),"",VLOOKUP($D16,表C_RAW!$C:$I,6,0)/100) -> 0.205
C17: 2 | D17: =VLOOKUP($B$16&C17,表B_RAW!A:D,3,0) -> 1615 大山 | F17: =IF(ISERROR(VLOOKUP($D17,表B_RAW!$C:$I,4,0)),"",VLOOKUP($D17,表B_RAW!$C:$I,4,0)) -> 606204 | G17: =IF(ISERROR(VLOOKUP($D17,表B_RAW!$C:$I,5,0)),"",VLOOKUP($D17,表B_RAW!$C:$I,5,0)) -> 277591 | H17: =IF(ISERROR(VLOOKUP($D17,表B_RAW!$C:$I,6,0)),"",VLOOKUP($D17,表B_RAW!$C:$I,6,0)/100) -> 1.1838 | I17: =IF(ISERROR(VLOOKUP($D17,表A_RAW!$C:$I,5,0)),"",VLOOKUP($D17,表A_RAW!$C:$I,5,0)) -> 449479 | J17: =IF(ISERROR(VLOOKUP($D17,表A_RAW!$C:$I,7,0)),"",VLOOKUP($D17,表A_RAW!$C:$I,7,0)) -> 0.3486814734 | K17: =IF(ISERROR(VLOOKUP($D17,表C_RAW!$C:$I,4,0)),"",VLOOKUP($D17,表C_RAW!$C:$I,4,0)) -> 883795 | L17: =IF(ISERROR(VLOOKUP($D17,表C_RAW!$C:$I,5,0)),"",VLOOKUP($D17,表C_RAW!$C:$I,5,0)) -> 743494 | M17: =IF(ISERROR(VLOOKUP($D17,表C_RAW!$C:$I,6,0)),"",VLOOKUP($D17,表C_RAW!$C:$I,6,0)/100) -> 0.1887
C18: 3 | D18: =VLOOKUP($B$16&C18,表B_RAW!A:D,3,0) -> 1603 華電 | F18: =IF(ISERROR(VLOOKUP($D18,表B_RAW!$C:$I,4,0)),"",VLOOKUP($D18,表B_RAW!$C:$I,4,0)) -> 480534 | G18: =IF(ISERROR(VLOOKUP($D18,表B_RAW!$C:$I,5,0)),"",VLOOKUP($D18,表B_RAW!$C:$I,5,0)) -> 398270 | H18: =IF(ISERROR(VLOOKUP($D18,表B_RAW!$C:$I,6,0)),"",VLOOKUP($D18,表B_RAW!$C:$I,6,0)/100) -> 0.2066 | I18: =IF(ISERROR(VLOOKUP($D18,表A_RAW!$C:$I,5,0)),"",VLOOKUP($D18,表A_RAW!$C:$I,5,0)) -> 285285 | J18: =IF(ISERROR(VLOOKUP($D18,表A_RAW!$C:$I,7,0)),"",VLOOKUP($D18,表A_RAW!$C:$I,7,0)) -> 0.6843998107 | K18: =IF(ISERROR(VLOOKUP($D18,表C_RAW!$C:$I,4,0)),"",VLOOKUP($D18,表C_RAW!$C:$I,4,0)) -> 878804 | L18: =IF(ISERROR(VLOOKUP($D18,表C_RAW!$C:$I,5,0)),"",VLOOKUP($D18,表C_RAW!$C:$I,5,0)) -> 753109 | M18: =IF(ISERROR(VLOOKUP($D18,表C_RAW!$C:$I,6,0)),"",VLOOKUP($D18,表C_RAW!$C:$I,6,0)/100) -> 0.1669
B19: =VLOOKUP(A16,表B_RAW!N:T,7,0) -> 7.37 | C19: 4 | D19: =VLOOKUP($B$16&C19,表B_RAW!A:D,3,0) -> 1617 榮星 | F19: =IF(ISERROR(VLOOKUP($D19,表B_RAW!$C:$I,4,0)),"",VLOOKUP($D19,表B_RAW!$C:$I,4,0)) -> 265802 | G19: =IF(ISERROR(VLOOKUP($D19,表B_RAW!$C:$I,5,0)),"",VLOOKUP($D19,表B_RAW!$C:$I,5,0)) -> 226870 | H19: =IF(ISERROR(VLOOKUP($D19,表B_RAW!$C:$I,6,0)),"",VLOOKUP($D19,表B_RAW!$C:$I,6,0)/100) -> 0.1716 | I19: =IF(ISERROR(VLOOKUP($D19,表A_RAW!$C:$I,5,0)),"",VLOOKUP($D19,表A_RAW!$C:$I,5,0)) -> 160713 | J19: =IF(ISERROR(VLOOKUP($D19,表A_RAW!$C:$I,7,0)),"",VLOOKUP($D19,表A_RAW!$C:$I,7,0)) -> 0.6538923422 | K19: =IF(ISERROR(VLOOKUP($D19,表C_RAW!$C:$I,4,0)),"",VLOOKUP($D19,表C_RAW!$C:$I,4,0)) -> 492672 | L19: =IF(ISERROR(VLOOKUP($D19,表C_RAW!$C:$I,5,0)),"",VLOOKUP($D19,表C_RAW!$C:$I,5,0)) -> 424097 | M19: =IF(ISERROR(VLOOKUP($D19,表C_RAW!$C:$I,6,0)),"",VLOOKUP($D19,表C_RAW!$C:$I,6,0)/100) -> 0.1617
C20: 5 | D20: =VLOOKUP($B$16&C20,表B_RAW!A:D,3,0) -> 1612 宏泰 | F20: =IF(ISERROR(VLOOKUP($D20,表B_RAW!$C:$I,4,0)),"",VLOOKUP($D20,表B_RAW!$C:$I,4,0)) -> 596430 | G20: =IF(ISERROR(VLOOKUP($D20,表B_RAW!$C:$I,5,0)),"",VLOOKUP($D20,表B_RAW!$C:$I,5,0)) -> 518153 | H20: =IF(ISERROR(VLOOKUP($D20,表B_RAW!$C:$I,6,0)),"",VLOOKUP($D20,表B_RAW!$C:$I,6,0)/100) -> 0.1511 | I20: =IF(ISERROR(VLOOKUP($D20,表A_RAW!$C:$I,5,0)),"",VLOOKUP($D20,表A_RAW!$C:$I,5,0)) -> 409701 | J20: =IF(ISERROR(VLOOKUP($D20,表A_RAW!$C:$I,7,0)),"",VLOOKUP($D20,表A_RAW!$C:$I,7,0)) -> 0.4557689632 | K20: =IF(ISERROR(VLOOKUP($D20,表C_RAW!$C:$I,4,0)),"",VLOOKUP($D20,表C_RAW!$C:$I,4,0)) -> 1114583 | L20: =IF(ISERROR(VLOOKUP($D20,表C_RAW!$C:$I,5,0)),"",VLOOKUP($D20,表C_RAW!$C:$I,5,0)) -> 815281 | M20: =IF(ISERROR(VLOOKUP($D20,表C_RAW!$C:$I,6,0)),"",VLOOKUP($D20,表C_RAW!$C:$I,6,0)/100) -> 0.3671
A21: 4 | B21: =VLOOKUP(A21,表B_RAW!N:P,3,0) -> 鋼鐵工業 | C21: 1 | D21: =VLOOKUP($B$21&C21,表B_RAW!A:D,3,0) -> 8930 青鋼 | F21: =IF(ISERROR(VLOOKUP($D21,表B_RAW!$C:$I,4,0)),"",VLOOKUP($D21,表B_RAW!$C:$I,4,0)) -> 128416 | G21: =IF(ISERROR(VLOOKUP($D21,表B_RAW!$C:$I,5,0)),"",VLOOKUP($D21,表B_RAW!$C:$I,5,0)) -> 83563 | H21: =IF(ISERROR(VLOOKUP($D21,表B_RAW!$C:$I,6,0)),"",VLOOKUP($D21,表B_RAW!$C:$I,6,0)/100) -> 0.5368 | I21: =IF(ISERROR(VLOOKUP($D21,表A_RAW!$C:$I,5,0)),"",VLOOKUP($D21,表A_RAW!$C:$I,5,0)) -> 92761 | J21: =IF(ISERROR(VLOOKUP($D21,表A_RAW!$C:$I,7,0)),"",VLOOKUP($D21,表A_RAW!$C:$I,7,0)) -> 0.3843748989 | K21: =IF(ISERROR(VLOOKUP($D21,表C_RAW!$C:$I,4,0)),"",VLOOKUP($D21,表C_RAW!$C:$I,4,0)) -> 211979 | L21: =IF(ISERROR(VLOOKUP($D21,表C_RAW!$C:$I,5,0)),"",VLOOKUP($D21,表C_RAW!$C:$I,5,0)) -> 240502 | M21: =IF(ISERROR(VLOOKUP($D21,表C_RAW!$C:$I,6,0)),"",VLOOKUP($D21,表C_RAW!$C:$I,6,0)/100) -> -0.1186
C22: 2 | D22: =VLOOKUP($B$21&C22,表B_RAW!A:D,3,0) -> 2031 新光鋼 | F22: =IF(ISERROR(VLOOKUP($D22,表B_RAW!$C:$I,4,0)),"",VLOOKUP($D22,表B_RAW!$C:$I,4,0)) -> 1968406 | G22: =IF(ISERROR(VLOOKUP($D22,表B_RAW!$C:$I,5,0)),"",VLOOKUP($D22,表B_RAW!$C:$I,5,0)) -> 1292052 | H22: =IF(ISERROR(VLOOKUP($D22,表B_RAW!$C:$I,6,0)),"",VLOOKUP($D22,表B_RAW!$C:$I,6,0)/100) -> 0.5235 | I22: =IF(ISERROR(VLOOKUP($D22,表A_RAW!$C:$I,5,0)),"",VLOOKUP($D22,表A_RAW!$C:$I,5,0)) -> 921709 | J22: =IF(ISERROR(VLOOKUP($D22,表A_RAW!$C:$I,7,0)),"",VLOOKUP($D22,表A_RAW!$C:$I,7,0)) -> 1.135604621 | K22: =IF(ISERROR(VLOOKUP($D22,表C_RAW!$C:$I,4,0)),"",VLOOKUP($D22,表C_RAW!$C:$I,4,0)) -> 3260458 | L22: =IF(ISERROR(VLOOKUP($D22,表C_RAW!$C:$I,5,0)),"",VLOOKUP($D22,表C_RAW!$C:$I,5,0)) -> 2287173 | M22: =IF(ISERROR(VLOOKUP($D22,表C_RAW!$C:$I,6,0)),"",VLOOKUP($D22,表C_RAW!$C:$I,6,0)/100) -> 0.4255
C23: 3 | D23: =VLOOKUP($B$21&C23,表B_RAW!A:D,3,0) -> 2035 唐榮 | F23: =IF(ISERROR(VLOOKUP($D23,表B_RAW!$C:$I,4,0)),"",VLOOKUP($D23,表B_RAW!$C:$I,4,0)) -> 898050 | G23: =IF(ISERROR(VLOOKUP($D23,表B_RAW!$C:$I,5,0)),"",VLOOKUP($D23,表B_RAW!$C:$I,5,0)) -> 635256 | H23: =IF(ISERROR(VLOOKUP($D23,表B_RAW!$C:$I,6,0)),"",VLOOKUP($D23,表B_RAW!$C:$I,6,0)/100) -> 0.4137 | I23: =IF(ISERROR(VLOOKUP($D23,表A_RAW!$C:$I,5,0)),"",VLOOKUP($D23,表A_RAW!$C:$I,5,0)) -> 759916 | J23: =IF(ISERROR(VLOOKUP($D23,表A_RAW!$C:$I,7,0)),"",VLOOKUP($D23,表A_RAW!$C:$I,7,0)) -> 0.1817753541 | K23: =IF(ISERROR(VLOOKUP($D23,表C_RAW!$C:$I,4,0)),"",VLOOKUP($D23,表C_RAW!$C:$I,4,0)) -> 1533306 | L23: =IF(ISERROR(VLOOKUP($D23,表C_RAW!$C:$I,5,0)),"",VLOOKUP($D23,表C_RAW!$C:$I,5,0)) -> 1693443 | M23: =IF(ISERROR(VLOOKUP($D23,表C_RAW!$C:$I,6,0)),"",VLOOKUP($D23,表C_RAW!$C:$I,6,0)/100) -> -0.0946
B24: =VLOOKUP(A21,表B_RAW!N:T,7,0) -> 6.5 | C24: 4 | D24: =VLOOKUP($B$21&C24,表B_RAW!A:D,3,0) -> 2073 雄順 | F24: =IF(ISERROR(VLOOKUP($D24,表B_RAW!$C:$I,4,0)),"",VLOOKUP($D24,表B_RAW!$C:$I,4,0)) -> 54105 | G24: =IF(ISERROR(VLOOKUP($D24,表B_RAW!$C:$I,5,0)),"",VLOOKUP($D24,表B_RAW!$C:$I,5,0)) -> 39578 | H24: =IF(ISERROR(VLOOKUP($D24,表B_RAW!$C:$I,6,0)),"",VLOOKUP($D24,表B_RAW!$C:$I,6,0)/100) -> 0.367 | I24: =IF(ISERROR(VLOOKUP($D24,表A_RAW!$C:$I,5,0)),"",VLOOKUP($D24,表A_RAW!$C:$I,5,0)) -> 34971 | J24: =IF(ISERROR(VLOOKUP($D24,表A_RAW!$C:$I,7,0)),"",VLOOKUP($D24,表A_RAW!$C:$I,7,0)) -> 0.5471390581 | K24: =IF(ISERROR(VLOOKUP($D24,表C_RAW!$C:$I,4,0)),"",VLOOKUP($D24,表C_RAW!$C:$I,4,0)) -> 93683 | L24: =IF(ISERROR(VLOOKUP($D24,表C_RAW!$C:$I,5,0)),"",VLOOKUP($D24,表C_RAW!$C:$I,5,0)) -> 83562 | M24: =IF(ISERROR(VLOOKUP($D24,表C_RAW!$C:$I,6,0)),"",VLOOKUP($D24,表C_RAW!$C:$I,6,0)/100) -> 0.1211
C25: 5 | D25: =VLOOKUP($B$21&C25,表B_RAW!A:D,3,0) -> 2008 高興昌 | F25: =IF(ISERROR(VLOOKUP($D25,表B_RAW!$C:$I,4,0)),"",VLOOKUP($D25,表B_RAW!$C:$I,4,0)) -> 157095 | G25: =IF(ISERROR(VLOOKUP($D25,表B_RAW!$C:$I,5,0)),"",VLOOKUP($D25,表B_RAW!$C:$I,5,0)) -> 116089 | H25: =IF(ISERROR(VLOOKUP($D25,表B_RAW!$C:$I,6,0)),"",VLOOKUP($D25,表B_RAW!$C:$I,6,0)/100) -> 0.3532 | I25: =IF(ISERROR(VLOOKUP($D25,表A_RAW!$C:$I,5,0)),"",VLOOKUP($D25,表A_RAW!$C:$I,5,0)) -> 83309 | J25: =IF(ISERROR(VLOOKUP($D25,表A_RAW!$C:$I,7,0)),"",VLOOKUP($D25,表A_RAW!$C:$I,7,0)) -> 0.8856906217 | K25: =IF(ISERROR(VLOOKUP($D25,表C_RAW!$C:$I,4,0)),"",VLOOKUP($D25,表C_RAW!$C:$I,4,0)) -> 273184 | L25: =IF(ISERROR(VLOOKUP($D25,表C_RAW!$C:$I,5,0)),"",VLOOKUP($D25,表C_RAW!$C:$I,5,0)) -> 223958 | M25: =IF(ISERROR(VLOOKUP($D25,表C_RAW!$C:$I,6,0)),"",VLOOKUP($D25,表C_RAW!$C:$I,6,0)/100) -> 0.2198
A26: 5 | B26: =VLOOKUP(A26,表B_RAW!N:P,3,0) -> 資訊服務業 | C26: 1 | D26: =VLOOKUP($B$26&C26,表B_RAW!A:D,3,0) -> 5310 天剛 | F26: =IF(ISERROR(VLOOKUP($D26,表B_RAW!$C:$I,4,0)),"",VLOOKUP($D26,表B_RAW!$C:$I,4,0)) -> 58 | G26: =IF(ISERROR(VLOOKUP($D26,表B_RAW!$C:$I,5,0)),"",VLOOKUP($D26,表B_RAW!$C:$I,5,0)) -> 3 | H26: =IF(ISERROR(VLOOKUP($D26,表B_RAW!$C:$I,6,0)),"",VLOOKUP($D26,表B_RAW!$C:$I,6,0)/100) -> 18.3333 | I26: =IF(ISERROR(VLOOKUP($D26,表A_RAW!$C:$I,5,0)),"",VLOOKUP($D26,表A_RAW!$C:$I,5,0)) -> 15 | J26: =IF(ISERROR(VLOOKUP($D26,表A_RAW!$C:$I,7,0)),"",VLOOKUP($D26,表A_RAW!$C:$I,7,0)) -> 2.866666667 | K26: =IF(ISERROR(VLOOKUP($D26,表C_RAW!$C:$I,4,0)),"",VLOOKUP($D26,表C_RAW!$C:$I,4,0)) -> 61 | L26: =IF(ISERROR(VLOOKUP($D26,表C_RAW!$C:$I,5,0)),"",VLOOKUP($D26,表C_RAW!$C:$I,5,0)) -> 235 | M26: =IF(ISERROR(VLOOKUP($D26,表C_RAW!$C:$I,6,0)),"",VLOOKUP($D26,表C_RAW!$C:$I,6,0)/100) -> -0.7404
C27: 2 | D27: =VLOOKUP($B$26&C27,表B_RAW!A:D,3,0) -> 3147 大綜 | F27: =IF(ISERROR(VLOOKUP($D27,表B_RAW!$C:$I,4,0)),"",VLOOKUP($D27,表B_RAW!$C:$I,4,0)) -> 1304802 | G27: =IF(ISERROR(VLOOKUP($D27,表B_RAW!$C:$I,5,0)),"",VLOOKUP($D27,表B_RAW!$C:$I,5,0)) -> 460388 | H27: =IF(ISERROR(VLOOKUP($D27,表B_RAW!$C:$I,6,0)),"",VLOOKUP($D27,表B_RAW!$C:$I,6,0)/100) -> 1.8341 | I27: =IF(ISERROR(VLOOKUP($D27,表A_RAW!$C:$I,5,0)),"",VLOOKUP($D27,表A_RAW!$C:$I,5,0)) -> 257074 | J27: =IF(ISERROR(VLOOKUP($D27,表A_RAW!$C:$I,7,0)),"",VLOOKUP($D27,表A_RAW!$C:$I,7,0)) -> 4.07558913 | K27: =IF(ISERROR(VLOOKUP($D27,表C_RAW!$C:$I,4,0)),"",VLOOKUP($D27,表C_RAW!$C:$I,4,0)) -> 1765190 | L27: =IF(ISERROR(VLOOKUP($D27,表C_RAW!$C:$I,5,0)),"",VLOOKUP($D27,表C_RAW!$C:$I,5,0)) -> 685558 | M27: =IF(ISERROR(VLOOKUP($D27,表C_RAW!$C:$I,6,0)),"",VLOOKUP($D27,表C_RAW!$C:$I,6,0)/100) -> 1.5748
C28: 3 | D28: =VLOOKUP($B$26&C28,表B_RAW!A:D,3,0) -> 6148 驊宏資 | F28: =IF(ISERROR(VLOOKUP($D28,表B_RAW!$C:$I,4,0)),"",VLOOKUP($D28,表B_RAW!$C:$I,4,0)) -> 81919 | G28: =IF(ISERROR(VLOOKUP($D28,表B_RAW!$C:$I,5,0)),"",VLOOKUP($D28,表B_RAW!$C:$I,5,0)) -> 36174 | H28: =IF(ISERROR(VLOOKUP($D28,表B_RAW!$C:$I,6,0)),"",VLOOKUP($D28,表B_RAW!$C:$I,6,0)/100) -> 1.2646 | I28: =IF(ISERROR(VLOOKUP($D28,表A_RAW!$C:$I,5,0)),"",VLOOKUP($D28,表A_RAW!$C:$I,5,0)) -> 12503 | J28: =IF(ISERROR(VLOOKUP($D28,表A_RAW!$C:$I,7,0)),"",VLOOKUP($D28,表A_RAW!$C:$I,7,0)) -> 5.551947533 | K28: =IF(ISERROR(VLOOKUP($D28,表C_RAW!$C:$I,4,0)),"",VLOOKUP($D28,表C_RAW!$C:$I,4,0)) -> 118093 | L28: =IF(ISERROR(VLOOKUP($D28,表C_RAW!$C:$I,5,0)),"",VLOOKUP($D28,表C_RAW!$C:$I,5,0)) -> 85530 | M28: =IF(ISERROR(VLOOKUP($D28,表C_RAW!$C:$I,6,0)),"",VLOOKUP($D28,表C_RAW!$C:$I,6,0)/100) -> 0.3807
B29: =VLOOKUP(A26,表B_RAW!N:T,7,0) -> 5.96 | C29: 4 | D29: =VLOOKUP($B$26&C29,表B_RAW!A:D,3,0) -> 5410 國眾 | F29: =IF(ISERROR(VLOOKUP($D29,表B_RAW!$C:$I,4,0)),"",VLOOKUP($D29,表B_RAW!$C:$I,4,0)) -> 647512 | G29: =IF(ISERROR(VLOOKUP($D29,表B_RAW!$C:$I,5,0)),"",VLOOKUP($D29,表B_RAW!$C:$I,5,0)) -> 308504 | H29: =IF(ISERROR(VLOOKUP($D29,表B_RAW!$C:$I,6,0)),"",VLOOKUP($D29,表B_RAW!$C:$I,6,0)/100) -> 1.0989 | I29: =IF(ISERROR(VLOOKUP($D29,表A_RAW!$C:$I,5,0)),"",VLOOKUP($D29,表A_RAW!$C:$I,5,0)) -> 129758 | J29: =IF(ISERROR(VLOOKUP($D29,表A_RAW!$C:$I,7,0)),"",VLOOKUP($D29,表A_RAW!$C:$I,7,0)) -> 3.990150896 | K29: =IF(ISERROR(VLOOKUP($D29,表C_RAW!$C:$I,4,0)),"",VLOOKUP($D29,表C_RAW!$C:$I,4,0)) -> 956016 | L29: =IF(ISERROR(VLOOKUP($D29,表C_RAW!$C:$I,5,0)),"",VLOOKUP($D29,表C_RAW!$C:$I,5,0)) -> 404538 | M29: =IF(ISERROR(VLOOKUP($D29,表C_RAW!$C:$I,6,0)),"",VLOOKUP($D29,表C_RAW!$C:$I,6,0)/100) -> 1.3632
C30: 5 | D30: =VLOOKUP($B$26&C30,表B_RAW!A:D,3,0) -> 5212 凌網 | F30: =IF(ISERROR(VLOOKUP($D30,表B_RAW!$C:$I,4,0)),"",VLOOKUP($D30,表B_RAW!$C:$I,4,0)) -> 103075 | G30: =IF(ISERROR(VLOOKUP($D30,表B_RAW!$C:$I,5,0)),"",VLOOKUP($D30,表B_RAW!$C:$I,5,0)) -> 61036 | H30: =IF(ISERROR(VLOOKUP($D30,表B_RAW!$C:$I,6,0)),"",VLOOKUP($D30,表B_RAW!$C:$I,6,0)/100) -> 0.6888 | I30: =IF(ISERROR(VLOOKUP($D30,表A_RAW!$C:$I,5,0)),"",VLOOKUP($D30,表A_RAW!$C:$I,5,0)) -> 70000 | J30: =IF(ISERROR(VLOOKUP($D30,表A_RAW!$C:$I,7,0)),"",VLOOKUP($D30,表A_RAW!$C:$I,7,0)) -> 0.4725 | K30: =IF(ISERROR(VLOOKUP($D30,表C_RAW!$C:$I,4,0)),"",VLOOKUP($D30,表C_RAW!$C:$I,4,0)) -> 164111 | L30: =IF(ISERROR(VLOOKUP($D30,表C_RAW!$C:$I,5,0)),"",VLOOKUP($D30,表C_RAW!$C:$I,5,0)) -> 127356 | M30: =IF(ISERROR(VLOOKUP($D30,表C_RAW!$C:$I,6,0)),"",VLOOKUP($D30,表C_RAW!$C:$I,6,0)/100) -> 0.2886
A32: 衰退前五名之產業 MOM% | C32: 該產業衰退前五名之公司 MOM% | F32: 單月營收金額(千元) | G32: 本月與上月相較 | I32: 本月與去年同期相較 | K32: 累計營收金額(千元) | L32: 累計營收與去年同期相較
A33: 衰退 排名 | B33: 產業 | C33: 排名 | D33: 公司代號&簡稱 | G33: 上月營收金額(千元) | H33: 較上月變動比率(%) | I33: 去年同期金額(千元) | J33: 較去年同期變動比率(%) | L33: 去年累計營收金額(千元) | M33: 較去年同期變動比率(%)
A34: 1 | B34: =VLOOKUP(A34,表B_RAW!O:P,2,0) -> 水泥工業 | C34: 1 | D34: =VLOOKUP($B$34&C34,表B_RAW!B:D,2,0) -> 1102 亞泥 | F34: =IF(ISERROR(VLOOKUP($D34,表B_RAW!$C:$I,4,0)),"",VLOOKUP($D34,表B_RAW!$C:$I,4,0)) -> 4184371 | G34: =IF(ISERROR(VLOOKUP($D34,表B_RAW!$C:$I,5,0)),"",VLOOKUP($D34,表B_RAW!$C:$I,5,0)) -> 5877674 | H34: =IF(ISERROR(VLOOKUP($D34,表B_RAW!$C:$I,6,0)),"",VLOOKUP($D34,表B_RAW!$C:$I,6,0)/100) -> -0.2881 | I34: =IF(ISERROR(VLOOKUP($D34,表A_RAW!$C:$I,5,0)),"",VLOOKUP($D34,表A_RAW!$C:$I,5,0)) -> 3599986 | J34: =IF(ISERROR(VLOOKUP($D34,表A_RAW!$C:$I,7,0)),"",VLOOKUP($D34,表A_RAW!$C:$I,7,0)) -> 0.1623297979 | K34: =IF(ISERROR(VLOOKUP($D34,表C_RAW!$C:$I,4,0)),"",VLOOKUP($D34,表C_RAW!$C:$I,4,0)) -> 10062045 | L34: =IF(ISERROR(VLOOKUP($D34,表C_RAW!$C:$I,5,0)),"",VLOOKUP($D34,表C_RAW!$C:$I,5,0)) -> 10090552 | M34: =IF(ISERROR(VLOOKUP($D34,表C_RAW!$C:$I,6,0)),"",VLOOKUP($D34,表C_RAW!$C:$I,6,0)/100) -> -0.0028
C35: 2 | D35: =VLOOKUP($B$34&C35,表B_RAW!B:D,2,0) -> 1101 台泥 | F35: =IF(ISERROR(VLOOKUP($D35,表B_RAW!$C:$I,4,0)),"",VLOOKUP($D35,表B_RAW!$C:$I,4,0)) -> 9123490 | G35: =IF(ISERROR(VLOOKUP($D35,表B_RAW!$C:$I,5,0)),"",VLOOKUP($D35,表B_RAW!$C:$I,5,0)) -> 12213350 | H35: =IF(ISERROR(VLOOKUP($D35,表B_RAW!$C:$I,6,0)),"",VLOOKUP($D35,表B_RAW!$C:$I,6,0)/100) -> -0.253 | I35: =IF(ISERROR(VLOOKUP($D35,表A_RAW!$C:$I,5,0)),"",VLOOKUP($D35,表A_RAW!$C:$I,5,0)) -> 4798581 | J35: =IF(ISERROR(VLOOKUP($D35,表A_RAW!$C:$I,7,0)),"",VLOOKUP($D35,表A_RAW!$C:$I,7,0)) -> 0.9012891519 | K35: =IF(ISERROR(VLOOKUP($D35,表C_RAW!$C:$I,4,0)),"",VLOOKUP($D35,表C_RAW!$C:$I,4,0)) -> 21336840 | L35: =IF(ISERROR(VLOOKUP($D35,表C_RAW!$C:$I,5,0)),"",VLOOKUP($D35,表C_RAW!$C:$I,5,0)) -> 12036511 | M35: =IF(ISERROR(VLOOKUP($D35,表C_RAW!$C:$I,6,0)),"",VLOOKUP($D35,表C_RAW!$C:$I,6,0)/100) -> 0.7727
C36: 3 | D36: =VLOOKUP($B$34&C36,表B_RAW!B:D,2,0) -> 1104 環泥 | F36: =IF(ISERROR(VLOOKUP($D36,表B_RAW!$C:$I,4,0)),"",VLOOKUP($D36,表B_RAW!$C:$I,4,0)) -> 538636 | G36: =IF(ISERROR(VLOOKUP($D36,表B_RAW!$C:$I,5,0)),"",VLOOKUP($D36,表B_RAW!$C:$I,5,0)) -> 687804 | H36: =IF(ISERROR(VLOOKUP($D36,表B_RAW!$C:$I,6,0)),"",VLOOKUP($D36,表B_RAW!$C:$I,6,0)/100) -> -0.2169 | I36: =IF(ISERROR(VLOOKUP($D36,表A_RAW!$C:$I,5,0)),"",VLOOKUP($D36,表A_RAW!$C:$I,5,0)) -> 477355 | J36: =IF(ISERROR(VLOOKUP($D36,表A_RAW!$C:$I,7,0)),"",VLOOKUP($D36,表A_RAW!$C:$I,7,0)) -> 0.1283761561 | K36: =IF(ISERROR(VLOOKUP($D36,表C_RAW!$C:$I,4,0)),"",VLOOKUP($D36,表C_RAW!$C:$I,4,0)) -> 1226440 | L36: =IF(ISERROR(VLOOKUP($D36,表C_RAW!$C:$I,5,0)),"",VLOOKUP($D36,表C_RAW!$C:$I,5,0)) -> 1158116 | M36: =IF(ISERROR(VLOOKUP($D36,表C_RAW!$C:$I,6,0)),"",VLOOKUP($D36,表C_RAW!$C:$I,6,0)/100) -> 0.059
B37: =VLOOKUP(A34,表B_RAW!O:T,6,0) -> -25.69 | C37: 4 | D37: =VLOOKUP($B$34&C37,表B_RAW!B:D,2,0) -> 1109 信大 | F37: =IF(ISERROR(VLOOKUP($D37,表B_RAW!$C:$I,4,0)),"",VLOOKUP($D37,表B_RAW!$C:$I,4,0)) -> 238647 | G37: =IF(ISERROR(VLOOKUP($D37,表B_RAW!$C:$I,5,0)),"",VLOOKUP($D37,表B_RAW!$C:$I,5,0)) -> 304555 | H37: =IF(ISERROR(VLOOKUP($D37,表B_RAW!$C:$I,6,0)),"",VLOOKUP($D37,表B_RAW!$C:$I,6,0)/100) -> -0.2164 | I37: =IF(ISERROR(VLOOKUP($D37,表A_RAW!$C:$I,5,0)),"",VLOOKUP($D37,表A_RAW!$C:$I,5,0)) -> 226768 | J37: =IF(ISERROR(VLOOKUP($D37,表A_RAW!$C:$I,7,0)),"",VLOOKUP($D37,表A_RAW!$C:$I,7,0)) -> 0.05238393424 | K37: =IF(ISERROR(VLOOKUP($D37,表C_RAW!$C:$I,4,0)),"",VLOOKUP($D37,表C_RAW!$C:$I,4,0)) -> 543202 | L37: =IF(ISERROR(VLOOKUP($D37,表C_RAW!$C:$I,5,0)),"",VLOOKUP($D37,表C_RAW!$C:$I,5,0)) -> 693330 | M37: =IF(ISERROR(VLOOKUP($D37,表C_RAW!$C:$I,6,0)),"",VLOOKUP($D37,表C_RAW!$C:$I,6,0)/100) -> -0.2165
C38: 5 | D38: =VLOOKUP($B$34&C38,表B_RAW!B:D,2,0) -> 1108 幸福 | F38: =IF(ISERROR(VLOOKUP($D38,表B_RAW!$C:$I,4,0)),"",VLOOKUP($D38,表B_RAW!$C:$I,4,0)) -> 356169 | G38: =IF(ISERROR(VLOOKUP($D38,表B_RAW!$C:$I,5,0)),"",VLOOKUP($D38,表B_RAW!$C:$I,5,0)) -> 448229 | H38: =IF(ISERROR(VLOOKUP($D38,表B_RAW!$C:$I,6,0)),"",VLOOKUP($D38,表B_RAW!$C:$I,6,0)/100) -> -0.2054 | I38: =IF(ISERROR(VLOOKUP($D38,表A_RAW!$C:$I,5,0)),"",VLOOKUP($D38,表A_RAW!$C:$I,5,0)) -> 286337 | J38: =IF(ISERROR(VLOOKUP($D38,表A_RAW!$C:$I,7,0)),"",VLOOKUP($D38,表A_RAW!$C:$I,7,0)) -> 0.2438804625 | K38: =IF(ISERROR(VLOOKUP($D38,表C_RAW!$C:$I,4,0)),"",VLOOKUP($D38,表C_RAW!$C:$I,4,0)) -> 804398 | L38: =IF(ISERROR(VLOOKUP($D38,表C_RAW!$C:$I,5,0)),"",VLOOKUP($D38,表C_RAW!$C:$I,5,0)) -> 743486 | M38: =IF(ISERROR(VLOOKUP($D38,表C_RAW!$C:$I,6,0)),"",VLOOKUP($D38,表C_RAW!$C:$I,6,0)/100) -> 0.0819
A39: 2 | B39: =VLOOKUP(A39,表B_RAW!O:P,2,0) -> 食品工業 | C39: 1 | D39: =VLOOKUP($B$39&C39,表B_RAW!B:D,2,0) -> 1235 興泰 | F39: =IF(ISERROR(VLOOKUP($D39,表B_RAW!$C:$I,4,0)),"",VLOOKUP($D39,表B_RAW!$C:$I,4,0)) -> 1746 | G39: =IF(ISERROR(VLOOKUP($D39,表B_RAW!$C:$I,5,0)),"",VLOOKUP($D39,表B_RAW!$C:$I,5,0)) -> 8607 | H39: =IF(ISERROR(VLOOKUP($D39,表B_RAW!$C:$I,6,0)),"",VLOOKUP($D39,表B_RAW!$C:$I,6,0)/100) -> -0.7971 | I39: =IF(ISERROR(VLOOKUP($D39,表A_RAW!$C:$I,5,0)),"",VLOOKUP($D39,表A_RAW!$C:$I,5,0)) -> 2152 | J39: =IF(ISERROR(VLOOKUP($D39,表A_RAW!$C:$I,7,0)),"",VLOOKUP($D39,表A_RAW!$C:$I,7,0)) -> -0.18866171 | K39: =IF(ISERROR(VLOOKUP($D39,表C_RAW!$C:$I,4,0)),"",VLOOKUP($D39,表C_RAW!$C:$I,4,0)) -> 10353 | L39: =IF(ISERROR(VLOOKUP($D39,表C_RAW!$C:$I,5,0)),"",VLOOKUP($D39,表C_RAW!$C:$I,5,0)) -> 7587 | M39: =IF(ISERROR(VLOOKUP($D39,表C_RAW!$C:$I,6,0)),"",VLOOKUP($D39,表C_RAW!$C:$I,6,0)/100) -> 0.3646
C40: 2 | D40: =VLOOKUP($B$39&C40,表B_RAW!B:D,2,0) -> 1236 宏亞 | F40: =IF(ISERROR(VLOOKUP($D40,表B_RAW!$C:$I,4,0)),"",VLOOKUP($D40,表B_RAW!$C:$I,4,0)) -> 87822 | G40: =IF(ISERROR(VLOOKUP($D40,表B_RAW!$C:$I,5,0)),"",VLOOKUP($D40,表B_RAW!$C:$I,5,0)) -> 295078 | H40: =IF(ISERROR(VLOOKUP($D40,表B_RAW!$C:$I,6,0)),"",VLOOKUP($D40,表B_RAW!$C:$I,6,0)/100) -> -0.7024 | I40: =IF(ISERROR(VLOOKUP($D40,表A_RAW!$C:$I,5,0)),"",VLOOKUP($D40,表A_RAW!$C:$I,5,0)) -> 98637 | J40: =IF(ISERROR(VLOOKUP($D40,表A_RAW!$C:$I,7,0)),"",VLOOKUP($D40,表A_RAW!$C:$I,7,0)) -> -0.1096444539 | K40: =IF(ISERROR(VLOOKUP($D40,表C_RAW!$C:$I,4,0)),"",VLOOKUP($D40,表C_RAW!$C:$I,4,0)) -> 382900 | L40: =IF(ISERROR(VLOOKUP($D40,表C_RAW!$C:$I,5,0)),"",VLOOKUP($D40,表C_RAW!$C:$I,5,0)) -> 443237 | M40: =IF(ISERROR(VLOOKUP($D40,表C_RAW!$C:$I,6,0)),"",VLOOKUP($D40,表C_RAW!$C:$I,6,0)/100) -> -0.1361
C41: 3 | D41: =VLOOKUP($B$39&C41,表B_RAW!B:D,2,0) -> 1227 佳格 | F41: =IF(ISERROR(VLOOKUP($D41,表B_RAW!$C:$I,4,0)),"",VLOOKUP($D41,表B_RAW!$C:$I,4,0)) -> 1605125 | G41: =IF(ISERROR(VLOOKUP($D41,表B_RAW!$C:$I,5,0)),"",VLOOKUP($D41,表B_RAW!$C:$I,5,0)) -> 3268631 | H41: =IF(ISERROR(VLOOKUP($D41,表B_RAW!$C:$I,6,0)),"",VLOOKUP($D41,表B_RAW!$C:$I,6,0)/100) -> -0.5089 | I41: =IF(ISERROR(VLOOKUP($D41,表A_RAW!$C:$I,5,0)),"",VLOOKUP($D41,表A_RAW!$C:$I,5,0)) -> 1318295 | J41: =IF(ISERROR(VLOOKUP($D41,表A_RAW!$C:$I,7,0)),"",VLOOKUP($D41,表A_RAW!$C:$I,7,0)) -> 0.2175764908 | K41: =IF(ISERROR(VLOOKUP($D41,表C_RAW!$C:$I,4,0)),"",VLOOKUP($D41,表C_RAW!$C:$I,4,0)) -> 4873756 | L41: =IF(ISERROR(VLOOKUP($D41,表C_RAW!$C:$I,5,0)),"",VLOOKUP($D41,表C_RAW!$C:$I,5,0)) -> 4727720 | M41: =IF(ISERROR(VLOOKUP($D41,表C_RAW!$C:$I,6,0)),"",VLOOKUP($D41,表C_RAW!$C:$I,6,0)/100) -> 0.0309
B42: =VLOOKUP(A39,表B_RAW!O:T,6,0) -> -24.49 | C42: 4 | D42: =VLOOKUP($B$39&C42,表B_RAW!B:D,2,0) -> 1256 鮮活果汁-KY | F42: =IF(ISERROR(VLOOKUP($D42,表B_RAW!$C:$I,4,0)),"",VLOOKUP($D42,表B_RAW!$C:$I,4,0)) -> 179442 | G42: =IF(ISERROR(VLOOKUP($D42,表B_RAW!$C:$I,5,0)),"",VLOOKUP($D42,表B_RAW!$C:$I,5,0)) -> 328850 | H42: =IF(ISERROR(VLOOKUP($D42,表B_RAW!$C:$I,6,0)),"",VLOOKUP($D42,表B_RAW!$C:$I,6,0)/100) -> -0.4543 | I42: =IF(ISERROR(VLOOKUP($D42,表A_RAW!$C:$I,5,0)),"",VLOOKUP($D42,表A_RAW!$C:$I,5,0)) -> 201498 | J42: =IF(ISERROR(VLOOKUP($D42,表A_RAW!$C:$I,7,0)),"",VLOOKUP($D42,表A_RAW!$C:$I,7,0)) -> -0.1094601435 | K42: =IF(ISERROR(VLOOKUP($D42,表C_RAW!$C:$I,4,0)),"",VLOOKUP($D42,表C_RAW!$C:$I,4,0)) -> 508292 | L42: =IF(ISERROR(VLOOKUP($D42,表C_RAW!$C:$I,5,0)),"",VLOOKUP($D42,表C_RAW!$C:$I,5,0)) -> 627739 | M42: =IF(ISERROR(VLOOKUP($D42,表C_RAW!$C:$I,6,0)),"",VLOOKUP($D42,表C_RAW!$C:$I,6,0)/100) -> -0.1903
C43: 5 | D43: =VLOOKUP($B$39&C43,表B_RAW!B:D,2,0) -> 1264 德麥 | F43: =IF(ISERROR(VLOOKUP($D43,表B_RAW!$C:$I,4,0)),"",VLOOKUP($D43,表B_RAW!$C:$I,4,0)) -> 412565 | G43: =IF(ISERROR(VLOOKUP($D43,表B_RAW!$C:$I,5,0)),"",VLOOKUP($D43,表B_RAW!$C:$I,5,0)) -> 681442 | H43: =IF(ISERROR(VLOOKUP($D43,表B_RAW!$C:$I,6,0)),"",VLOOKUP($D43,表B_RAW!$C:$I,6,0)/100) -> -0.3946 | I43: =IF(ISERROR(VLOOKUP($D43,表A_RAW!$C:$I,5,0)),"",VLOOKUP($D43,表A_RAW!$C:$I,5,0)) -> 342042 | J43: =IF(ISERROR(VLOOKUP($D43,表A_RAW!$C:$I,7,0)),"",VLOOKUP($D43,表A_RAW!$C:$I,7,0)) -> 0.2061822817 | K43: =IF(ISERROR(VLOOKUP($D43,表C_RAW!$C:$I,4,0)),"",VLOOKUP($D43,表C_RAW!$C:$I,4,0)) -> 1094007 | L43: =IF(ISERROR(VLOOKUP($D43,表C_RAW!$C:$I,5,0)),"",VLOOKUP($D43,表C_RAW!$C:$I,5,0)) -> 1022510 | M43: =IF(ISERROR(VLOOKUP($D43,表C_RAW!$C:$I,6,0)),"",VLOOKUP($D43,表C_RAW!$C:$I,6,0)/100) -> 0.0699
A44: 3 | B44: =VLOOKUP(A44,表B_RAW!O:P,2,0) -> 貿易百貨 | C44: 1 | D44: =VLOOKUP($B$44&C44,表B_RAW!B:D,2,0) -> 8429 金麗-KY | F44: =IF(ISERROR(VLOOKUP($D44,表B_RAW!$C:$I,4,0)),"",VLOOKUP($D44,表B_RAW!$C:$I,4,0)) -> 4692 | G44: =IF(ISERROR(VLOOKUP($D44,表B_RAW!$C:$I,5,0)),"",VLOOKUP($D44,表B_RAW!$C:$I,5,0)) -> 15930 | H44: =IF(ISERROR(VLOOKUP($D44,表B_RAW!$C:$I,6,0)),"",VLOOKUP($D44,表B_RAW!$C:$I,6,0)/100) -> -0.7055 | I44: =IF(ISERROR(VLOOKUP($D44,表A_RAW!$C:$I,5,0)),"",VLOOKUP($D44,表A_RAW!$C:$I,5,0)) -> 2933 | J44: =IF(ISERROR(VLOOKUP($D44,表A_RAW!$C:$I,7,0)),"",VLOOKUP($D44,表A_RAW!$C:$I,7,0)) -> 0.5997272417 | K44: =IF(ISERROR(VLOOKUP($D44,表C_RAW!$C:$I,4,0)),"",VLOOKUP($D44,表C_RAW!$C:$I,4,0)) -> 20622 | L44: =IF(ISERROR(VLOOKUP($D44,表C_RAW!$C:$I,5,0)),"",VLOOKUP($D44,表C_RAW!$C:$I,5,0)) -> 3633 | M44: =IF(ISERROR(VLOOKUP($D44,表C_RAW!$C:$I,6,0)),"",VLOOKUP($D44,表C_RAW!$C:$I,6,0)/100) -> 4.6763
C45: 2 | D45: =VLOOKUP($B$44&C45,表B_RAW!B:D,2,0) -> 5906 台南-KY | F45: =IF(ISERROR(VLOOKUP($D45,表B_RAW!$C:$I,4,0)),"",VLOOKUP($D45,表B_RAW!$C:$I,4,0)) -> 125838 | G45: =IF(ISERROR(VLOOKUP($D45,表B_RAW!$C:$I,5,0)),"",VLOOKUP($D45,表B_RAW!$C:$I,5,0)) -> 245326 | H45: =IF(ISERROR(VLOOKUP($D45,表B_RAW!$C:$I,6,0)),"",VLOOKUP($D45,表B_RAW!$C:$I,6,0)/100) -> -0.4871 | I45: =IF(ISERROR(VLOOKUP($D45,表A_RAW!$C:$I,5,0)),"",VLOOKUP($D45,表A_RAW!$C:$I,5,0)) -> 181716 | J45: =IF(ISERROR(VLOOKUP($D45,表A_RAW!$C:$I,7,0)),"",VLOOKUP($D45,表A_RAW!$C:$I,7,0)) -> -0.307501816 | K45: =IF(ISERROR(VLOOKUP($D45,表C_RAW!$C:$I,4,0)),"",VLOOKUP($D45,表C_RAW!$C:$I,4,0)) -> 371164 | L45: =IF(ISERROR(VLOOKUP($D45,表C_RAW!$C:$I,5,0)),"",VLOOKUP($D45,表C_RAW!$C:$I,5,0)) -> 358922 | M45: =IF(ISERROR(VLOOKUP($D45,表C_RAW!$C:$I,6,0)),"",VLOOKUP($D45,表C_RAW!$C:$I,6,0)/100) -> 0.0341
C46: 3 | D46: =VLOOKUP($B$44&C46,表B_RAW!B:D,2,0) -> 2929 淘帝-KY | F46: =IF(ISERROR(VLOOKUP($D46,表B_RAW!$C:$I,4,0)),"",VLOOKUP($D46,表B_RAW!$C:$I,4,0)) -> 89017 | G46: =IF(ISERROR(VLOOKUP($D46,表B_RAW!$C:$I,5,0)),"",VLOOKUP($D46,表B_RAW!$C:$I,5,0)) -> 146299 | H46: =IF(ISERROR(VLOOKUP($D46,表B_RAW!$C:$I,6,0)),"",VLOOKUP($D46,表B_RAW!$C:$I,6,0)/100) -> -0.3915 | I46: =IF(ISERROR(VLOOKUP($D46,表A_RAW!$C:$I,5,0)),"",VLOOKUP($D46,表A_RAW!$C:$I,5,0)) -> 85592 | J46: =IF(ISERROR(VLOOKUP($D46,表A_RAW!$C:$I,7,0)),"",VLOOKUP($D46,表A_RAW!$C:$I,7,0)) -> 0.040015422 | K46: =IF(ISERROR(VLOOKUP($D46,表C_RAW!$C:$I,4,0)),"",VLOOKUP($D46,表C_RAW!$C:$I,4,0)) -> 235424 | L46: =IF(ISERROR(VLOOKUP($D46,表C_RAW!$C:$I,5,0)),"",VLOOKUP($D46,表C_RAW!$C:$I,5,0)) -> 235872 | M46: =IF(ISERROR(VLOOKUP($D46,表C_RAW!$C:$I,6,0)),"",VLOOKUP($D46,表C_RAW!$C:$I,6,0)/100) -> -0.0019
B47: =VLOOKUP(A44,表B_RAW!O:T,6,0) -> -20.04 | C47: 4 | D47: =VLOOKUP($B$44&C47,表B_RAW!B:D,2,0) -> 2915 潤泰全 | F47: =IF(ISERROR(VLOOKUP($D47,表B_RAW!$C:$I,4,0)),"",VLOOKUP($D47,表B_RAW!$C:$I,4,0)) -> 174446 | G47: =IF(ISERROR(VLOOKUP($D47,表B_RAW!$C:$I,5,0)),"",VLOOKUP($D47,表B_RAW!$C:$I,5,0)) -> 267711 | H47: =IF(ISERROR(VLOOKUP($D47,表B_RAW!$C:$I,6,0)),"",VLOOKUP($D47,表B_RAW!$C:$I,6,0)/100) -> -0.3484 | I47: =IF(ISERROR(VLOOKUP($D47,表A_RAW!$C:$I,5,0)),"",VLOOKUP($D47,表A_RAW!$C:$I,5,0)) -> 255690 | J47: =IF(ISERROR(VLOOKUP($D47,表A_RAW!$C:$I,7,0)),"",VLOOKUP($D47,表A_RAW!$C:$I,7,0)) -> -0.3177441433 | K47: =IF(ISERROR(VLOOKUP($D47,表C_RAW!$C:$I,4,0)),"",VLOOKUP($D47,表C_RAW!$C:$I,4,0)) -> 442157 | L47: =IF(ISERROR(VLOOKUP($D47,表C_RAW!$C:$I,5,0)),"",VLOOKUP($D47,表C_RAW!$C:$I,5,0)) -> 503609 | M47: =IF(ISERROR(VLOOKUP($D47,表C_RAW!$C:$I,6,0)),"",VLOOKUP($D47,表C_RAW!$C:$I,6,0)/100) -> -0.122
C48: 5 | D48: =VLOOKUP($B$44&C48,表B_RAW!B:D,2,0) -> 2911 麗嬰房 | F48: =IF(ISERROR(VLOOKUP($D48,表B_RAW!$C:$I,4,0)),"",VLOOKUP($D48,表B_RAW!$C:$I,4,0)) -> 176704 | G48: =IF(ISERROR(VLOOKUP($D48,表B_RAW!$C:$I,5,0)),"",VLOOKUP($D48,表B_RAW!$C:$I,5,0)) -> 270801 | H48: =IF(ISERROR(VLOOKUP($D48,表B_RAW!$C:$I,6,0)),"",VLOOKUP($D48,表B_RAW!$C:$I,6,0)/100) -> -0.3475 | I48: =IF(ISERROR(VLOOKUP($D48,表A_RAW!$C:$I,5,0)),"",VLOOKUP($D48,表A_RAW!$C:$I,5,0)) -> 249548 | J48: =IF(ISERROR(VLOOKUP($D48,表A_RAW!$C:$I,7,0)),"",VLOOKUP($D48,表A_RAW!$C:$I,7,0)) -> -0.291903762 | K48: =IF(ISERROR(VLOOKUP($D48,表C_RAW!$C:$I,4,0)),"",VLOOKUP($D48,表C_RAW!$C:$I,4,0)) -> 447505 | L48: =IF(ISERROR(VLOOKUP($D48,表C_RAW!$C:$I,5,0)),"",VLOOKUP($D48,表C_RAW!$C:$I,5,0)) -> 518851 | M48: =IF(ISERROR(VLOOKUP($D48,表C_RAW!$C:$I,6,0)),"",VLOOKUP($D48,表C_RAW!$C:$I,6,0)/100) -> -0.1375
A49: 4 | B49: =VLOOKUP(A49,表B_RAW!O:P,2,0) -> 運動休閒 | C49: 1 | D49: =VLOOKUP($B$49&C49,表B_RAW!B:D,2,0) -> 6670 復盛應用 | F49: =IF(ISERROR(VLOOKUP($D49,表B_RAW!$C:$I,4,0)),"",VLOOKUP($D49,表B_RAW!$C:$I,4,0)) -> 1867662 | G49: =IF(ISERROR(VLOOKUP($D49,表B_RAW!$C:$I,5,0)),"",VLOOKUP($D49,表B_RAW!$C:$I,5,0)) -> 3668268 | H49: =IF(ISERROR(VLOOKUP($D49,表B_RAW!$C:$I,6,0)),"",VLOOKUP($D49,表B_RAW!$C:$I,6,0)/100) -> -0.4909 | I49: =IF(ISERROR(VLOOKUP($D49,表A_RAW!$C:$I,5,0)),"",VLOOKUP($D49,表A_RAW!$C:$I,5,0)) -> 1611403 | J49: =IF(ISERROR(VLOOKUP($D49,表A_RAW!$C:$I,7,0)),"",VLOOKUP($D49,表A_RAW!$C:$I,7,0)) -> 0.1590284988 | K49: =IF(ISERROR(VLOOKUP($D49,表C_RAW!$C:$I,4,0)),"",VLOOKUP($D49,表C_RAW!$C:$I,4,0)) -> 5535930 | L49: =IF(ISERROR(VLOOKUP($D49,表C_RAW!$C:$I,5,0)),"",VLOOKUP($D49,表C_RAW!$C:$I,5,0)) -> 4294027 | M49: =IF(ISERROR(VLOOKUP($D49,表C_RAW!$C:$I,6,0)),"",VLOOKUP($D49,表C_RAW!$C:$I,6,0)/100) -> 0.2892
C50: 2 | D50: =VLOOKUP($B$49&C50,表B_RAW!B:D,2,0) -> 9802 鈺齊-KY | F50: =IF(ISERROR(VLOOKUP($D50,表B_RAW!$C:$I,4,0)),"",VLOOKUP($D50,表B_RAW!$C:$I,4,0)) -> 951037 | G50: =IF(ISERROR(VLOOKUP($D50,表B_RAW!$C:$I,5,0)),"",VLOOKUP($D50,表B_RAW!$C:$I,5,0)) -> 1529962 | H50: =IF(ISERROR(VLOOKUP($D50,表B_RAW!$C:$I,6,0)),"",VLOOKUP($D50,表B_RAW!$C:$I,6,0)/100) -> -0.3784 | I50: =IF(ISERROR(VLOOKUP($D50,表A_RAW!$C:$I,5,0)),"",VLOOKUP($D50,表A_RAW!$C:$I,5,0)) -> 655863 | J50: =IF(ISERROR(VLOOKUP($D50,表A_RAW!$C:$I,7,0)),"",VLOOKUP($D50,表A_RAW!$C:$I,7,0)) -> 0.4500543559 | K50: =IF(ISERROR(VLOOKUP($D50,表C_RAW!$C:$I,4,0)),"",VLOOKUP($D50,表C_RAW!$C:$I,4,0)) -> 2480999 | L50: =IF(ISERROR(VLOOKUP($D50,表C_RAW!$C:$I,5,0)),"",VLOOKUP($D50,表C_RAW!$C:$I,5,0)) -> 1985019 | M50: =IF(ISERROR(VLOOKUP($D50,表C_RAW!$C:$I,6,0)),"",VLOOKUP($D50,表C_RAW!$C:$I,6,0)/100) -> 0.2499
C51: 3 | D51: =VLOOKUP($B$49&C51,表B_RAW!B:D,2,0) -> 6890 來億-KY | F51: =IF(ISERROR(VLOOKUP($D51,表B_RAW!$C:$I,4,0)),"",VLOOKUP($D51,表B_RAW!$C:$I,4,0)) -> 2516798 | G51: =IF(ISERROR(VLOOKUP($D51,表B_RAW!$C:$I,5,0)),"",VLOOKUP($D51,表B_RAW!$C:$I,5,0)) -> 3665802 | H51: =IF(ISERROR(VLOOKUP($D51,表B_RAW!$C:$I,6,0)),"",VLOOKUP($D51,表B_RAW!$C:$I,6,0)/100) -> -0.3134 | I51: =IF(ISERROR(VLOOKUP($D51,表A_RAW!$C:$I,5,0)),"",VLOOKUP($D51,表A_RAW!$C:$I,5,0)) -> 2351750 | J51: =IF(ISERROR(VLOOKUP($D51,表A_RAW!$C:$I,7,0)),"",VLOOKUP($D51,表A_RAW!$C:$I,7,0)) -> 0.0701809291 | K51: =IF(ISERROR(VLOOKUP($D51,表C_RAW!$C:$I,4,0)),"",VLOOKUP($D51,表C_RAW!$C:$I,4,0)) -> 6182600 | L51: =IF(ISERROR(VLOOKUP($D51,表C_RAW!$C:$I,5,0)),"",VLOOKUP($D51,表C_RAW!$C:$I,5,0)) -> 5392701 | M51: =IF(ISERROR(VLOOKUP($D51,表C_RAW!$C:$I,6,0)),"",VLOOKUP($D51,表C_RAW!$C:$I,6,0)/100) -> 0.1465
B52: =VLOOKUP(A49,表B_RAW!O:T,6,0) -> -19.33 | C52: 4 | D52: =VLOOKUP($B$49&C52,表B_RAW!B:D,2,0) -> 9904 寶成 | F52: =IF(ISERROR(VLOOKUP($D52,表B_RAW!$C:$I,4,0)),"",VLOOKUP($D52,表B_RAW!$C:$I,4,0)) -> 18625126 | G52: =IF(ISERROR(VLOOKUP($D52,表B_RAW!$C:$I,5,0)),"",VLOOKUP($D52,表B_RAW!$C:$I,5,0)) -> 26598532 | H52: =IF(ISERROR(VLOOKUP($D52,表B_RAW!$C:$I,6,0)),"",VLOOKUP($D52,表B_RAW!$C:$I,6,0)/100) -> -0.2998 | I52: =IF(ISERROR(VLOOKUP($D52,表A_RAW!$C:$I,5,0)),"",VLOOKUP($D52,表A_RAW!$C:$I,5,0)) -> 19118560 | J52: =IF(ISERROR(VLOOKUP($D52,表A_RAW!$C:$I,7,0)),"",VLOOKUP($D52,表A_RAW!$C:$I,7,0)) -> -0.02580916136 | K52: =IF(ISERROR(VLOOKUP($D52,表C_RAW!$C:$I,4,0)),"",VLOOKUP($D52,表C_RAW!$C:$I,4,0)) -> 45223658 | L52: =IF(ISERROR(VLOOKUP($D52,表C_RAW!$C:$I,5,0)),"",VLOOKUP($D52,表C_RAW!$C:$I,5,0)) -> 42229260 | M52: =IF(ISERROR(VLOOKUP($D52,表C_RAW!$C:$I,6,0)),"",VLOOKUP($D52,表C_RAW!$C:$I,6,0)/100) -> 0.0709
C53: 5 | D53: =VLOOKUP($B$49&C53,表B_RAW!B:D,2,0) -> 8938 明安 | F53: =IF(ISERROR(VLOOKUP($D53,表B_RAW!$C:$I,4,0)),"",VLOOKUP($D53,表B_RAW!$C:$I,4,0)) -> 1290407 | G53: =IF(ISERROR(VLOOKUP($D53,表B_RAW!$C:$I,5,0)),"",VLOOKUP($D53,表B_RAW!$C:$I,5,0)) -> 1743601 | H53: =IF(ISERROR(VLOOKUP($D53,表B_RAW!$C:$I,6,0)),"",VLOOKUP($D53,表B_RAW!$C:$I,6,0)/100) -> -0.2599 | I53: =IF(ISERROR(VLOOKUP($D53,表A_RAW!$C:$I,5,0)),"",VLOOKUP($D53,表A_RAW!$C:$I,5,0)) -> 862116 | J53: =IF(ISERROR(VLOOKUP($D53,表A_RAW!$C:$I,7,0)),"",VLOOKUP($D53,表A_RAW!$C:$I,7,0)) -> 0.4967904551 | K53: =IF(ISERROR(VLOOKUP($D53,表C_RAW!$C:$I,4,0)),"",VLOOKUP($D53,表C_RAW!$C:$I,4,0)) -> 3034008 | L53: =IF(ISERROR(VLOOKUP($D53,表C_RAW!$C:$I,5,0)),"",VLOOKUP($D53,表C_RAW!$C:$I,5,0)) -> 2631603 | M53: =IF(ISERROR(VLOOKUP($D53,表C_RAW!$C:$I,6,0)),"",VLOOKUP($D53,表C_RAW!$C:$I,6,0)/100) -> 0.1529
A54: 5 | B54: =VLOOKUP(A54,表B_RAW!O:P,2,0) -> 航運業 | C54: 1 | D54: =VLOOKUP($B$54&C54,表B_RAW!B:D,2,0) -> 2208 台船 | F54: =IF(ISERROR(VLOOKUP($D54,表B_RAW!$C:$I,4,0)),"",VLOOKUP($D54,表B_RAW!$C:$I,4,0)) -> 841054 | G54: =IF(ISERROR(VLOOKUP($D54,表B_RAW!$C:$I,5,0)),"",VLOOKUP($D54,表B_RAW!$C:$I,5,0)) -> 1289442 | H54: =IF(ISERROR(VLOOKUP($D54,表B_RAW!$C:$I,6,0)),"",VLOOKUP($D54,表B_RAW!$C:$I,6,0)/100) -> -0.3477 | I54: =IF(ISERROR(VLOOKUP($D54,表A_RAW!$C:$I,5,0)),"",VLOOKUP($D54,表A_RAW!$C:$I,5,0)) -> 1122432 | J54: =IF(ISERROR(VLOOKUP($D54,表A_RAW!$C:$I,7,0)),"",VLOOKUP($D54,表A_RAW!$C:$I,7,0)) -> -0.2506860104 | K54: =IF(ISERROR(VLOOKUP($D54,表C_RAW!$C:$I,4,0)),"",VLOOKUP($D54,表C_RAW!$C:$I,4,0)) -> 2130496 | L54: =IF(ISERROR(VLOOKUP($D54,表C_RAW!$C:$I,5,0)),"",VLOOKUP($D54,表C_RAW!$C:$I,5,0)) -> 2648303 | M54: =IF(ISERROR(VLOOKUP($D54,表C_RAW!$C:$I,6,0)),"",VLOOKUP($D54,表C_RAW!$C:$I,6,0)/100) -> -0.1955
C55: 2 | D55: =VLOOKUP($B$54&C55,表B_RAW!B:D,2,0) -> 5603 陸海 | F55: =IF(ISERROR(VLOOKUP($D55,表B_RAW!$C:$I,4,0)),"",VLOOKUP($D55,表B_RAW!$C:$I,4,0)) -> 95369 | G55: =IF(ISERROR(VLOOKUP($D55,表B_RAW!$C:$I,5,0)),"",VLOOKUP($D55,表B_RAW!$C:$I,5,0)) -> 139632 | H55: =IF(ISERROR(VLOOKUP($D55,表B_RAW!$C:$I,6,0)),"",VLOOKUP($D55,表B_RAW!$C:$I,6,0)/100) -> -0.317 | I55: =IF(ISERROR(VLOOKUP($D55,表A_RAW!$C:$I,5,0)),"",VLOOKUP($D55,表A_RAW!$C:$I,5,0)) -> 110134 | J55: =IF(ISERROR(VLOOKUP($D55,表A_RAW!$C:$I,7,0)),"",VLOOKUP($D55,表A_RAW!$C:$I,7,0)) -> -0.1340639585 | K55: =IF(ISERROR(VLOOKUP($D55,表C_RAW!$C:$I,4,0)),"",VLOOKUP($D55,表C_RAW!$C:$I,4,0)) -> 235000 | L55: =IF(ISERROR(VLOOKUP($D55,表C_RAW!$C:$I,5,0)),"",VLOOKUP($D55,表C_RAW!$C:$I,5,0)) -> 250244 | M55: =IF(ISERROR(VLOOKUP($D55,表C_RAW!$C:$I,6,0)),"",VLOOKUP($D55,表C_RAW!$C:$I,6,0)/100) -> -0.0609
C56: 3 | D56: =VLOOKUP($B$54&C56,表B_RAW!B:D,2,0) -> 2615 萬海 | F56: =IF(ISERROR(VLOOKUP($D56,表B_RAW!$C:$I,4,0)),"",VLOOKUP($D56,表B_RAW!$C:$I,4,0)) -> 10632585 | G56: =IF(ISERROR(VLOOKUP($D56,表B_RAW!$C:$I,5,0)),"",VLOOKUP($D56,表B_RAW!$C:$I,5,0)) -> 14673027 | H56: =IF(ISERROR(VLOOKUP($D56,表B_RAW!$C:$I,6,0)),"",VLOOKUP($D56,表B_RAW!$C:$I,6,0)/100) -> -0.2754 | I56: =IF(ISERROR(VLOOKUP($D56,表A_RAW!$C:$I,5,0)),"",VLOOKUP($D56,表A_RAW!$C:$I,5,0)) -> 8864344 | J56: =IF(ISERROR(VLOOKUP($D56,表A_RAW!$C:$I,7,0)),"",VLOOKUP($D56,表A_RAW!$C:$I,7,0)) -> 0.1994779309 | K56: =IF(ISERROR(VLOOKUP($D56,表C_RAW!$C:$I,4,0)),"",VLOOKUP($D56,表C_RAW!$C:$I,4,0)) -> 25305612 | L56: =IF(ISERROR(VLOOKUP($D56,表C_RAW!$C:$I,5,0)),"",VLOOKUP($D56,表C_RAW!$C:$I,5,0)) -> 18116732 | M56: =IF(ISERROR(VLOOKUP($D56,表C_RAW!$C:$I,6,0)),"",VLOOKUP($D56,表C_RAW!$C:$I,6,0)/100) -> 0.3968
B57: =VLOOKUP(A54,表B_RAW!O:T,6,0) -> -17.58 | C57: 4 | D57: =VLOOKUP($B$54&C57,表B_RAW!B:D,2,0) -> 2605 新興 | F57: =IF(ISERROR(VLOOKUP($D57,表B_RAW!$C:$I,4,0)),"",VLOOKUP($D57,表B_RAW!$C:$I,4,0)) -> 232864 | G57: =IF(ISERROR(VLOOKUP($D57,表B_RAW!$C:$I,5,0)),"",VLOOKUP($D57,表B_RAW!$C:$I,5,0)) -> 319799 | H57: =IF(ISERROR(VLOOKUP($D57,表B_RAW!$C:$I,6,0)),"",VLOOKUP($D57,表B_RAW!$C:$I,6,0)/100) -> -0.2718 | I57: =IF(ISERROR(VLOOKUP($D57,表A_RAW!$C:$I,5,0)),"",VLOOKUP($D57,表A_RAW!$C:$I,5,0)) -> 322783 | J57: =IF(ISERROR(VLOOKUP($D57,表A_RAW!$C:$I,7,0)),"",VLOOKUP($D57,表A_RAW!$C:$I,7,0)) -> -0.2785741504 | K57: =IF(ISERROR(VLOOKUP($D57,表C_RAW!$C:$I,4,0)),"",VLOOKUP($D57,表C_RAW!$C:$I,4,0)) -> 552372 | L57: =IF(ISERROR(VLOOKUP($D57,表C_RAW!$C:$I,5,0)),"",VLOOKUP($D57,表C_RAW!$C:$I,5,0)) -> 770126 | M57: =IF(ISERROR(VLOOKUP($D57,表C_RAW!$C:$I,6,0)),"",VLOOKUP($D57,表C_RAW!$C:$I,6,0)/100) -> -0.2828
C58: 5 | D58: =VLOOKUP($B$54&C58,表B_RAW!B:D,2,0) -> 6753 龍德造船 | F58: =IF(ISERROR(VLOOKUP($D58,表B_RAW!$C:$I,4,0)),"",VLOOKUP($D58,表B_RAW!$C:$I,4,0)) -> 355411 | G58: =IF(ISERROR(VLOOKUP($D58,表B_RAW!$C:$I,5,0)),"",VLOOKUP($D58,表B_RAW!$C:$I,5,0)) -> 485836 | H58: =IF(ISERROR(VLOOKUP($D58,表B_RAW!$C:$I,6,0)),"",VLOOKUP($D58,表B_RAW!$C:$I,6,0)/100) -> -0.2685 | I58: =IF(ISERROR(VLOOKUP($D58,表A_RAW!$C:$I,5,0)),"",VLOOKUP($D58,表A_RAW!$C:$I,5,0)) -> 379748 | J58: =IF(ISERROR(VLOOKUP($D58,表A_RAW!$C:$I,7,0)),"",VLOOKUP($D58,表A_RAW!$C:$I,7,0)) -> -0.0640872368 | K58: =IF(ISERROR(VLOOKUP($D58,表C_RAW!$C:$I,4,0)),"",VLOOKUP($D58,表C_RAW!$C:$I,4,0)) -> 841247 | L58: =IF(ISERROR(VLOOKUP($D58,表C_RAW!$C:$I,5,0)),"",VLOOKUP($D58,表C_RAW!$C:$I,5,0)) -> 727354 | M58: =IF(ISERROR(VLOOKUP($D58,表C_RAW!$C:$I,6,0)),"",VLOOKUP($D58,表C_RAW!$C:$I,6,0)/100) -> 0.1566

Sheet YOY(單月)
B1: =YEAR(表A_RAW!F2)&"年"&MONTH(表A_RAW!F2)&"月" -> 2025年2月
G2: 成長及衰退前五名之產業YOY%(單月)
B4: 成長前五名之產業 YOY(單月)% | D4: 該產業成長前五名之公司 YOY(單月)% | G4: 單月營收金額(千元) | H4: 本月與上月相較 | J4: 本月與去年同期相較 | L4: 累計營收金額(千元) | M4: 累計營收與去年同期相較
B5: 成長 排名 | C5: 產業 | D5: 排名 | E5: 公司代號&簡稱 | H5: 上月營收金額(千元) | I5: 較上月變動比率(%) | J5: 去年同期金額(千元) | K5: 較去年同期變動比率(%) | M5: 去年累計營收金額(千元) | N5: 較去年同期變動比率(%)
B6: 1 | C6: =VLOOKUP(B6,表A_RAW!N:T,3,0) -> 其他電子業 | D6: 1 | E6: =VLOOKUP($C$6&D6,表A_RAW!A:I,3,0) -> 3093 港建* | G6: =IF(ISERROR(VLOOKUP($E6,表A_RAW!$C:$I,4,0)),"",VLOOKUP($E6,表A_RAW!$C:$I,4,0)) -> 160439 | H6: =IF(ISERROR(VLOOKUP($E6,表B_RAW!$C:$I,5,0)),"",VLOOKUP($E6,表B_RAW!$C:$I,5,0)) -> 68242 | I6: =IF(ISERROR(VLOOKUP($E6,表B_RAW!$C:$I,6,0)),"",VLOOKUP($E6,表B_RAW!$C:$I,6,0)/100) -> 1.351 | J6: =IF(ISERROR(VLOOKUP($E6,表A_RAW!$C:$I,5,0)),"",VLOOKUP($E6,表A_RAW!$C:$I,5,0)) -> 20671 | K6: =IF(ISERROR(VLOOKUP($E6,表A_RAW!$C:$I,7,0)),"",VLOOKUP($E6,表A_RAW!$C:$I,7,0)) -> 6.761549998 | L6: =IF(ISERROR(VLOOKUP($E6,表C_RAW!$C:$I,4,0)),"",VLOOKUP($E6,表C_RAW!$C:$I,4,0)) -> 228681 | M6: =IF(ISERROR(VLOOKUP($E6,表C_RAW!$C:$I,5,0)),"",VLOOKUP($E6,表C_RAW!$C:$I,5,0)) -> 137770 | N6: =IF(ISERROR(VLOOKUP($E6,表C_RAW!$C:$I,6,0)),"",VLOOKUP($E6,表C_RAW!$C:$I,6,0)/100) -> 0.6599
D7: 2 | E7: =VLOOKUP($C$6&D7,表A_RAW!A:I,3,0) -> 3018 隆銘綠能 | G7: =IF(ISERROR(VLOOKUP($E7,表A_RAW!$C:$I,4,0)),"",VLOOKUP($E7,表A_RAW!$C:$I,4,0)) -> 93087 | H7: =IF(ISERROR(VLOOKUP($E7,表B_RAW!$C:$I,5,0)),"",VLOOKUP($E7,表B_RAW!$C:$I,5,0)) -> 62079 | I7: =IF(ISERROR(VLOOKUP($E7,表B_RAW!$C:$I,6,0)),"",VLOOKUP($E7,表B_RAW!$C:$I,6,0)/100) -> 0.4995 | J7: =IF(ISERROR(VLOOKUP($E7,表A_RAW!$C:$I,5,0)),"",VLOOKUP($E7,表A_RAW!$C:$I,5,0)) -> 13995 | K7: =IF(ISERROR(VLOOKUP($E7,表A_RAW!$C:$I,7,0)),"",VLOOKUP($E7,表A_RAW!$C:$I,7,0)) -> 5.651446945 | L7: =IF(ISERROR(VLOOKUP($E7,表C_RAW!$C:$I,4,0)),"",VLOOKUP($E7,表C_RAW!$C:$I,4,0)) -> 155166 | M7: =IF(ISERROR(VLOOKUP($E7,表C_RAW!$C:$I,5,0)),"",VLOOKUP($E7,表C_RAW!$C:$I,5,0)) -> 27035 | N7: =IF(ISERROR(VLOOKUP($E7,表C_RAW!$C:$I,6,0)),"",VLOOKUP($E7,表C_RAW!$C:$I,6,0)/100) -> 4.7394
D8: 3 | E8: =VLOOKUP($C$6&D8,表A_RAW!A:I,3,0) -> 2354 鴻準 | G8: =IF(ISERROR(VLOOKUP($E8,表A_RAW!$C:$I,4,0)),"",VLOOKUP($E8,表A_RAW!$C:$I,4,0)) -> 9418841 | H8: =IF(ISERROR(VLOOKUP($E8,表B_RAW!$C:$I,5,0)),"",VLOOKUP($E8,表B_RAW!$C:$I,5,0)) -> 8503063 | I8: =IF(ISERROR(VLOOKUP($E8,表B_RAW!$C:$I,6,0)),"",VLOOKUP($E8,表B_RAW!$C:$I,6,0)/100) -> 0.1077 | J8: =IF(ISERROR(VLOOKUP($E8,表A_RAW!$C:$I,5,0)),"",VLOOKUP($E8,表A_RAW!$C:$I,5,0)) -> 2227720 | K8: =IF(ISERROR(VLOOKUP($E8,表A_RAW!$C:$I,7,0)),"",VLOOKUP($E8,表A_RAW!$C:$I,7,0)) -> 3.228018333 | L8: =IF(ISERROR(VLOOKUP($E8,表C_RAW!$C:$I,4,0)),"",VLOOKUP($E8,表C_RAW!$C:$I,4,0)) -> 17921904 | M8: =IF(ISERROR(VLOOKUP($E8,表C_RAW!$C:$I,5,0)),"",VLOOKUP($E8,表C_RAW!$C:$I,5,0)) -> 5675325 | N8: =IF(ISERROR(VLOOKUP($E8,表C_RAW!$C:$I,6,0)),"",VLOOKUP($E8,表C_RAW!$C:$I,6,0)/100) -> 2.1579
C9: =VLOOKUP(B6,表A_RAW!N:T,7,0) -> 54.15633605 | D9: 4 | E9: =VLOOKUP($C$6&D9,表A_RAW!A:I,3,0) -> 6283 淳安 | G9: =IF(ISERROR(VLOOKUP($E9,表A_RAW!$C:$I,4,0)),"",VLOOKUP($E9,表A_RAW!$C:$I,4,0)) -> 153865 | H9: =IF(ISERROR(VLOOKUP($E9,表B_RAW!$C:$I,5,0)),"",VLOOKUP($E9,表B_RAW!$C:$I,5,0)) -> 155736 | I9: =IF(ISERROR(VLOOKUP($E9,表B_RAW!$C:$I,6,0)),"",VLOOKUP($E9,表B_RAW!$C:$I,6,0)/100) -> -0.012 | J9: =IF(ISERROR(VLOOKUP($E9,表A_RAW!$C:$I,5,0)),"",VLOOKUP($E9,表A_RAW!$C:$I,5,0)) -> 48740 | K9: =IF(ISERROR(VLOOKUP($E9,表A_RAW!$C:$I,7,0)),"",VLOOKUP($E9,表A_RAW!$C:$I,7,0)) -> 2.156852688 | L9: =IF(ISERROR(VLOOKUP($E9,表C_RAW!$C:$I,4,0)),"",VLOOKUP($E9,表C_RAW!$C:$I,4,0)) -> 309601 | M9: =IF(ISERROR(VLOOKUP($E9,表C_RAW!$C:$I,5,0)),"",VLOOKUP($E9,表C_RAW!$C:$I,5,0)) -> 146364 | N9: =IF(ISERROR(VLOOKUP($E9,表C_RAW!$C:$I,6,0)),"",VLOOKUP($E9,表C_RAW!$C:$I,6,0)/100) -> 1.1153
D10: 5 | E10: =VLOOKUP($C$6&D10,表A_RAW!A:I,3,0) -> 6667 信紘科 | G10: =IF(ISERROR(VLOOKUP($E10,表A_RAW!$C:$I,4,0)),"",VLOOKUP($E10,表A_RAW!$C:$I,4,0)) -> 512448 | H10: =IF(ISERROR(VLOOKUP($E10,表B_RAW!$C:$I,5,0)),"",VLOOKUP($E10,表B_RAW!$C:$I,5,0)) -> 365115 | I10: =IF(ISERROR(VLOOKUP($E10,表B_RAW!$C:$I,6,0)),"",VLOOKUP($E10,表B_RAW!$C:$I,6,0)/100) -> 0.4035 | J10: =IF(ISERROR(VLOOKUP($E10,表A_RAW!$C:$I,5,0)),"",VLOOKUP($E10,表A_RAW!$C:$I,5,0)) -> 163167 | K10: =IF(ISERROR(VLOOKUP($E10,表A_RAW!$C:$I,7,0)),"",VLOOKUP($E10,表A_RAW!$C:$I,7,0)) -> 2.140635055 | L10: =IF(ISERROR(VLOOKUP($E10,表C_RAW!$C:$I,4,0)),"",VLOOKUP($E10,表C_RAW!$C:$I,4,0)) -> 877563 | M10: =IF(ISERROR(VLOOKUP($E10,表C_RAW!$C:$I,5,0)),"",VLOOKUP($E10,表C_RAW!$C:$I,5,0)) -> 397547 | N10: =IF(ISERROR(VLOOKUP($E10,表C_RAW!$C:$I,6,0)),"",VLOOKUP($E10,表C_RAW!$C:$I,6,0)/100) -> 1.2074
B11: 2 | C11: =VLOOKUP(B11,表A_RAW!N:T,3,0) -> 水泥工業 | D11: 1 | E11: =VLOOKUP($C$11&D11,表A_RAW!A:I,3,0) -> 1101 台泥 | G11: =IF(ISERROR(VLOOKUP($E11,表A_RAW!$C:$I,4,0)),"",VLOOKUP($E11,表A_RAW!$C:$I,4,0)) -> 9123490 | H11: =IF(ISERROR(VLOOKUP($E11,表B_RAW!$C:$I,5,0)),"",VLOOKUP($E11,表B_RAW!$C:$I,5,0)) -> 12213350 | I11: =IF(ISERROR(VLOOKUP($E11,表B_RAW!$C:$I,6,0)),"",VLOOKUP($E11,表B_RAW!$C:$I,6,0)/100) -> -0.253 | J11: =IF(ISERROR(VLOOKUP($E11,表A_RAW!$C:$I,5,0)),"",VLOOKUP($E11,表A_RAW!$C:$I,5,0)) -> 4798581 | K11: =IF(ISERROR(VLOOKUP($E11,表A_RAW!$C:$I,7,0)),"",VLOOKUP($E11,表A_RAW!$C:$I,7,0)) -> 0.9012891519 | L11: =IF(ISERROR(VLOOKUP($E11,表C_RAW!$C:$I,4,0)),"",VLOOKUP($E11,表C_RAW!$C:$I,4,0)) -> 21336840 | M11: =IF(ISERROR(VLOOKUP($E11,表C_RAW!$C:$I,5,0)),"",VLOOKUP($E11,表C_RAW!$C:$I,5,0)) -> 12036511 | N11: =IF(ISERROR(VLOOKUP($E11,表C_RAW!$C:$I,6,0)),"",VLOOKUP($E11,表C_RAW!$C:$I,6,0)/100) -> 0.7727
D12: 2 | E12: =VLOOKUP($C$11&D12,表A_RAW!A:I,3,0) -> 1110 東泥 | G12: =IF(ISERROR(VLOOKUP($E12,表A_RAW!$C:$I,4,0)),"",VLOOKUP($E12,表A_RAW!$C:$I,4,0)) -> 228781 | H12: =IF(ISERROR(VLOOKUP($E12,表B_RAW!$C:$I,5,0)),"",VLOOKUP($E12,表B_RAW!$C:$I,5,0)) -> 236789 | I12: =IF(ISERROR(VLOOKUP($E12,表B_RAW!$C:$I,6,0)),"",VLOOKUP($E12,表B_RAW!$C:$I,6,0)/100) -> -0.0338 | J12: =IF(ISERROR(VLOOKUP($E12,表A_RAW!$C:$I,5,0)),"",VLOOKUP($E12,表A_RAW!$C:$I,5,0)) -> 175185 | K12: =IF(ISERROR(VLOOKUP($E12,表A_RAW!$C:$I,7,0)),"",VLOOKUP($E12,表A_RAW!$C:$I,7,0)) -> 0.3059394355 | L12: =IF(ISERROR(VLOOKUP($E12,表C_RAW!$C:$I,4,0)),"",VLOOKUP($E12,表C_RAW!$C:$I,4,0)) -> 465570 | M12: =IF(ISERROR(VLOOKUP($E12,表C_RAW!$C:$I,5,0)),"",VLOOKUP($E12,表C_RAW!$C:$I,5,0)) -> 355724 | N12: =IF(ISERROR(VLOOKUP($E12,表C_RAW!$C:$I,6,0)),"",VLOOKUP($E12,表C_RAW!$C:$I,6,0)/100) -> 0.3088
D13: 3 | E13: =VLOOKUP($C$11&D13,表A_RAW!A:I,3,0) -> 1108 幸福 | G13: =IF(ISERROR(VLOOKUP($E13,表A_RAW!$C:$I,4,0)),"",VLOOKUP($E13,表A_RAW!$C:$I,4,0)) -> 356169 | H13: =IF(ISERROR(VLOOKUP($E13,表B_RAW!$C:$I,5,0)),"",VLOOKUP($E13,表B_RAW!$C:$I,5,0)) -> 448229 | I13: =IF(ISERROR(VLOOKUP($E13,表B_RAW!$C:$I,6,0)),"",VLOOKUP($E13,表B_RAW!$C:$I,6,0)/100) -> -0.2054 | J13: =IF(ISERROR(VLOOKUP($E13,表A_RAW!$C:$I,5,0)),"",VLOOKUP($E13,表A_RAW!$C:$I,5,0)) -> 286337 | K13: =IF(ISERROR(VLOOKUP($E13,表A_RAW!$C:$I,7,0)),"",VLOOKUP($E13,表A_RAW!$C:$I,7,0)) -> 0.2438804625 | L13: =IF(ISERROR(VLOOKUP($E13,表C_RAW!$C:$I,4,0)),"",VLOOKUP($E13,表C_RAW!$C:$I,4,0)) -> 804398 | M13: =IF(ISERROR(VLOOKUP($E13,表C_RAW!$C:$I,5,0)),"",VLOOKUP($E13,表C_RAW!$C:$I,5,0)) -> 743486 | N13: =IF(ISERROR(VLOOKUP($E13,表C_RAW!$C:$I,6,0)),"",VLOOKUP($E13,表C_RAW!$C:$I,6,0)/100) -> 0.0819
C14: =VLOOKUP(B11,表A_RAW!N:T,7,0) -> 52.4576553 | D14: 4 | E14: =VLOOKUP($C$11&D14,表A_RAW!A:I,3,0) -> 1102 亞泥 | G14: =IF(ISERROR(VLOOKUP($E14,表A_RAW!$C:$I,4,0)),"",VLOOKUP($E14,表A_RAW!$C:$I,4,0)) -> 4184371 | H14: =IF(ISERROR(VLOOKUP($E14,表B_RAW!$C:$I,5,0)),"",VLOOKUP($E14,表B_RAW!$C:$I,5,0)) -> 5877674 | I14: =IF(ISERROR(VLOOKUP($E14,表B_RAW!$C:$I,6,0)),"",VLOOKUP($E14,表B_RAW!$C:$I,6,0)/100) -> -0.2881 | J14: =IF(ISERROR(VLOOKUP($E14,表A_RAW!$C:$I,5,0)),"",VLOOKUP($E14,表A_RAW!$C:$I,5,0)) -> 3599986 | K14: =IF(ISERROR(VLOOKUP($E14,表A_RAW!$C:$I,7,0)),"",VLOOKUP($E14,表A_RAW!$C:$I,7,0)) -> 0.1623297979 | L14: =IF(ISERROR(VLOOKUP($E14,表C_RAW!$C:$I,4,0)),"",VLOOKUP($E14,表C_RAW!$C:$I,4,0)) -> 10062045 | M14: =IF(ISERROR(VLOOKUP($E14,表C_RAW!$C:$I,5,0)),"",VLOOKUP($E14,表C_RAW!$C:$I,5,0)) -> 10090552 | N14: =IF(ISERROR(VLOOKUP($E14,表C_RAW!$C:$I,6,0)),"",VLOOKUP($E14,表C_RAW!$C:$I,6,0)/100) -> -0.0028
D15: 5 | E15: =VLOOKUP($C$11&D15,表A_RAW!A:I,3,0) -> 1104 環泥 | G15: =IF(ISERROR(VLOOKUP($E15,表A_RAW!$C:$I,4,0)),"",VLOOKUP($E15,表A_RAW!$C:$I,4,0)) -> 538636 | H15: =IF(ISERROR(VLOOKUP($E15,表B_RAW!$C:$I,5,0)),"",VLOOKUP($E15,表B_RAW!$C:$I,5,0)) -> 687804 | I15: =IF(ISERROR(VLOOKUP($E15,表B_RAW!$C:$I,6,0)),"",VLOOKUP($E15,表B_RAW!$C:$I,6,0)/100) -> -0.2169 | J15: =IF(ISERROR(VLOOKUP($E15,表A_RAW!$C:$I,5,0)),"",VLOOKUP($E15,表A_RAW!$C:$I,5,0)) -> 477355 | K15: =IF(ISERROR(VLOOKUP($E15,表A_RAW!$C:$I,7,0)),"",VLOOKUP($E15,表A_RAW!$C:$I,7,0)) -> 0.1283761561 | L15: =IF(ISERROR(VLOOKUP($E15,表C_RAW!$C:$I,4,0)),"",VLOOKUP($E15,表C_RAW!$C:$I,4,0)) -> 1226440 | M15: =IF(ISERROR(VLOOKUP($E15,表C_RAW!$C:$I,5,0)),"",VLOOKUP($E15,表C_RAW!$C:$I,5,0)) -> 1158116 | N15: =IF(ISERROR(VLOOKUP($E15,表C_RAW!$C:$I,6,0)),"",VLOOKUP($E15,表C_RAW!$C:$I,6,0)/100) -> 0.059
B16: 3 | C16: =VLOOKUP(B16,表A_RAW!N:T,3,0) -> 綠能環保 | D16: 1 | E16: =VLOOKUP($C$16&D16,表A_RAW!A:I,3,0) -> 6692 進能服 | G16: =IF(ISERROR(VLOOKUP($E16,表A_RAW!$C:$I,4,0)),"",VLOOKUP($E16,表A_RAW!$C:$I,4,0)) -> 344327 | H16: =IF(ISERROR(VLOOKUP($E16,表B_RAW!$C:$I,5,0)),"",VLOOKUP($E16,表B_RAW!$C:$I,5,0)) -> 198712 | I16: =IF(ISERROR(VLOOKUP($E16,表B_RAW!$C:$I,6,0)),"",VLOOKUP($E16,表B_RAW!$C:$I,6,0)/100) -> 0.7328 | J16: =IF(ISERROR(VLOOKUP($E16,表A_RAW!$C:$I,5,0)),"",VLOOKUP($E16,表A_RAW!$C:$I,5,0)) -> 81727 | K16: =IF(ISERROR(VLOOKUP($E16,表A_RAW!$C:$I,7,0)),"",VLOOKUP($E16,表A_RAW!$C:$I,7,0)) -> 3.213136418 | L16: =IF(ISERROR(VLOOKUP($E16,表C_RAW!$C:$I,4,0)),"",VLOOKUP($E16,表C_RAW!$C:$I,4,0)) -> 543039 | M16: =IF(ISERROR(VLOOKUP($E16,表C_RAW!$C:$I,5,0)),"",VLOOKUP($E16,表C_RAW!$C:$I,5,0)) -> 178044 | N16: =IF(ISERROR(VLOOKUP($E16,表C_RAW!$C:$I,6,0)),"",VLOOKUP($E16,表C_RAW!$C:$I,6,0)/100) -> 2.05
D17: 2 | E17: =VLOOKUP($C$16&D17,表A_RAW!A:I,3,0) -> 6806 森崴能源 | G17: =IF(ISERROR(VLOOKUP($E17,表A_RAW!$C:$I,4,0)),"",VLOOKUP($E17,表A_RAW!$C:$I,4,0)) -> 1694170 | H17: =IF(ISERROR(VLOOKUP($E17,表B_RAW!$C:$I,5,0)),"",VLOOKUP($E17,表B_RAW!$C:$I,5,0)) -> 2786957 | I17: =IF(ISERROR(VLOOKUP($E17,表B_RAW!$C:$I,6,0)),"",VLOOKUP($E17,表B_RAW!$C:$I,6,0)/100) -> -0.3921 | J17: =IF(ISERROR(VLOOKUP($E17,表A_RAW!$C:$I,5,0)),"",VLOOKUP($E17,表A_RAW!$C:$I,5,0)) -> 593994 | K17: =IF(ISERROR(VLOOKUP($E17,表A_RAW!$C:$I,7,0)),"",VLOOKUP($E17,表A_RAW!$C:$I,7,0)) -> 1.852166857 | L17: =IF(ISERROR(VLOOKUP($E17,表C_RAW!$C:$I,4,0)),"",VLOOKUP($E17,表C_RAW!$C:$I,4,0)) -> 4481127 | M17: =IF(ISERROR(VLOOKUP($E17,表C_RAW!$C:$I,5,0)),"",VLOOKUP($E17,表C_RAW!$C:$I,5,0)) -> 1550363 | N17: =IF(ISERROR(VLOOKUP($E17,表C_RAW!$C:$I,6,0)),"",VLOOKUP($E17,表C_RAW!$C:$I,6,0)/100) -> 1.8904
D18: 3 | E18: =VLOOKUP($C$16&D18,表A_RAW!A:I,3,0) -> 5205 中茂 | G18: =IF(ISERROR(VLOOKUP($E18,表A_RAW!$C:$I,4,0)),"",VLOOKUP($E18,表A_RAW!$C:$I,4,0)) -> 1511 | H18: =IF(ISERROR(VLOOKUP($E18,表B_RAW!$C:$I,5,0)),"",VLOOKUP($E18,表B_RAW!$C:$I,5,0)) -> 1665 | I18: =IF(ISERROR(VLOOKUP($E18,表B_RAW!$C:$I,6,0)),"",VLOOKUP($E18,表B_RAW!$C:$I,6,0)/100) -> -0.0925 | J18: =IF(ISERROR(VLOOKUP($E18,表A_RAW!$C:$I,5,0)),"",VLOOKUP($E18,表A_RAW!$C:$I,5,0)) -> 752 | K18: =IF(ISERROR(VLOOKUP($E18,表A_RAW!$C:$I,7,0)),"",VLOOKUP($E18,表A_RAW!$C:$I,7,0)) -> 1.009308511 | L18: =IF(ISERROR(VLOOKUP($E18,表C_RAW!$C:$I,4,0)),"",VLOOKUP($E18,表C_RAW!$C:$I,4,0)) -> 3176 | M18: =IF(ISERROR(VLOOKUP($E18,表C_RAW!$C:$I,5,0)),"",VLOOKUP($E18,表C_RAW!$C:$I,5,0)) -> 1872 | N18: =IF(ISERROR(VLOOKUP($E18,表C_RAW!$C:$I,6,0)),"",VLOOKUP($E18,表C_RAW!$C:$I,6,0)/100) -> 0.6966
C19: =VLOOKUP(B16,表A_RAW!N:T,7,0) -> 43.56206334 | D19: 4 | E19: =VLOOKUP($C$16&D19,表A_RAW!A:I,3,0) -> 6894 衛司特 | G19: =IF(ISERROR(VLOOKUP($E19,表A_RAW!$C:$I,4,0)),"",VLOOKUP($E19,表A_RAW!$C:$I,4,0)) -> 94461 | H19: =IF(ISERROR(VLOOKUP($E19,表B_RAW!$C:$I,5,0)),"",VLOOKUP($E19,表B_RAW!$C:$I,5,0)) -> 86337 | I19: =IF(ISERROR(VLOOKUP($E19,表B_RAW!$C:$I,6,0)),"",VLOOKUP($E19,表B_RAW!$C:$I,6,0)/100) -> 0.0941 | J19: =IF(ISERROR(VLOOKUP($E19,表A_RAW!$C:$I,5,0)),"",VLOOKUP($E19,表A_RAW!$C:$I,5,0)) -> 49555 | K19: =IF(ISERROR(VLOOKUP($E19,表A_RAW!$C:$I,7,0)),"",VLOOKUP($E19,表A_RAW!$C:$I,7,0)) -> 0.9061850469 | L19: =IF(ISERROR(VLOOKUP($E19,表C_RAW!$C:$I,4,0)),"",VLOOKUP($E19,表C_RAW!$C:$I,4,0)) -> 180798 | M19: =IF(ISERROR(VLOOKUP($E19,表C_RAW!$C:$I,5,0)),"",VLOOKUP($E19,表C_RAW!$C:$I,5,0)) -> 114943 | N19: =IF(ISERROR(VLOOKUP($E19,表C_RAW!$C:$I,6,0)),"",VLOOKUP($E19,表C_RAW!$C:$I,6,0)/100) -> 0.5729
D20: 5 | E20: =VLOOKUP($C$16&D20,表A_RAW!A:I,3,0) -> 5432 新門 | G20: =IF(ISERROR(VLOOKUP($E20,表A_RAW!$C:$I,4,0)),"",VLOOKUP($E20,表A_RAW!$C:$I,4,0)) -> 16740 | H20: =IF(ISERROR(VLOOKUP($E20,表B_RAW!$C:$I,5,0)),"",VLOOKUP($E20,表B_RAW!$C:$I,5,0)) -> 5708 | I20: =IF(ISERROR(VLOOKUP($E20,表B_RAW!$C:$I,6,0)),"",VLOOKUP($E20,表B_RAW!$C:$I,6,0)/100) -> 1.9327 | J20: =IF(ISERROR(VLOOKUP($E20,表A_RAW!$C:$I,5,0)),"",VLOOKUP($E20,表A_RAW!$C:$I,5,0)) -> 9317 | K20: =IF(ISERROR(VLOOKUP($E20,表A_RAW!$C:$I,7,0)),"",VLOOKUP($E20,表A_RAW!$C:$I,7,0)) -> 0.796715681 | L20: =IF(ISERROR(VLOOKUP($E20,表C_RAW!$C:$I,4,0)),"",VLOOKUP($E20,表C_RAW!$C:$I,4,0)) -> 22448 | M20: =IF(ISERROR(VLOOKUP($E20,表C_RAW!$C:$I,5,0)),"",VLOOKUP($E20,表C_RAW!$C:$I,5,0)) -> 25121 | N20: =IF(ISERROR(VLOOKUP($E20,表C_RAW!$C:$I,6,0)),"",VLOOKUP($E20,表C_RAW!$C:$I,6,0)/100) -> -0.1064
B21: 4 | C21: =VLOOKUP(B21,表A_RAW!N:T,3,0) -> 電腦及週邊 | D21: 1 | E21: =VLOOKUP($C$21&D21,表A_RAW!A:I,3,FALSE) -> 6228 全譜 | G21: =IF(ISERROR(VLOOKUP($E21,表A_RAW!$C:$I,4,0)),"",VLOOKUP($E21,表A_RAW!$C:$I,4,0)) -> 4719 | H21: =IF(ISERROR(VLOOKUP($E21,表B_RAW!$C:$I,5,0)),"",VLOOKUP($E21,表B_RAW!$C:$I,5,0)) -> 5635 | I21: =IF(ISERROR(VLOOKUP($E21,表B_RAW!$C:$I,6,0)),"",VLOOKUP($E21,表B_RAW!$C:$I,6,0)/100) -> -0.1626 | J21: =IF(ISERROR(VLOOKUP($E21,表A_RAW!$C:$I,5,0)),"",VLOOKUP($E21,表A_RAW!$C:$I,5,0)) -> 1281 | K21: =IF(ISERROR(VLOOKUP($E21,表A_RAW!$C:$I,7,0)),"",VLOOKUP($E21,表A_RAW!$C:$I,7,0)) -> 2.683840749 | L21: =IF(ISERROR(VLOOKUP($E21,表C_RAW!$C:$I,4,0)),"",VLOOKUP($E21,表C_RAW!$C:$I,4,0)) -> 10354 | M21: =IF(ISERROR(VLOOKUP($E21,表C_RAW!$C:$I,5,0)),"",VLOOKUP($E21,表C_RAW!$C:$I,5,0)) -> 5174 | N21: =IF(ISERROR(VLOOKUP($E21,表C_RAW!$C:$I,6,0)),"",VLOOKUP($E21,表C_RAW!$C:$I,6,0)/100) -> 1.0012
D22: 2 | E22: =VLOOKUP($C$21&D22,表A_RAW!A:I,3,FALSE) -> 8114 振樺電 | G22: =IF(ISERROR(VLOOKUP($E22,表A_RAW!$C:$I,4,0)),"",VLOOKUP($E22,表A_RAW!$C:$I,4,0)) -> 1899152 | H22: =IF(ISERROR(VLOOKUP($E22,表B_RAW!$C:$I,5,0)),"",VLOOKUP($E22,表B_RAW!$C:$I,5,0)) -> 1385335 | I22: =IF(ISERROR(VLOOKUP($E22,表B_RAW!$C:$I,6,0)),"",VLOOKUP($E22,表B_RAW!$C:$I,6,0)/100) -> 0.3709 | J22: =IF(ISERROR(VLOOKUP($E22,表A_RAW!$C:$I,5,0)),"",VLOOKUP($E22,表A_RAW!$C:$I,5,0)) -> 671473 | K22: =IF(ISERROR(VLOOKUP($E22,表A_RAW!$C:$I,7,0)),"",VLOOKUP($E22,表A_RAW!$C:$I,7,0)) -> 1.828337104 | L22: =IF(ISERROR(VLOOKUP($E22,表C_RAW!$C:$I,4,0)),"",VLOOKUP($E22,表C_RAW!$C:$I,4,0)) -> 3284487 | M22: =IF(ISERROR(VLOOKUP($E22,表C_RAW!$C:$I,5,0)),"",VLOOKUP($E22,表C_RAW!$C:$I,5,0)) -> 1345220 | N22: =IF(ISERROR(VLOOKUP($E22,表C_RAW!$C:$I,6,0)),"",VLOOKUP($E22,表C_RAW!$C:$I,6,0)/100) -> 1.4416
D23: 3 | E23: =VLOOKUP($C$21&D23,表A_RAW!A:I,3,FALSE) -> 3712 永崴投控 | G23: =IF(ISERROR(VLOOKUP($E23,表A_RAW!$C:$I,4,0)),"",VLOOKUP($E23,表A_RAW!$C:$I,4,0)) -> 2351656 | H23: =IF(ISERROR(VLOOKUP($E23,表B_RAW!$C:$I,5,0)),"",VLOOKUP($E23,表B_RAW!$C:$I,5,0)) -> 3387274 | I23: =IF(ISERROR(VLOOKUP($E23,表B_RAW!$C:$I,6,0)),"",VLOOKUP($E23,表B_RAW!$C:$I,6,0)/100) -> -0.3057 | J23: =IF(ISERROR(VLOOKUP($E23,表A_RAW!$C:$I,5,0)),"",VLOOKUP($E23,表A_RAW!$C:$I,5,0)) -> 914480 | K23: =IF(ISERROR(VLOOKUP($E23,表A_RAW!$C:$I,7,0)),"",VLOOKUP($E23,表A_RAW!$C:$I,7,0)) -> 1.57157729 | L23: =IF(ISERROR(VLOOKUP($E23,表C_RAW!$C:$I,4,0)),"",VLOOKUP($E23,表C_RAW!$C:$I,4,0)) -> 5738931 | M23: =IF(ISERROR(VLOOKUP($E23,表C_RAW!$C:$I,5,0)),"",VLOOKUP($E23,表C_RAW!$C:$I,5,0)) -> 2540305 | N23: =IF(ISERROR(VLOOKUP($E23,表C_RAW!$C:$I,6,0)),"",VLOOKUP($E23,表C_RAW!$C:$I,6,0)/100) -> 1.2592
C24: =VLOOKUP(B21,表A_RAW!N:T,7,0) -> 39.13267216 | D24: 4 | E24: =VLOOKUP($C$21&D24,表A_RAW!A:I,3,FALSE) -> 3013 晟銘電 | G24: =IF(ISERROR(VLOOKUP($E24,表A_RAW!$C:$I,4,0)),"",VLOOKUP($E24,表A_RAW!$C:$I,4,0)) -> 746546 | H24: =IF(ISERROR(VLOOKUP($E24,表B_RAW!$C:$I,5,0)),"",VLOOKUP($E24,表B_RAW!$C:$I,5,0)) -> 819849 | I24: =IF(ISERROR(VLOOKUP($E24,表B_RAW!$C:$I,6,0)),"",VLOOKUP($E24,表B_RAW!$C:$I,6,0)/100) -> -0.0894 | J24: =IF(ISERROR(VLOOKUP($E24,表A_RAW!$C:$I,5,0)),"",VLOOKUP($E24,表A_RAW!$C:$I,5,0)) -> 301461 | K24: =IF(ISERROR(VLOOKUP($E24,表A_RAW!$C:$I,7,0)),"",VLOOKUP($E24,表A_RAW!$C:$I,7,0)) -> 1.47642647 | L24: =IF(ISERROR(VLOOKUP($E24,表C_RAW!$C:$I,4,0)),"",VLOOKUP($E24,表C_RAW!$C:$I,4,0)) -> 1566395 | M24: =IF(ISERROR(VLOOKUP($E24,表C_RAW!$C:$I,5,0)),"",VLOOKUP($E24,表C_RAW!$C:$I,5,0)) -> 871485 | N24: =IF(ISERROR(VLOOKUP($E24,表C_RAW!$C:$I,6,0)),"",VLOOKUP($E24,表C_RAW!$C:$I,6,0)/100) -> 0.7974
D25: 5 | E25: =VLOOKUP($C$21&D25,表A_RAW!A:I,3,FALSE) -> 3706 神達 | G25: =IF(ISERROR(VLOOKUP($E25,表A_RAW!$C:$I,4,0)),"",VLOOKUP($E25,表A_RAW!$C:$I,4,0)) -> 7532350 | H25: =IF(ISERROR(VLOOKUP($E25,表B_RAW!$C:$I,5,0)),"",VLOOKUP($E25,表B_RAW!$C:$I,5,0)) -> 7642076 | I25: =IF(ISERROR(VLOOKUP($E25,表B_RAW!$C:$I,6,0)),"",VLOOKUP($E25,表B_RAW!$C:$I,6,0)/100) -> -0.0144 | J25: =IF(ISERROR(VLOOKUP($E25,表A_RAW!$C:$I,5,0)),"",VLOOKUP($E25,表A_RAW!$C:$I,5,0)) -> 3358196 | K25: =IF(ISERROR(VLOOKUP($E25,表A_RAW!$C:$I,7,0)),"",VLOOKUP($E25,表A_RAW!$C:$I,7,0)) -> 1.242975097 | L25: =IF(ISERROR(VLOOKUP($E25,表C_RAW!$C:$I,4,0)),"",VLOOKUP($E25,表C_RAW!$C:$I,4,0)) -> 15174426 | M25: =IF(ISERROR(VLOOKUP($E25,表C_RAW!$C:$I,5,0)),"",VLOOKUP($E25,表C_RAW!$C:$I,5,0)) -> 6206816 | N25: =IF(ISERROR(VLOOKUP($E25,表C_RAW!$C:$I,6,0)),"",VLOOKUP($E25,表C_RAW!$C:$I,6,0)/100) -> 1.4448
B26: 5 | C26: =VLOOKUP(B26,表A_RAW!N:T,3,0) -> 資訊服務業 | D26: 1 | E26: =VLOOKUP($C$26&D26,表A_RAW!A:I,3,FALSE) -> 6148 驊宏資 | G26: =IF(ISERROR(VLOOKUP($E26,表A_RAW!$C:$I,4,0)),"",VLOOKUP($E26,表A_RAW!$C:$I,4,0)) -> 81919 | H26: =IF(ISERROR(VLOOKUP($E26,表B_RAW!$C:$I,5,0)),"",VLOOKUP($E26,表B_RAW!$C:$I,5,0)) -> 36174 | I26: =IF(ISERROR(VLOOKUP($E26,表B_RAW!$C:$I,6,0)),"",VLOOKUP($E26,表B_RAW!$C:$I,6,0)/100) -> 1.2646 | J26: =IF(ISERROR(VLOOKUP($E26,表A_RAW!$C:$I,5,0)),"",VLOOKUP($E26,表A_RAW!$C:$I,5,0)) -> 12503 | K26: =IF(ISERROR(VLOOKUP($E26,表A_RAW!$C:$I,7,0)),"",VLOOKUP($E26,表A_RAW!$C:$I,7,0)) -> 5.551947533 | L26: =IF(ISERROR(VLOOKUP($E26,表C_RAW!$C:$I,4,0)),"",VLOOKUP($E26,表C_RAW!$C:$I,4,0)) -> 118093 | M26: =IF(ISERROR(VLOOKUP($E26,表C_RAW!$C:$I,5,0)),"",VLOOKUP($E26,表C_RAW!$C:$I,5,0)) -> 85530 | N26: =IF(ISERROR(VLOOKUP($E26,表C_RAW!$C:$I,6,0)),"",VLOOKUP($E26,表C_RAW!$C:$I,6,0)/100) -> 0.3807
D27: 2 | E27: =VLOOKUP($C$26&D27,表A_RAW!A:I,3,FALSE) -> 3147 大綜 | G27: =IF(ISERROR(VLOOKUP($E27,表A_RAW!$C:$I,4,0)),"",VLOOKUP($E27,表A_RAW!$C:$I,4,0)) -> 1304802 | H27: =IF(ISERROR(VLOOKUP($E27,表B_RAW!$C:$I,5,0)),"",VLOOKUP($E27,表B_RAW!$C:$I,5,0)) -> 460388 | I27: =IF(ISERROR(VLOOKUP($E27,表B_RAW!$C:$I,6,0)),"",VLOOKUP($E27,表B_RAW!$C:$I,6,0)/100) -> 1.8341 | J27: =IF(ISERROR(VLOOKUP($E27,表A_RAW!$C:$I,5,0)),"",VLOOKUP($E27,表A_RAW!$C:$I,5,0)) -> 257074 | K27: =IF(ISERROR(VLOOKUP($E27,表A_RAW!$C:$I,7,0)),"",VLOOKUP($E27,表A_RAW!$C:$I,7,0)) -> 4.07558913 | L27: =IF(ISERROR(VLOOKUP($E27,表C_RAW!$C:$I,4,0)),"",VLOOKUP($E27,表C_RAW!$C:$I,4,0)) -> 1765190 | M27: =IF(ISERROR(VLOOKUP($E27,表C_RAW!$C:$I,5,0)),"",VLOOKUP($E27,表C_RAW!$C:$I,5,0)) -> 685558 | N27: =IF(ISERROR(VLOOKUP($E27,表C_RAW!$C:$I,6,0)),"",VLOOKUP($E27,表C_RAW!$C:$I,6,0)/100) -> 1.5748
D28: 3 | E28: =VLOOKUP($C$26&D28,表A_RAW!A:I,3,FALSE) -> 5410 國眾 | G28: =IF(ISERROR(VLOOKUP($E28,表A_RAW!$C:$I,4,0)),"",VLOOKUP($E28,表A_RAW!$C:$I,4,0)) -> 647512 | H28: =IF(ISERROR(VLOOKUP($E28,表B_RAW!$C:$I,5,0)),"",VLOOKUP($E28,表B_RAW!$C:$I,5,0)) -> 308504 | I28: =IF(ISERROR(VLOOKUP($E28,表B_RAW!$C:$I,6,0)),"",VLOOKUP($E28,表B_RAW!$C:$I,6,0)/100) -> 1.0989 | J28: =IF(ISERROR(VLOOKUP($E28,表A_RAW!$C:$I,5,0)),"",VLOOKUP($E28,表A_RAW!$C:$I,5,0)) -> 129758 | K28: =IF(ISERROR(VLOOKUP($E28,表A_RAW!$C:$I,7,0)),"",VLOOKUP($E28,表A_RAW!$C:$I,7,0)) -> 3.990150896 | L28: =IF(ISERROR(VLOOKUP($E28,表C_RAW!$C:$I,4,0)),"",VLOOKUP($E28,表C_RAW!$C:$I,4,0)) -> 956016 | M28: =IF(ISERROR(VLOOKUP($E28,表C_RAW!$C:$I,5,0)),"",VLOOKUP($E28,表C_RAW!$C:$I,5,0)) -> 404538 | N28: =IF(ISERROR(VLOOKUP($E28,表C_RAW!$C:$I,6,0)),"",VLOOKUP($E28,表C_RAW!$C:$I,6,0)/100) -> 1.3632
C29: =VLOOKUP(B26,表A_RAW!N:T,7,0) -> 38.36904033 | D29: 4 | E29: =VLOOKUP($C$26&D29,表A_RAW!A:I,3,FALSE) -> 5310 天剛 | G29: =IF(ISERROR(VLOOKUP($E29,表A_RAW!$C:$I,4,0)),"",VLOOKUP($E29,表A_RAW!$C:$I,4,0)) -> 58 | H29: =IF(ISERROR(VLOOKUP($E29,表B_RAW!$C:$I,5,0)),"",VLOOKUP($E29,表B_RAW!$C:$I,5,0)) -> 3 | I29: =IF(ISERROR(VLOOKUP($E29,表B_RAW!$C:$I,6,0)),"",VLOOKUP($E29,表B_RAW!$C:$I,6,0)/100) -> 18.3333 | J29: =IF(ISERROR(VLOOKUP($E29,表A_RAW!$C:$I,5,0)),"",VLOOKUP($E29,表A_RAW!$C:$I,5,0)) -> 15 | K29: =IF(ISERROR(VLOOKUP($E29,表A_RAW!$C:$I,7,0)),"",VLOOKUP($E29,表A_RAW!$C:$I,7,0)) -> 2.866666667 | L29: =IF(ISERROR(VLOOKUP($E29,表C_RAW!$C:$I,4,0)),"",VLOOKUP($E29,表C_RAW!$C:$I,4,0)) -> 61 | M29: =IF(ISERROR(VLOOKUP($E29,表C_RAW!$C:$I,5,0)),"",VLOOKUP($E29,表C_RAW!$C:$I,5,0)) -> 235 | N29: =IF(ISERROR(VLOOKUP($E29,表C_RAW!$C:$I,6,0)),"",VLOOKUP($E29,表C_RAW!$C:$I,6,0)/100) -> -0.7404
D30: 5 | E30: =VLOOKUP($C$26&D30,表A_RAW!A:I,3,FALSE) -> 6140 訊達 | G30: =IF(ISERROR(VLOOKUP($E30,表A_RAW!$C:$I,4,0)),"",VLOOKUP($E30,表A_RAW!$C:$I,4,0)) -> 177071 | H30: =IF(ISERROR(VLOOKUP($E30,表B_RAW!$C:$I,5,0)),"",VLOOKUP($E30,表B_RAW!$C:$I,5,0)) -> 157922 | I30: =IF(ISERROR(VLOOKUP($E30,表B_RAW!$C:$I,6,0)),"",VLOOKUP($E30,表B_RAW!$C:$I,6,0)/100) -> 0.1213 | J30: =IF(ISERROR(VLOOKUP($E30,表A_RAW!$C:$I,5,0)),"",VLOOKUP($E30,表A_RAW!$C:$I,5,0)) -> 65874 | K30: =IF(ISERROR(VLOOKUP($E30,表A_RAW!$C:$I,7,0)),"",VLOOKUP($E30,表A_RAW!$C:$I,7,0)) -> 1.688025625 | L30: =IF(ISERROR(VLOOKUP($E30,表C_RAW!$C:$I,4,0)),"",VLOOKUP($E30,表C_RAW!$C:$I,4,0)) -> 334993 | M30: =IF(ISERROR(VLOOKUP($E30,表C_RAW!$C:$I,5,0)),"",VLOOKUP($E30,表C_RAW!$C:$I,5,0)) -> 257028 | N30: =IF(ISERROR(VLOOKUP($E30,表C_RAW!$C:$I,6,0)),"",VLOOKUP($E30,表C_RAW!$C:$I,6,0)/100) -> 0.3033
B32: 衰退前五名之產業 YOY(單月)% | D32: 該產業衰退前五名之公司 YOY(單月)% | G32: 單月營收金額(千元) | H32: 本月與上月相較 | J32: 本月與去年同期相較 | L32: 累計營收金額(千元) | M32: 累計營收與去年同期相較
B33: 衰退 排名 | C33: 產業 | D33: 排名 | E33: 公司代號&簡稱 | H33: 上月營收金額(千元) | I33: 較上月變動比率(%) | J33: 去年同期金額(千元) | K33: 較去年同期變動比率(%) | M33: 去年累計營收金額(千元) | N33: 較去年同期變動比率(%)
B34: 1 | C34: =VLOOKUP(B34,表A_RAW!O:T,2,0) -> 貿易百貨 | D34: 1 | E34: =VLOOKUP($C$34&D34,表A_RAW!B:I,2,0) -> 2915 潤泰全 | G34: =IF(ISERROR(VLOOKUP($E34,表A_RAW!$C:$I,4,0)),"",VLOOKUP($E34,表A_RAW!$C:$I,4,0)) -> 174446 | H34: =IF(ISERROR(VLOOKUP($E34,表B_RAW!$C:$I,5,0)),"",VLOOKUP($E34,表B_RAW!$C:$I,5,0)) -> 267711 | I34: =IF(ISERROR(VLOOKUP($E34,表B_RAW!$C:$I,6,0)),"",VLOOKUP($E34,表B_RAW!$C:$I,6,0)/100) -> -0.3484 | J34: =IF(ISERROR(VLOOKUP($E34,表A_RAW!$C:$I,5,0)),"",VLOOKUP($E34,表A_RAW!$C:$I,5,0)) -> 255690 | K34: =IF(ISERROR(VLOOKUP($E34,表A_RAW!$C:$I,7,0)),"",VLOOKUP($E34,表A_RAW!$C:$I,7,0)) -> -0.3177441433 | L34: =IF(ISERROR(VLOOKUP($E34,表C_RAW!$C:$I,4,0)),"",VLOOKUP($E34,表C_RAW!$C:$I,4,0)) -> 442157 | M34: =IF(ISERROR(VLOOKUP($E34,表C_RAW!$C:$I,5,0)),"",VLOOKUP($E34,表C_RAW!$C:$I,5,0)) -> 503609 | N34: =IF(ISERROR(VLOOKUP($E34,表C_RAW!$C:$I,6,0)),"",VLOOKUP($E34,表C_RAW!$C:$I,6,0)/100) -> -0.122
D35: 2 | E35: =VLOOKUP($C$34&D35,表A_RAW!B:I,2,0) -> 5906 台南-KY | G35: =IF(ISERROR(VLOOKUP($E35,表A_RAW!$C:$I,4,0)),"",VLOOKUP($E35,表A_RAW!$C:$I,4,0)) -> 125838 | H35: =IF(ISERROR(VLOOKUP($E35,表B_RAW!$C:$I,5,0)),"",VLOOKUP($E35,表B_RAW!$C:$I,5,0)) -> 245326 | I35: =IF(ISERROR(VLOOKUP($E35,表B_RAW!$C:$I,6,0)),"",VLOOKUP($E35,表B_RAW!$C:$I,6,0)/100) -> -0.4871 | J35: =IF(ISERROR(VLOOKUP($E35,表A_RAW!$C:$I,5,0)),"",VLOOKUP($E35,表A_RAW!$C:$I,5,0)) -> 181716 | K35: =IF(ISERROR(VLOOKUP($E35,表A_RAW!$C:$I,7,0)),"",VLOOKUP($E35,表A_RAW!$C:$I,7,0)) -> -0.307501816 | L35: =IF(ISERROR(VLOOKUP($E35,表C_RAW!$C:$I,4,0)),"",VLOOKUP($E35,表C_RAW!$C:$I,4,0)) -> 371164 | M35: =IF(ISERROR(VLOOKUP($E35,表C_RAW!$C:$I,5,0)),"",VLOOKUP($E35,表C_RAW!$C:$I,5,0)) -> 358922 | N35: =IF(ISERROR(VLOOKUP($E35,表C_RAW!$C:$I,6,0)),"",VLOOKUP($E35,表C_RAW!$C:$I,6,0)/100) -> 0.0341
D36: 3 | E36: =VLOOKUP($C$34&D36,表A_RAW!B:I,2,0) -> 2911 麗嬰房 | G36: =IF(ISERROR(VLOOKUP($E36,表A_RAW!$C:$I,4,0)),"",VLOOKUP($E36,表A_RAW!$C:$I,4,0)) -> 176704 | H36: =IF(ISERROR(VLOOKUP($E36,表B_RAW!$C:$I,5,0)),"",VLOOKUP($E36,表B_RAW!$C:$I,5,0)) -> 270801 | I36: =IF(ISERROR(VLOOKUP($E36,表B_RAW!$C:$I,6,0)),"",VLOOKUP($E36,表B_RAW!$C:$I,6,0)/100) -> -0.3475 | J36: =IF(ISERROR(VLOOKUP($E36,表A_RAW!$C:$I,5,0)),"",VLOOKUP($E36,表A_RAW!$C:$I,5,0)) -> 249548 | K36: =IF(ISERROR(VLOOKUP($E36,表A_RAW!$C:$I,7,0)),"",VLOOKUP($E36,表A_RAW!$C:$I,7,0)) -> -0.291903762 | L36: =IF(ISERROR(VLOOKUP($E36,表C_RAW!$C:$I,4,0)),"",VLOOKUP($E36,表C_RAW!$C:$I,4,0)) -> 447505 | M36: =IF(ISERROR(VLOOKUP($E36,表C_RAW!$C:$I,5,0)),"",VLOOKUP($E36,表C_RAW!$C:$I,5,0)) -> 518851 | N36: =IF(ISERROR(VLOOKUP($E36,表C_RAW!$C:$I,6,0)),"",VLOOKUP($E36,表C_RAW!$C:$I,6,0)/100) -> -0.1375
C37: =VLOOKUP(B34,表A_RAW!O:T,6,0) -> -10.66943822 | D37: 4 | E37: =VLOOKUP($C$34&D37,表A_RAW!B:I,2,0) -> 2905 三商 | G37: =IF(ISERROR(VLOOKUP($E37,表A_RAW!$C:$I,4,0)),"",VLOOKUP($E37,表A_RAW!$C:$I,4,0)) -> 12746179 | H37: =IF(ISERROR(VLOOKUP($E37,表B_RAW!$C:$I,5,0)),"",VLOOKUP($E37,表B_RAW!$C:$I,5,0)) -> 16717553 | I37: =IF(ISERROR(VLOOKUP($E37,表B_RAW!$C:$I,6,0)),"",VLOOKUP($E37,表B_RAW!$C:$I,6,0)/100) -> -0.2376 | J37: =IF(ISERROR(VLOOKUP($E37,表A_RAW!$C:$I,5,0)),"",VLOOKUP($E37,表A_RAW!$C:$I,5,0)) -> 16989605 | K37: =IF(ISERROR(VLOOKUP($E37,表A_RAW!$C:$I,7,0)),"",VLOOKUP($E37,表A_RAW!$C:$I,7,0)) -> -0.2497660187 | L37: =IF(ISERROR(VLOOKUP($E37,表C_RAW!$C:$I,4,0)),"",VLOOKUP($E37,表C_RAW!$C:$I,4,0)) -> 29463732 | M37: =IF(ISERROR(VLOOKUP($E37,表C_RAW!$C:$I,5,0)),"",VLOOKUP($E37,表C_RAW!$C:$I,5,0)) -> 43979749 | N37: =IF(ISERROR(VLOOKUP($E37,表C_RAW!$C:$I,6,0)),"",VLOOKUP($E37,表C_RAW!$C:$I,6,0)/100) -> -0.3301
D38: 5 | E38: =VLOOKUP($C$34&D38,表A_RAW!B:I,2,0) -> 2903 遠百 | G38: =IF(ISERROR(VLOOKUP($E38,表A_RAW!$C:$I,4,0)),"",VLOOKUP($E38,表A_RAW!$C:$I,4,0)) -> 2197968 | H38: =IF(ISERROR(VLOOKUP($E38,表B_RAW!$C:$I,5,0)),"",VLOOKUP($E38,表B_RAW!$C:$I,5,0)) -> 3292497 | I38: =IF(ISERROR(VLOOKUP($E38,表B_RAW!$C:$I,6,0)),"",VLOOKUP($E38,表B_RAW!$C:$I,6,0)/100) -> -0.3324 | J38: =IF(ISERROR(VLOOKUP($E38,表A_RAW!$C:$I,5,0)),"",VLOOKUP($E38,表A_RAW!$C:$I,5,0)) -> 2801156 | K38: =IF(ISERROR(VLOOKUP($E38,表A_RAW!$C:$I,7,0)),"",VLOOKUP($E38,表A_RAW!$C:$I,7,0)) -> -0.215335383 | L38: =IF(ISERROR(VLOOKUP($E38,表C_RAW!$C:$I,4,0)),"",VLOOKUP($E38,表C_RAW!$C:$I,4,0)) -> 5490465 | M38: =IF(ISERROR(VLOOKUP($E38,表C_RAW!$C:$I,5,0)),"",VLOOKUP($E38,表C_RAW!$C:$I,5,0)) -> 5732098 | N38: =IF(ISERROR(VLOOKUP($E38,表C_RAW!$C:$I,6,0)),"",VLOOKUP($E38,表C_RAW!$C:$I,6,0)/100) -> -0.0422
B39: 2 | C39: =VLOOKUP(B39,表A_RAW!O:T,2,0) -> 文化創意業 | D39: 1 | E39: =VLOOKUP($C$39&D39,表A_RAW!B:I,2,0) -> 3629 地心引力 | G39: =IF(ISERROR(VLOOKUP($E39,表A_RAW!$C:$I,4,0)),"",VLOOKUP($E39,表A_RAW!$C:$I,4,0)) -> 3 | H39: =IF(ISERROR(VLOOKUP($E39,表B_RAW!$C:$I,5,0)),"",VLOOKUP($E39,表B_RAW!$C:$I,5,0)) -> 3 | I39: =IF(ISERROR(VLOOKUP($E39,表B_RAW!$C:$I,6,0)),"",VLOOKUP($E39,表B_RAW!$C:$I,6,0)/100) -> 0 | J39: =IF(ISERROR(VLOOKUP($E39,表A_RAW!$C:$I,5,0)),"",VLOOKUP($E39,表A_RAW!$C:$I,5,0)) -> 9 | K39: =IF(ISERROR(VLOOKUP($E39,表A_RAW!$C:$I,7,0)),"",VLOOKUP($E39,表A_RAW!$C:$I,7,0)) -> -0.6666666667 | L39: =IF(ISERROR(VLOOKUP($E39,表C_RAW!$C:$I,4,0)),"",VLOOKUP($E39,表C_RAW!$C:$I,4,0)) -> 6 | M39: =IF(ISERROR(VLOOKUP($E39,表C_RAW!$C:$I,5,0)),"",VLOOKUP($E39,表C_RAW!$C:$I,5,0)) -> 19 | N39: =IF(ISERROR(VLOOKUP($E39,表C_RAW!$C:$I,6,0)),"",VLOOKUP($E39,表C_RAW!$C:$I,6,0)/100) -> -0.6842
D40: 2 | E40: =VLOOKUP($C$39&D40,表A_RAW!B:I,2,0) -> 6596 寬宏藝術 | G40: =IF(ISERROR(VLOOKUP($E40,表A_RAW!$C:$I,4,0)),"",VLOOKUP($E40,表A_RAW!$C:$I,4,0)) -> 155380 | H40: =IF(ISERROR(VLOOKUP($E40,表B_RAW!$C:$I,5,0)),"",VLOOKUP($E40,表B_RAW!$C:$I,5,0)) -> 214015 | I40: =IF(ISERROR(VLOOKUP($E40,表B_RAW!$C:$I,6,0)),"",VLOOKUP($E40,表B_RAW!$C:$I,6,0)/100) -> -0.274 | J40: =IF(ISERROR(VLOOKUP($E40,表A_RAW!$C:$I,5,0)),"",VLOOKUP($E40,表A_RAW!$C:$I,5,0)) -> 428832 | K40: =IF(ISERROR(VLOOKUP($E40,表A_RAW!$C:$I,7,0)),"",VLOOKUP($E40,表A_RAW!$C:$I,7,0)) -> -0.6376669652 | L40: =IF(ISERROR(VLOOKUP($E40,表C_RAW!$C:$I,4,0)),"",VLOOKUP($E40,表C_RAW!$C:$I,4,0)) -> 369395 | M40: =IF(ISERROR(VLOOKUP($E40,表C_RAW!$C:$I,5,0)),"",VLOOKUP($E40,表C_RAW!$C:$I,5,0)) -> 467496 | N40: =IF(ISERROR(VLOOKUP($E40,表C_RAW!$C:$I,6,0)),"",VLOOKUP($E40,表C_RAW!$C:$I,6,0)/100) -> -0.2098
D41: 3 | E41: =VLOOKUP($C$39&D41,表A_RAW!B:I,2,0) -> 6101 寬魚國際 | G41: =IF(ISERROR(VLOOKUP($E41,表A_RAW!$C:$I,4,0)),"",VLOOKUP($E41,表A_RAW!$C:$I,4,0)) -> 9983 | H41: =IF(ISERROR(VLOOKUP($E41,表B_RAW!$C:$I,5,0)),"",VLOOKUP($E41,表B_RAW!$C:$I,5,0)) -> 5180 | I41: =IF(ISERROR(VLOOKUP($E41,表B_RAW!$C:$I,6,0)),"",VLOOKUP($E41,表B_RAW!$C:$I,6,0)/100) -> 0.9272 | J41: =IF(ISERROR(VLOOKUP($E41,表A_RAW!$C:$I,5,0)),"",VLOOKUP($E41,表A_RAW!$C:$I,5,0)) -> 22113 | K41: =IF(ISERROR(VLOOKUP($E41,表A_RAW!$C:$I,7,0)),"",VLOOKUP($E41,表A_RAW!$C:$I,7,0)) -> -0.5485461041 | L41: =IF(ISERROR(VLOOKUP($E41,表C_RAW!$C:$I,4,0)),"",VLOOKUP($E41,表C_RAW!$C:$I,4,0)) -> 15163 | M41: =IF(ISERROR(VLOOKUP($E41,表C_RAW!$C:$I,5,0)),"",VLOOKUP($E41,表C_RAW!$C:$I,5,0)) -> 115099 | N41: =IF(ISERROR(VLOOKUP($E41,表C_RAW!$C:$I,6,0)),"",VLOOKUP($E41,表C_RAW!$C:$I,6,0)/100) -> -0.8683
C42: =VLOOKUP(B39,表A_RAW!O:T,6,0) -> -8.480041804 | D42: 4 | E42: =VLOOKUP($C$39&D42,表A_RAW!B:I,2,0) -> 3083 網龍 | G42: =IF(ISERROR(VLOOKUP($E42,表A_RAW!$C:$I,4,0)),"",VLOOKUP($E42,表A_RAW!$C:$I,4,0)) -> 22691 | H42: =IF(ISERROR(VLOOKUP($E42,表B_RAW!$C:$I,5,0)),"",VLOOKUP($E42,表B_RAW!$C:$I,5,0)) -> 36689 | I42: =IF(ISERROR(VLOOKUP($E42,表B_RAW!$C:$I,6,0)),"",VLOOKUP($E42,表B_RAW!$C:$I,6,0)/100) -> -0.3815 | J42: =IF(ISERROR(VLOOKUP($E42,表A_RAW!$C:$I,5,0)),"",VLOOKUP($E42,表A_RAW!$C:$I,5,0)) -> 42536 | K42: =IF(ISERROR(VLOOKUP($E42,表A_RAW!$C:$I,7,0)),"",VLOOKUP($E42,表A_RAW!$C:$I,7,0)) -> -0.4665459846 | L42: =IF(ISERROR(VLOOKUP($E42,表C_RAW!$C:$I,4,0)),"",VLOOKUP($E42,表C_RAW!$C:$I,4,0)) -> 59380 | M42: =IF(ISERROR(VLOOKUP($E42,表C_RAW!$C:$I,5,0)),"",VLOOKUP($E42,表C_RAW!$C:$I,5,0)) -> 60893 | N42: =IF(ISERROR(VLOOKUP($E42,表C_RAW!$C:$I,6,0)),"",VLOOKUP($E42,表C_RAW!$C:$I,6,0)/100) -> -0.0248
D43: 5 | E43: =VLOOKUP($C$39&D43,表A_RAW!B:I,2,0) -> 3546 宇峻 | G43: =IF(ISERROR(VLOOKUP($E43,表A_RAW!$C:$I,4,0)),"",VLOOKUP($E43,表A_RAW!$C:$I,4,0)) -> 96571 | H43: =IF(ISERROR(VLOOKUP($E43,表B_RAW!$C:$I,5,0)),"",VLOOKUP($E43,表B_RAW!$C:$I,5,0)) -> 140899 | I43: =IF(ISERROR(VLOOKUP($E43,表B_RAW!$C:$I,6,0)),"",VLOOKUP($E43,表B_RAW!$C:$I,6,0)/100) -> -0.3146 | J43: =IF(ISERROR(VLOOKUP($E43,表A_RAW!$C:$I,5,0)),"",VLOOKUP($E43,表A_RAW!$C:$I,5,0)) -> 149637 | K43: =IF(ISERROR(VLOOKUP($E43,表A_RAW!$C:$I,7,0)),"",VLOOKUP($E43,表A_RAW!$C:$I,7,0)) -> -0.3546315417 | L43: =IF(ISERROR(VLOOKUP($E43,表C_RAW!$C:$I,4,0)),"",VLOOKUP($E43,表C_RAW!$C:$I,4,0)) -> 237470 | M43: =IF(ISERROR(VLOOKUP($E43,表C_RAW!$C:$I,5,0)),"",VLOOKUP($E43,表C_RAW!$C:$I,5,0)) -> 279403 | N43: =IF(ISERROR(VLOOKUP($E43,表C_RAW!$C:$I,6,0)),"",VLOOKUP($E43,表C_RAW!$C:$I,6,0)/100) -> -0.1501
B44: 3 | C44: =VLOOKUP(B44,表A_RAW!O:T,2,0) -> 觀光餐旅 | D44: 1 | E44: =VLOOKUP($C$44&D44,表A_RAW!B:I,2,0) -> 5704 老爺知 | G44: =IF(ISERROR(VLOOKUP($E44,表A_RAW!$C:$I,4,0)),"",VLOOKUP($E44,表A_RAW!$C:$I,4,0)) -> 19600 | H44: =IF(ISERROR(VLOOKUP($E44,表B_RAW!$C:$I,5,0)),"",VLOOKUP($E44,表B_RAW!$C:$I,5,0)) -> 34910 | I44: =IF(ISERROR(VLOOKUP($E44,表B_RAW!$C:$I,6,0)),"",VLOOKUP($E44,表B_RAW!$C:$I,6,0)/100) -> -0.4386 | J44: =IF(ISERROR(VLOOKUP($E44,表A_RAW!$C:$I,5,0)),"",VLOOKUP($E44,表A_RAW!$C:$I,5,0)) -> 50916 | K44: =IF(ISERROR(VLOOKUP($E44,表A_RAW!$C:$I,7,0)),"",VLOOKUP($E44,表A_RAW!$C:$I,7,0)) -> -0.6150522429 | L44: =IF(ISERROR(VLOOKUP($E44,表C_RAW!$C:$I,4,0)),"",VLOOKUP($E44,表C_RAW!$C:$I,4,0)) -> 54510 | M44: =IF(ISERROR(VLOOKUP($E44,表C_RAW!$C:$I,5,0)),"",VLOOKUP($E44,表C_RAW!$C:$I,5,0)) -> 94128 | N44: =IF(ISERROR(VLOOKUP($E44,表C_RAW!$C:$I,6,0)),"",VLOOKUP($E44,表C_RAW!$C:$I,6,0)/100) -> -0.4209
D45: 2 | E45: =VLOOKUP($C$44&D45,表A_RAW!B:I,2,0) -> 2712 遠雄來 | G45: =IF(ISERROR(VLOOKUP($E45,表A_RAW!$C:$I,4,0)),"",VLOOKUP($E45,表A_RAW!$C:$I,4,0)) -> 30500 | H45: =IF(ISERROR(VLOOKUP($E45,表B_RAW!$C:$I,5,0)),"",VLOOKUP($E45,表B_RAW!$C:$I,5,0)) -> 52192 | I45: =IF(ISERROR(VLOOKUP($E45,表B_RAW!$C:$I,6,0)),"",VLOOKUP($E45,表B_RAW!$C:$I,6,0)/100) -> -0.4156 | J45: =IF(ISERROR(VLOOKUP($E45,表A_RAW!$C:$I,5,0)),"",VLOOKUP($E45,表A_RAW!$C:$I,5,0)) -> 57345 | K45: =IF(ISERROR(VLOOKUP($E45,表A_RAW!$C:$I,7,0)),"",VLOOKUP($E45,表A_RAW!$C:$I,7,0)) -> -0.4681314849 | L45: =IF(ISERROR(VLOOKUP($E45,表C_RAW!$C:$I,4,0)),"",VLOOKUP($E45,表C_RAW!$C:$I,4,0)) -> 82692 | M45: =IF(ISERROR(VLOOKUP($E45,表C_RAW!$C:$I,5,0)),"",VLOOKUP($E45,表C_RAW!$C:$I,5,0)) -> 93795 | N45: =IF(ISERROR(VLOOKUP($E45,表C_RAW!$C:$I,6,0)),"",VLOOKUP($E45,表C_RAW!$C:$I,6,0)/100) -> -0.1184
D46: 3 | E46: =VLOOKUP($C$44&D46,表A_RAW!B:I,2,0) -> 2734 易飛網 | G46: =IF(ISERROR(VLOOKUP($E46,表A_RAW!$C:$I,4,0)),"",VLOOKUP($E46,表A_RAW!$C:$I,4,0)) -> 133028 | H46: =IF(ISERROR(VLOOKUP($E46,表B_RAW!$C:$I,5,0)),"",VLOOKUP($E46,表B_RAW!$C:$I,5,0)) -> 139526 | I46: =IF(ISERROR(VLOOKUP($E46,表B_RAW!$C:$I,6,0)),"",VLOOKUP($E46,表B_RAW!$C:$I,6,0)/100) -> -0.0466 | J46: =IF(ISERROR(VLOOKUP($E46,表A_RAW!$C:$I,5,0)),"",VLOOKUP($E46,表A_RAW!$C:$I,5,0)) -> 237825 | K46: =IF(ISERROR(VLOOKUP($E46,表A_RAW!$C:$I,7,0)),"",VLOOKUP($E46,表A_RAW!$C:$I,7,0)) -> -0.440647535 | L46: =IF(ISERROR(VLOOKUP($E46,表C_RAW!$C:$I,4,0)),"",VLOOKUP($E46,表C_RAW!$C:$I,4,0)) -> 272554 | M46: =IF(ISERROR(VLOOKUP($E46,表C_RAW!$C:$I,5,0)),"",VLOOKUP($E46,表C_RAW!$C:$I,5,0)) -> 448885 | N46: =IF(ISERROR(VLOOKUP($E46,表C_RAW!$C:$I,6,0)),"",VLOOKUP($E46,表C_RAW!$C:$I,6,0)/100) -> -0.3928
C47: =VLOOKUP(B44,表A_RAW!O:T,6,0) -> -6.129733563 | D47: 4 | E47: =VLOOKUP($C$44&D47,表A_RAW!B:I,2,0) -> 2722 夏都 | G47: =IF(ISERROR(VLOOKUP($E47,表A_RAW!$C:$I,4,0)),"",VLOOKUP($E47,表A_RAW!$C:$I,4,0)) -> 37805 | H47: =IF(ISERROR(VLOOKUP($E47,表B_RAW!$C:$I,5,0)),"",VLOOKUP($E47,表B_RAW!$C:$I,5,0)) -> 55465 | I47: =IF(ISERROR(VLOOKUP($E47,表B_RAW!$C:$I,6,0)),"",VLOOKUP($E47,表B_RAW!$C:$I,6,0)/100) -> -0.3184 | J47: =IF(ISERROR(VLOOKUP($E47,表A_RAW!$C:$I,5,0)),"",VLOOKUP($E47,表A_RAW!$C:$I,5,0)) -> 65334 | K47: =IF(ISERROR(VLOOKUP($E47,表A_RAW!$C:$I,7,0)),"",VLOOKUP($E47,表A_RAW!$C:$I,7,0)) -> -0.4213579453 | L47: =IF(ISERROR(VLOOKUP($E47,表C_RAW!$C:$I,4,0)),"",VLOOKUP($E47,表C_RAW!$C:$I,4,0)) -> 93270 | M47: =IF(ISERROR(VLOOKUP($E47,表C_RAW!$C:$I,5,0)),"",VLOOKUP($E47,表C_RAW!$C:$I,5,0)) -> 102529 | N47: =IF(ISERROR(VLOOKUP($E47,表C_RAW!$C:$I,6,0)),"",VLOOKUP($E47,表C_RAW!$C:$I,6,0)/100) -> -0.0903
D48: 5 | E48: =VLOOKUP($C$44&D48,表A_RAW!B:I,2,0) -> 5706 鳳凰 | G48: =IF(ISERROR(VLOOKUP($E48,表A_RAW!$C:$I,4,0)),"",VLOOKUP($E48,表A_RAW!$C:$I,4,0)) -> 200078 | H48: =IF(ISERROR(VLOOKUP($E48,表B_RAW!$C:$I,5,0)),"",VLOOKUP($E48,表B_RAW!$C:$I,5,0)) -> 259090 | I48: =IF(ISERROR(VLOOKUP($E48,表B_RAW!$C:$I,6,0)),"",VLOOKUP($E48,表B_RAW!$C:$I,6,0)/100) -> -0.2278 | J48: =IF(ISERROR(VLOOKUP($E48,表A_RAW!$C:$I,5,0)),"",VLOOKUP($E48,表A_RAW!$C:$I,5,0)) -> 314084 | K48: =IF(ISERROR(VLOOKUP($E48,表A_RAW!$C:$I,7,0)),"",VLOOKUP($E48,表A_RAW!$C:$I,7,0)) -> -0.3629793304 | L48: =IF(ISERROR(VLOOKUP($E48,表C_RAW!$C:$I,4,0)),"",VLOOKUP($E48,表C_RAW!$C:$I,4,0)) -> 459168 | M48: =IF(ISERROR(VLOOKUP($E48,表C_RAW!$C:$I,5,0)),"",VLOOKUP($E48,表C_RAW!$C:$I,5,0)) -> 417847 | N48: =IF(ISERROR(VLOOKUP($E48,表C_RAW!$C:$I,6,0)),"",VLOOKUP($E48,表C_RAW!$C:$I,6,0)/100) -> 0.0989
B49: 4 | C49: =VLOOKUP(B49,表A_RAW!O:T,2,0) -> 油電燃氣業 | D49: 1 | E49: =VLOOKUP($C$49&D49,表A_RAW!B:I,2,0) -> 9931 欣高 | G49: =IF(ISERROR(VLOOKUP($E49,表A_RAW!$C:$I,4,0)),"",VLOOKUP($E49,表A_RAW!$C:$I,4,0)) -> 135409 | H49: =IF(ISERROR(VLOOKUP($E49,表B_RAW!$C:$I,5,0)),"",VLOOKUP($E49,表B_RAW!$C:$I,5,0)) -> 121586 | I49: =IF(ISERROR(VLOOKUP($E49,表B_RAW!$C:$I,6,0)),"",VLOOKUP($E49,表B_RAW!$C:$I,6,0)/100) -> 0.1137 | J49: =IF(ISERROR(VLOOKUP($E49,表A_RAW!$C:$I,5,0)),"",VLOOKUP($E49,表A_RAW!$C:$I,5,0)) -> 297958 | K49: =IF(ISERROR(VLOOKUP($E49,表A_RAW!$C:$I,7,0)),"",VLOOKUP($E49,表A_RAW!$C:$I,7,0)) -> -0.5455433316 | L49: =IF(ISERROR(VLOOKUP($E49,表C_RAW!$C:$I,4,0)),"",VLOOKUP($E49,表C_RAW!$C:$I,4,0)) -> 256995 | M49: =IF(ISERROR(VLOOKUP($E49,表C_RAW!$C:$I,5,0)),"",VLOOKUP($E49,表C_RAW!$C:$I,5,0)) -> 409420 | N49: =IF(ISERROR(VLOOKUP($E49,表C_RAW!$C:$I,6,0)),"",VLOOKUP($E49,表C_RAW!$C:$I,6,0)/100) -> -0.3723
D50: 2 | E50: =VLOOKUP($C$49&D50,表A_RAW!B:I,2,0) -> 2616 山隆 | G50: =IF(ISERROR(VLOOKUP($E50,表A_RAW!$C:$I,4,0)),"",VLOOKUP($E50,表A_RAW!$C:$I,4,0)) -> 688845 | H50: =IF(ISERROR(VLOOKUP($E50,表B_RAW!$C:$I,5,0)),"",VLOOKUP($E50,表B_RAW!$C:$I,5,0)) -> 629869 | I50: =IF(ISERROR(VLOOKUP($E50,表B_RAW!$C:$I,6,0)),"",VLOOKUP($E50,表B_RAW!$C:$I,6,0)/100) -> 0.0936 | J50: =IF(ISERROR(VLOOKUP($E50,表A_RAW!$C:$I,5,0)),"",VLOOKUP($E50,表A_RAW!$C:$I,5,0)) -> 1000782 | K50: =IF(ISERROR(VLOOKUP($E50,表A_RAW!$C:$I,7,0)),"",VLOOKUP($E50,表A_RAW!$C:$I,7,0)) -> -0.3116932559 | L50: =IF(ISERROR(VLOOKUP($E50,表C_RAW!$C:$I,4,0)),"",VLOOKUP($E50,表C_RAW!$C:$I,4,0)) -> 1318714 | M50: =IF(ISERROR(VLOOKUP($E50,表C_RAW!$C:$I,5,0)),"",VLOOKUP($E50,表C_RAW!$C:$I,5,0)) -> 2336284 | N50: =IF(ISERROR(VLOOKUP($E50,表C_RAW!$C:$I,6,0)),"",VLOOKUP($E50,表C_RAW!$C:$I,6,0)/100) -> -0.4356
D51: 3 | E51: =VLOOKUP($C$49&D51,表A_RAW!B:I,2,0) -> 6505 台塑化 | G51: =IF(ISERROR(VLOOKUP($E51,表A_RAW!$C:$I,4,0)),"",VLOOKUP($E51,表A_RAW!$C:$I,4,0)) -> 54985671 | H51: =IF(ISERROR(VLOOKUP($E51,表B_RAW!$C:$I,5,0)),"",VLOOKUP($E51,表B_RAW!$C:$I,5,0)) -> 59540547 | I51: =IF(ISERROR(VLOOKUP($E51,表B_RAW!$C:$I,6,0)),"",VLOOKUP($E51,表B_RAW!$C:$I,6,0)/100) -> -0.0765 | J51: =IF(ISERROR(VLOOKUP($E51,表A_RAW!$C:$I,5,0)),"",VLOOKUP($E51,表A_RAW!$C:$I,5,0)) -> 57110224 | K51: =IF(ISERROR(VLOOKUP($E51,表A_RAW!$C:$I,7,0)),"",VLOOKUP($E51,表A_RAW!$C:$I,7,0)) -> -0.0372009222 | L51: =IF(ISERROR(VLOOKUP($E51,表C_RAW!$C:$I,4,0)),"",VLOOKUP($E51,表C_RAW!$C:$I,4,0)) -> 114526218 | M51: =IF(ISERROR(VLOOKUP($E51,表C_RAW!$C:$I,5,0)),"",VLOOKUP($E51,表C_RAW!$C:$I,5,0)) -> 113561642 | N51: =IF(ISERROR(VLOOKUP($E51,表C_RAW!$C:$I,6,0)),"",VLOOKUP($E51,表C_RAW!$C:$I,6,0)/100) -> 0.0085
C52: =VLOOKUP(B49,表A_RAW!O:T,6,0) -> -3.252827839 | D52: 4 | E52: =VLOOKUP($C$49&D52,表A_RAW!B:I,2,0) -> 9937 全國 | G52: =IF(ISERROR(VLOOKUP($E52,表A_RAW!$C:$I,4,0)),"",VLOOKUP($E52,表A_RAW!$C:$I,4,0)) -> 1796896 | H52: =IF(ISERROR(VLOOKUP($E52,表B_RAW!$C:$I,5,0)),"",VLOOKUP($E52,表B_RAW!$C:$I,5,0)) -> 1971557 | I52: =IF(ISERROR(VLOOKUP($E52,表B_RAW!$C:$I,6,0)),"",VLOOKUP($E52,表B_RAW!$C:$I,6,0)/100) -> -0.0886 | J52: =IF(ISERROR(VLOOKUP($E52,表A_RAW!$C:$I,5,0)),"",VLOOKUP($E52,表A_RAW!$C:$I,5,0)) -> 1774034 | K52: =IF(ISERROR(VLOOKUP($E52,表A_RAW!$C:$I,7,0)),"",VLOOKUP($E52,表A_RAW!$C:$I,7,0)) -> 0.01288701344 | L52: =IF(ISERROR(VLOOKUP($E52,表C_RAW!$C:$I,4,0)),"",VLOOKUP($E52,表C_RAW!$C:$I,4,0)) -> 3768453 | M52: =IF(ISERROR(VLOOKUP($E52,表C_RAW!$C:$I,5,0)),"",VLOOKUP($E52,表C_RAW!$C:$I,5,0)) -> 3825791 | N52: =IF(ISERROR(VLOOKUP($E52,表C_RAW!$C:$I,6,0)),"",VLOOKUP($E52,表C_RAW!$C:$I,6,0)/100) -> -0.015
D53: 5 | E53: =VLOOKUP($C$49&D53,表A_RAW!B:I,2,0) -> 8926 台汽電 | G53: =IF(ISERROR(VLOOKUP($E53,表A_RAW!$C:$I,4,0)),"",VLOOKUP($E53,表A_RAW!$C:$I,4,0)) -> 734149 | H53: =IF(ISERROR(VLOOKUP($E53,表B_RAW!$C:$I,5,0)),"",VLOOKUP($E53,表B_RAW!$C:$I,5,0)) -> 470306 | I53: =IF(ISERROR(VLOOKUP($E53,表B_RAW!$C:$I,6,0)),"",VLOOKUP($E53,表B_RAW!$C:$I,6,0)/100) -> 0.561 | J53: =IF(ISERROR(VLOOKUP($E53,表A_RAW!$C:$I,5,0)),"",VLOOKUP($E53,表A_RAW!$C:$I,5,0)) -> 703958 | K53: =IF(ISERROR(VLOOKUP($E53,表A_RAW!$C:$I,7,0)),"",VLOOKUP($E53,表A_RAW!$C:$I,7,0)) -> 0.04288750181 | L53: =IF(ISERROR(VLOOKUP($E53,表C_RAW!$C:$I,4,0)),"",VLOOKUP($E53,表C_RAW!$C:$I,4,0)) -> 1204455 | M53: =IF(ISERROR(VLOOKUP($E53,表C_RAW!$C:$I,5,0)),"",VLOOKUP($E53,表C_RAW!$C:$I,5,0)) -> 1263506 | N53: =IF(ISERROR(VLOOKUP($E53,表C_RAW!$C:$I,6,0)),"",VLOOKUP($E53,表C_RAW!$C:$I,6,0)/100) -> -0.0467
B54: 5 | C54: =VLOOKUP(B54,表A_RAW!O:T,2,0) -> 農業科技 | D54: 1 | E54: =VLOOKUP($C$54&D54,表A_RAW!B:I,2,0) -> 6578 達邦蛋白 | G54: =IF(ISERROR(VLOOKUP($E54,表A_RAW!$C:$I,4,0)),"",VLOOKUP($E54,表A_RAW!$C:$I,4,0)) -> 15950 | H54: =IF(ISERROR(VLOOKUP($E54,表B_RAW!$C:$I,5,0)),"",VLOOKUP($E54,表B_RAW!$C:$I,5,0)) -> 25248 | I54: =IF(ISERROR(VLOOKUP($E54,表B_RAW!$C:$I,6,0)),"",VLOOKUP($E54,表B_RAW!$C:$I,6,0)/100) -> -0.3683 | J54: =IF(ISERROR(VLOOKUP($E54,表A_RAW!$C:$I,5,0)),"",VLOOKUP($E54,表A_RAW!$C:$I,5,0)) -> 26902 | K54: =IF(ISERROR(VLOOKUP($E54,表A_RAW!$C:$I,7,0)),"",VLOOKUP($E54,表A_RAW!$C:$I,7,0)) -> -0.4071072783 | L54: =IF(ISERROR(VLOOKUP($E54,表C_RAW!$C:$I,4,0)),"",VLOOKUP($E54,表C_RAW!$C:$I,4,0)) -> 41198 | M54: =IF(ISERROR(VLOOKUP($E54,表C_RAW!$C:$I,5,0)),"",VLOOKUP($E54,表C_RAW!$C:$I,5,0)) -> 66772 | N54: =IF(ISERROR(VLOOKUP($E54,表C_RAW!$C:$I,6,0)),"",VLOOKUP($E54,表C_RAW!$C:$I,6,0)/100) -> -0.383
D55: 2 | E55: =VLOOKUP($C$54&D55,表A_RAW!B:I,2,0) -> 1240 茂生農經 | G55: =IF(ISERROR(VLOOKUP($E55,表A_RAW!$C:$I,4,0)),"",VLOOKUP($E55,表A_RAW!$C:$I,4,0)) -> 202227 | H55: =IF(ISERROR(VLOOKUP($E55,表B_RAW!$C:$I,5,0)),"",VLOOKUP($E55,表B_RAW!$C:$I,5,0)) -> 231435 | I55: =IF(ISERROR(VLOOKUP($E55,表B_RAW!$C:$I,6,0)),"",VLOOKUP($E55,表B_RAW!$C:$I,6,0)/100) -> -0.1262 | J55: =IF(ISERROR(VLOOKUP($E55,表A_RAW!$C:$I,5,0)),"",VLOOKUP($E55,表A_RAW!$C:$I,5,0)) -> 210084 | K55: =IF(ISERROR(VLOOKUP($E55,表A_RAW!$C:$I,7,0)),"",VLOOKUP($E55,表A_RAW!$C:$I,7,0)) -> -0.03739932598 | L55: =IF(ISERROR(VLOOKUP($E55,表C_RAW!$C:$I,4,0)),"",VLOOKUP($E55,表C_RAW!$C:$I,4,0)) -> 433662 | M55: =IF(ISERROR(VLOOKUP($E55,表C_RAW!$C:$I,5,0)),"",VLOOKUP($E55,表C_RAW!$C:$I,5,0)) -> 485078 | N55: =IF(ISERROR(VLOOKUP($E55,表C_RAW!$C:$I,6,0)),"",VLOOKUP($E55,表C_RAW!$C:$I,6,0)/100) -> -0.106
D56: 3 | E56: =VLOOKUP($C$54&D56,表A_RAW!B:I,2,0) -> 6508 惠光 | G56: =IF(ISERROR(VLOOKUP($E56,表A_RAW!$C:$I,4,0)),"",VLOOKUP($E56,表A_RAW!$C:$I,4,0)) -> 117273 | H56: =IF(ISERROR(VLOOKUP($E56,表B_RAW!$C:$I,5,0)),"",VLOOKUP($E56,表B_RAW!$C:$I,5,0)) -> 117174 | I56: =IF(ISERROR(VLOOKUP($E56,表B_RAW!$C:$I,6,0)),"",VLOOKUP($E56,表B_RAW!$C:$I,6,0)/100) -> 0.0008 | J56: =IF(ISERROR(VLOOKUP($E56,表A_RAW!$C:$I,5,0)),"",VLOOKUP($E56,表A_RAW!$C:$I,5,0)) -> 114259 | K56: =IF(ISERROR(VLOOKUP($E56,表A_RAW!$C:$I,7,0)),"",VLOOKUP($E56,表A_RAW!$C:$I,7,0)) -> 0.02637866601 | L56: =IF(ISERROR(VLOOKUP($E56,表C_RAW!$C:$I,4,0)),"",VLOOKUP($E56,表C_RAW!$C:$I,4,0)) -> 234446 | M56: =IF(ISERROR(VLOOKUP($E56,表C_RAW!$C:$I,5,0)),"",VLOOKUP($E56,表C_RAW!$C:$I,5,0)) -> 240149 | N56: =IF(ISERROR(VLOOKUP($E56,表C_RAW!$C:$I,6,0)),"",VLOOKUP($E56,表C_RAW!$C:$I,6,0)/100) -> -0.0237
C57: =VLOOKUP(B54,表A_RAW!O:T,6,0) -> -0.2554313798 | D57: 4 | E57: =VLOOKUP($C$54&D57,表A_RAW!B:I,2,0) -> 4171 瑞基 | G57: =IF(ISERROR(VLOOKUP($E57,表A_RAW!$C:$I,4,0)),"",VLOOKUP($E57,表A_RAW!$C:$I,4,0)) -> 24586 | H57: =IF(ISERROR(VLOOKUP($E57,表B_RAW!$C:$I,5,0)),"",VLOOKUP($E57,表B_RAW!$C:$I,5,0)) -> 9257 | I57: =IF(ISERROR(VLOOKUP($E57,表B_RAW!$C:$I,6,0)),"",VLOOKUP($E57,表B_RAW!$C:$I,6,0)/100) -> 1.6559 | J57: =IF(ISERROR(VLOOKUP($E57,表A_RAW!$C:$I,5,0)),"",VLOOKUP($E57,表A_RAW!$C:$I,5,0)) -> 9713 | K57: =IF(ISERROR(VLOOKUP($E57,表A_RAW!$C:$I,7,0)),"",VLOOKUP($E57,表A_RAW!$C:$I,7,0)) -> 1.531246783 | L57: =IF(ISERROR(VLOOKUP($E57,表C_RAW!$C:$I,4,0)),"",VLOOKUP($E57,表C_RAW!$C:$I,4,0)) -> 33843 | M57: =IF(ISERROR(VLOOKUP($E57,表C_RAW!$C:$I,5,0)),"",VLOOKUP($E57,表C_RAW!$C:$I,5,0)) -> 34649 | N57: =IF(ISERROR(VLOOKUP($E57,表C_RAW!$C:$I,6,0)),"",VLOOKUP($E57,表C_RAW!$C:$I,6,0)/100) -> -0.0233
D58: 5 | E58: =IFERROR(VLOOKUP($C$54&D58,表A_RAW!B:I,2,0),"") ->  | G58: =IF(ISERROR(VLOOKUP($E58,表A_RAW!$C:$I,4,0)),"",VLOOKUP($E58,表A_RAW!$C:$I,4,0)) ->  | H58: =IF(ISERROR(VLOOKUP($E58,表B_RAW!$C:$I,5,0)),"",VLOOKUP($E58,表B_RAW!$C:$I,5,0)) ->  | I58: =IF(ISERROR(VLOOKUP($E58,表B_RAW!$C:$I,6,0)),"",VLOOKUP($E58,表B_RAW!$C:$I,6,0)/100) ->  | J58: =IF(ISERROR(VLOOKUP($E58,表A_RAW!$C:$I,5,0)),"",VLOOKUP($E58,表A_RAW!$C:$I,5,0)) ->  | K58: =IF(ISERROR(VLOOKUP($E58,表A_RAW!$C:$I,7,0)),"",VLOOKUP($E58,表A_RAW!$C:$I,7,0)) ->  | L58: =IF(ISERROR(VLOOKUP($E58,表C_RAW!$C:$I,4,0)),"",VLOOKUP($E58,表C_RAW!$C:$I,4,0)) ->  | M58: =IF(ISERROR(VLOOKUP($E58,表C_RAW!$C:$I,5,0)),"",VLOOKUP($E58,表C_RAW!$C:$I,5,0)) ->  | N58: =IF(ISERROR(VLOOKUP($E58,表C_RAW!$C:$I,6,0)),"",VLOOKUP($E58,表C_RAW!$C:$I,6,0)/100) -> 

Sheet YOY(累計)
B1: =YEAR(表A_RAW!F2)&"年"&MONTH(表A_RAW!F2)&"月" -> 2025年2月
C2: 成長及衰退前五名之產業YOY%(累計)
B4: 成長前五名之產業 YOY(累計)% | D4: 該產業成長前五名之公司 YOY(累計)% | G4: 單月營收金額(千元) | H4: 本月與上月相較 | J4: 本月與去年同期相較 | L4: 累計營收金額(千元) | M4: 累計營收與去年同期相較
B5: 成長 排名 | C5: 產業 | D5: 排名 | E5: 公司代號&簡稱 | H5: 上月營收金額(千元) | I5: 較上月變動比率(%) | J5: 去年同期金額(千元) | K5: 較去年同期變動比率(%) | M5: 去年累計營收金額(千元) | N5: 較去年同期變動比率(%)
B6: 1 | C6: =VLOOKUP(B6,表C_RAW!N:P,3,0) -> 綠能環保 | D6: 1 | E6: =IFERROR(VLOOKUP($C$6&D6,表C_RAW!A:D,3,0),"") -> 6692 進能服 | G6: =IF(ISERROR(VLOOKUP($E6,表B_RAW!$C:$I,4,0)),"",VLOOKUP($E6,表B_RAW!$C:$I,4,0)) -> 344327 | H6: =IF(ISERROR(VLOOKUP($E6,表B_RAW!$C:$I,5,0)),"",VLOOKUP($E6,表B_RAW!$C:$I,5,0)) -> 198712 | I6: =IF(ISERROR(VLOOKUP($E6,表B_RAW!$C:$I,6,0)),"",VLOOKUP($E6,表B_RAW!$C:$I,6,0)/100) -> 0.7328 | J6: =IF(ISERROR(VLOOKUP($E6,表A_RAW!$C:$I,5,0)),"",VLOOKUP($E6,表A_RAW!$C:$I,5,0)) -> 81727 | K6: =IF(ISERROR(VLOOKUP($E6,表A_RAW!$C:$I,7,0)),"",VLOOKUP($E6,表A_RAW!$C:$I,7,0)) -> 3.213136418 | L6: =IF(ISERROR(VLOOKUP($E6,表C_RAW!$C:$I,4,0)),"",VLOOKUP($E6,表C_RAW!$C:$I,4,0)) -> 543039 | M6: =IF(ISERROR(VLOOKUP($E6,表C_RAW!$C:$I,5,0)),"",VLOOKUP($E6,表C_RAW!$C:$I,5,0)) -> 178044 | N6: =IF(ISERROR(VLOOKUP($E6,表C_RAW!$C:$I,6,0)),"",VLOOKUP($E6,表C_RAW!$C:$I,6,0)/100) -> 2.05
D7: 2 | E7: =IFERROR(VLOOKUP($C$6&D7,表C_RAW!A:D,3,0),"") -> 6806 森崴能源 | G7: =IF(ISERROR(VLOOKUP($E7,表B_RAW!$C:$I,4,0)),"",VLOOKUP($E7,表B_RAW!$C:$I,4,0)) -> 1694170 | H7: =IF(ISERROR(VLOOKUP($E7,表B_RAW!$C:$I,5,0)),"",VLOOKUP($E7,表B_RAW!$C:$I,5,0)) -> 2786957 | I7: =IF(ISERROR(VLOOKUP($E7,表B_RAW!$C:$I,6,0)),"",VLOOKUP($E7,表B_RAW!$C:$I,6,0)/100) -> -0.3921 | J7: =IF(ISERROR(VLOOKUP($E7,表A_RAW!$C:$I,5,0)),"",VLOOKUP($E7,表A_RAW!$C:$I,5,0)) -> 593994 | K7: =IF(ISERROR(VLOOKUP($E7,表A_RAW!$C:$I,7,0)),"",VLOOKUP($E7,表A_RAW!$C:$I,7,0)) -> 1.852166857 | L7: =IF(ISERROR(VLOOKUP($E7,表C_RAW!$C:$I,4,0)),"",VLOOKUP($E7,表C_RAW!$C:$I,4,0)) -> 4481127 | M7: =IF(ISERROR(VLOOKUP($E7,表C_RAW!$C:$I,5,0)),"",VLOOKUP($E7,表C_RAW!$C:$I,5,0)) -> 1550363 | N7: =IF(ISERROR(VLOOKUP($E7,表C_RAW!$C:$I,6,0)),"",VLOOKUP($E7,表C_RAW!$C:$I,6,0)/100) -> 1.8904
D8: 3 | E8: =IFERROR(VLOOKUP($C$6&D8,表C_RAW!A:D,3,0),"") -> 6873 泓德能源 | G8: =IF(ISERROR(VLOOKUP($E8,表B_RAW!$C:$I,4,0)),"",VLOOKUP($E8,表B_RAW!$C:$I,4,0)) -> 317217 | H8: =IF(ISERROR(VLOOKUP($E8,表B_RAW!$C:$I,5,0)),"",VLOOKUP($E8,表B_RAW!$C:$I,5,0)) -> 436896 | I8: =IF(ISERROR(VLOOKUP($E8,表B_RAW!$C:$I,6,0)),"",VLOOKUP($E8,表B_RAW!$C:$I,6,0)/100) -> -0.2739 | J8: =IF(ISERROR(VLOOKUP($E8,表A_RAW!$C:$I,5,0)),"",VLOOKUP($E8,表A_RAW!$C:$I,5,0)) -> 204746 | K8: =IF(ISERROR(VLOOKUP($E8,表A_RAW!$C:$I,7,0)),"",VLOOKUP($E8,表A_RAW!$C:$I,7,0)) -> 0.5493196448 | L8: =IF(ISERROR(VLOOKUP($E8,表C_RAW!$C:$I,4,0)),"",VLOOKUP($E8,表C_RAW!$C:$I,4,0)) -> 754113 | M8: =IF(ISERROR(VLOOKUP($E8,表C_RAW!$C:$I,5,0)),"",VLOOKUP($E8,表C_RAW!$C:$I,5,0)) -> 366514 | N8: =IF(ISERROR(VLOOKUP($E8,表C_RAW!$C:$I,6,0)),"",VLOOKUP($E8,表C_RAW!$C:$I,6,0)/100) -> 1.0575
C9: =VLOOKUP(B6,表C_RAW!N:T,7,0) -> 38.86 | D9: 4 | E9: =IFERROR(VLOOKUP($C$6&D9,表C_RAW!A:D,3,0),"") -> 6887 寶綠特-KY | G9: =IF(ISERROR(VLOOKUP($E9,表B_RAW!$C:$I,4,0)),"",VLOOKUP($E9,表B_RAW!$C:$I,4,0)) -> 347776 | H9: =IF(ISERROR(VLOOKUP($E9,表B_RAW!$C:$I,5,0)),"",VLOOKUP($E9,表B_RAW!$C:$I,5,0)) -> 538918 | I9: =IF(ISERROR(VLOOKUP($E9,表B_RAW!$C:$I,6,0)),"",VLOOKUP($E9,表B_RAW!$C:$I,6,0)/100) -> -0.3547 | J9: =IF(ISERROR(VLOOKUP($E9,表A_RAW!$C:$I,5,0)),"",VLOOKUP($E9,表A_RAW!$C:$I,5,0)) -> 194425 | K9: =IF(ISERROR(VLOOKUP($E9,表A_RAW!$C:$I,7,0)),"",VLOOKUP($E9,表A_RAW!$C:$I,7,0)) -> 0.7887411598 | L9: =IF(ISERROR(VLOOKUP($E9,表C_RAW!$C:$I,4,0)),"",VLOOKUP($E9,表C_RAW!$C:$I,4,0)) -> 886694 | M9: =IF(ISERROR(VLOOKUP($E9,表C_RAW!$C:$I,5,0)),"",VLOOKUP($E9,表C_RAW!$C:$I,5,0)) -> 521054 | N9: =IF(ISERROR(VLOOKUP($E9,表C_RAW!$C:$I,6,0)),"",VLOOKUP($E9,表C_RAW!$C:$I,6,0)/100) -> 0.7017
D10: 5 | E10: =IFERROR(VLOOKUP($C$6&D10,表C_RAW!A:D,3,0),"") -> 5205 中茂 | G10: =IF(ISERROR(VLOOKUP($E10,表B_RAW!$C:$I,4,0)),"",VLOOKUP($E10,表B_RAW!$C:$I,4,0)) -> 1511 | H10: =IF(ISERROR(VLOOKUP($E10,表B_RAW!$C:$I,5,0)),"",VLOOKUP($E10,表B_RAW!$C:$I,5,0)) -> 1665 | I10: =IF(ISERROR(VLOOKUP($E10,表B_RAW!$C:$I,6,0)),"",VLOOKUP($E10,表B_RAW!$C:$I,6,0)/100) -> -0.0925 | J10: =IF(ISERROR(VLOOKUP($E10,表A_RAW!$C:$I,5,0)),"",VLOOKUP($E10,表A_RAW!$C:$I,5,0)) -> 752 | K10: =IF(ISERROR(VLOOKUP($E10,表A_RAW!$C:$I,7,0)),"",VLOOKUP($E10,表A_RAW!$C:$I,7,0)) -> 1.009308511 | L10: =IF(ISERROR(VLOOKUP($E10,表C_RAW!$C:$I,4,0)),"",VLOOKUP($E10,表C_RAW!$C:$I,4,0)) -> 3176 | M10: =IF(ISERROR(VLOOKUP($E10,表C_RAW!$C:$I,5,0)),"",VLOOKUP($E10,表C_RAW!$C:$I,5,0)) -> 1872 | N10: =IF(ISERROR(VLOOKUP($E10,表C_RAW!$C:$I,6,0)),"",VLOOKUP($E10,表C_RAW!$C:$I,6,0)/100) -> 0.6966
B11: 2 | C11: =VLOOKUP(B11,表C_RAW!N:P,3,0) -> 水泥工業 | D11: 1 | E11: =VLOOKUP($C$11&D11,表C_RAW!A:D,3,0) -> 1101 台泥 | G11: =IF(ISERROR(VLOOKUP($E11,表B_RAW!$C:$I,4,0)),"",VLOOKUP($E11,表B_RAW!$C:$I,4,0)) -> 9123490 | H11: =IF(ISERROR(VLOOKUP($E11,表B_RAW!$C:$I,5,0)),"",VLOOKUP($E11,表B_RAW!$C:$I,5,0)) -> 12213350 | I11: =IF(ISERROR(VLOOKUP($E11,表B_RAW!$C:$I,6,0)),"",VLOOKUP($E11,表B_RAW!$C:$I,6,0)/100) -> -0.253 | J11: =IF(ISERROR(VLOOKUP($E11,表A_RAW!$C:$I,5,0)),"",VLOOKUP($E11,表A_RAW!$C:$I,5,0)) -> 4798581 | K11: =IF(ISERROR(VLOOKUP($E11,表A_RAW!$C:$I,7,0)),"",VLOOKUP($E11,表A_RAW!$C:$I,7,0)) -> 0.9012891519 | L11: =IF(ISERROR(VLOOKUP($E11,表C_RAW!$C:$I,4,0)),"",VLOOKUP($E11,表C_RAW!$C:$I,4,0)) -> 21336840 | M11: =IF(ISERROR(VLOOKUP($E11,表C_RAW!$C:$I,5,0)),"",VLOOKUP($E11,表C_RAW!$C:$I,5,0)) -> 12036511 | N11: =IF(ISERROR(VLOOKUP($E11,表C_RAW!$C:$I,6,0)),"",VLOOKUP($E11,表C_RAW!$C:$I,6,0)/100) -> 0.7727
D12: 2 | E12: =VLOOKUP($C$11&D12,表C_RAW!A:D,3,0) -> 1110 東泥 | G12: =IF(ISERROR(VLOOKUP($E12,表B_RAW!$C:$I,4,0)),"",VLOOKUP($E12,表B_RAW!$C:$I,4,0)) -> 228781 | H12: =IF(ISERROR(VLOOKUP($E12,表B_RAW!$C:$I,5,0)),"",VLOOKUP($E12,表B_RAW!$C:$I,5,0)) -> 236789 | I12: =IF(ISERROR(VLOOKUP($E12,表B_RAW!$C:$I,6,0)),"",VLOOKUP($E12,表B_RAW!$C:$I,6,0)/100) -> -0.0338 | J12: =IF(ISERROR(VLOOKUP($E12,表A_RAW!$C:$I,5,0)),"",VLOOKUP($E12,表A_RAW!$C:$I,5,0)) -> 175185 | K12: =IF(ISERROR(VLOOKUP($E12,表A_RAW!$C:$I,7,0)),"",VLOOKUP($E12,表A_RAW!$C:$I,7,0)) -> 0.3059394355 | L12: =IF(ISERROR(VLOOKUP($E12,表C_RAW!$C:$I,4,0)),"",VLOOKUP($E12,表C_RAW!$C:$I,4,0)) -> 465570 | M12: =IF(ISERROR(VLOOKUP($E12,表C_RAW!$C:$I,5,0)),"",VLOOKUP($E12,表C_RAW!$C:$I,5,0)) -> 355724 | N12: =IF(ISERROR(VLOOKUP($E12,表C_RAW!$C:$I,6,0)),"",VLOOKUP($E12,表C_RAW!$C:$I,6,0)/100) -> 0.3088
D13: 3 | E13: =VLOOKUP($C$11&D13,表C_RAW!A:D,3,0) -> 1103 嘉泥 | G13: =IF(ISERROR(VLOOKUP($E13,表B_RAW!$C:$I,4,0)),"",VLOOKUP($E13,表B_RAW!$C:$I,4,0)) -> 218169 | H13: =IF(ISERROR(VLOOKUP($E13,表B_RAW!$C:$I,5,0)),"",VLOOKUP($E13,表B_RAW!$C:$I,5,0)) -> 268003 | I13: =IF(ISERROR(VLOOKUP($E13,表B_RAW!$C:$I,6,0)),"",VLOOKUP($E13,表B_RAW!$C:$I,6,0)/100) -> -0.1859 | J13: =IF(ISERROR(VLOOKUP($E13,表A_RAW!$C:$I,5,0)),"",VLOOKUP($E13,表A_RAW!$C:$I,5,0)) -> 201295 | K13: =IF(ISERROR(VLOOKUP($E13,表A_RAW!$C:$I,7,0)),"",VLOOKUP($E13,表A_RAW!$C:$I,7,0)) -> 0.08382721876 | L13: =IF(ISERROR(VLOOKUP($E13,表C_RAW!$C:$I,4,0)),"",VLOOKUP($E13,表C_RAW!$C:$I,4,0)) -> 486172 | M13: =IF(ISERROR(VLOOKUP($E13,表C_RAW!$C:$I,5,0)),"",VLOOKUP($E13,表C_RAW!$C:$I,5,0)) -> 444255 | N13: =IF(ISERROR(VLOOKUP($E13,表C_RAW!$C:$I,6,0)),"",VLOOKUP($E13,表C_RAW!$C:$I,6,0)/100) -> 0.0944
C14: =VLOOKUP(B11,表C_RAW!N:T,7,0) -> 36.84 | D14: 4 | E14: =VLOOKUP($C$11&D14,表C_RAW!A:D,3,0) -> 1108 幸福 | G14: =IF(ISERROR(VLOOKUP($E14,表B_RAW!$C:$I,4,0)),"",VLOOKUP($E14,表B_RAW!$C:$I,4,0)) -> 356169 | H14: =IF(ISERROR(VLOOKUP($E14,表B_RAW!$C:$I,5,0)),"",VLOOKUP($E14,表B_RAW!$C:$I,5,0)) -> 448229 | I14: =IF(ISERROR(VLOOKUP($E14,表B_RAW!$C:$I,6,0)),"",VLOOKUP($E14,表B_RAW!$C:$I,6,0)/100) -> -0.2054 | J14: =IF(ISERROR(VLOOKUP($E14,表A_RAW!$C:$I,5,0)),"",VLOOKUP($E14,表A_RAW!$C:$I,5,0)) -> 286337 | K14: =IF(ISERROR(VLOOKUP($E14,表A_RAW!$C:$I,7,0)),"",VLOOKUP($E14,表A_RAW!$C:$I,7,0)) -> 0.2438804625 | L14: =IF(ISERROR(VLOOKUP($E14,表C_RAW!$C:$I,4,0)),"",VLOOKUP($E14,表C_RAW!$C:$I,4,0)) -> 804398 | M14: =IF(ISERROR(VLOOKUP($E14,表C_RAW!$C:$I,5,0)),"",VLOOKUP($E14,表C_RAW!$C:$I,5,0)) -> 743486 | N14: =IF(ISERROR(VLOOKUP($E14,表C_RAW!$C:$I,6,0)),"",VLOOKUP($E14,表C_RAW!$C:$I,6,0)/100) -> 0.0819
D15: 5 | E15: =VLOOKUP($C$11&D15,表C_RAW!A:D,3,0) -> 1104 環泥 | G15: =IF(ISERROR(VLOOKUP($E15,表B_RAW!$C:$I,4,0)),"",VLOOKUP($E15,表B_RAW!$C:$I,4,0)) -> 538636 | H15: =IF(ISERROR(VLOOKUP($E15,表B_RAW!$C:$I,5,0)),"",VLOOKUP($E15,表B_RAW!$C:$I,5,0)) -> 687804 | I15: =IF(ISERROR(VLOOKUP($E15,表B_RAW!$C:$I,6,0)),"",VLOOKUP($E15,表B_RAW!$C:$I,6,0)/100) -> -0.2169 | J15: =IF(ISERROR(VLOOKUP($E15,表A_RAW!$C:$I,5,0)),"",VLOOKUP($E15,表A_RAW!$C:$I,5,0)) -> 477355 | K15: =IF(ISERROR(VLOOKUP($E15,表A_RAW!$C:$I,7,0)),"",VLOOKUP($E15,表A_RAW!$C:$I,7,0)) -> 0.1283761561 | L15: =IF(ISERROR(VLOOKUP($E15,表C_RAW!$C:$I,4,0)),"",VLOOKUP($E15,表C_RAW!$C:$I,4,0)) -> 1226440 | M15: =IF(ISERROR(VLOOKUP($E15,表C_RAW!$C:$I,5,0)),"",VLOOKUP($E15,表C_RAW!$C:$I,5,0)) -> 1158116 | N15: =IF(ISERROR(VLOOKUP($E15,表C_RAW!$C:$I,6,0)),"",VLOOKUP($E15,表C_RAW!$C:$I,6,0)/100) -> 0.059
B16: 3 | C16: =VLOOKUP(B16,表C_RAW!N:P,3,0) -> 電腦及週邊 | D16: 1 | E16: =VLOOKUP($C$16&D16,表C_RAW!A:D,3,0) -> 3706 神達 | G16: =IF(ISERROR(VLOOKUP($E16,表B_RAW!$C:$I,4,0)),"",VLOOKUP($E16,表B_RAW!$C:$I,4,0)) -> 7532350 | H16: =IF(ISERROR(VLOOKUP($E16,表B_RAW!$C:$I,5,0)),"",VLOOKUP($E16,表B_RAW!$C:$I,5,0)) -> 7642076 | I16: =IF(ISERROR(VLOOKUP($E16,表B_RAW!$C:$I,6,0)),"",VLOOKUP($E16,表B_RAW!$C:$I,6,0)/100) -> -0.0144 | J16: =IF(ISERROR(VLOOKUP($E16,表A_RAW!$C:$I,5,0)),"",VLOOKUP($E16,表A_RAW!$C:$I,5,0)) -> 3358196 | K16: =IF(ISERROR(VLOOKUP($E16,表A_RAW!$C:$I,7,0)),"",VLOOKUP($E16,表A_RAW!$C:$I,7,0)) -> 1.242975097 | L16: =IF(ISERROR(VLOOKUP($E16,表C_RAW!$C:$I,4,0)),"",VLOOKUP($E16,表C_RAW!$C:$I,4,0)) -> 15174426 | M16: =IF(ISERROR(VLOOKUP($E16,表C_RAW!$C:$I,5,0)),"",VLOOKUP($E16,表C_RAW!$C:$I,5,0)) -> 6206816 | N16: =IF(ISERROR(VLOOKUP($E16,表C_RAW!$C:$I,6,0)),"",VLOOKUP($E16,表C_RAW!$C:$I,6,0)/100) -> 1.4448
D17: 2 | E17: =VLOOKUP($C$16&D17,表C_RAW!A:D,3,0) -> 8114 振樺電 | G17: =IF(ISERROR(VLOOKUP($E17,表B_RAW!$C:$I,4,0)),"",VLOOKUP($E17,表B_RAW!$C:$I,4,0)) -> 1899152 | H17: =IF(ISERROR(VLOOKUP($E17,表B_RAW!$C:$I,5,0)),"",VLOOKUP($E17,表B_RAW!$C:$I,5,0)) -> 1385335 | I17: =IF(ISERROR(VLOOKUP($E17,表B_RAW!$C:$I,6,0)),"",VLOOKUP($E17,表B_RAW!$C:$I,6,0)/100) -> 0.3709 | J17: =IF(ISERROR(VLOOKUP($E17,表A_RAW!$C:$I,5,0)),"",VLOOKUP($E17,表A_RAW!$C:$I,5,0)) -> 671473 | K17: =IF(ISERROR(VLOOKUP($E17,表A_RAW!$C:$I,7,0)),"",VLOOKUP($E17,表A_RAW!$C:$I,7,0)) -> 1.828337104 | L17: =IF(ISERROR(VLOOKUP($E17,表C_RAW!$C:$I,4,0)),"",VLOOKUP($E17,表C_RAW!$C:$I,4,0)) -> 3284487 | M17: =IF(ISERROR(VLOOKUP($E17,表C_RAW!$C:$I,5,0)),"",VLOOKUP($E17,表C_RAW!$C:$I,5,0)) -> 1345220 | N17: =IF(ISERROR(VLOOKUP($E17,表C_RAW!$C:$I,6,0)),"",VLOOKUP($E17,表C_RAW!$C:$I,6,0)/100) -> 1.4416
D18: 3 | E18: =VLOOKUP($C$16&D18,表C_RAW!A:D,3,0) -> 3712 永崴投控 | G18: =IF(ISERROR(VLOOKUP($E18,表B_RAW!$C:$I,4,0)),"",VLOOKUP($E18,表B_RAW!$C:$I,4,0)) -> 2351656 | H18: =IF(ISERROR(VLOOKUP($E18,表B_RAW!$C:$I,5,0)),"",VLOOKUP($E18,表B_RAW!$C:$I,5,0)) -> 3387274 | I18: =IF(ISERROR(VLOOKUP($E18,表B_RAW!$C:$I,6,0)),"",VLOOKUP($E18,表B_RAW!$C:$I,6,0)/100) -> -0.3057 | J18: =IF(ISERROR(VLOOKUP($E18,表A_RAW!$C:$I,5,0)),"",VLOOKUP($E18,表A_RAW!$C:$I,5,0)) -> 914480 | K18: =IF(ISERROR(VLOOKUP($E18,表A_RAW!$C:$I,7,0)),"",VLOOKUP($E18,表A_RAW!$C:$I,7,0)) -> 1.57157729 | L18: =IF(ISERROR(VLOOKUP($E18,表C_RAW!$C:$I,4,0)),"",VLOOKUP($E18,表C_RAW!$C:$I,4,0)) -> 5738931 | M18: =IF(ISERROR(VLOOKUP($E18,表C_RAW!$C:$I,5,0)),"",VLOOKUP($E18,表C_RAW!$C:$I,5,0)) -> 2540305 | N18: =IF(ISERROR(VLOOKUP($E18,表C_RAW!$C:$I,6,0)),"",VLOOKUP($E18,表C_RAW!$C:$I,6,0)/100) -> 1.2592
C19: =VLOOKUP(B16,表C_RAW!N:T,7,0) -> 29.69 | D19: 4 | E19: =VLOOKUP($C$16&D19,表C_RAW!A:D,3,0) -> 3515 華擎 | G19: =IF(ISERROR(VLOOKUP($E19,表B_RAW!$C:$I,4,0)),"",VLOOKUP($E19,表B_RAW!$C:$I,4,0)) -> 2567264 | H19: =IF(ISERROR(VLOOKUP($E19,表B_RAW!$C:$I,5,0)),"",VLOOKUP($E19,表B_RAW!$C:$I,5,0)) -> 4713670 | I19: =IF(ISERROR(VLOOKUP($E19,表B_RAW!$C:$I,6,0)),"",VLOOKUP($E19,表B_RAW!$C:$I,6,0)/100) -> -0.4554 | J19: =IF(ISERROR(VLOOKUP($E19,表A_RAW!$C:$I,5,0)),"",VLOOKUP($E19,表A_RAW!$C:$I,5,0)) -> 1377353 | K19: =IF(ISERROR(VLOOKUP($E19,表A_RAW!$C:$I,7,0)),"",VLOOKUP($E19,表A_RAW!$C:$I,7,0)) -> 0.8639114301 | L19: =IF(ISERROR(VLOOKUP($E19,表C_RAW!$C:$I,4,0)),"",VLOOKUP($E19,表C_RAW!$C:$I,4,0)) -> 7280889 | M19: =IF(ISERROR(VLOOKUP($E19,表C_RAW!$C:$I,5,0)),"",VLOOKUP($E19,表C_RAW!$C:$I,5,0)) -> 3346985 | N19: =IF(ISERROR(VLOOKUP($E19,表C_RAW!$C:$I,6,0)),"",VLOOKUP($E19,表C_RAW!$C:$I,6,0)/100) -> 1.1754
D20: 5 | E20: =VLOOKUP($C$16&D20,表C_RAW!A:D,3,0) -> 6228 全譜 | G20: =IF(ISERROR(VLOOKUP($E20,表B_RAW!$C:$I,4,0)),"",VLOOKUP($E20,表B_RAW!$C:$I,4,0)) -> 4719 | H20: =IF(ISERROR(VLOOKUP($E20,表B_RAW!$C:$I,5,0)),"",VLOOKUP($E20,表B_RAW!$C:$I,5,0)) -> 5635 | I20: =IF(ISERROR(VLOOKUP($E20,表B_RAW!$C:$I,6,0)),"",VLOOKUP($E20,表B_RAW!$C:$I,6,0)/100) -> -0.1626 | J20: =IF(ISERROR(VLOOKUP($E20,表A_RAW!$C:$I,5,0)),"",VLOOKUP($E20,表A_RAW!$C:$I,5,0)) -> 1281 | K20: =IF(ISERROR(VLOOKUP($E20,表A_RAW!$C:$I,7,0)),"",VLOOKUP($E20,表A_RAW!$C:$I,7,0)) -> 2.683840749 | L20: =IF(ISERROR(VLOOKUP($E20,表C_RAW!$C:$I,4,0)),"",VLOOKUP($E20,表C_RAW!$C:$I,4,0)) -> 10354 | M20: =IF(ISERROR(VLOOKUP($E20,表C_RAW!$C:$I,5,0)),"",VLOOKUP($E20,表C_RAW!$C:$I,5,0)) -> 5174 | N20: =IF(ISERROR(VLOOKUP($E20,表C_RAW!$C:$I,6,0)),"",VLOOKUP($E20,表C_RAW!$C:$I,6,0)/100) -> 1.0012
B21: 4 | C21: =VLOOKUP(B21,表C_RAW!N:P,3,0) -> 其他電子業 | D21: 1 | E21: =VLOOKUP($C$21&D21,表C_RAW!A:D,3,0) -> 3018 隆銘綠能 | G21: =IF(ISERROR(VLOOKUP($E21,表B_RAW!$C:$I,4,0)),"",VLOOKUP($E21,表B_RAW!$C:$I,4,0)) -> 93087 | H21: =IF(ISERROR(VLOOKUP($E21,表B_RAW!$C:$I,5,0)),"",VLOOKUP($E21,表B_RAW!$C:$I,5,0)) -> 62079 | I21: =IF(ISERROR(VLOOKUP($E21,表B_RAW!$C:$I,6,0)),"",VLOOKUP($E21,表B_RAW!$C:$I,6,0)/100) -> 0.4995 | J21: =IF(ISERROR(VLOOKUP($E21,表A_RAW!$C:$I,5,0)),"",VLOOKUP($E21,表A_RAW!$C:$I,5,0)) -> 13995 | K21: =IF(ISERROR(VLOOKUP($E21,表A_RAW!$C:$I,7,0)),"",VLOOKUP($E21,表A_RAW!$C:$I,7,0)) -> 5.651446945 | L21: =IF(ISERROR(VLOOKUP($E21,表C_RAW!$C:$I,4,0)),"",VLOOKUP($E21,表C_RAW!$C:$I,4,0)) -> 155166 | M21: =IF(ISERROR(VLOOKUP($E21,表C_RAW!$C:$I,5,0)),"",VLOOKUP($E21,表C_RAW!$C:$I,5,0)) -> 27035 | N21: =IF(ISERROR(VLOOKUP($E21,表C_RAW!$C:$I,6,0)),"",VLOOKUP($E21,表C_RAW!$C:$I,6,0)/100) -> 4.7394
D22: 2 | E22: =VLOOKUP($C$21&D22,表C_RAW!A:D,3,0) -> 2354 鴻準 | G22: =IF(ISERROR(VLOOKUP($E22,表B_RAW!$C:$I,4,0)),"",VLOOKUP($E22,表B_RAW!$C:$I,4,0)) -> 9418841 | H22: =IF(ISERROR(VLOOKUP($E22,表B_RAW!$C:$I,5,0)),"",VLOOKUP($E22,表B_RAW!$C:$I,5,0)) -> 8503063 | I22: =IF(ISERROR(VLOOKUP($E22,表B_RAW!$C:$I,6,0)),"",VLOOKUP($E22,表B_RAW!$C:$I,6,0)/100) -> 0.1077 | J22: =IF(ISERROR(VLOOKUP($E22,表A_RAW!$C:$I,5,0)),"",VLOOKUP($E22,表A_RAW!$C:$I,5,0)) -> 2227720 | K22: =IF(ISERROR(VLOOKUP($E22,表A_RAW!$C:$I,7,0)),"",VLOOKUP($E22,表A_RAW!$C:$I,7,0)) -> 3.228018333 | L22: =IF(ISERROR(VLOOKUP($E22,表C_RAW!$C:$I,4,0)),"",VLOOKUP($E22,表C_RAW!$C:$I,4,0)) -> 17921904 | M22: =IF(ISERROR(VLOOKUP($E22,表C_RAW!$C:$I,5,0)),"",VLOOKUP($E22,表C_RAW!$C:$I,5,0)) -> 5675325 | N22: =IF(ISERROR(VLOOKUP($E22,表C_RAW!$C:$I,6,0)),"",VLOOKUP($E22,表C_RAW!$C:$I,6,0)/100) -> 2.1579
D23: 3 | E23: =VLOOKUP($C$21&D23,表C_RAW!A:D,3,0) -> 6658 聯策 | G23: =IF(ISERROR(VLOOKUP($E23,表B_RAW!$C:$I,4,0)),"",VLOOKUP($E23,表B_RAW!$C:$I,4,0)) -> 211494 | H23: =IF(ISERROR(VLOOKUP($E23,表B_RAW!$C:$I,5,0)),"",VLOOKUP($E23,表B_RAW!$C:$I,5,0)) -> 140129 | I23: =IF(ISERROR(VLOOKUP($E23,表B_RAW!$C:$I,6,0)),"",VLOOKUP($E23,表B_RAW!$C:$I,6,0)/100) -> 0.5093 | J23: =IF(ISERROR(VLOOKUP($E23,表A_RAW!$C:$I,5,0)),"",VLOOKUP($E23,表A_RAW!$C:$I,5,0)) -> 68988 | K23: =IF(ISERROR(VLOOKUP($E23,表A_RAW!$C:$I,7,0)),"",VLOOKUP($E23,表A_RAW!$C:$I,7,0)) -> 2.065663594 | L23: =IF(ISERROR(VLOOKUP($E23,表C_RAW!$C:$I,4,0)),"",VLOOKUP($E23,表C_RAW!$C:$I,4,0)) -> 351623 | M23: =IF(ISERROR(VLOOKUP($E23,表C_RAW!$C:$I,5,0)),"",VLOOKUP($E23,表C_RAW!$C:$I,5,0)) -> 136443 | N23: =IF(ISERROR(VLOOKUP($E23,表C_RAW!$C:$I,6,0)),"",VLOOKUP($E23,表C_RAW!$C:$I,6,0)/100) -> 1.5771
C24: =VLOOKUP(B21,表C_RAW!N:T,7,0) -> 24.45 | D24: 4 | E24: =VLOOKUP($C$21&D24,表C_RAW!A:D,3,0) -> 6739 竹陞科技 | G24: =IF(ISERROR(VLOOKUP($E24,表B_RAW!$C:$I,4,0)),"",VLOOKUP($E24,表B_RAW!$C:$I,4,0)) -> 48801 | H24: =IF(ISERROR(VLOOKUP($E24,表B_RAW!$C:$I,5,0)),"",VLOOKUP($E24,表B_RAW!$C:$I,5,0)) -> 45776 | I24: =IF(ISERROR(VLOOKUP($E24,表B_RAW!$C:$I,6,0)),"",VLOOKUP($E24,表B_RAW!$C:$I,6,0)/100) -> 0.0661 | J24: =IF(ISERROR(VLOOKUP($E24,表A_RAW!$C:$I,5,0)),"",VLOOKUP($E24,表A_RAW!$C:$I,5,0)) -> 21976 | K24: =IF(ISERROR(VLOOKUP($E24,表A_RAW!$C:$I,7,0)),"",VLOOKUP($E24,表A_RAW!$C:$I,7,0)) -> 1.2206498 | L24: =IF(ISERROR(VLOOKUP($E24,表C_RAW!$C:$I,4,0)),"",VLOOKUP($E24,表C_RAW!$C:$I,4,0)) -> 94578 | M24: =IF(ISERROR(VLOOKUP($E24,表C_RAW!$C:$I,5,0)),"",VLOOKUP($E24,表C_RAW!$C:$I,5,0)) -> 41259 | N24: =IF(ISERROR(VLOOKUP($E24,表C_RAW!$C:$I,6,0)),"",VLOOKUP($E24,表C_RAW!$C:$I,6,0)/100) -> 1.2923
D25: 5 | E25: =VLOOKUP($C$21&D25,表C_RAW!A:D,3,0) -> 6667 信紘科 | G25: =IF(ISERROR(VLOOKUP($E25,表B_RAW!$C:$I,4,0)),"",VLOOKUP($E25,表B_RAW!$C:$I,4,0)) -> 512448 | H25: =IF(ISERROR(VLOOKUP($E25,表B_RAW!$C:$I,5,0)),"",VLOOKUP($E25,表B_RAW!$C:$I,5,0)) -> 365115 | I25: =IF(ISERROR(VLOOKUP($E25,表B_RAW!$C:$I,6,0)),"",VLOOKUP($E25,表B_RAW!$C:$I,6,0)/100) -> 0.4035 | J25: =IF(ISERROR(VLOOKUP($E25,表A_RAW!$C:$I,5,0)),"",VLOOKUP($E25,表A_RAW!$C:$I,5,0)) -> 163167 | K25: =IF(ISERROR(VLOOKUP($E25,表A_RAW!$C:$I,7,0)),"",VLOOKUP($E25,表A_RAW!$C:$I,7,0)) -> 2.140635055 | L25: =IF(ISERROR(VLOOKUP($E25,表C_RAW!$C:$I,4,0)),"",VLOOKUP($E25,表C_RAW!$C:$I,4,0)) -> 877563 | M25: =IF(ISERROR(VLOOKUP($E25,表C_RAW!$C:$I,5,0)),"",VLOOKUP($E25,表C_RAW!$C:$I,5,0)) -> 397547 | N25: =IF(ISERROR(VLOOKUP($E25,表C_RAW!$C:$I,6,0)),"",VLOOKUP($E25,表C_RAW!$C:$I,6,0)/100) -> 1.2074
B26: 5 | C26: =VLOOKUP(B26,表C_RAW!N:P,3,0) -> 半導體 | D26: 1 | E26: =VLOOKUP($C$26&D26,表C_RAW!A:D,3,0) -> 2363 矽統 | G26: =IF(ISERROR(VLOOKUP($E26,表B_RAW!$C:$I,4,0)),"",VLOOKUP($E26,表B_RAW!$C:$I,4,0)) -> 119575 | H26: =IF(ISERROR(VLOOKUP($E26,表B_RAW!$C:$I,5,0)),"",VLOOKUP($E26,表B_RAW!$C:$I,5,0)) -> 156332 | I26: =IF(ISERROR(VLOOKUP($E26,表B_RAW!$C:$I,6,0)),"",VLOOKUP($E26,表B_RAW!$C:$I,6,0)/100) -> -0.2351 | J26: =IF(ISERROR(VLOOKUP($E26,表A_RAW!$C:$I,5,0)),"",VLOOKUP($E26,表A_RAW!$C:$I,5,0)) -> 8321 | K26: =IF(ISERROR(VLOOKUP($E26,表A_RAW!$C:$I,7,0)),"",VLOOKUP($E26,表A_RAW!$C:$I,7,0)) -> 13.370268 | L26: =IF(ISERROR(VLOOKUP($E26,表C_RAW!$C:$I,4,0)),"",VLOOKUP($E26,表C_RAW!$C:$I,4,0)) -> 275907 | M26: =IF(ISERROR(VLOOKUP($E26,表C_RAW!$C:$I,5,0)),"",VLOOKUP($E26,表C_RAW!$C:$I,5,0)) -> 21576 | N26: =IF(ISERROR(VLOOKUP($E26,表C_RAW!$C:$I,6,0)),"",VLOOKUP($E26,表C_RAW!$C:$I,6,0)/100) -> 11.7877
D27: 2 | E27: =VLOOKUP($C$26&D27,表C_RAW!A:D,3,0) -> 6103 合邦 | G27: =IF(ISERROR(VLOOKUP($E27,表B_RAW!$C:$I,4,0)),"",VLOOKUP($E27,表B_RAW!$C:$I,4,0)) -> 9467 | H27: =IF(ISERROR(VLOOKUP($E27,表B_RAW!$C:$I,5,0)),"",VLOOKUP($E27,表B_RAW!$C:$I,5,0)) -> 7634 | I27: =IF(ISERROR(VLOOKUP($E27,表B_RAW!$C:$I,6,0)),"",VLOOKUP($E27,表B_RAW!$C:$I,6,0)/100) -> 0.2401 | J27: =IF(ISERROR(VLOOKUP($E27,表A_RAW!$C:$I,5,0)),"",VLOOKUP($E27,表A_RAW!$C:$I,5,0)) -> 3869 | K27: =IF(ISERROR(VLOOKUP($E27,表A_RAW!$C:$I,7,0)),"",VLOOKUP($E27,表A_RAW!$C:$I,7,0)) -> 1.4468855 | L27: =IF(ISERROR(VLOOKUP($E27,表C_RAW!$C:$I,4,0)),"",VLOOKUP($E27,表C_RAW!$C:$I,4,0)) -> 17101 | M27: =IF(ISERROR(VLOOKUP($E27,表C_RAW!$C:$I,5,0)),"",VLOOKUP($E27,表C_RAW!$C:$I,5,0)) -> 6229 | N27: =IF(ISERROR(VLOOKUP($E27,表C_RAW!$C:$I,6,0)),"",VLOOKUP($E27,表C_RAW!$C:$I,6,0)/100) -> 1.7454
D28: 3 | E28: =VLOOKUP($C$26&D28,表C_RAW!A:D,3,0) -> 5314 世紀 | G28: =IF(ISERROR(VLOOKUP($E28,表B_RAW!$C:$I,4,0)),"",VLOOKUP($E28,表B_RAW!$C:$I,4,0)) -> 145007 | H28: =IF(ISERROR(VLOOKUP($E28,表B_RAW!$C:$I,5,0)),"",VLOOKUP($E28,表B_RAW!$C:$I,5,0)) -> 134058 | I28: =IF(ISERROR(VLOOKUP($E28,表B_RAW!$C:$I,6,0)),"",VLOOKUP($E28,表B_RAW!$C:$I,6,0)/100) -> 0.0817 | J28: =IF(ISERROR(VLOOKUP($E28,表A_RAW!$C:$I,5,0)),"",VLOOKUP($E28,表A_RAW!$C:$I,5,0)) -> 58312 | K28: =IF(ISERROR(VLOOKUP($E28,表A_RAW!$C:$I,7,0)),"",VLOOKUP($E28,表A_RAW!$C:$I,7,0)) -> 1.486743723 | L28: =IF(ISERROR(VLOOKUP($E28,表C_RAW!$C:$I,4,0)),"",VLOOKUP($E28,表C_RAW!$C:$I,4,0)) -> 279065 | M28: =IF(ISERROR(VLOOKUP($E28,表C_RAW!$C:$I,5,0)),"",VLOOKUP($E28,表C_RAW!$C:$I,5,0)) -> 105598 | N28: =IF(ISERROR(VLOOKUP($E28,表C_RAW!$C:$I,6,0)),"",VLOOKUP($E28,表C_RAW!$C:$I,6,0)/100) -> 1.6427
C29: =VLOOKUP(B26,表C_RAW!N:T,7,0) -> 23.35 | D29: 4 | E29: =VLOOKUP($C$26&D29,表C_RAW!A:D,3,0) -> 6515 穎崴 | G29: =IF(ISERROR(VLOOKUP($E29,表B_RAW!$C:$I,4,0)),"",VLOOKUP($E29,表B_RAW!$C:$I,4,0)) -> 907369 | H29: =IF(ISERROR(VLOOKUP($E29,表B_RAW!$C:$I,5,0)),"",VLOOKUP($E29,表B_RAW!$C:$I,5,0)) -> 668037 | I29: =IF(ISERROR(VLOOKUP($E29,表B_RAW!$C:$I,6,0)),"",VLOOKUP($E29,表B_RAW!$C:$I,6,0)/100) -> 0.3583 | J29: =IF(ISERROR(VLOOKUP($E29,表A_RAW!$C:$I,5,0)),"",VLOOKUP($E29,表A_RAW!$C:$I,5,0)) -> 312333 | K29: =IF(ISERROR(VLOOKUP($E29,表A_RAW!$C:$I,7,0)),"",VLOOKUP($E29,表A_RAW!$C:$I,7,0)) -> 1.905133303 | L29: =IF(ISERROR(VLOOKUP($E29,表C_RAW!$C:$I,4,0)),"",VLOOKUP($E29,表C_RAW!$C:$I,4,0)) -> 1575406 | M29: =IF(ISERROR(VLOOKUP($E29,表C_RAW!$C:$I,5,0)),"",VLOOKUP($E29,表C_RAW!$C:$I,5,0)) -> 680037 | N29: =IF(ISERROR(VLOOKUP($E29,表C_RAW!$C:$I,6,0)),"",VLOOKUP($E29,表C_RAW!$C:$I,6,0)/100) -> 1.3166
D30: 5 | E30: =VLOOKUP($C$26&D30,表C_RAW!A:D,3,0) -> 3035 智原 | G30: =IF(ISERROR(VLOOKUP($E30,表B_RAW!$C:$I,4,0)),"",VLOOKUP($E30,表B_RAW!$C:$I,4,0)) -> 2836864 | H30: =IF(ISERROR(VLOOKUP($E30,表B_RAW!$C:$I,5,0)),"",VLOOKUP($E30,表B_RAW!$C:$I,5,0)) -> 1118120 | I30: =IF(ISERROR(VLOOKUP($E30,表B_RAW!$C:$I,6,0)),"",VLOOKUP($E30,表B_RAW!$C:$I,6,0)/100) -> 1.5372 | J30: =IF(ISERROR(VLOOKUP($E30,表A_RAW!$C:$I,5,0)),"",VLOOKUP($E30,表A_RAW!$C:$I,5,0)) -> 823145 | K30: =IF(ISERROR(VLOOKUP($E30,表A_RAW!$C:$I,7,0)),"",VLOOKUP($E30,表A_RAW!$C:$I,7,0)) -> 2.446372146 | L30: =IF(ISERROR(VLOOKUP($E30,表C_RAW!$C:$I,4,0)),"",VLOOKUP($E30,表C_RAW!$C:$I,4,0)) -> 3954984 | M30: =IF(ISERROR(VLOOKUP($E30,表C_RAW!$C:$I,5,0)),"",VLOOKUP($E30,表C_RAW!$C:$I,5,0)) -> 1733660 | N30: =IF(ISERROR(VLOOKUP($E30,表C_RAW!$C:$I,6,0)),"",VLOOKUP($E30,表C_RAW!$C:$I,6,0)/100) -> 1.2813
B32: 衰退前五名之產業 YOY(累計)% | D32: 該產業衰退前五名之公司 YOY(累計)% | G32: 單月營收金額(千元) | H32: 本月與上月相較 | J32: 本月與去年同期相較 | L32: 累計營收金額(千元) | M32: 累計營收與去年同期相較
B33: 衰退 排名 | C33: 產業 | D33: 排名 | E33: 公司代號&簡稱 | H33: 上月營收金額(千元) | I33: 較上月變動比率(%) | J33: 去年同期金額(千元) | K33: 較去年同期變動比率(%) | M33: 去年累計營收金額(千元) | N33: 較去年同期變動比率(%)
B34: 1 | C34: =VLOOKUP(B34,表C_RAW!O:P,2,0) -> 貿易百貨 | D34: 1 | E34: =VLOOKUP($C$34&D34,表C_RAW!B:D,2,0) -> 2905 三商 | G34: =IF(ISERROR(VLOOKUP($E34,表B_RAW!$C:$I,4,0)),"",VLOOKUP($E34,表B_RAW!$C:$I,4,0)) -> 12746179 | H34: =IF(ISERROR(VLOOKUP($E34,表B_RAW!$C:$I,5,0)),"",VLOOKUP($E34,表B_RAW!$C:$I,5,0)) -> 16717553 | I34: =IF(ISERROR(VLOOKUP($E34,表B_RAW!$C:$I,6,0)),"",VLOOKUP($E34,表B_RAW!$C:$I,6,0)/100) -> -0.2376 | J34: =IF(ISERROR(VLOOKUP($E34,表A_RAW!$C:$I,5,0)),"",VLOOKUP($E34,表A_RAW!$C:$I,5,0)) -> 16989605 | K34: =IF(ISERROR(VLOOKUP($E34,表A_RAW!$C:$I,7,0)),"",VLOOKUP($E34,表A_RAW!$C:$I,7,0)) -> -0.2497660187 | L34: =IF(ISERROR(VLOOKUP($E34,表C_RAW!$C:$I,4,0)),"",VLOOKUP($E34,表C_RAW!$C:$I,4,0)) -> 29463732 | M34: =IF(ISERROR(VLOOKUP($E34,表C_RAW!$C:$I,5,0)),"",VLOOKUP($E34,表C_RAW!$C:$I,5,0)) -> 43979749 | N34: =IF(ISERROR(VLOOKUP($E34,表C_RAW!$C:$I,6,0)),"",VLOOKUP($E34,表C_RAW!$C:$I,6,0)/100) -> -0.3301
D35: 2 | E35: =VLOOKUP($C$34&D35,表C_RAW!B:D,2,0) -> 2911 麗嬰房 | G35: =IF(ISERROR(VLOOKUP($E35,表B_RAW!$C:$I,4,0)),"",VLOOKUP($E35,表B_RAW!$C:$I,4,0)) -> 176704 | H35: =IF(ISERROR(VLOOKUP($E35,表B_RAW!$C:$I,5,0)),"",VLOOKUP($E35,表B_RAW!$C:$I,5,0)) -> 270801 | I35: =IF(ISERROR(VLOOKUP($E35,表B_RAW!$C:$I,6,0)),"",VLOOKUP($E35,表B_RAW!$C:$I,6,0)/100) -> -0.3475 | J35: =IF(ISERROR(VLOOKUP($E35,表A_RAW!$C:$I,5,0)),"",VLOOKUP($E35,表A_RAW!$C:$I,5,0)) -> 249548 | K35: =IF(ISERROR(VLOOKUP($E35,表A_RAW!$C:$I,7,0)),"",VLOOKUP($E35,表A_RAW!$C:$I,7,0)) -> -0.291903762 | L35: =IF(ISERROR(VLOOKUP($E35,表C_RAW!$C:$I,4,0)),"",VLOOKUP($E35,表C_RAW!$C:$I,4,0)) -> 447505 | M35: =IF(ISERROR(VLOOKUP($E35,表C_RAW!$C:$I,5,0)),"",VLOOKUP($E35,表C_RAW!$C:$I,5,0)) -> 518851 | N35: =IF(ISERROR(VLOOKUP($E35,表C_RAW!$C:$I,6,0)),"",VLOOKUP($E35,表C_RAW!$C:$I,6,0)/100) -> -0.1375
D36: 3 | E36: =VLOOKUP($C$34&D36,表C_RAW!B:D,2,0) -> 2901 欣欣 | G36: =IF(ISERROR(VLOOKUP($E36,表B_RAW!$C:$I,4,0)),"",VLOOKUP($E36,表B_RAW!$C:$I,4,0)) -> 9373 | H36: =IF(ISERROR(VLOOKUP($E36,表B_RAW!$C:$I,5,0)),"",VLOOKUP($E36,表B_RAW!$C:$I,5,0)) -> 11283 | I36: =IF(ISERROR(VLOOKUP($E36,表B_RAW!$C:$I,6,0)),"",VLOOKUP($E36,表B_RAW!$C:$I,6,0)/100) -> -0.1693 | J36: =IF(ISERROR(VLOOKUP($E36,表A_RAW!$C:$I,5,0)),"",VLOOKUP($E36,表A_RAW!$C:$I,5,0)) -> 11693 | K36: =IF(ISERROR(VLOOKUP($E36,表A_RAW!$C:$I,7,0)),"",VLOOKUP($E36,表A_RAW!$C:$I,7,0)) -> -0.1984093047 | L36: =IF(ISERROR(VLOOKUP($E36,表C_RAW!$C:$I,4,0)),"",VLOOKUP($E36,表C_RAW!$C:$I,4,0)) -> 20656 | M36: =IF(ISERROR(VLOOKUP($E36,表C_RAW!$C:$I,5,0)),"",VLOOKUP($E36,表C_RAW!$C:$I,5,0)) -> 23721 | N36: =IF(ISERROR(VLOOKUP($E36,表C_RAW!$C:$I,6,0)),"",VLOOKUP($E36,表C_RAW!$C:$I,6,0)/100) -> -0.1292
C37: =VLOOKUP(B34,表C_RAW!O:T,6,0) -> -10.85 | D37: 4 | E37: =VLOOKUP($C$34&D37,表C_RAW!B:D,2,0) -> 2915 潤泰全 | G37: =IF(ISERROR(VLOOKUP($E37,表B_RAW!$C:$I,4,0)),"",VLOOKUP($E37,表B_RAW!$C:$I,4,0)) -> 174446 | H37: =IF(ISERROR(VLOOKUP($E37,表B_RAW!$C:$I,5,0)),"",VLOOKUP($E37,表B_RAW!$C:$I,5,0)) -> 267711 | I37: =IF(ISERROR(VLOOKUP($E37,表B_RAW!$C:$I,6,0)),"",VLOOKUP($E37,表B_RAW!$C:$I,6,0)/100) -> -0.3484 | J37: =IF(ISERROR(VLOOKUP($E37,表A_RAW!$C:$I,5,0)),"",VLOOKUP($E37,表A_RAW!$C:$I,5,0)) -> 255690 | K37: =IF(ISERROR(VLOOKUP($E37,表A_RAW!$C:$I,7,0)),"",VLOOKUP($E37,表A_RAW!$C:$I,7,0)) -> -0.3177441433 | L37: =IF(ISERROR(VLOOKUP($E37,表C_RAW!$C:$I,4,0)),"",VLOOKUP($E37,表C_RAW!$C:$I,4,0)) -> 442157 | M37: =IF(ISERROR(VLOOKUP($E37,表C_RAW!$C:$I,5,0)),"",VLOOKUP($E37,表C_RAW!$C:$I,5,0)) -> 503609 | N37: =IF(ISERROR(VLOOKUP($E37,表C_RAW!$C:$I,6,0)),"",VLOOKUP($E37,表C_RAW!$C:$I,6,0)/100) -> -0.122
D38: 5 | E38: =VLOOKUP($C$34&D38,表C_RAW!B:D,2,0) ->  | G38: =IF(ISERROR(VLOOKUP($E38,表B_RAW!$C:$I,4,0)),"",VLOOKUP($E38,表B_RAW!$C:$I,4,0)) ->  | H38: =IF(ISERROR(VLOOKUP($E38,表B_RAW!$C:$I,5,0)),"",VLOOKUP($E38,表B_RAW!$C:$I,5,0)) ->  | I38: =IF(ISERROR(VLOOKUP($E38,表B_RAW!$C:$I,6,0)),"",VLOOKUP($E38,表B_RAW!$C:$I,6,0)/100) ->  | J38: =IF(ISERROR(VLOOKUP($E38,表A_RAW!$C:$I,5,0)),"",VLOOKUP($E38,表A_RAW!$C:$I,5,0)) ->  | K38: =IF(ISERROR(VLOOKUP($E38,表A_RAW!$C:$I,7,0)),"",VLOOKUP($E38,表A_RAW!$C:$I,7,0)) ->  | L38: =IF(ISERROR(VLOOKUP($E38,表C_RAW!$C:$I,4,0)),"",VLOOKUP($E38,表C_RAW!$C:$I,4,0)) ->  | M38: =IF(ISERROR(VLOOKUP($E38,表C_RAW!$C:$I,5,0)),"",VLOOKUP($E38,表C_RAW!$C:$I,5,0)) ->  | N38: =IF(ISERROR(VLOOKUP($E38,表C_RAW!$C:$I,6,0)),"",VLOOKUP($E38,表C_RAW!$C:$I,6,0)/100) -> 
B39: 2 | C39: =VLOOKUP(B39,表C_RAW!O:P,2,0) -> 農業科技 | D39: 1 | E39: =VLOOKUP($C$39&D39,表C_RAW!B:D,2,0) -> 6578 達邦蛋白 | G39: =IF(ISERROR(VLOOKUP($E39,表B_RAW!$C:$I,4,0)),"",VLOOKUP($E39,表B_RAW!$C:$I,4,0)) -> 15950 | H39: =IF(ISERROR(VLOOKUP($E39,表B_RAW!$C:$I,5,0)),"",VLOOKUP($E39,表B_RAW!$C:$I,5,0)) -> 25248 | I39: =IF(ISERROR(VLOOKUP($E39,表B_RAW!$C:$I,6,0)),"",VLOOKUP($E39,表B_RAW!$C:$I,6,0)/100) -> -0.3683 | J39: =IF(ISERROR(VLOOKUP($E39,表A_RAW!$C:$I,5,0)),"",VLOOKUP($E39,表A_RAW!$C:$I,5,0)) -> 26902 | K39: =IF(ISERROR(VLOOKUP($E39,表A_RAW!$C:$I,7,0)),"",VLOOKUP($E39,表A_RAW!$C:$I,7,0)) -> -0.4071072783 | L39: =IF(ISERROR(VLOOKUP($E39,表C_RAW!$C:$I,4,0)),"",VLOOKUP($E39,表C_RAW!$C:$I,4,0)) -> 41198 | M39: =IF(ISERROR(VLOOKUP($E39,表C_RAW!$C:$I,5,0)),"",VLOOKUP($E39,表C_RAW!$C:$I,5,0)) -> 66772 | N39: =IF(ISERROR(VLOOKUP($E39,表C_RAW!$C:$I,6,0)),"",VLOOKUP($E39,表C_RAW!$C:$I,6,0)/100) -> -0.383
D40: 2 | E40: =VLOOKUP($C$39&D40,表C_RAW!B:D,2,0) -> 1240 茂生農經 | G40: =IF(ISERROR(VLOOKUP($E40,表B_RAW!$C:$I,4,0)),"",VLOOKUP($E40,表B_RAW!$C:$I,4,0)) -> 202227 | H40: =IF(ISERROR(VLOOKUP($E40,表B_RAW!$C:$I,5,0)),"",VLOOKUP($E40,表B_RAW!$C:$I,5,0)) -> 231435 | I40: =IF(ISERROR(VLOOKUP($E40,表B_RAW!$C:$I,6,0)),"",VLOOKUP($E40,表B_RAW!$C:$I,6,0)/100) -> -0.1262 | J40: =IF(ISERROR(VLOOKUP($E40,表A_RAW!$C:$I,5,0)),"",VLOOKUP($E40,表A_RAW!$C:$I,5,0)) -> 210084 | K40: =IF(ISERROR(VLOOKUP($E40,表A_RAW!$C:$I,7,0)),"",VLOOKUP($E40,表A_RAW!$C:$I,7,0)) -> -0.03739932598 | L40: =IF(ISERROR(VLOOKUP($E40,表C_RAW!$C:$I,4,0)),"",VLOOKUP($E40,表C_RAW!$C:$I,4,0)) -> 433662 | M40: =IF(ISERROR(VLOOKUP($E40,表C_RAW!$C:$I,5,0)),"",VLOOKUP($E40,表C_RAW!$C:$I,5,0)) -> 485078 | N40: =IF(ISERROR(VLOOKUP($E40,表C_RAW!$C:$I,6,0)),"",VLOOKUP($E40,表C_RAW!$C:$I,6,0)/100) -> -0.106
D41: 3 | E41: =VLOOKUP($C$39&D41,表C_RAW!B:D,2,0) -> 6508 惠光 | G41: =IF(ISERROR(VLOOKUP($E41,表B_RAW!$C:$I,4,0)),"",VLOOKUP($E41,表B_RAW!$C:$I,4,0)) -> 117273 | H41: =IF(ISERROR(VLOOKUP($E41,表B_RAW!$C:$I,5,0)),"",VLOOKUP($E41,表B_RAW!$C:$I,5,0)) -> 117174 | I41: =IF(ISERROR(VLOOKUP($E41,表B_RAW!$C:$I,6,0)),"",VLOOKUP($E41,表B_RAW!$C:$I,6,0)/100) -> 0.0008 | J41: =IF(ISERROR(VLOOKUP($E41,表A_RAW!$C:$I,5,0)),"",VLOOKUP($E41,表A_RAW!$C:$I,5,0)) -> 114259 | K41: =IF(ISERROR(VLOOKUP($E41,表A_RAW!$C:$I,7,0)),"",VLOOKUP($E41,表A_RAW!$C:$I,7,0)) -> 0.02637866601 | L41: =IF(ISERROR(VLOOKUP($E41,表C_RAW!$C:$I,4,0)),"",VLOOKUP($E41,表C_RAW!$C:$I,4,0)) -> 234446 | M41: =IF(ISERROR(VLOOKUP($E41,表C_RAW!$C:$I,5,0)),"",VLOOKUP($E41,表C_RAW!$C:$I,5,0)) -> 240149 | N41: =IF(ISERROR(VLOOKUP($E41,表C_RAW!$C:$I,6,0)),"",VLOOKUP($E41,表C_RAW!$C:$I,6,0)/100) -> -0.0237
C42: =VLOOKUP(B39,表C_RAW!O:T,6,0) -> -10.1 | D42: 4 | E42: =VLOOKUP($C$39&D42,表C_RAW!B:D,2,0) -> 4171 瑞基 | G42: =IF(ISERROR(VLOOKUP($E42,表B_RAW!$C:$I,4,0)),"",VLOOKUP($E42,表B_RAW!$C:$I,4,0)) -> 24586 | H42: =IF(ISERROR(VLOOKUP($E42,表B_RAW!$C:$I,5,0)),"",VLOOKUP($E42,表B_RAW!$C:$I,5,0)) -> 9257 | I42: =IF(ISERROR(VLOOKUP($E42,表B_RAW!$C:$I,6,0)),"",VLOOKUP($E42,表B_RAW!$C:$I,6,0)/100) -> 1.6559 | J42: =IF(ISERROR(VLOOKUP($E42,表A_RAW!$C:$I,5,0)),"",VLOOKUP($E42,表A_RAW!$C:$I,5,0)) -> 9713 | K42: =IF(ISERROR(VLOOKUP($E42,表A_RAW!$C:$I,7,0)),"",VLOOKUP($E42,表A_RAW!$C:$I,7,0)) -> 1.531246783 | L42: =IF(ISERROR(VLOOKUP($E42,表C_RAW!$C:$I,4,0)),"",VLOOKUP($E42,表C_RAW!$C:$I,4,0)) -> 33843 | M42: =IF(ISERROR(VLOOKUP($E42,表C_RAW!$C:$I,5,0)),"",VLOOKUP($E42,表C_RAW!$C:$I,5,0)) -> 34649 | N42: =IF(ISERROR(VLOOKUP($E42,表C_RAW!$C:$I,6,0)),"",VLOOKUP($E42,表C_RAW!$C:$I,6,0)/100) -> -0.0233
D43: 5 | E43: =VLOOKUP($C$39&D43,表C_RAW!B:D,2,0) ->  | G43: =IF(ISERROR(VLOOKUP($E43,表B_RAW!$C:$I,4,0)),"",VLOOKUP($E43,表B_RAW!$C:$I,4,0)) ->  | H43: =IF(ISERROR(VLOOKUP($E43,表B_RAW!$C:$I,5,0)),"",VLOOKUP($E43,表B_RAW!$C:$I,5,0)) ->  | I43: =IF(ISERROR(VLOOKUP($E43,表B_RAW!$C:$I,6,0)),"",VLOOKUP($E43,表B_RAW!$C:$I,6,0)/100) ->  | J43: =IF(ISERROR(VLOOKUP($E43,表A_RAW!$C:$I,5,0)),"",VLOOKUP($E43,表A_RAW!$C:$I,5,0)) ->  | K43: =IF(ISERROR(VLOOKUP($E43,表A_RAW!$C:$I,7,0)),"",VLOOKUP($E43,表A_RAW!$C:$I,7,0)) ->  | L43: =IF(ISERROR(VLOOKUP($E43,表C_RAW!$C:$I,4,0)),"",VLOOKUP($E43,表C_RAW!$C:$I,4,0)) ->  | M43: =IF(ISERROR(VLOOKUP($E43,表C_RAW!$C:$I,5,0)),"",VLOOKUP($E43,表C_RAW!$C:$I,5,0)) ->  | N43: =IF(ISERROR(VLOOKUP($E43,表C_RAW!$C:$I,6,0)),"",VLOOKUP($E43,表C_RAW!$C:$I,6,0)/100) -> 
B44: 3 | C44: =VLOOKUP(B44,表C_RAW!O:P,2,0) -> 鋼鐵工業 | D44: 1 | E44: =VLOOKUP($C$44&D44,表C_RAW!B:D,2,0) -> 2014 中鴻 | G44: =IF(ISERROR(VLOOKUP($E44,表B_RAW!$C:$I,4,0)),"",VLOOKUP($E44,表B_RAW!$C:$I,4,0)) -> 1853010 | H44: =IF(ISERROR(VLOOKUP($E44,表B_RAW!$C:$I,5,0)),"",VLOOKUP($E44,表B_RAW!$C:$I,5,0)) -> 1673393 | I44: =IF(ISERROR(VLOOKUP($E44,表B_RAW!$C:$I,6,0)),"",VLOOKUP($E44,表B_RAW!$C:$I,6,0)/100) -> 0.1073 | J44: =IF(ISERROR(VLOOKUP($E44,表A_RAW!$C:$I,5,0)),"",VLOOKUP($E44,表A_RAW!$C:$I,5,0)) -> 3040808 | K44: =IF(ISERROR(VLOOKUP($E44,表A_RAW!$C:$I,7,0)),"",VLOOKUP($E44,表A_RAW!$C:$I,7,0)) -> -0.3906192038 | L44: =IF(ISERROR(VLOOKUP($E44,表C_RAW!$C:$I,4,0)),"",VLOOKUP($E44,表C_RAW!$C:$I,4,0)) -> 3526403 | M44: =IF(ISERROR(VLOOKUP($E44,表C_RAW!$C:$I,5,0)),"",VLOOKUP($E44,表C_RAW!$C:$I,5,0)) -> 6239836 | N44: =IF(ISERROR(VLOOKUP($E44,表C_RAW!$C:$I,6,0)),"",VLOOKUP($E44,表C_RAW!$C:$I,6,0)/100) -> -0.4349
D45: 2 | E45: =VLOOKUP($C$44&D45,表C_RAW!B:D,2,0) -> 2025 千興 | G45: =IF(ISERROR(VLOOKUP($E45,表B_RAW!$C:$I,4,0)),"",VLOOKUP($E45,表B_RAW!$C:$I,4,0)) -> 61032 | H45: =IF(ISERROR(VLOOKUP($E45,表B_RAW!$C:$I,5,0)),"",VLOOKUP($E45,表B_RAW!$C:$I,5,0)) -> 60323 | I45: =IF(ISERROR(VLOOKUP($E45,表B_RAW!$C:$I,6,0)),"",VLOOKUP($E45,表B_RAW!$C:$I,6,0)/100) -> 0.0118 | J45: =IF(ISERROR(VLOOKUP($E45,表A_RAW!$C:$I,5,0)),"",VLOOKUP($E45,表A_RAW!$C:$I,5,0)) -> 36491 | K45: =IF(ISERROR(VLOOKUP($E45,表A_RAW!$C:$I,7,0)),"",VLOOKUP($E45,表A_RAW!$C:$I,7,0)) -> 0.6725219917 | L45: =IF(ISERROR(VLOOKUP($E45,表C_RAW!$C:$I,4,0)),"",VLOOKUP($E45,表C_RAW!$C:$I,4,0)) -> 121355 | M45: =IF(ISERROR(VLOOKUP($E45,表C_RAW!$C:$I,5,0)),"",VLOOKUP($E45,表C_RAW!$C:$I,5,0)) -> 185778 | N45: =IF(ISERROR(VLOOKUP($E45,表C_RAW!$C:$I,6,0)),"",VLOOKUP($E45,表C_RAW!$C:$I,6,0)/100) -> -0.3468
D46: 3 | E46: =VLOOKUP($C$44&D46,表C_RAW!B:D,2,0) -> 2020 美亞 | G46: =IF(ISERROR(VLOOKUP($E46,表B_RAW!$C:$I,4,0)),"",VLOOKUP($E46,表B_RAW!$C:$I,4,0)) -> 356598 | H46: =IF(ISERROR(VLOOKUP($E46,表B_RAW!$C:$I,5,0)),"",VLOOKUP($E46,表B_RAW!$C:$I,5,0)) -> 310823 | I46: =IF(ISERROR(VLOOKUP($E46,表B_RAW!$C:$I,6,0)),"",VLOOKUP($E46,表B_RAW!$C:$I,6,0)/100) -> 0.1473 | J46: =IF(ISERROR(VLOOKUP($E46,表A_RAW!$C:$I,5,0)),"",VLOOKUP($E46,表A_RAW!$C:$I,5,0)) -> 329851 | K46: =IF(ISERROR(VLOOKUP($E46,表A_RAW!$C:$I,7,0)),"",VLOOKUP($E46,表A_RAW!$C:$I,7,0)) -> 0.08108812767 | L46: =IF(ISERROR(VLOOKUP($E46,表C_RAW!$C:$I,4,0)),"",VLOOKUP($E46,表C_RAW!$C:$I,4,0)) -> 667404 | M46: =IF(ISERROR(VLOOKUP($E46,表C_RAW!$C:$I,5,0)),"",VLOOKUP($E46,表C_RAW!$C:$I,5,0)) -> 963277 | N46: =IF(ISERROR(VLOOKUP($E46,表C_RAW!$C:$I,6,0)),"",VLOOKUP($E46,表C_RAW!$C:$I,6,0)/100) -> -0.3072
C47: =VLOOKUP(B44,表C_RAW!O:T,6,0) -> -4.05 | D47: 4 | E47: =VLOOKUP($C$44&D47,表C_RAW!B:D,2,0) -> 2028 威致 | G47: =IF(ISERROR(VLOOKUP($E47,表B_RAW!$C:$I,4,0)),"",VLOOKUP($E47,表B_RAW!$C:$I,4,0)) -> 749269 | H47: =IF(ISERROR(VLOOKUP($E47,表B_RAW!$C:$I,5,0)),"",VLOOKUP($E47,表B_RAW!$C:$I,5,0)) -> 588856 | I47: =IF(ISERROR(VLOOKUP($E47,表B_RAW!$C:$I,6,0)),"",VLOOKUP($E47,表B_RAW!$C:$I,6,0)/100) -> 0.2724 | J47: =IF(ISERROR(VLOOKUP($E47,表A_RAW!$C:$I,5,0)),"",VLOOKUP($E47,表A_RAW!$C:$I,5,0)) -> 769491 | K47: =IF(ISERROR(VLOOKUP($E47,表A_RAW!$C:$I,7,0)),"",VLOOKUP($E47,表A_RAW!$C:$I,7,0)) -> -0.02627970957 | L47: =IF(ISERROR(VLOOKUP($E47,表C_RAW!$C:$I,4,0)),"",VLOOKUP($E47,表C_RAW!$C:$I,4,0)) -> 1338125 | M47: =IF(ISERROR(VLOOKUP($E47,表C_RAW!$C:$I,5,0)),"",VLOOKUP($E47,表C_RAW!$C:$I,5,0)) -> 1841311 | N47: =IF(ISERROR(VLOOKUP($E47,表C_RAW!$C:$I,6,0)),"",VLOOKUP($E47,表C_RAW!$C:$I,6,0)/100) -> -0.2733
D48: 5 | E48: =IFERROR(VLOOKUP($C$44&D48,表C_RAW!B:D,2,0),"") -> 2063 世鎧 | G48: =IF(ISERROR(VLOOKUP($E48,表B_RAW!$C:$I,4,0)),"",VLOOKUP($E48,表B_RAW!$C:$I,4,0)) -> 69262 | H48: =IF(ISERROR(VLOOKUP($E48,表B_RAW!$C:$I,5,0)),"",VLOOKUP($E48,表B_RAW!$C:$I,5,0)) -> 79447 | I48: =IF(ISERROR(VLOOKUP($E48,表B_RAW!$C:$I,6,0)),"",VLOOKUP($E48,表B_RAW!$C:$I,6,0)/100) -> -0.1282 | J48: =IF(ISERROR(VLOOKUP($E48,表A_RAW!$C:$I,5,0)),"",VLOOKUP($E48,表A_RAW!$C:$I,5,0)) -> 72282 | K48: =IF(ISERROR(VLOOKUP($E48,表A_RAW!$C:$I,7,0)),"",VLOOKUP($E48,表A_RAW!$C:$I,7,0)) -> -0.04178080297 | L48: =IF(ISERROR(VLOOKUP($E48,表C_RAW!$C:$I,4,0)),"",VLOOKUP($E48,表C_RAW!$C:$I,4,0)) -> 148709 | M48: =IF(ISERROR(VLOOKUP($E48,表C_RAW!$C:$I,5,0)),"",VLOOKUP($E48,表C_RAW!$C:$I,5,0)) -> 177531 | N48: =IF(ISERROR(VLOOKUP($E48,表C_RAW!$C:$I,6,0)),"",VLOOKUP($E48,表C_RAW!$C:$I,6,0)/100) -> -0.1623
B49: 4 | C49: =VLOOKUP(B49,表C_RAW!O:P,2,0) -> 其他 | D49: 1 | E49: =VLOOKUP($C$49&D49,表C_RAW!B:D,2,0) -> 3313 斐成 | G49: =IF(ISERROR(VLOOKUP($E49,表B_RAW!$C:$I,4,0)),"",VLOOKUP($E49,表B_RAW!$C:$I,4,0)) -> 177 | H49: =IF(ISERROR(VLOOKUP($E49,表B_RAW!$C:$I,5,0)),"",VLOOKUP($E49,表B_RAW!$C:$I,5,0)) -> 177 | I49: =IF(ISERROR(VLOOKUP($E49,表B_RAW!$C:$I,6,0)),"",VLOOKUP($E49,表B_RAW!$C:$I,6,0)/100) -> 0 | J49: =IF(ISERROR(VLOOKUP($E49,表A_RAW!$C:$I,5,0)),"",VLOOKUP($E49,表A_RAW!$C:$I,5,0)) -> 1219 | K49: =IF(ISERROR(VLOOKUP($E49,表A_RAW!$C:$I,7,0)),"",VLOOKUP($E49,表A_RAW!$C:$I,7,0)) -> -0.8547990156 | L49: =IF(ISERROR(VLOOKUP($E49,表C_RAW!$C:$I,4,0)),"",VLOOKUP($E49,表C_RAW!$C:$I,4,0)) -> 354 | M49: =IF(ISERROR(VLOOKUP($E49,表C_RAW!$C:$I,5,0)),"",VLOOKUP($E49,表C_RAW!$C:$I,5,0)) -> 12235 | N49: =IF(ISERROR(VLOOKUP($E49,表C_RAW!$C:$I,6,0)),"",VLOOKUP($E49,表C_RAW!$C:$I,6,0)/100) -> -0.9711
D50: 2 | E50: =VLOOKUP($C$49&D50,表C_RAW!B:D,2,0) -> 1516 川飛 | G50: =IF(ISERROR(VLOOKUP($E50,表B_RAW!$C:$I,4,0)),"",VLOOKUP($E50,表B_RAW!$C:$I,4,0)) -> 6993 | H50: =IF(ISERROR(VLOOKUP($E50,表B_RAW!$C:$I,5,0)),"",VLOOKUP($E50,表B_RAW!$C:$I,5,0)) -> 5030 | I50: =IF(ISERROR(VLOOKUP($E50,表B_RAW!$C:$I,6,0)),"",VLOOKUP($E50,表B_RAW!$C:$I,6,0)/100) -> 0.3903 | J50: =IF(ISERROR(VLOOKUP($E50,表A_RAW!$C:$I,5,0)),"",VLOOKUP($E50,表A_RAW!$C:$I,5,0)) -> 42670 | K50: =IF(ISERROR(VLOOKUP($E50,表A_RAW!$C:$I,7,0)),"",VLOOKUP($E50,表A_RAW!$C:$I,7,0)) -> -0.8361143661 | L50: =IF(ISERROR(VLOOKUP($E50,表C_RAW!$C:$I,4,0)),"",VLOOKUP($E50,表C_RAW!$C:$I,4,0)) -> 12023 | M50: =IF(ISERROR(VLOOKUP($E50,表C_RAW!$C:$I,5,0)),"",VLOOKUP($E50,表C_RAW!$C:$I,5,0)) -> 171475 | N50: =IF(ISERROR(VLOOKUP($E50,表C_RAW!$C:$I,6,0)),"",VLOOKUP($E50,表C_RAW!$C:$I,6,0)/100) -> -0.9299
D51: 3 | E51: =VLOOKUP($C$49&D51,表C_RAW!B:D,2,0) -> 2348 海悅 | G51: =IF(ISERROR(VLOOKUP($E51,表B_RAW!$C:$I,4,0)),"",VLOOKUP($E51,表B_RAW!$C:$I,4,0)) -> 228114 | H51: =IF(ISERROR(VLOOKUP($E51,表B_RAW!$C:$I,5,0)),"",VLOOKUP($E51,表B_RAW!$C:$I,5,0)) -> 496970 | I51: =IF(ISERROR(VLOOKUP($E51,表B_RAW!$C:$I,6,0)),"",VLOOKUP($E51,表B_RAW!$C:$I,6,0)/100) -> -0.541 | J51: =IF(ISERROR(VLOOKUP($E51,表A_RAW!$C:$I,5,0)),"",VLOOKUP($E51,表A_RAW!$C:$I,5,0)) -> 714195 | K51: =IF(ISERROR(VLOOKUP($E51,表A_RAW!$C:$I,7,0)),"",VLOOKUP($E51,表A_RAW!$C:$I,7,0)) -> -0.6805998362 | L51: =IF(ISERROR(VLOOKUP($E51,表C_RAW!$C:$I,4,0)),"",VLOOKUP($E51,表C_RAW!$C:$I,4,0)) -> 725084 | M51: =IF(ISERROR(VLOOKUP($E51,表C_RAW!$C:$I,5,0)),"",VLOOKUP($E51,表C_RAW!$C:$I,5,0)) -> 1720877 | N51: =IF(ISERROR(VLOOKUP($E51,表C_RAW!$C:$I,6,0)),"",VLOOKUP($E51,表C_RAW!$C:$I,6,0)/100) -> -0.5787
C52: =VLOOKUP(B49,表C_RAW!O:T,6,0) -> -3.99 | D52: 4 | E52: =VLOOKUP($C$49&D52,表C_RAW!B:D,2,0) -> 9902 台火 | G52: =IF(ISERROR(VLOOKUP($E52,表B_RAW!$C:$I,4,0)),"",VLOOKUP($E52,表B_RAW!$C:$I,4,0)) -> 58284 | H52: =IF(ISERROR(VLOOKUP($E52,表B_RAW!$C:$I,5,0)),"",VLOOKUP($E52,表B_RAW!$C:$I,5,0)) -> 2477 | I52: =IF(ISERROR(VLOOKUP($E52,表B_RAW!$C:$I,6,0)),"",VLOOKUP($E52,表B_RAW!$C:$I,6,0)/100) -> 22.5301 | J52: =IF(ISERROR(VLOOKUP($E52,表A_RAW!$C:$I,5,0)),"",VLOOKUP($E52,表A_RAW!$C:$I,5,0)) -> 137415 | K52: =IF(ISERROR(VLOOKUP($E52,表A_RAW!$C:$I,7,0)),"",VLOOKUP($E52,表A_RAW!$C:$I,7,0)) -> -0.5758541644 | L52: =IF(ISERROR(VLOOKUP($E52,表C_RAW!$C:$I,4,0)),"",VLOOKUP($E52,表C_RAW!$C:$I,4,0)) -> 60761 | M52: =IF(ISERROR(VLOOKUP($E52,表C_RAW!$C:$I,5,0)),"",VLOOKUP($E52,表C_RAW!$C:$I,5,0)) -> 139039 | N52: =IF(ISERROR(VLOOKUP($E52,表C_RAW!$C:$I,6,0)),"",VLOOKUP($E52,表C_RAW!$C:$I,6,0)/100) -> -0.563
D53: 5 | E53: =VLOOKUP($C$49&D53,表C_RAW!B:D,2,0) -> 1435 中福 | G53: =IF(ISERROR(VLOOKUP($E53,表B_RAW!$C:$I,4,0)),"",VLOOKUP($E53,表B_RAW!$C:$I,4,0)) -> 499 | H53: =IF(ISERROR(VLOOKUP($E53,表B_RAW!$C:$I,5,0)),"",VLOOKUP($E53,表B_RAW!$C:$I,5,0)) -> 498 | I53: =IF(ISERROR(VLOOKUP($E53,表B_RAW!$C:$I,6,0)),"",VLOOKUP($E53,表B_RAW!$C:$I,6,0)/100) -> 0.002 | J53: =IF(ISERROR(VLOOKUP($E53,表A_RAW!$C:$I,5,0)),"",VLOOKUP($E53,表A_RAW!$C:$I,5,0)) -> 1026 | K53: =IF(ISERROR(VLOOKUP($E53,表A_RAW!$C:$I,7,0)),"",VLOOKUP($E53,表A_RAW!$C:$I,7,0)) -> -0.5136452242 | L53: =IF(ISERROR(VLOOKUP($E53,表C_RAW!$C:$I,4,0)),"",VLOOKUP($E53,表C_RAW!$C:$I,4,0)) -> 997 | M53: =IF(ISERROR(VLOOKUP($E53,表C_RAW!$C:$I,5,0)),"",VLOOKUP($E53,表C_RAW!$C:$I,5,0)) -> 1630 | N53: =IF(ISERROR(VLOOKUP($E53,表C_RAW!$C:$I,6,0)),"",VLOOKUP($E53,表C_RAW!$C:$I,6,0)/100) -> -0.3883
B54: 5 | C54: =VLOOKUP(B54,表C_RAW!O:P,2,0) -> 汽車工業 | D54: 1 | E54: =VLOOKUP($C$54&D54,表C_RAW!B:D,2,0) -> 2227 裕日車 | G54: =IF(ISERROR(VLOOKUP($E54,表B_RAW!$C:$I,4,0)),"",VLOOKUP($E54,表B_RAW!$C:$I,4,0)) -> 1156938 | H54: =IF(ISERROR(VLOOKUP($E54,表B_RAW!$C:$I,5,0)),"",VLOOKUP($E54,表B_RAW!$C:$I,5,0)) -> 1927320 | I54: =IF(ISERROR(VLOOKUP($E54,表B_RAW!$C:$I,6,0)),"",VLOOKUP($E54,表B_RAW!$C:$I,6,0)/100) -> -0.3997 | J54: =IF(ISERROR(VLOOKUP($E54,表A_RAW!$C:$I,5,0)),"",VLOOKUP($E54,表A_RAW!$C:$I,5,0)) -> 1889650 | K54: =IF(ISERROR(VLOOKUP($E54,表A_RAW!$C:$I,7,0)),"",VLOOKUP($E54,表A_RAW!$C:$I,7,0)) -> -0.3877501125 | L54: =IF(ISERROR(VLOOKUP($E54,表C_RAW!$C:$I,4,0)),"",VLOOKUP($E54,表C_RAW!$C:$I,4,0)) -> 3084258 | M54: =IF(ISERROR(VLOOKUP($E54,表C_RAW!$C:$I,5,0)),"",VLOOKUP($E54,表C_RAW!$C:$I,5,0)) -> 5215540 | N54: =IF(ISERROR(VLOOKUP($E54,表C_RAW!$C:$I,6,0)),"",VLOOKUP($E54,表C_RAW!$C:$I,6,0)/100) -> -0.4086
D55: 2 | E55: =VLOOKUP($C$54&D55,表C_RAW!B:D,2,0) -> 2204 中華 | G55: =IF(ISERROR(VLOOKUP($E55,表B_RAW!$C:$I,4,0)),"",VLOOKUP($E55,表B_RAW!$C:$I,4,0)) -> 2241297 | H55: =IF(ISERROR(VLOOKUP($E55,表B_RAW!$C:$I,5,0)),"",VLOOKUP($E55,表B_RAW!$C:$I,5,0)) -> 2651767 | I55: =IF(ISERROR(VLOOKUP($E55,表B_RAW!$C:$I,6,0)),"",VLOOKUP($E55,表B_RAW!$C:$I,6,0)/100) -> -0.1548 | J55: =IF(ISERROR(VLOOKUP($E55,表A_RAW!$C:$I,5,0)),"",VLOOKUP($E55,表A_RAW!$C:$I,5,0)) -> 3166100 | K55: =IF(ISERROR(VLOOKUP($E55,表A_RAW!$C:$I,7,0)),"",VLOOKUP($E55,表A_RAW!$C:$I,7,0)) -> -0.2920953223 | L55: =IF(ISERROR(VLOOKUP($E55,表C_RAW!$C:$I,4,0)),"",VLOOKUP($E55,表C_RAW!$C:$I,4,0)) -> 4893064 | M55: =IF(ISERROR(VLOOKUP($E55,表C_RAW!$C:$I,5,0)),"",VLOOKUP($E55,表C_RAW!$C:$I,5,0)) -> 7927346 | N55: =IF(ISERROR(VLOOKUP($E55,表C_RAW!$C:$I,6,0)),"",VLOOKUP($E55,表C_RAW!$C:$I,6,0)/100) -> -0.3828
D56: 3 | E56: =VLOOKUP($C$54&D56,表C_RAW!B:D,2,0) -> 2231 為升 | G56: =IF(ISERROR(VLOOKUP($E56,表B_RAW!$C:$I,4,0)),"",VLOOKUP($E56,表B_RAW!$C:$I,4,0)) -> 237095 | H56: =IF(ISERROR(VLOOKUP($E56,表B_RAW!$C:$I,5,0)),"",VLOOKUP($E56,表B_RAW!$C:$I,5,0)) -> 310044 | I56: =IF(ISERROR(VLOOKUP($E56,表B_RAW!$C:$I,6,0)),"",VLOOKUP($E56,表B_RAW!$C:$I,6,0)/100) -> -0.2353 | J56: =IF(ISERROR(VLOOKUP($E56,表A_RAW!$C:$I,5,0)),"",VLOOKUP($E56,表A_RAW!$C:$I,5,0)) -> 349098 | K56: =IF(ISERROR(VLOOKUP($E56,表A_RAW!$C:$I,7,0)),"",VLOOKUP($E56,表A_RAW!$C:$I,7,0)) -> -0.3208354101 | L56: =IF(ISERROR(VLOOKUP($E56,表C_RAW!$C:$I,4,0)),"",VLOOKUP($E56,表C_RAW!$C:$I,4,0)) -> 547139 | M56: =IF(ISERROR(VLOOKUP($E56,表C_RAW!$C:$I,5,0)),"",VLOOKUP($E56,表C_RAW!$C:$I,5,0)) -> 722473 | N56: =IF(ISERROR(VLOOKUP($E56,表C_RAW!$C:$I,6,0)),"",VLOOKUP($E56,表C_RAW!$C:$I,6,0)/100) -> -0.2427
C57: =VLOOKUP(B54,表C_RAW!O:T,6,0) -> -3.13 | D57: 4 | E57: =VLOOKUP($C$54&D57,表C_RAW!B:D,2,0) -> 1521 大億 | G57: =IF(ISERROR(VLOOKUP($E57,表B_RAW!$C:$I,4,0)),"",VLOOKUP($E57,表B_RAW!$C:$I,4,0)) -> 317037 | H57: =IF(ISERROR(VLOOKUP($E57,表B_RAW!$C:$I,5,0)),"",VLOOKUP($E57,表B_RAW!$C:$I,5,0)) -> 257079 | I57: =IF(ISERROR(VLOOKUP($E57,表B_RAW!$C:$I,6,0)),"",VLOOKUP($E57,表B_RAW!$C:$I,6,0)/100) -> 0.2332 | J57: =IF(ISERROR(VLOOKUP($E57,表A_RAW!$C:$I,5,0)),"",VLOOKUP($E57,表A_RAW!$C:$I,5,0)) -> 310452 | K57: =IF(ISERROR(VLOOKUP($E57,表A_RAW!$C:$I,7,0)),"",VLOOKUP($E57,表A_RAW!$C:$I,7,0)) -> 0.02121100847 | L57: =IF(ISERROR(VLOOKUP($E57,表C_RAW!$C:$I,4,0)),"",VLOOKUP($E57,表C_RAW!$C:$I,4,0)) -> 574116 | M57: =IF(ISERROR(VLOOKUP($E57,表C_RAW!$C:$I,5,0)),"",VLOOKUP($E57,表C_RAW!$C:$I,5,0)) -> 724320 | N57: =IF(ISERROR(VLOOKUP($E57,表C_RAW!$C:$I,6,0)),"",VLOOKUP($E57,表C_RAW!$C:$I,6,0)/100) -> -0.2074
D58: 5 | E58: =VLOOKUP($C$54&D58,表C_RAW!B:D,2,0) -> 1525 江申 | G58: =IF(ISERROR(VLOOKUP($E58,表B_RAW!$C:$I,4,0)),"",VLOOKUP($E58,表B_RAW!$C:$I,4,0)) -> 82131 | H58: =IF(ISERROR(VLOOKUP($E58,表B_RAW!$C:$I,5,0)),"",VLOOKUP($E58,表B_RAW!$C:$I,5,0)) -> 74167 | I58: =IF(ISERROR(VLOOKUP($E58,表B_RAW!$C:$I,6,0)),"",VLOOKUP($E58,表B_RAW!$C:$I,6,0)/100) -> 0.1074 | J58: =IF(ISERROR(VLOOKUP($E58,表A_RAW!$C:$I,5,0)),"",VLOOKUP($E58,表A_RAW!$C:$I,5,0)) -> 87601 | K58: =IF(ISERROR(VLOOKUP($E58,表A_RAW!$C:$I,7,0)),"",VLOOKUP($E58,表A_RAW!$C:$I,7,0)) -> -0.06244220956 | L58: =IF(ISERROR(VLOOKUP($E58,表C_RAW!$C:$I,4,0)),"",VLOOKUP($E58,表C_RAW!$C:$I,4,0)) -> 156298 | M58: =IF(ISERROR(VLOOKUP($E58,表C_RAW!$C:$I,5,0)),"",VLOOKUP($E58,表C_RAW!$C:$I,5,0)) -> 195990 | N58: =IF(ISERROR(VLOOKUP($E58,表C_RAW!$C:$I,6,0)),"",VLOOKUP($E58,表C_RAW!$C:$I,6,0)/100) -> -0.2025

Sheet 表A_RAW
D1: TSE新產業_名稱 | E1: TSE新產業_代碼 | F1: 單月營收(千元) | G1: 去年單月營收(千元) | H1: 本月較去年同期變動金額 | I1: 較去年同期變動比率(%) | J1: 產業位址 | K1: 產業家數 | L1: 排名(正向) | M1: 排名(反向) | N1: 排名(正向) | O1: 排名(反向) | P1: 產業營收 | Q1: 單月營收(千元) | R1: 去年單月營收(千元) | S1: 本月較去年同期變動金額 | T1: 較去年同期變動比率(%) | U1: 排名(正向) | V1: 排名(反向)
A2: 排名(正向) | B2: 排名(反向) | C2: 公司 | E2: 2025-02-27 | F2: 2025-02-27 | G2: 2025-02-27 | N2: =U2 -> 2 | O2: =V2 -> 33 | P2: 水泥工業 | Q2: =SUMIF($D:$D,$P2,F:F) -> 14888263 | R2: =SUMIF($D:$D,$P2,G:G) -> 9765507 | S2: =Q2-R2 -> 5122756 | T2: =S2/R2*100 -> 52.4576553 | U2: =RANK(T2,T:T) -> 2 | V2: =RANK(T2,T:T,1) -> 33
A3: =$D3&L3 -> 水泥工業1 | B3: =$D3&M3 -> 水泥工業7 | C3: 1101 台泥 | D3: 水泥工業 | E3: M1100 | F3: 9123490 | G3: 4798581 | H3: =F3-G3 -> 4324909 | I3: =IF(ISERROR((H3/G3)*100),"",(H3/(ABS(G3)))) -> 0.9012891519 | J3: =IF(E3="","",MATCH(E3,E:E,0)) -> 3 | K3: =COUNTIF(D:D,D3) -> 7 | L3: =IF(I3="","",RANK(I3,OFFSET(I$1,$J3-1,,$K3,),0)) -> 1 | M3: =IF(I3="","",RANK(I3,OFFSET(I$1,$J3-1,,$K3,),1)) -> 7 | N3: =U3 -> 29 | O3: =V3 -> 6 | P3: 食品工業 | Q3: =SUMIF($D:$D,$P3,F:F) -> 72472900 | R3: 71419939 | S3: =Q3-R3 -> 1052961 | T3: =S3/R3*100 -> 1.474323578 | U3: =RANK(T3,T:T) -> 29 | V3: 6
A4: 水泥工業4 | B4: 水泥工業4 | C4: 1102 亞泥 | D4: 水泥工業 | E4: M1100 | F4: 4184371 | G4: 3599986 | H4: =F4-G4 -> 584385 | I4: =IF(ISERROR((H4/G4)*100),"",(H4/(ABS(G4)))) -> 0.1623297979 | J4: =IF(E4="","",MATCH(E4,E:E,0)) -> 3 | K4: =COUNTIF(D:D,D4) -> 7 | L4: =IF(I4="","",RANK(I4,OFFSET(I$1,$J4-1,,$K4,),0)) -> 4 | M4: =IF(I4="","",RANK(I4,OFFSET(I$1,$J4-1,,$K4,),1)) -> 4 | N4: 16 | O4: 19 | P4: 塑膠工業 | Q4: 84462036 | R4: 71786084 | S4: 12675952 | T4: 17.65795164 | U4: 16 | V4: 19
A5: 水泥工業6 | B5: 水泥工業2 | C5: 1103 嘉泥 | D5: 水泥工業 | E5: M1100 | F5: 218169 | G5: 201295 | H5: 16874 | I5: 0.08382721876 | J5: 3 | K5: 7 | L5: =IF(I5="","",RANK(I5,OFFSET(I$1,$J5-1,,$K5,),0)) -> 6 | M5: 2 | N5: 24 | O5: 11 | P5: 紡織纖維 | Q5: 46022951 | R5: 42812644 | S5: 3210307 | T5: 7.498502078 | U5: 24 | V5: 11
A6: 水泥工業5 | B6: 水泥工業3 | C6: 1104 環泥 | D6: 水泥工業 | E6: M1100 | F6: 538636 | G6: 477355 | H6: 61281 | I6: 0.1283761561 | J6: 3 | K6: 7 | L6: 5 | M6: 3 | N6: 18 | O6: 17 | P6: 電機機械 | Q6: 37944480 | R6: 33220430 | S6: 4724050 | T6: 14.22031563 | U6: 18 | V6: 17
A7: 水泥工業3 | B7: 水泥工業5 | C7: 1108 幸福 | D7: 水泥工業 | E7: M1100 | F7: 356169 | G7: 286337 | H7: 69832 | I7: 0.2438804625 | J7: 3 | K7: 7 | L7: 3 | M7: 5 | N7: 8 | O7: 27 | P7: 電器電纜 | Q7: 23993219 | R7: 18637116 | S7: 5356103 | T7: 28.73890467 | U7: 8 | V7: 27
A8: 水泥工業7 | B8: 水泥工業1 | C8: 1109 信大 | D8: 水泥工業 | E8: M1100 | F8: 238647 | G8: 226768 | H8: 11879 | I8: 0.05238393424 | J8: 3 | K8: 7 | L8: 7 | M8: 1 | N8: 12 | O8: 23 | P8: 化學工業 | Q8: 25081085 | R8: 20566707 | S8: 4514378 | T8: 21.94993102 | U8: 12 | V8: 23
A9: 水泥工業2 | B9: 水泥工業6 | C9: 1110 東泥 | D9: 水泥工業 | E9: M1100 | F9: 228781 | G9: 175185 | H9: 53596 | I9: 0.3059394355 | J9: 3 | K9: 7 | L9: 2 | M9: 6 | N9: 14 | O9: 21 | P9: 生技醫療 | Q9: 23531548 | R9: 19397212 | S9: 4134336 | T9: 21.31407338 | U9: 14 | V9: 21
A10: 食品工業25 | B10: 食品工業5 | C10: 1201 味全 | D10: 食品工業 | E10: M1200 | F10: 1529280 | G10: 1730379 | H10: -201099 | I10: -0.1162167363 | J10: 10 | K10: 29 | L10: 25 | M10: 5 | N10: 11 | O10: 24 | P10: 玻璃陶瓷 | Q10: 3936854 | R10: 3087685 | S10: 849169 | T10: 27.50180151 | U10: 11 | V10: 24
A11: 食品工業19 | B11: 食品工業11 | C11: 1203 味王 | D11: 食品工業 | E11: M1200 | F11: 470623 | G11: 472834 | H11: -2211 | I11: -0.004676059674 | J11: 10 | K11: 29 | L11: 19 | M11: 11 | N11: 15 | O11: 20 | P11: 造紙工業 | Q11: 14958676 | R11: 12629717 | S11: 2328959 | T11: 18.44031026 | U11: 15 | V11: 20
A12: 食品工業11 | B12: 食品工業19 | C12: 1210 大成 | D12: 食品工業 | E12: M1200 | F12: 8087375 | G12: 7242006 | H12: 845369 | I12: 0.1167313311 | J12: 10 | K12: 29 | L12: 11 | M12: 19 | N12: 23 | O12: 12 | P12: 鋼鐵工業 | Q12: 78863624 | R12: 72603193 | S12: 6260431 | T12: 8.622803958 | U12: 23 | V12: 12
A13: 食品工業2 | B13: 食品工業28 | C13: 1213 大飲 | D13: 食品工業 | E13: M1200 | F13: 24067 | G13: 14504 | H13: 9563 | I13: 0.6593353558 | J13: 10 | K13: 29 | L13: 2 | M13: 28 | N13: 17 | O13: 18 | P13: 橡膠工業 | Q13: 17108860 | R13: 14583732 | S13: 2525128 | T13: 17.31469009 | U13: 17 | V13: 18
A14: 食品工業17 | B14: 食品工業13 | C14: 1215 卜蜂 | D14: 食品工業 | E14: M1200 | F14: 2030712 | G14: 2030911 | H14: -199 | I14: -9.798558381e-05 | J14: 10 | K14: 29 | L14: 17 | M14: 13 | N14: 22 | O14: 13 | P14: 汽車工業 | Q14: 53702980 | R14: 48253485 | S14: 5449495 | T14: 11.29347445 | U14: 22 | V14: 13
A15: 食品工業20 | B15: 食品工業10 | C15: 1216 統一 | D15: 食品工業 | E15: M1200 | F15: 47574945 | G15: 47898965 | H15: -324020 | I15: -0.006764655562 | J15: 10 | K15: 29 | L15: 20 | M15: 10 | N15: 9 | O15: 26 | P15: 半導體 | Q15: 512438724 | R15: 400112161 | S15: 112326563 | T15: 28.0737688 | U15: 9 | V15: 26
A16: 食品工業21 | B16: 食品工業9 | C16: 1217 愛之味 | D16: 食品工業 | E16: M1200 | F16: 313901 | G16: 323591 | H16: -9690 | I16: -0.02994520861 | J16: 10 | K16: 29 | L16: 21 | M16: 9 | N16: 4 | O16: 31 | P16: 電腦及週邊 | Q16: 709669289 | R16: 510066599 | S16: 199602690 | T16: 39.13267216 | U16: 4 | V16: 31
A17: 食品工業18 | B17: 食品工業12 | C17: 1218 泰山 | D17: 食品工業 | E17: M1200 | F17: 786116 | G17: 787943 | H17: -1827 | I17: -0.002318695642 | J17: 10 | K17: 29 | L17: 18 | M17: 12 | N17: 13 | O17: 22 | P17: 光電業 | Q17: 98538964 | R17: 80840370 | S17: 17698594 | T17: 21.89326199 | U17: 13 | V17: 22
A18: 食品工業10 | B18: 食品工業20 | C18: 1219 福壽 | D18: 食品工業 | E18: M1200 | F18: 1162280 | G18: 1036305 | H18: 125975 | I18: 0.1215617024 | J18: 10 | K18: 29 | L18: 10 | M18: 20 | N18: 21 | O18: 14 | P18: 通信網路業 | Q18: 97289801 | R18: 86477208 | S18: 10812593 | T18: 12.50340205 | U18: 21 | V18: 14
A19: 食品工業3 | B19: 食品工業27 | C19: 1220 台榮 | D19: 食品工業 | E19: M1200 | F19: 270707 | G19: 189790 | H19: 80917 | I19: 0.4263501765 | J19: 10 | K19: 29 | L19: 3 | M19: 27 | N19: 7 | O19: 28 | P19: 電子零組件 | Q19: 196380310 | R19: 147213766 | S19: 49166544 | T19: 33.39806143 | U19: 7 | V19: 28
A20: 食品工業9 | B20: 食品工業21 | C20: 1225 福懋油 | D20: 食品工業 | E20: M1200 | F20: 1068503 | G20: 909256 | H20: 159247 | I20: 0.1751398946 | J20: 10 | K20: 29 | L20: 9 | M20: 21 | N20: 6 | O20: 29 | P20: 電子通路業 | Q20: 248978309 | R20: 183062109 | S20: =Q20-R20 -> 65916200 | T20: 36.00756069 | U20: 6 | V20: 29
A21: 食品工業6 | B21: 食品工業24 | C21: 1227 佳格 | D21: 食品工業 | E21: M1200 | F21: 1605125 | G21: 1318295 | H21: 286830 | I21: 0.2175764908 | J21: 10 | K21: 29 | L21: 6 | M21: 24 | N21: 5 | O21: 30 | P21: 資訊服務業 | Q21: 15539762 | R21: 11230664 | S21: 4309098 | T21: 38.36904033 | U21: 5 | V21: 30
A22: 食品工業16 | B22: 食品工業14 | C22: 1229 聯華 | D22: 食品工業 | E22: M1200 | F22: 789043 | G22: 786464 | H22: 2579 | I22: 0.00327923465 | J22: 10 | K22: 29 | L22: 16 | M22: 14 | N22: 1 | O22: 34 | P22: 其他電子業 | Q22: 619963205 | R22: 402165244 | S22: 217797961 | T22: 54.15633605 | U22: 1 | V22: 34
A23: 食品工業22 | B23: 食品工業8 | C23: 1231 聯華食 | D23: 食品工業 | E23: M1200 | F23: 834848 | G23: 884138 | H23: -49290 | I23: -0.05574921562 | J23: 10 | K23: 29 | L23: 22 | M23: 8 | N23: 3 | O23: 32 | P23: 綠能環保 | Q23: 8538615 | R23: 5947682 | S23: 2590933 | T23: 43.56206334 | U23: 3 | V23: 32
A24: 食品工業15 | B24: 食品工業15 | C24: 1232 大統益 | D24: 食品工業 | E24: M1200 | F24: 1633429 | G24: 1595396 | H24: 38033 | I24: 0.02383922236 | J24: 10 | K24: 29 | L24: 15 | M24: 15 | N24: 26 | O24: 9 | P24: 數位雲端 | Q24: 16477828 | R24: 15583152 | S24: 894676 | T24: 5.741303172 | U24: 26 | V24: 9
A25: 食品工業26 | B25: 食品工業4 | C25: 1233 天仁 | D25: 食品工業 | E25: M1200 | F25: 161766 | G25: 184141 | H25: -22375 | I25: -0.1215101471 | J25: 10 | K25: 29 | L25: 26 | M25: 4 | N25: 10 | O25: 25 | P25: 建材營造 | Q25: 33141286 | R25: 25900022 | S25: 7241264 | T25: 27.95852451 | U25: 10 | V25: 25
A26: 食品工業27 | B26: 食品工業3 | C26: 1234 黑松 | D26: 食品工業 | E26: M1200 | F26: 777480 | G26: 920491 | H26: -143011 | I26: -0.1553638221 | J26: 10 | K26: 29 | L26: 27 | M26: 3 | N26: 25 | O26: 10 | P26: 航運業 | Q26: 118008204 | R26: 111046320 | S26: 6961884 | T26: 6.269351384 | U26: 25 | V26: 10
A27: 食品工業28 | B27: 食品工業2 | C27: 1235 興泰 | D27: 食品工業 | E27: M1200 | F27: 1746 | G27: 2152 | H27: -406 | I27: -0.18866171 | J27: 10 | K27: 29 | L27: 28 | M27: 2 | N27: 32 | O27: 3 | P27: 觀光餐旅 | Q27: 14247354 | R27: 15177707 | S27: -930353 | T27: -6.129733563 | U27: 32 | V27: 3
A28: 食品工業24 | B28: 食品工業6 | C28: 1236 宏亞 | D28: 食品工業 | E28: M1200 | F28: 87822 | G28: 98637 | H28: -10815 | I28: -0.1096444539 | J28: 10 | K28: 29 | L28: 24 | M28: 6 | N28: 20 | O28: 15 | P28: 金融業 | Q28: 201575581 | R28: 178298405 | S28: 23277176 | T28: 13.05517904 | U28: 20 | V28: 15
A29: 食品工業23 | B29: 食品工業7 | C29: 1256 鮮活果汁-KY | D29: 食品工業 | E29: M1200 | F29: 179442 | G29: 201498 | H29: -22056 | I29: -0.1094601435 | J29: 10 | K29: 29 | L29: 23 | M29: 7 | N29: 34 | O29: 1 | P29: 貿易百貨 | Q29: 46321457 | R29: 51853986 | S29: -5532529 | T29: -10.66943822 | U29: 34 | V29: 1
A30: 食品工業7 | B30: 食品工業23 | C30: 1264 德麥 | D30: 食品工業 | E30: M1200 | F30: 412565 | G30: 342042 | H30: 70523 | I30: 0.2061822817 | J30: 10 | K30: 29 | L30: 7 | M30: 23 | N30: =U30 -> 33 | O30: =V30 -> 2 | P30: 文化創意業 | Q30: =SUMIF($D:$D,$P30,F:F) -> 5026601 | R30: =SUMIF($D:$D,$P30,G:G) -> 5492355 | S30: =Q30-R30 -> -465754 | T30: =S30/R30*100 -> -8.480041804 | U30: =RANK(T30,T:T) -> 33 | V30: =RANK(T30,T:T,1) -> 2
A31: 食品工業8 | B31: 食品工業22 | C31: 1294 漢田生技 | D31: 食品工業 | E31: M1200 | F31: 59494 | G31: 49760 | H31: 9734 | I31: 0.1956189711 | J31: 10 | K31: 29 | L31: 8 | M31: 22 | N31: 30 | O31: 5 | P31: 農業科技 | Q31: 360036 | R31: 360958 | S31: -922 | T31: -0.2554313798 | U31: 30 | V31: 5
A32: 食品工業13 | B32: 食品工業17 | C32: 1702 南僑 | D32: 食品工業 | E32: M1200 | F32: 1633026 | G32: 1564892 | H32: 68134 | I32: 0.04353910685 | J32: 10 | K32: 29 | L32: 13 | M32: 17 | N32: 19 | O32: 16 | P32: 運動休閒 | Q32: 51082234 | R32: 45171687 | S32: 5910547 | T32: 13.08462755 | U32: 19 | V32: 16
A33: 食品工業5 | B33: 食品工業25 | C33: 1737 臺鹽 | D33: 食品工業 | E33: M1200 | F33: 241915 | G33: 196732 | H33: 45183 | I33: 0.2296677714 | J33: 10 | K33: 29 | L33: 5 | M33: 25 | N33: 28 | O33: 7 | P33: 居家生活 | Q33: 19418985 | R33: 19030811 | S33: 388174 | T33: 2.039713389 | U33: 28 | V33: 7
A34: 食品工業4 | B34: 食品工業26 | C34: 1796 金穎生技 | D34: 食品工業 | E34: M1200 | F34: 44823 | G34: 33053 | H34: 11770 | I34: 0.3560947569 | J34: 10 | K34: 29 | L34: 4 | M34: 26 | N34: 31 | O34: 4 | P34: 油電燃氣業 | Q34: 61071100 | R34: 63124429 | S34: -2053329 | T34: -3.252827839 | U34: 31 | V34: 4
A35: 食品工業29 | B35: 食品工業1 | C35: 3054 立萬利 | D35: 食品工業 | E35: M1200 | F35: 6793 | G35: 10338 | H35: -3545 | I35: -0.3429096537 | J35: 10 | K35: 29 | L35: 29 | M35: 1 | N35: 27 | O35: 8 | P35: 其他 | Q35: 49619290 | R35: 47505033 | S35: 2114257 | T35: 4.450595793 | U35: 27 | V35: 8
A36: 食品工業14 | B36: 食品工業16 | C36: 4205 中華食 | D36: 食品工業 | E36: M1200 | F36: 143809 | G36: 138589 | H36: 5220 | I36: 0.03766532697 | J36: 10 | K36: 29 | L36: 14 | M36: 16 | N36: 0 | O36: 0
A37: 食品工業12 | B37: 食品工業18 | C37: 4207 環泰 | D37: 食品工業 | E37: M1200 | F37: 443554 | G37: 398220 | H37: 45334 | I37: 0.1138415951 | J37: 10 | K37: 29 | L37: 12 | M37: 18 | N37: 0 | O37: 0
A38: 食品工業1 | B38: 食品工業29 | C38: 6846 綠茵 | D38: 食品工業 | E38: M1200 | F38: 97711 | G38: 58617 | H38: 39094 | I38: 0.666939625 | J38: 10 | K38: 29 | L38: 1 | M38: 29 | N38: 0 | O38: 0
A39: 塑膠工業11 | B39: 塑膠工業15 | C39: 1301 台塑 | D39: 塑膠工業 | E39: M1300 | F39: 16129819 | G39: 12932676 | H39: 3197143 | I39: 0.247214343 | J39: 39 | K39: 25 | L39: 11 | M39: 15 | N39: 0 | O39: 0
A40: 塑膠工業8 | B40: 塑膠工業18 | C40: 1303 南亞 | D40: 塑膠工業 | E40: M1300 | F40: 22080604 | G40: 16711275 | H40: 5369329 | I40: 0.3212997811 | J40: 39 | K40: 25 | L40: 8 | M40: 18 | N40: 0 | O40: 0
A41: 塑膠工業15 | B41: 塑膠工業11 | C41: 1304 台聚 | D41: 塑膠工業 | E41: M1300 | F41: 4165011 | G41: 3572913 | H41: 592098 | I41: 0.1657185607 | J41: 39 | K41: 25 | L41: 15 | M41: 11 | N41: 0 | O41: 0
A42: 塑膠工業20 | B42: 塑膠工業6 | C42: 1305 華夏 | D42: 塑膠工業 | E42: M1300 | F42: 850423 | G42: 854801 | H42: -4378 | I42: -0.005121659895 | J42: 39 | K42: 25 | L42: 20 | M42: 6 | N42: 0 | O42: 0
A43: 塑膠工業4 | B43: 塑膠工業22 | C43: 1307 三芳 | D43: 塑膠工業 | E43: M1300 | F43: 949002 | G43: 670344 | H43: 278658 | I43: 0.4156940317 | J43: 39 | K43: 25 | L43: 4 | M43: 22 | N43: 0 | O43: 0
A44: 塑膠工業17 | B44: 塑膠工業9 | C44: 1308 亞聚 | D44: 塑膠工業 | E44: M1300 | F44: 532521 | G44: 496084 | H44: 36437 | I44: 0.07344925456 | J44: 39 | K44: 25 | L44: 17 | M44: 9 | N44: 0 | O44: 0
A45: 塑膠工業7 | B45: 塑膠工業19 | C45: 1309 台達化 | D45: 塑膠工業 | E45: M1300 | F45: 1445653 | G45: 1084150 | H45: 361503 | I45: 0.3334437117 | J45: 39 | K45: 25 | L45: 7 | M45: 19 | N45: 0 | O45: 0
A46: 塑膠工業19 | B46: 塑膠工業7 | C46: 1310 台苯 | D46: 塑膠工業 | E46: M1300 | F46: 720506 | G46: 700220 | H46: 20286 | I46: 0.02897089486 | J46: 39 | K46: 25 | L46: 19 | M46: 7 | N46: 0 | O46: 0
A47: 塑膠工業2 | B47: 塑膠工業24 | C47: 1312 國喬 | D47: 塑膠工業 | E47: M1300 | F47: 1791123 | G47: 1082954 | H47: 708169 | I47: 0.6539234353 | J47: 39 | K47: 25 | L47: 2 | M47: 24 | N47: 0 | O47: 0
A48: 塑膠工業10 | B48: 塑膠工業16 | C48: 1313 聯成 | D48: 塑膠工業 | E48: M1300 | F48: 4286677 | G48: 3405651 | H48: 881026 | I48: 0.2586953273 | J48: 39 | K48: 25 | L48: 10 | M48: 16 | N48: 0 | O48: 0
A49: 塑膠工業22 | B49: 塑膠工業4 | C49: 1314 中石化 | D49: 塑膠工業 | E49: M1300 | F49: 2043929 | G49: 2547610 | H49: -503681 | I49: -0.1977072629 | J49: 39 | K49: 25 | L49: 22 | M49: 4 | N49: 0 | O49: 0
A50: 塑膠工業16 | B50: 塑膠工業10 | C50: 1315 達新 | D50: 塑膠工業 | E50: M1300 | F50: 184467 | G50: 167017 | H50: 17450 | I50: 0.1044803822 | J50: 39 | K50: 25 | L50: 16 | M50: 10 | N50: 0 | O50: 0
A51: 塑膠工業14 | B51: 塑膠工業12 | C51: 1321 大洋 | D51: 塑膠工業 | E51: M1300 | F51: 304849 | G51: 257242 | H51: 47607 | I51: 0.1850669797 | J51: 39 | K51: 25 | L51: 14 | M51: 12 | N51: 0 | O51: 0
A52: 塑膠工業25 | B52: 塑膠工業1 | C52: 1323 永裕 | D52: 塑膠工業 | E52: M1300 | F52: 143000 | G52: 221573 | H52: -78573 | I52: -0.3546145063 | J52: 39 | K52: 25 | L52: 25 | M52: 1 | N52: 0 | O52: 0
A53: 塑膠工業12 | B53: 塑膠工業14 | C53: 1324 地球 | D53: 塑膠工業 | E53: M1300 | F53: 62235 | G53: 49972 | H53: 12263 | I53: 0.2453974226 | J53: 39 | K53: 25 | L53: 12 | M53: 14 | N53: 0 | O53: 0
A54: 塑膠工業21 | B54: 塑膠工業5 | C54: 1325 恒大 | D54: 塑膠工業 | E54: M1300 | F54: 23183 | G54: 26501 | H54: -3318 | I54: -0.1252028225 | J54: 39 | K54: 25 | L54: 21 | M54: 5 | N54: 0 | O54: 0
A55: 塑膠工業18 | B55: 塑膠工業8 | C55: 1326 台化 | D55: 塑膠工業 | E55: M1300 | F55: 27143490 | G55: 25679379 | H55: 1464111 | I55: 0.05701504698 | J55: 39 | K55: 25 | L55: 18 | M55: 8 | N55: 0 | O55: 0
A56: 塑膠工業24 | B56: 塑膠工業2 | C56: 1337 再生-KY | D56: 塑膠工業 | E56: M1300 | F56: 61049 | G56: 88666 | H56: -27617 | I56: -0.3114722667 | J56: 39 | K56: 25 | L56: 24 | M56: 2 | N56: 0 | O56: 0
A57: 塑膠工業13 | B57: 塑膠工業13 | C57: 1340 勝悅-KY | D57: 塑膠工業 | E57: M1300 | F57: 15979 | G57: 12923 | H57: 3056 | I57: 0.2364775981 | J57: 39 | K57: 25 | L57: 13 | M57: 13 | N57: 0 | O57: 0
A58: 塑膠工業5 | B58: 塑膠工業21 | C58: 1341 富林-KY | D58: 塑膠工業 | E58: M1300 | F58: 187099 | G58: 135136 | H58: 51963 | I58: 0.384523739 | J58: 39 | K58: 25 | L58: 5 | M58: 21 | N58: 0 | O58: 0
A59: 塑膠工業1 | B59: 塑膠工業25 | C59: 4303 信立 | D59: 塑膠工業 | E59: M1300 | F59: 84663 | G59: 8092 | H59: 76571 | I59: 9.46255561 | J59: 39 | K59: 25 | L59: 1 | M59: 25 | N59: 0 | O59: 0
A60: 塑膠工業6 | B60: 塑膠工業20 | C60: 4304 勝昱 | D60: 塑膠工業 | E60: M1300 | F60: 30112 | G60: 22369 | H60: 7743 | I60: 0.3461486879 | J60: 39 | K60: 25 | L60: 6 | M60: 20 | N60: 0 | O60: 0
A61: 塑膠工業3 | B61: 塑膠工業23 | C61: 4305 世坤 | D61: 塑膠工業 | E61: M1300 | F61: 82577 | G61: 55356 | H61: 27221 | I61: 0.4917443457 | J61: 39 | K61: 25 | L61: 3 | M61: 23 | N61: 0 | O61: 0
A62: 塑膠工業9 | B62: 塑膠工業17 | C62: 4306 炎洲 | D62: 塑膠工業 | E62: M1300 | F62: 969662 | G62: 769012 | H62: 200650 | I62: 0.2609192054 | J62: 39 | K62: 25 | L62: 9 | M62: 17 | N62: 0 | O62: 0
A63: 塑膠工業23 | B63: 塑膠工業3 | C63: 9950 萬國通 | D63: 塑膠工業 | E63: M1300 | F63: 174403 | G63: 234168 | H63: -59765 | I63: -0.2552227461 | J63: 39 | K63: 25 | L63: 23 | M63: 3 | N63: 0 | O63: 0
A64: 紡織纖維40 | B64: 紡織纖維12 | C64: 1402 遠東新 | D64: 紡織纖維 | E64: M1400 | F64: 19649054 | G64: 19485883 | H64: 163171 | I64: 0.008373805796 | J64: 64 | K64: 51 | L64: 40 | M64: 12 | N64: 0 | O64: 0
A65: 紡織纖維34 | B65: 紡織纖維18 | C65: 1409 新纖 | D65: 紡織纖維 | E65: M1400 | F65: 3391760 | G65: 3162232 | H65: 229528 | I65: 0.07258417472 | J65: 64 | K65: 51 | L65: 34 | M65: 18 | N65: 0 | O65: 0
A66: 紡織纖維27 | B66: 紡織纖維25 | C66: 1410 南染 | D66: 紡織纖維 | E66: M1400 | F66: 19688 | G66: 17180 | H66: 2508 | I66: 0.145983702 | J66: 64 | K66: 51 | L66: 27 | M66: 25 | N66: 0 | O66: 0
A67: =$D67&L67 -> 紡織纖維36 | B67: =$D67&M67 -> 紡織纖維16 | C67: 1413 宏洲 | D67: 紡織纖維 | E67: M1400 | F67: 178124 | G67: 167218 | H67: 10906 | I67: 0.06522025141 | J67: =IF(E67="","",MATCH(E67,E:E,0)) -> 64 | K67: =COUNTIF(D:D,D67) -> 51 | L67: 36 | M67: 16 | N67: 0 | O67: 0
A68: 紡織纖維37 | B68: 紡織纖維15 | C68: 1414 東和 | D68: 紡織纖維 | E68: M1400 | F68: 40915 | G68: 38876 | H68: =F68-G68 -> 2039 | I68: =IF(ISERROR((H68/G68)*100),"",(H68/(ABS(G68)))) -> 0.05244881161 | J68: 64 | K68: 51 | L68: =IF(I68="","",RANK(I68,OFFSET(I$1,$J68-1,,$K68,),0)) -> 37 | M68: =IF(I68="","",RANK(I68,OFFSET(I$1,$J68-1,,$K68,),1)) -> 15 | N68: 0 | O68: 0
A69: 紡織纖維50 | B69: 紡織纖維2 | C69: 1417 嘉裕 | D69: 紡織纖維 | E69: M1400 | F69: 16382 | G69: 67449 | H69: -51067 | I69: -0.7571201945 | J69: 64 | K69: 51 | L69: 50 | M69: 2 | N69: 0 | O69: 0
A70: 紡織纖維16 | B70: 紡織纖維36 | C70: 1418 東華 | D70: 紡織纖維 | E70: M1400 | F70: 1312 | G70: 970 | H70: 342 | I70: 0.3525773196 | J70: 64 | K70: 51 | L70: 16 | M70: 36 | N70: 0 | O70: 0
A71: 紡織纖維22 | B71: 紡織纖維30 | C71: 1419 新紡 | D71: 紡織纖維 | E71: M1400 | F71: 330627 | G71: 275048 | H71: 55579 | I71: 0.2020701841 | J71: 64 | K71: 51 | L71: 22 | M71: 30 | N71: 0 | O71: 0
A72: 紡織纖維46 | B72: 紡織纖維6 | C72: 1423 利華 | D72: 紡織纖維 | E72: M1400 | F72: 11062 | G72: 15335 | H72: -4273 | I72: -0.2786436257 | J72: 64 | K72: 51 | L72: 46 | M72: 6 | N72: 0 | O72: 0
A73: 紡織纖維25 | B73: 紡織纖維27 | C73: 1434 福懋 | D73: 紡織纖維 | E73: M1400 | F73: 2564073 | G73: 2163422 | H73: 400651 | I73: 0.1851931801 | J73: 64 | K73: 51 | L73: 25 | M73: 27 | N73: 0 | O73: 0
A74: 紡織纖維30 | B74: 紡織纖維22 | C74: 1440 南紡 | D74: 紡織纖維 | E74: M1400 | F74: 1418665 | G74: 1260732 | H74: 157933 | I74: 0.1252708744 | J74: 64 | K74: 51 | L74: 30 | M74: 22 | N74: 0 | O74: 0
A75: 紡織纖維5 | B75: 紡織纖維47 | C75: 1441 大東 | D75: 紡織纖維 | E75: M1400 | F75: 108493 | G75: 57190 | H75: 51303 | I75: 0.8970624235 | J75: 64 | K75: 51 | L75: 5 | M75: 47 | N75: 0 | O75: 0
A76: 紡織纖維31 | B76: 紡織纖維21 | C76: 1444 力麗 | D76: 紡織纖維 | E76: M1400 | F76: 583534 | G76: 520525 | H76: 63009 | I76: 0.121048941 | J76: 64 | K76: 51 | L76: 31 | M76: 21 | N76: 0 | O76: 0
A77: 紡織纖維44 | B77: 紡織纖維8 | C77: 1445 大宇 | D77: 紡織纖維 | E77: M1400 | F77: 50509 | G77: 58832 | H77: -8323 | I77: -0.1414706282 | J77: 64 | K77: 51 | L77: 44 | M77: 8 | N77: 0 | O77: 0
A78: 紡織纖維51 | B78: 紡織纖維1 | C78: 1446 宏和 | D78: 紡織纖維 | E78: M1400 | F78: 10852 | G78: 467749 | H78: -456897 | I78: -0.9767995228 | J78: 64 | K78: 51 | L78: 51 | M78: 1 | N78: 0 | O78: 0
A79: 紡織纖維43 | B79: 紡織纖維9 | C79: 1447 力鵬 | D79: 紡織纖維 | E79: M1400 | F79: 1714781 | G79: 1892901 | H79: -178120 | I79: -0.09409895182 | J79: 64 | K79: 51 | L79: 43 | M79: 9 | N79: 0 | O79: 0
A80: 紡織纖維20 | B80: 紡織纖維32 | C80: 1449 佳和 | D80: 紡織纖維 | E80: M1400 | F80: 232350 | G80: 191976 | H80: 40374 | I80: 0.2103075384 | J80: 64 | K80: 51 | L80: 20 | M80: 32 | N80: 0 | O80: 0
A81: 紡織纖維45 | B81: 紡織纖維7 | C81: 1451 年興 | D81: 紡織纖維 | E81: M1400 | F81: 438156 | G81: 522817 | H81: -84661 | I81: -0.1619323779 | J81: 64 | K81: 51 | L81: 45 | M81: 7 | N81: 0 | O81: 0
A82: 紡織纖維10 | B82: 紡織纖維42 | C82: 1452 宏益 | D82: 紡織纖維 | E82: M1400 | F82: 129933 | G82: 83274 | H82: 46659 | I82: 0.5603069385 | J82: 64 | K82: 51 | L82: 10 | M82: 42 | N82: 0 | O82: 0
A83: 紡織纖維18 | B83: 紡織纖維34 | C83: 1454 台富 | D83: 紡織纖維 | E83: M1400 | F83: 136416 | G83: 109876 | H83: 26540 | I83: 0.2415450144 | J83: 64 | K83: 51 | L83: 18 | M83: 34 | N83: 0 | O83: 0
A84: 紡織纖維41 | B84: 紡織纖維11 | C84: 1455 集盛 | D84: 紡織纖維 | E84: M1400 | F84: 641314 | G84: 643874 | H84: -2560 | I84: -0.003975933179 | J84: 64 | K84: 51 | L84: 41 | M84: 11 | N84: 0 | O84: 0
A85: 紡織纖維38 | B85: 紡織纖維14 | C85: 1457 宜進 | D85: 紡織纖維 | E85: M1400 | F85: 254736 | G85: 245218 | H85: 9518 | I85: 0.03881444266 | J85: 64 | K85: 51 | L85: 38 | M85: 14 | N85: 0 | O85: 0
A86: 紡織纖維11 | B86: 紡織纖維41 | C86: 1459 聯發 | D86: 紡織纖維 | E86: M1400 | F86: 121057 | G86: 77701 | H86: 43356 | I86: 0.5579850967 | J86: 64 | K86: 51 | L86: 11 | M86: 41 | N86: 0 | O86: 0
A87: 紡織纖維28 | B87: 紡織纖維24 | C87: 1460 宏遠 | D87: 紡織纖維 | E87: M1400 | F87: 729701 | G87: 647172 | H87: 82529 | I87: 0.1275225133 | J87: 64 | K87: 51 | L87: 28 | M87: 24 | N87: 0 | O87: 0
A88: 紡織纖維1 | B88: 紡織纖維51 | C88: 1463 強盛新 | D88: 紡織纖維 | E88: M1400 | F88: 178204 | G88: 24404 | H88: 153800 | I88: 6.302245534 | J88: 64 | K88: 51 | L88: 1 | M88: 51 | N88: 0 | O88: 0
A89: 紡織纖維2 | B89: 紡織纖維50 | C89: 1464 得力 | D89: 紡織纖維 | E89: M1400 | F89: 1202274 | G89: 620885 | H89: 581389 | I89: 0.9363875758 | J89: 64 | K89: 51 | L89: 2 | M89: 50 | N89: 0 | O89: 0
A90: 紡織纖維47 | B90: 紡織纖維5 | C90: 1465 偉全 | D90: 紡織纖維 | E90: M1400 | F90: 15920 | G90: 29144 | H90: -13224 | I90: -0.4537469119 | J90: 64 | K90: 51 | L90: 47 | M90: 5 | N90: 0 | O90: 0
A91: 紡織纖維12 | B91: 紡織纖維40 | C91: 1466 聚隆 | D91: 紡織纖維 | E91: M1400 | F91: 232850 | G91: 153502 | H91: 79348 | I91: 0.5169183463 | J91: 64 | K91: 51 | L91: 12 | M91: 40 | N91: 0 | O91: 0
A92: 紡織纖維14 | B92: 紡織纖維38 | C92: 1467 南緯 | D92: 紡織纖維 | E92: M1400 | F92: 469955 | G92: 329608 | H92: 140347 | I92: 0.4257997379 | J92: 64 | K92: 51 | L92: 14 | M92: 38 | N92: 0 | O92: 0
A93: 紡織纖維17 | B93: 紡織纖維35 | C93: 1468 昶和 | D93: 紡織纖維 | E93: M1400 | F93: 69212 | G93: 53303 | H93: 15909 | I93: 0.2984635011 | J93: 64 | K93: 51 | L93: 17 | M93: 35 | N93: 0 | O93: 0
A94: 紡織纖維39 | B94: 紡織纖維13 | C94: 1470 大統新創 | D94: 紡織纖維 | E94: M1400 | F94: 55157 | G94: 54376 | H94: 781 | I94: 0.01436295424 | J94: 64 | K94: 51 | L94: 39 | M94: 13 | N94: =U94 -> 0 | O94: =V94 -> 0
A95: 紡織纖維32 | B95: 紡織纖維20 | C95: 1473 台南 | D95: 紡織纖維 | E95: M1400 | F95: 977784 | G95: 881966 | H95: 95818 | I95: 0.1086413762 | J95: 64 | K95: 51 | L95: 32 | M95: 20 | N95: 0 | O95: 0
A96: 紡織纖維13 | B96: 紡織纖維39 | C96: 1474 弘裕 | D96: 紡織纖維 | E96: M1400 | F96: 251702 | G96: 173028 | H96: 78674 | I96: 0.4546894144 | J96: 64 | K96: 51 | L96: 13 | M96: 39 | N96: 0 | O96: 0
A97: 紡織纖維24 | B97: 紡織纖維28 | C97: 1475 業旺 | D97: 紡織纖維 | E97: M1400 | F97: 146029 | G97: 122214 | H97: 23815 | I97: 0.194863109 | J97: 64 | K97: 51 | L97: 24 | M97: 28 | N97: 0 | O97: 0
A98: 紡織纖維21 | B98: 紡織纖維31 | C98: 1476 儒鴻 | D98: 紡織纖維 | E98: M1400 | F98: 2633763 | G98: 2181576 | H98: 452187 | I98: 0.2072753826 | J98: 64 | K98: 51 | L98: 21 | M98: 31 | N98: 0 | O98: 0
A99: 紡織纖維33 | B99: 紡織纖維19 | C99: 1477 聚陽 | D99: 紡織纖維 | E99: M1400 | F99: 2969487 | G99: 2726304 | H99: 243183 | I99: 0.08919878341 | J99: 64 | K99: 51 | L99: 33 | M99: 19 | N99: 0 | O99: 0
A100: 紡織纖維15 | B100: 紡織纖維37 | C100: 4401 東隆興 | D100: 紡織纖維 | E100: M1400 | F100: 348724 | G100: 251295 | H100: 97429 | I100: 0.3877076742 | J100: 64 | K100: 51 | L100: 15 | M100: 37 | N100: 0 | O100: 0
A101: 紡織纖維49 | B101: 紡織纖維3 | C101: 4402 郡都開發 | D101: 紡織纖維 | E101: M1400 | F101: 1287 | G101: 3206 | H101: -1919 | I101: -0.5985651903 | J101: 64 | K101: 51 | L101: 49 | M101: 3 | N101: 0 | O101: 0
A102: 紡織纖維4 | B102: 紡織纖維48 | C102: 4406 新昕纖 | D102: 紡織纖維 | E102: M1400 | F102: 43656 | G102: 22841 | H102: 20815 | I102: 0.9112998555 | J102: 64 | K102: 51 | L102: 4 | M102: 48 | N102: 0 | O102: 0
A103: 紡織纖維7 | B103: 紡織纖維45 | C103: 4413 飛寶企業 | D103: 紡織纖維 | E103: M1400 | F103: 57975 | G103: 32832 | H103: 25143 | I103: 0.7658077485 | J103: 64 | K103: 51 | L103: 7 | M103: 45 | N103: 0 | O103: 0
A104: 紡織纖維35 | B104: 紡織纖維17 | C104: 4414 如興 | D104: 紡織纖維 | E104: M1400 | F104: 1223003 | G104: 1143507 | H104: 79496 | I104: 0.06951946949 | J104: 64 | K104: 51 | L104: 35 | M104: 17 | N104: 0 | O104: 0
A105: 紡織纖維23 | B105: 紡織纖維29 | C105: 4417 金洲 | D105: 紡織纖維 | E105: M1400 | F105: 188568 | G105: 157450 | H105: 31118 | I105: 0.1976373452 | J105: 64 | K105: 51 | L105: 23 | M105: 29 | N105: 0 | O105: 0
A106: 紡織纖維9 | B106: 紡織纖維43 | C106: 4420 光明 | D106: 紡織纖維 | E106: M1400 | F106: 74540 | G106: 46847 | H106: 27693 | I106: 0.5911371059 | J106: 64 | K106: 51 | L106: 9 | M106: 43 | N106: 0 | O106: 0
A107: 紡織纖維42 | B107: 紡織纖維10 | C107: 4426 利勤 | D107: 紡織纖維 | E107: M1400 | F107: 79501 | G107: 82417 | H107: -2916 | I107: -0.03538105003 | J107: 64 | K107: 51 | L107: 42 | M107: 10 | N107: 0 | O107: 0
A108: 紡織纖維48 | B108: 紡織纖維4 | C108: 4432 銘旺實 | D108: 紡織纖維 | E108: M1400 | F108: 37475 | G108: 91750 | H108: -54275 | I108: -0.5915531335 | J108: 64 | K108: 51 | L108: 48 | M108: 4 | N108: 0 | O108: 0
A109: 紡織纖維3 | B109: 紡織纖維49 | C109: 4433 興采 | D109: 紡織纖維 | E109: M1400 | F109: 306455 | G109: 160087 | H109: 146368 | I109: 0.9143028478 | J109: 64 | K109: 51 | L109: 3 | M109: 49 | N109: 0 | O109: 0
A110: 紡織纖維29 | B110: 紡織纖維23 | C110: 4438 廣越 | D110: 紡織纖維 | E110: M1400 | F110: 826547 | G110: 734206 | H110: 92341 | I110: 0.1257698793 | J110: 64 | K110: 51 | L110: 29 | M110: 23 | N110: 0 | O110: 0
A111: 紡織纖維8 | B111: 紡織纖維44 | C111: 4439 冠星-KY | D111: 紡織纖維 | E111: M1400 | F111: 531352 | G111: 316149 | H111: 215203 | I111: 0.6807011884 | J111: 64 | K111: 51 | L111: 8 | M111: 44 | N111: 0 | O111: 0
A112: 紡織纖維26 | B112: 紡織纖維26 | C112: 4440 宜新實業 | D112: 紡織纖維 | E112: M1400 | F112: 72812 | G112: 62794 | H112: 10018 | I112: 0.1595375354 | J112: 64 | K112: 51 | L112: 26 | M112: 26 | N112: 0 | O112: 0
A113: 紡織纖維6 | B113: 紡織纖維46 | C113: 4442 竣邦-KY | D113: 紡織纖維 | E113: M1400 | F113: 90145 | G113: 49320 | H113: 40825 | I113: 0.827757502 | J113: 64 | K113: 51 | L113: 6 | M113: 46 | N113: 0 | O113: 0
A114: 紡織纖維19 | B114: 紡織纖維33 | C114: 6506 雙邦 | D114: 紡織纖維 | E114: M1400 | F114: 165080 | G114: 134183 | H114: 30897 | I114: 0.2302601671 | J114: 64 | K114: 51 | L114: 19 | M114: 33 | N114: 0 | O114: 0
A115: 電機機械69 | B115: 電機機械29 | C115: 1503 士電 | D115: 電機機械 | E115: M1500 | F115: 2920936 | G115: 2869450 | H115: 51486 | I115: 0.01794281134 | J115: 115 | K115: 97 | L115: 69 | M115: 29 | N115: 0 | O115: 0
A116: 電機機械65 | B116: 電機機械33 | C116: 1504 東元 | D116: 電機機械 | E116: M1500 | F116: 4435229 | G116: 4170040 | H116: 265189 | I116: 0.0635938744 | J116: 115 | K116: 97 | L116: 65 | M116: 33 | N116: 0 | O116: 0
A117: 電機機械64 | B117: 電機機械34 | C117: 1506 正道 | D117: 電機機械 | E117: M1500 | F117: 80734 | G117: 75856 | H117: 4878 | I117: 0.06430605358 | J117: 115 | K117: 97 | L117: 64 | M117: 34 | N117: 0 | O117: 0
A118: 電機機械54 | B118: 電機機械44 | C118: 1513 中興電 | D118: 電機機械 | E118: M1500 | F118: 2155049 | G118: 1860808 | H118: 294241 | I118: 0.158125395 | J118: 115 | K118: 97 | L118: 54 | M118: 44 | N118: 0 | O118: 0
A119: 電機機械48 | B119: 電機機械50 | C119: 1514 亞力 | D119: 電機機械 | E119: M1500 | F119: 679782 | G119: 564461 | H119: 115321 | I119: 0.2043028659 | J119: 115 | K119: 97 | L119: 48 | M119: 50 | N119: 0 | O119: 0
A120: 電機機械97 | B120: 電機機械1 | C120: 1515 力山 | D120: 電機機械 | E120: M1500 | F120: 239627 | G120: 579887 | H120: -340260 | I120: -0.5867694913 | J120: 115 | K120: 97 | L120: 97 | M120: 1 | N120: 0 | O120: 0
A121: 電機機械9 | B121: 電機機械89 | C121: 1517 利奇 | D121: 電機機械 | E121: M1500 | F121: 163301 | G121: 66389 | H121: 96912 | I121: 1.4597599 | J121: 115 | K121: 97 | L121: 9 | M121: 89 | N121: 0 | O121: 0
A122: 電機機械24 | B122: 電機機械74 | C122: 1519 華城 | D122: 電機機械 | E122: M1500 | F122: 1176341 | G122: 804939 | H122: 371402 | I122: 0.4614039076 | J122: 115 | K122: 97 | L122: 24 | M122: 74 | N122: 0 | O122: 0
A123: 電機機械37 | B123: 電機機械61 | C123: 1526 日馳 | D123: 電機機械 | E123: M1500 | F123: 68759 | G123: 51097 | H123: 17662 | I123: 0.3456563008 | J123: 115 | K123: 97 | L123: 37 | M123: 61 | N123: 0 | O123: 0
A124: 電機機械62 | B124: 電機機械36 | C124: 1527 鑽全 | D124: 電機機械 | E124: M1500 | F124: 267891 | G124: 247290 | H124: 20601 | I124: 0.0833070484 | J124: 115 | K124: 97 | L124: 62 | M124: 36 | N124: 0 | O124: 0
A125: 電機機械78 | B125: 電機機械20 | C125: 1528 恩德 | D125: 電機機械 | E125: M1500 | F125: 186120 | G125: 195415 | H125: -9295 | I125: -0.04756543766 | J125: 115 | K125: 97 | L125: 78 | M125: 20 | N125: 0 | O125: 0
A126: 電機機械2 | B126: 電機機械96 | C126: 1529 樂事綠能 | D126: 電機機械 | E126: M1500 | F126: 118552 | G126: 24162 | H126: 94390 | I126: 3.906547471 | J126: 115 | K126: 97 | L126: 2 | M126: 96 | N126: 0 | O126: 0
A127: 電機機械7 | B127: 電機機械91 | C127: 1530 亞崴 | D127: 電機機械 | E127: M1500 | F127: 171648 | G127: 65536 | H127: 106112 | I127: 1.619140625 | J127: 115 | K127: 97 | L127: 7 | M127: 91 | N127: 0 | O127: 0
A128: 電機機械41 | B128: 電機機械57 | C128: 1531 高林股 | D128: 電機機械 | E128: M1500 | F128: 114415 | G128: 88315 | H128: 26100 | I128: 0.2955330352 | J128: 115 | K128: 97 | L128: 41 | M128: 57 | N128: 0 | O128: 0
A129: 電機機械93 | B129: 電機機械5 | C129: 1532 勤美 | D129: 電機機械 | E129: M1500 | F129: 837571 | G129: 1360720 | H129: -523149 | I129: -0.3844648421 | J129: 115 | K129: 97 | L129: 93 | M129: 5 | N129: 0 | O129: 0
A130: 電機機械83 | B130: 電機機械15 | C130: 1535 中宇 | D130: 電機機械 | E130: M1500 | F130: 793174 | G130: 906391 | H130: -113217 | I130: -0.1249096692 | J130: 115 | K130: 97 | L130: 83 | M130: 15 | N130: 0 | O130: 0
A131: =$D131&L131 -> 電機機械75 | B131: =$D131&M131 -> 電機機械23 | C131: 1537 廣隆 | D131: 電機機械 | E131: M1500 | F131: 501917 | G131: 519706 | H131: -17789 | I131: -0.03422896792 | J131: =IF(E131="","",MATCH(E131,E:E,0)) -> 115 | K131: =COUNTIF(D:D,D131) -> 97 | L131: 75 | M131: 23 | N131: 0 | O131: 0
A132: 電機機械1 | B132: 電機機械97 | C132: 1538 正峰 | D132: 電機機械 | E132: M1500 | F132: 11618 | G132: 2263 | H132: =F132-G132 -> 9355 | I132: =IF(ISERROR((H132/G132)*100),"",(H132/(ABS(G132)))) -> 4.133893062 | J132: 115 | K132: 97 | L132: =IF(I132="","",RANK(I132,OFFSET(I$1,$J132-1,,$K132,),0)) -> 1 | M132: =IF(I132="","",RANK(I132,OFFSET(I$1,$J132-1,,$K132,),1)) -> 97 | N132: 0 | O132: 0
A133: 電機機械85 | B133: 電機機械13 | C133: 1539 巨庭 | D133: 電機機械 | E133: M1500 | F133: 90103 | G133: 105312 | H133: -15209 | I133: -0.1444184898 | J133: 115 | K133: 97 | L133: 85 | M133: 13 | N133: 0 | O133: 0
A134: 電機機械52 | B134: 電機機械46 | C134: 1540 喬福 | D134: 電機機械 | E134: M1500 | F134: 28572 | G134: 24485 | H134: 4087 | I134: 0.1669185215 | J134: 115 | K134: 97 | L134: 52 | M134: 46 | N134: 0 | O134: 0
A135: 電機機械51 | B135: 電機機械47 | C135: 1541 錩泰 | D135: 電機機械 | E135: M1500 | F135: 186643 | G135: 159496 | H135: 27147 | I135: 0.1702048954 | J135: 115 | K135: 97 | L135: 51 | M135: 47 | N135: 0 | O135: 0
A136: 電機機械34 | B136: 電機機械64 | C136: 1558 伸興 | D136: 電機機械 | E136: M1500 | F136: 600591 | G136: 442458 | H136: 158133 | I136: 0.3573966343 | J136: 115 | K136: 97 | L136: 34 | M136: 64 | N136: 0 | O136: 0
A137: 電機機械47 | B137: 電機機械51 | C137: 1560 中砂 | D137: 電機機械 | E137: M1500 | F137: 604077 | G137: 500762 | H137: 103315 | I137: 0.2063155751 | J137: 115 | K137: 97 | L137: 47 | M137: 51 | N137: 0 | O137: 0
A138: 電機機械61 | B138: 電機機械37 | C138: 1570 力肯 | D138: 電機機械 | E138: M1500 | F138: 28798 | G138: 26524 | H138: 2274 | I138: 0.08573367516 | J138: 115 | K138: 97 | L138: 61 | M138: 37 | N138: 0 | O138: 0
A139: 電機機械36 | B139: 電機機械62 | C139: 1580 新麥 | D139: 電機機械 | E139: M1500 | F139: 293518 | G139: 217056 | H139: 76462 | I139: 0.352268539 | J139: 115 | K139: 97 | L139: 36 | M139: 62 | N139: 0 | O139: 0
A140: 電機機械63 | B140: 電機機械35 | C140: 1583 程泰 | D140: 電機機械 | E140: M1500 | F140: 270309 | G140: 251546 | H140: 18763 | I140: 0.07459073092 | J140: 115 | K140: 97 | L140: 63 | M140: 35 | N140: 0 | O140: 0
A141: 電機機械82 | B141: 電機機械16 | C141: 1586 和勤 | D141: 電機機械 | E141: M1500 | F141: 157756 | G141: 174956 | H141: -17200 | I141: -0.09831043234 | J141: 115 | K141: 97 | L141: 82 | M141: 16 | N141: 0 | O141: 0
A142: 電機機械12 | B142: 電機機械86 | C142: 1589 永冠-KY | D142: 電機機械 | E142: M1500 | F142: 507677 | G142: 259972 | H142: 247705 | I142: 0.9528141492 | J142: 115 | K142: 97 | L142: 12 | M142: 86 | N142: 0 | O142: 0
A143: 電機機械15 | B143: 電機機械83 | C143: 1590 亞德客-KY | D143: 電機機械 | E143: M1500 | F143: 2371072 | G143: 1413536 | H143: 957536 | I143: 0.6774047495 | J143: 115 | K143: 97 | L143: 15 | M143: 83 | N143: 0 | O143: 0
A144: 電機機械84 | B144: 電機機械14 | C144: 1591 駿吉-KY | D144: 電機機械 | E144: M1500 | F144: 7415 | G144: 8584 | H144: -1169 | I144: -0.1361835974 | J144: 115 | K144: 97 | L144: 84 | M144: 14 | N144: 0 | O144: 0
A145: 電機機械39 | B145: 電機機械59 | C145: 1597 直得 | D145: 電機機械 | E145: M1500 | F145: 89452 | G145: 66811 | H145: 22641 | I145: 0.3388813219 | J145: 115 | K145: 97 | L145: 39 | M145: 59 | N145: 0 | O145: 0
A146: 電機機械86 | B146: 電機機械12 | C146: 1599 宏佳騰 | D146: 電機機械 | E146: M1500 | F146: 146222 | G146: 171475 | H146: -25253 | I146: -0.1472692812 | J146: 115 | K146: 97 | L146: 86 | M146: 12 | N146: 0 | O146: 0
A147: 電機機械56 | B147: 電機機械42 | C147: 2049 上銀 | D147: 電機機械 | E147: M1500 | F147: 1930542 | G147: 1704262 | H147: 226280 | I147: 0.1327730126 | J147: 115 | K147: 97 | L147: 56 | M147: 42 | N147: 0 | O147: 0
A148: 電機機械77 | B148: 電機機械21 | C148: 2066 世德 | D148: 電機機械 | E148: M1500 | F148: 224989 | G148: 235071 | H148: -10082 | I148: -0.04288916966 | J148: 115 | K148: 97 | L148: 77 | M148: 21 | N148: 0 | O148: 0
A149: 電機機械42 | B149: 電機機械56 | C149: 2067 嘉鋼 | D149: 電機機械 | E149: M1500 | F149: 70760 | G149: 54620 | H149: 16140 | I149: 0.2954961553 | J149: 115 | K149: 97 | L149: 42 | M149: 56 | N149: 0 | O149: 0
A150: 電機機械67 | B150: 電機機械31 | C150: 2070 精湛 | D150: 電機機械 | E150: M1500 | F150: 42905 | G150: 41274 | H150: 1631 | I150: 0.03951640258 | J150: 115 | K150: 97 | L150: 67 | M150: 31 | N150: 0 | O150: 0
A151: 電機機械19 | B151: 電機機械79 | C151: 2230 泰茂 | D151: 電機機械 | E151: M1500 | F151: 134304 | G151: 83159 | H151: 51145 | I151: 0.6150266357 | J151: 115 | K151: 97 | L151: 19 | M151: 79 | N151: 0 | O151: 0
A152: 電機機械45 | B152: 電機機械53 | C152: 2235 謚源 | D152: 電機機械 | E152: M1500 | F152: 44278 | G152: 35669 | H152: 8609 | I152: 0.241358042 | J152: 115 | K152: 97 | L152: 45 | M152: 53 | N152: 0 | O152: 0
A153: 電機機械91 | B153: 電機機械7 | C153: 2371 大同 | D153: 電機機械 | E153: M1500 | F153: 3041720 | G153: 3792634 | H153: -750914 | I153: -0.1979927407 | J153: 115 | K153: 97 | L153: 91 | M153: 7 | N153: 0 | O153: 0
A154: 電機機械3 | B154: 電機機械95 | C154: 3162 精確 | D154: 電機機械 | E154: M1500 | F154: 629045 | G154: 138562 | H154: 490483 | I154: 3.539808894 | J154: 115 | K154: 97 | L154: 3 | M154: 95 | N154: 0 | O154: 0
A155: 電機機械6 | B155: 電機機械92 | C155: 3167 大量 | D155: 電機機械 | E155: M1500 | F155: 256117 | G155: 93384 | H155: 162733 | I155: 1.742621862 | J155: 115 | K155: 97 | L155: 6 | M155: 92 | N155: 0 | O155: 0
A156: 電機機械57 | B156: 電機機械41 | C156: 3226 龍鋒 | D156: 電機機械 | E156: M1500 | F156: 183710 | G156: 162414 | H156: 21296 | I156: 0.1311217013 | J156: 115 | K156: 97 | L156: 57 | M156: 41 | N156: 0 | O156: 0
A157: 電機機械4 | B157: 電機機械94 | C157: 3379 彬台 | D157: 電機機械 | E157: M1500 | F157: 85211 | G157: 23020 | H157: 62191 | I157: 2.701607298 | J157: 115 | K157: 97 | L157: 4 | M157: 94 | N157: 0 | O157: 0
A158: 電機機械35 | B158: 電機機械63 | C158: 3426 台興 | D158: 電機機械 | E158: M1500 | F158: 65569 | G158: 48384 | H158: 17185 | I158: 0.3551793981 | J158: 115 | K158: 97 | L158: 35 | M158: 63 | N158: =U158 -> 0 | O158: =V158 -> 0
A159: 電機機械71 | B159: 電機機械27 | C159: 3685 元創精密 | D159: 電機機械 | E159: M1500 | F159: 72966 | G159: 73799 | H159: -833 | I159: -0.01128741582 | J159: 115 | K159: 97 | L159: 71 | M159: 27 | N159: 0 | O159: 0
A160: 電機機械96 | B160: 電機機械2 | C160: 4502 健信 | D160: 電機機械 | E160: M1500 | F160: 56704 | G160: 110676 | H160: -53972 | I160: -0.4876576674 | J160: 115 | K160: 97 | L160: 96 | M160: 2 | N160: 0 | O160: 0
A161: 電機機械8 | B161: 電機機械90 | C161: 4503 金雨 | D161: 電機機械 | E161: M1500 | F161: 41741 | G161: 16427 | H161: 25314 | I161: 1.540999574 | J161: 115 | K161: 97 | L161: 8 | M161: 90 | N161: 0 | O161: 0
A162: 電機機械55 | B162: 電機機械43 | C162: 4506 崇友 | D162: 電機機械 | E162: M1500 | F162: 363964 | G162: 319018 | H162: 44946 | I162: 0.1408886019 | J162: 115 | K162: 97 | L162: 55 | M162: 43 | N162: 0 | O162: 0
A163: 電機機械74 | B163: 電機機械24 | C163: 4510 高鋒 | D163: 電機機械 | E163: M1500 | F163: 101945 | G163: 104918 | H163: -2973 | I163: -0.02833641511 | J163: 115 | K163: 97 | L163: 74 | M163: 24 | N163: 0 | O163: 0
A164: 電機機械81 | B164: 電機機械17 | C164: 4513 福裕 | D164: 電機機械 | E164: M1500 | F164: 82872 | G164: 88637 | H164: -5765 | I164: -0.06504055868 | J164: 115 | K164: 97 | L164: 81 | M164: 17 | N164: 0 | O164: 0
A165: 電機機械14 | B165: 電機機械84 | C165: 4523 永彰 | D165: 電機機械 | E165: M1500 | F165: 41835 | G165: 24677 | H165: 17158 | I165: 0.6953033189 | J165: 115 | K165: 97 | L165: 14 | M165: 84 | N165: 0 | O165: 0
A166: 電機機械22 | B166: 電機機械76 | C166: 4526 東台 | D166: 電機機械 | E166: M1500 | F166: 369586 | G166: 246339 | H166: 123247 | I166: 0.5003146071 | J166: 115 | K166: 97 | L166: 22 | M166: 76 | N166: 0 | O166: 0
A167: 電機機械72 | B167: 電機機械26 | C167: 4527 方方土霖 | D167: 電機機械 | E167: M1500 | F167: 161864 | G167: 164153 | H167: -2289 | I167: -0.01394430805 | J167: 115 | K167: 97 | L167: 72 | M167: 26 | N167: 0 | O167: 0
A168: 電機機械80 | B168: 電機機械18 | C168: 4528 江興鍛 | D168: 電機機械 | E168: M1500 | F168: 114265 | G168: 120768 | H168: -6503 | I168: -0.05384704557 | J168: 115 | K168: 97 | L168: 80 | M168: 18 | N168: 0 | O168: 0
A169: 電機機械21 | B169: 電機機械77 | C169: 4532 瑞智 | D169: 電機機械 | E169: M1500 | F169: 2011265 | G169: 1327957 | H169: 683308 | I169: 0.5145558177 | J169: 115 | K169: 97 | L169: 21 | M169: 77 | N169: 0 | O169: 0
A170: 電機機械5 | B170: 電機機械93 | C170: 4533 協易機 | D170: 電機機械 | E170: M1500 | F170: 353612 | G170: 126166 | H170: 227446 | I170: 1.80275193 | J170: 115 | K170: 97 | L170: 5 | M170: 93 | N170: 0 | O170: 0
A171: 電機機械30 | B171: 電機機械68 | C171: 4534 慶騰 | D171: 電機機械 | E171: M1500 | F171: 54527 | G171: 39295 | H171: 15232 | I171: 0.3876320143 | J171: 115 | K171: 97 | L171: 30 | M171: 68 | N171: 0 | O171: 0
A172: 電機機械59 | B172: 電機機械39 | C172: 4535 至興 | D172: 電機機械 | E172: M1500 | F172: 197459 | G172: 176544 | H172: 20915 | I172: 0.1184690502 | J172: 115 | K172: 97 | L172: 59 | M172: 39 | N172: 0 | O172: 0
A173: 電機機械70 | B173: 電機機械28 | C173: 4538 大詠城 | D173: 電機機械 | E173: M1500 | F173: 24788 | G173: 25005 | H173: -217 | I173: -0.008678264347 | J173: 115 | K173: 97 | L173: 70 | M173: 28 | N173: 0 | O173: 0
A174: 電機機械90 | B174: 電機機械8 | C174: 4540 全球傳動 | D174: 電機機械 | E174: M1500 | F174: 128136 | G174: 159679 | H174: -31543 | I174: -0.1975400648 | J174: 115 | K174: 97 | L174: 90 | M174: 8 | N174: 0 | O174: 0
A175: 電機機械26 | B175: 電機機械72 | C175: 4543 萬在 | D175: 電機機械 | E175: M1500 | F175: 60454 | G175: 42478 | H175: 17976 | I175: 0.4231837657 | J175: 115 | K175: 97 | L175: 26 | M175: 72 | N175: 0 | O175: 0
A176: 電機機械31 | B176: 電機機械67 | C176: 4549 桓達 | D176: 電機機械 | E176: M1500 | F176: 102178 | G176: 74233 | H176: 27945 | I176: 0.3764498269 | J176: 115 | K176: 97 | L176: 31 | M176: 67 | N176: 0 | O176: 0
A177: 電機機械95 | B177: 電機機械3 | C177: 4550 長佳 | D177: 電機機械 | E177: M1500 | F177: 83666 | G177: 145519 | H177: -61853 | I177: -0.4250510243 | J177: 115 | K177: 97 | L177: 95 | M177: 3 | N177: 0 | O177: 0
A178: 電機機械50 | B178: 電機機械48 | C178: 4552 力達-KY | D178: 電機機械 | E178: M1500 | F178: 176395 | G178: 149656 | H178: 26739 | I178: 0.1786697493 | J178: 115 | K178: 97 | L178: 50 | M178: 48 | N178: 0 | O178: 0
A179: 電機機械53 | B179: 電機機械45 | C179: 4555 氣立 | D179: 電機機械 | E179: M1500 | F179: 121516 | G179: 104590 | H179: 16926 | I179: 0.1618319151 | J179: 115 | K179: 97 | L179: 53 | M179: 45 | N179: 0 | O179: 0
A180: 電機機械28 | B180: 電機機械70 | C180: 4558 寶緯 | D180: 電機機械 | E180: M1500 | F180: 121167 | G180: 86353 | H180: 34814 | I180: 0.4031591259 | J180: 115 | K180: 97 | L180: 28 | M180: 70 | N180: 0 | O180: 0
A181: 電機機械38 | B181: 電機機械60 | C181: 4560 強信-KY | D181: 電機機械 | E181: M1500 | F181: 136942 | G181: 102177 | H181: 34765 | I181: 0.3402429118 | J181: 115 | K181: 97 | L181: 38 | M181: 60 | N181: 0 | O181: 0
A182: 電機機械89 | B182: 電機機械9 | C182: 4561 健椿 | D182: 電機機械 | E182: M1500 | F182: 77574 | G182: 96095 | H182: -18521 | I182: -0.1927363546 | J182: 115 | K182: 97 | L182: 89 | M182: 9 | N182: 0 | O182: 0
A183: 電機機械25 | B183: 電機機械73 | C183: 4562 穎漢 | D183: 電機機械 | E183: M1500 | F183: 55512 | G183: 38551 | H183: 16961 | I183: 0.4399626469 | J183: 115 | K183: 97 | L183: 25 | M183: 73 | N183: 0 | O183: 0
A184: 電機機械20 | B184: 電機機械78 | C184: 4563 百德 | D184: 電機機械 | E184: M1500 | F184: 261523 | G184: 171395 | H184: 90128 | I184: 0.5258496456 | J184: 115 | K184: 97 | L184: 20 | M184: 78 | N184: 0 | O184: 0
A185: 電機機械18 | B185: 電機機械80 | C185: 4564 元翎 | D185: 電機機械 | E185: M1500 | F185: 88513 | G185: 54786 | H185: 33727 | I185: 0.6156134779 | J185: 115 | K185: 97 | L185: 18 | M185: 80 | N185: 0 | O185: 0
A186: 電機機械29 | B186: 電機機械69 | C186: 4566 時碩工業 | D186: 電機機械 | E186: M1500 | F186: 390743 | G186: 279429 | H186: 111314 | I186: 0.3983623747 | J186: 115 | K186: 97 | L186: 29 | M186: 69 | N186: 0 | O186: 0
A187: 電機機械79 | B187: 電機機械19 | C187: 4568 科際精密 | D187: 電機機械 | E187: M1500 | F187: 80032 | G187: 84453 | H187: -4421 | I187: -0.05234864362 | J187: 115 | K187: 97 | L187: 79 | M187: 19 | N187: 0 | O187: 0
A188: 電機機械73 | B188: 電機機械25 | C188: 4571 鈞興-KY | D188: 電機機械 | E188: M1500 | F188: 199950 | G188: 204463 | H188: -4513 | I188: -0.02207245321 | J188: 115 | K188: 97 | L188: 73 | M188: 25 | N188: 0 | O188: 0
A189: 電機機械92 | B189: 電機機械6 | C189: 4572 駐龍 | D189: 電機機械 | E189: M1500 | F189: 50134 | G189: 74365 | H189: -24231 | I189: -0.3258387682 | J189: 115 | K189: 97 | L189: 92 | M189: 6 | N189: 0 | O189: 0
A190: 電機機械16 | B190: 電機機械82 | C190: 4576 大銀微系統 | D190: 電機機械 | E190: M1500 | F190: 208836 | G190: 126867 | H190: 81969 | I190: 0.6461018232 | J190: 115 | K190: 97 | L190: 16 | M190: 82 | N190: 0 | O190: 0
A191: 電機機械76 | B191: 電機機械22 | C191: 4580 捷流閥業 | D191: 電機機械 | E191: M1500 | F191: 176367 | G191: 183100 | H191: -6733 | I191: -0.0367722556 | J191: 115 | K191: 97 | L191: 76 | M191: 22 | N191: 0 | O191: 0
A192: 電機機械49 | B192: 電機機械49 | C192: 4583 台灣精銳 | D192: 電機機械 | E192: M1500 | F192: 274018 | G192: 232206 | H192: 41812 | I192: 0.1800642533 | J192: 115 | K192: 97 | L192: 49 | M192: 49 | N192: 0 | O192: 0
A193: 電機機械17 | B193: 電機機械81 | C193: 4584 君帆 | D193: 電機機械 | E193: M1500 | F193: 115995 | G193: 71301 | H193: 44694 | I193: 0.6268355283 | J193: 115 | K193: 97 | L193: 17 | M193: 81 | N193: 0 | O193: 0
A194: 電機機械44 | B194: 電機機械54 | C194: 5288 豐祥-KY | D194: 電機機械 | E194: M1500 | F194: 563988 | G194: 453564 | H194: 110424 | I194: 0.2434584755 | J194: 115 | K194: 97 | L194: 44 | M194: 54 | N194: 0 | O194: 0
A195: =$D195&L195 -> 電機機械88 | B195: =$D195&M195 -> 電機機械10 | C195: 6122 擎邦 | D195: 電機機械 | E195: M1500 | F195: 269583 | G195: 333228 | H195: -63645 | I195: -0.1909953545 | J195: =IF(E195="","",MATCH(E195,E:E,0)) -> 115 | K195: =COUNTIF(D:D,D195) -> 97 | L195: 88 | M195: 10 | N195: 0 | O195: 0
A196: 電機機械94 | B196: 電機機械4 | C196: 6425 易發 | D196: 電機機械 | E196: M1500 | F196: 60446 | G196: 101651 | H196: =F196-G196 -> -41205 | I196: =IF(ISERROR((H196/G196)*100),"",(H196/(ABS(G196)))) -> -0.4053575469 | J196: 115 | K196: 97 | L196: =IF(I196="","",RANK(I196,OFFSET(I$1,$J196-1,,$K196,),0)) -> 94 | M196: =IF(I196="","",RANK(I196,OFFSET(I$1,$J196-1,,$K196,),1)) -> 4 | N196: 0 | O196: 0
A197: 電機機械10 | B197: 電機機械88 | C197: 6603 富強鑫 | D197: 電機機械 | E197: M1500 | F197: 247154 | G197: 121541 | H197: 125613 | I197: 1.033503098 | J197: 115 | K197: 97 | L197: 10 | M197: 88 | N197: 0 | O197: 0
A198: 電機機械40 | B198: 電機機械58 | C198: 6606 建德工業 | D198: 電機機械 | E198: M1500 | F198: 37431 | G198: 28758 | H198: 8673 | I198: 0.3015856457 | J198: 115 | K198: 97 | L198: 40 | M198: 58 | N198: 0 | O198: 0
A199: 電機機械11 | B199: 電機機械87 | C199: 6609 瀧澤科 | D199: 電機機械 | E199: M1500 | F199: 213747 | G199: 106980 | H199: 106767 | I199: 0.9980089736 | J199: 115 | K199: 97 | L199: 11 | M199: 87 | N199: 0 | O199: 0
A200: 電機機械43 | B200: 電機機械55 | C200: 6829 千附精密 | D200: 電機機械 | E200: M1500 | F200: 134535 | G200: 104032 | H200: 30503 | I200: 0.2932078591 | J200: 115 | K200: 97 | L200: 43 | M200: 55 | N200: 0 | O200: 0
... 2800 more rows

Sheet 表B_RAW
A1: 排名(正向) | B1: 排名(反向) | D1: TSE新產業_名稱 | E1: TSE新產業_代碼 | F1: 單月營收(千元) | G1: 單月營收(千元) | H1: 單月營收與上月比％ | J1: 產業位址 | K1: 產業家數 | L1: 排名(正向) | M1: 排名(反向) | N1: 排名(正向) | O1: 排名(反向) | P1: 產業營收 | Q1: 單月營收(千元) | R1: 上月單月營收(千元) | S1: 本月較上月變動金額 | T1: 單月營收與上月比％ | U1: 排名(正向) | V1: 排名(反向)
C2: 公司 | F2: 2025-02-27 | G2: 2025-01-22 | H2: 2025-02-27 | N2: =U2 -> 34 | O2: =V2 -> 1 | P2: 水泥工業 | Q2: =SUMIF($D:$D,$P2,F:F) -> 14888263 | R2: =SUMIF($D:$D,$P2,G:G) -> 20036404 | S2: =Q2-R2 -> -5148141 | T2: =ROUND(S2/R2*100,2) -> -25.69 | U2: =RANK(T2,T:T) -> 34 | V2: =RANK(T2,T:T,1) -> 1
A3: =D3&L3 -> 水泥工業6 | B3: =D3&M3 -> 水泥工業2 | C3: 1101 台泥 | D3: 水泥工業 | E3: M1100 | F3: 9123490 | G3: 12213350 | H3: -25.3 | I3: =F3-G3 -> -3089860 | J3: =IF(E3="","",MATCH(E3,E:E,0)) -> 3 | K3: =COUNTIF(D:D,D3) -> 7 | L3: =IF(H3="","",RANK(H3,OFFSET(H$1,$J3-1,,$K3,),0)) -> 6 | M3: =IF(H3="","",RANK(H3,OFFSET(H$1,$J3-1,,$K3,),1)) -> 2 | N3: =U3 -> 33 | O3: =V3 -> 2 | P3: 食品工業 | Q3: =SUMIF($D:$D,$P3,F:F) -> 72472900 | R3: =SUMIF($D:$D,$P3,G:G) -> 95978982 | S3: =Q3-R3 -> -23506082 | T3: =ROUND(S3/R3*100,2) -> -24.49 | U3: =RANK(T3,T:T) -> 33 | V3: 2
A4: =D4&L4 -> 水泥工業7 | B4: =D4&M4 -> 水泥工業1 | C4: 1102 亞泥 | D4: 水泥工業 | E4: M1100 | F4: 4184371 | G4: 5877674 | H4: -28.81 | I4: =F4-G4 -> -1693303 | J4: =IF(E4="","",MATCH(E4,E:E,0)) -> 3 | K4: =COUNTIF(D:D,D4) -> 7 | L4: =IF(H4="","",RANK(H4,OFFSET(H$1,$J4-1,,$K4,),0)) -> 7 | M4: =IF(H4="","",RANK(H4,OFFSET(H$1,$J4-1,,$K4,),1)) -> 1 | N4: 1 | O4: 34 | P4: 塑膠工業 | Q4: 84462036 | R4: 76966666 | S4: 7495370 | T4: 9.74 | U4: 1 | V4: 34
A5: 水泥工業2 | B5: 水泥工業6 | C5: 1103 嘉泥 | D5: 水泥工業 | E5: M1100 | F5: 218169 | G5: 268003 | H5: -18.59 | I5: -49834 | J5: 3 | K5: 7 | L5: 2 | M5: 6 | N5: 22 | O5: 13 | P5: 紡織纖維 | Q5: 46022951 | R5: 49853613 | S5: -3830662 | T5: -7.68 | U5: 22 | V5: 13
A6: 水泥工業5 | B6: 水泥工業3 | C6: 1104 環泥 | D6: 水泥工業 | E6: M1100 | F6: 538636 | G6: 687804 | H6: -21.69 | I6: -149168 | J6: 3 | K6: 7 | L6: 5 | M6: 3 | N6: 25 | O6: 10 | P6: 電機機械 | Q6: 37944480 | R6: 41413346 | S6: -3468866 | T6: -8.38 | U6: 25 | V6: 10
A7: 水泥工業3 | B7: 水泥工業5 | C7: 1108 幸福 | D7: 水泥工業 | E7: M1100 | F7: 356169 | G7: 448229 | H7: -20.54 | I7: -92060 | J7: 3 | K7: 7 | L7: 3 | M7: 5 | N7: 3 | O7: 32 | P7: 電器電纜 | Q7: 23993219 | R7: 22346505 | S7: 1646714 | T7: 7.37 | U7: 3 | V7: 32
A8: 水泥工業4 | B8: 水泥工業4 | C8: 1109 信大 | D8: 水泥工業 | E8: M1100 | F8: 238647 | G8: 304555 | H8: -21.64 | I8: -65908 | J8: 3 | K8: 7 | L8: 4 | M8: 4 | N8: 15 | O8: 20 | P8: 化學工業 | Q8: 25081085 | R8: 25887178 | S8: -806093 | T8: -3.11 | U8: 15 | V8: 20
A9: 水泥工業1 | B9: 水泥工業7 | C9: 1110 東泥 | D9: 水泥工業 | E9: M1100 | F9: 228781 | G9: 236789 | H9: -3.38 | I9: -8008 | J9: 3 | K9: 7 | L9: 1 | M9: 7 | N9: 23 | O9: 12 | P9: 生技醫療 | Q9: 23531548 | R9: 25632940 | S9: -2101392 | T9: -8.2 | U9: 23 | V9: 12
A10: 食品工業17 | B10: 食品工業13 | C10: 1201 味全 | D10: 食品工業 | E10: M1200 | F10: 1529280 | G10: 1913014 | H10: -20.06 | I10: -383734 | J10: 10 | K10: 29 | L10: 17 | M10: 13 | N10: 17 | O10: 18 | P10: 玻璃陶瓷 | Q10: 3936854 | R10: 4115602 | S10: -178748 | T10: -4.34 | U10: 17 | V10: 18
A11: 食品工業15 | B11: 食品工業15 | C11: 1203 味王 | D11: 食品工業 | E11: M1200 | F11: 470623 | G11: 540262 | H11: -12.89 | I11: -69639 | J11: 10 | K11: 29 | L11: 15 | M11: 15 | N11: 7 | O11: 28 | P11: 造紙工業 | Q11: 14958676 | R11: 14506646 | S11: 452030 | T11: 3.12 | U11: 7 | V11: 28
A12: 食品工業9 | B12: 食品工業21 | C12: 1210 大成 | D12: 食品工業 | E12: M1200 | F12: 8087375 | G12: 8684590 | H12: -6.88 | I12: -597215 | J12: 10 | K12: 29 | L12: 9 | M12: 21 | N12: 4 | O12: 31 | P12: 鋼鐵工業 | Q12: 78863624 | R12: 74050194 | S12: 4813430 | T12: 6.5 | U12: 4 | V12: 31
A13: 食品工業5 | B13: 食品工業25 | C13: 1213 大飲 | D13: 食品工業 | E13: M1200 | F13: 24067 | G13: 22379 | H13: 7.54 | I13: 1688 | J13: 10 | K13: 29 | L13: 5 | M13: 25 | N13: 9 | O13: 26 | P13: 橡膠工業 | Q13: 17108860 | R13: 16960902 | S13: 147958 | T13: 0.87 | U13: 9 | V13: 26
A14: 食品工業14 | B14: 食品工業16 | C14: 1215 卜蜂 | D14: 食品工業 | E14: M1200 | F14: 2030712 | G14: 2331017 | H14: -12.88 | I14: -300305 | J14: 10 | K14: 29 | L14: 14 | M14: 16 | N14: 26 | O14: 9 | P14: 汽車工業 | Q14: 53702980 | R14: 62239865 | S14: -8536885 | T14: -13.72 | U14: 26 | V14: 9
A15: 食品工業22 | B15: 食品工業8 | C15: 1216 統一 | D15: 食品工業 | E15: M1200 | F15: 47574945 | G15: 65755516 | H15: -27.65 | I15: -18180571 | J15: 10 | K15: 29 | L15: 22 | M15: 8 | N15: 20 | O15: 15 | P15: 半導體 | Q15: 512438724 | R15: 551035575 | S15: -38596851 | T15: -7 | U15: 20 | V15: 15
A16: 食品工業23 | B16: 食品工業7 | C16: 1217 愛之味 | D16: 食品工業 | E16: M1200 | F16: 313901 | G16: 469134 | H16: -33.09 | I16: -155233 | J16: 10 | K16: 29 | L16: 23 | M16: 7 | N16: 6 | O16: 29 | P16: 電腦及週邊 | Q16: 709669289 | R16: 680838475 | S16: 28830814 | T16: 4.23 | U16: 6 | V16: 29
A17: 食品工業13 | B17: 食品工業17 | C17: 1218 泰山 | D17: 食品工業 | E17: M1200 | F17: 786116 | G17: 887717 | H17: -11.45 | I17: -101601 | J17: 10 | K17: 29 | L17: 13 | M17: 17 | N17: 12 | O17: 23 | P17: 光電業 | Q17: 98538964 | R17: 99234640 | S17: -695676 | T17: -0.7 | U17: 12 | V17: 23
A18: 食品工業7 | B18: 食品工業23 | C18: 1219 福壽 | D18: 食品工業 | E18: M1200 | F18: 1162280 | G18: 1178879 | H18: -1.41 | I18: -16599 | J18: 10 | K18: 29 | L18: 7 | M18: 23 | N18: 13 | O18: 22 | P18: 通信網路業 | Q18: 97289801 | R18: 99127505 | S18: -1837704 | T18: -1.85 | U18: 13 | V18: 22
A19: 食品工業3 | B19: 食品工業27 | C19: 1220 台榮 | D19: 食品工業 | E19: M1200 | F19: 270707 | G19: 218906 | H19: 23.66 | I19: 51801 | J19: 10 | K19: 29 | L19: 3 | M19: 27 | N19: 16 | O19: 19 | P19: 電子零組件 | Q19: 196380310 | R19: 203364261 | S19: -6983951 | T19: -3.43 | U19: 16 | V19: 19
A20: 食品工業8 | B20: 食品工業22 | C20: 1225 福懋油 | D20: 食品工業 | E20: M1200 | F20: 1068503 | G20: 1090255 | H20: -2 | I20: -21752 | J20: 10 | K20: 29 | L20: 8 | M20: 22 | N20: 10 | O20: 25 | P20: 電子通路業 | Q20: 248978309 | R20: 248179028 | S20: 799281 | T20: 0.32 | U20: 10 | V20: 25
A21: 食品工業27 | B21: 食品工業3 | C21: 1227 佳格 | D21: 食品工業 | E21: M1200 | F21: 1605125 | G21: 3268631 | H21: -50.89 | I21: -1663506 | J21: 10 | K21: 29 | L21: 27 | M21: 3 | N21: 5 | O21: 30 | P21: 資訊服務業 | Q21: 15539762 | R21: 14666308 | S21: 873454 | T21: 5.96 | U21: 5 | V21: 30
A22: 食品工業11 | B22: 食品工業19 | C22: 1229 聯華 | D22: 食品工業 | E22: M1200 | F22: 789043 | G22: 864201 | H22: -8.7 | I22: -75158 | J22: 10 | K22: 29 | L22: 11 | M22: 19 | N22: 8 | O22: 27 | P22: 其他電子業 | Q22: 619963205 | R22: 612101176 | S22: 7862029 | T22: 1.28 | U22: 8 | V22: 27
A23: 食品工業24 | B23: 食品工業6 | C23: 1231 聯華食 | D23: 食品工業 | E23: M1200 | F23: 834848 | G23: 1289469 | H23: -35.26 | I23: -454621 | J23: 10 | K23: 29 | L23: 24 | M23: 6 | N23: 27 | O23: 8 | P23: 綠能環保 | Q23: 8538615 | R23: 10047116 | S23: -1508501 | T23: -15.01 | U23: 27 | V23: 8
A24: 食品工業12 | B24: 食品工業18 | C24: 1232 大統益 | D24: 食品工業 | E24: M1200 | F24: 1633429 | G24: 1828340 | H24: -10.66 | I24: -194911 | J24: 10 | K24: 29 | L24: 12 | M24: 18 | N24: 21 | O24: 14 | P24: 數位雲端 | Q24: 16477828 | R24: 17761743 | S24: -1283915 | T24: -7.23 | U24: 21 | V24: 14
A25: 食品工業20 | B25: 食品工業9 | C25: 1233 天仁 | D25: 食品工業 | E25: M1200 | F25: 161766 | G25: 220238 | H25: -26.55 | I25: -58472 | J25: 10 | K25: 29 | L25: 20 | M25: 9 | N25: 2 | O25: 33 | P25: 建材營造 | Q25: 33141286 | R25: 30387239 | S25: 2754047 | T25: 9.06 | U25: 2 | V25: 33
A26: 食品工業10 | B26: 食品工業20 | C26: 1234 黑松 | D26: 食品工業 | E26: M1200 | F26: 777480 | G26: 842531 | H26: -7.72 | I26: -65051 | J26: 10 | K26: 29 | L26: 10 | M26: 20 | N26: 30 | O26: 5 | P26: 航運業 | Q26: 118008204 | R26: 143179444 | S26: -25171240 | T26: -17.58 | U26: 30 | V26: 5
A27: 食品工業29 | B27: 食品工業1 | C27: 1235 興泰 | D27: 食品工業 | E27: M1200 | F27: 1746 | G27: 8607 | H27: -79.71 | I27: -6861 | J27: 10 | K27: 29 | L27: 29 | M27: 1 | N27: 29 | O27: 6 | P27: 觀光餐旅 | Q27: 14247354 | R27: 17205389 | S27: -2958035 | T27: -17.19 | U27: 29 | V27: 6
A28: 食品工業28 | B28: 食品工業2 | C28: 1236 宏亞 | D28: 食品工業 | E28: M1200 | F28: 87822 | G28: 295078 | H28: -70.24 | I28: -207256 | J28: 10 | K28: 29 | L28: 28 | M28: 2 | N28: 14 | O28: 21 | P28: 金融業 | Q28: 201575581 | R28: 207773953 | S28: -6198372 | T28: -2.98 | U28: 14 | V28: 21
A29: 食品工業26 | B29: 食品工業4 | C29: 1256 鮮活果汁-KY | D29: 食品工業 | E29: M1200 | F29: 179442 | G29: 328850 | H29: -45.43 | I29: -149408 | J29: 10 | K29: 29 | L29: 26 | M29: 4 | N29: 32 | O29: 3 | P29: 貿易百貨 | Q29: 46321457 | R29: 57930467 | S29: -11609010 | T29: -20.04 | U29: 32 | V29: 3
A30: 食品工業25 | B30: 食品工業5 | C30: 1264 德麥 | D30: 食品工業 | E30: M1200 | F30: 412565 | G30: 681442 | H30: -39.46 | I30: -268877 | J30: 10 | K30: 29 | L30: 25 | M30: 5 | N30: =U30 -> 24 | O30: =V30 -> 11 | P30: 文化創意業 | Q30: =SUMIF($D:$D,$P30,F:F) -> 5026601 | R30: =SUMIF($D:$D,$P30,G:G) -> 5477509 | S30: =Q30-R30 -> -450908 | T30: =ROUND(S30/R30*100,2) -> -8.23 | U30: =RANK(T30,T:T) -> 24 | V30: =RANK(T30,T:T,1) -> 11
A31: 食品工業2 | B31: 食品工業28 | C31: 1294 漢田生技 | D31: 食品工業 | E31: M1200 | F31: 59494 | G31: 41491 | H31: 43.39 | I31: 18003 | J31: 10 | K31: 29 | L31: 2 | M31: 28 | N31: 18 | O31: 17 | P31: 農業科技 | Q31: 360036 | R31: 383114 | S31: -23078 | T31: -6.02 | U31: 18 | V31: 17
A32: 食品工業18 | B32: 食品工業12 | C32: 1702 南僑 | D32: 食品工業 | E32: M1200 | F32: 1633026 | G32: 2169615 | H32: -24.73 | I32: -536589 | J32: 10 | K32: 29 | L32: 18 | M32: 12 | N32: 31 | O32: 4 | P32: 運動休閒 | Q32: 51082234 | R32: 63320269 | S32: -12238035 | T32: -19.33 | U32: 31 | V32: 4
A33: 食品工業19 | B33: 食品工業11 | C33: 1737 臺鹽 | D33: 食品工業 | E33: M1200 | F33: 241915 | G33: 327834 | H33: -26.21 | I33: -85919 | J33: 10 | K33: 29 | L33: 19 | M33: 11 | N33: 28 | O33: 7 | P33: 居家生活 | Q33: 19418985 | R33: 23162117 | S33: -3743132 | T33: -16.16 | U33: 28 | V33: 7
A34: 食品工業20 | B34: 食品工業9 | C34: 1796 金穎生技 | D34: 食品工業 | E34: M1200 | F34: 44823 | G34: 61025 | H34: -26.55 | I34: -16202 | J34: 10 | K34: 29 | L34: 20 | M34: 9 | N34: 19 | O34: 16 | P34: 油電燃氣業 | Q34: 61071100 | R34: 65569772 | S34: -4498672 | T34: -6.86 | U34: 19 | V34: 16
A35: 食品工業4 | B35: 食品工業26 | C35: 3054 立萬利 | D35: 食品工業 | E35: M1200 | F35: 6793 | G35: 6052 | H35: 12.24 | I35: 741 | J35: 10 | K35: 29 | L35: 4 | M35: 26 | N35: 11 | O35: 24 | P35: 其他 | Q35: 49619290 | R35: 49872491 | S35: -253201 | T35: -0.51 | U35: 11 | V35: 24
A36: 食品工業16 | B36: 食品工業14 | C36: 4205 中華食 | D36: 食品工業 | E36: M1200 | F36: 143809 | G36: 178851 | H36: -19.59 | I36: -35042 | J36: 10 | K36: 29 | L36: 16 | M36: 14 | N36: 0 | O36: 0
A37: 食品工業6 | B37: 食品工業24 | C37: 4207 環泰 | D37: 食品工業 | E37: M1200 | F37: 443554 | G37: 422493 | H37: 4.98 | I37: 21061 | J37: 10 | K37: 29 | L37: 6 | M37: 24 | N37: 0 | O37: 0
A38: 食品工業1 | B38: 食品工業29 | C38: 6846 綠茵 | D38: 食品工業 | E38: M1200 | F38: 97711 | G38: 52565 | H38: 85.89 | I38: 45146 | J38: 10 | K38: 29 | L38: 1 | M38: 29 | N38: 0 | O38: 0
A39: 塑膠工業4 | B39: 塑膠工業22 | C39: 1301 台塑 | D39: 塑膠工業 | E39: M1300 | F39: 16129819 | G39: 13980022 | H39: 15.38 | I39: 2149797 | J39: 39 | K39: 25 | L39: 4 | M39: 22 | N39: 0 | O39: 0
A40: 塑膠工業11 | B40: 塑膠工業15 | C40: 1303 南亞 | D40: 塑膠工業 | E40: M1300 | F40: 22080604 | G40: 20458289 | H40: 7.93 | I40: 1622315 | J40: 39 | K40: 25 | L40: 11 | M40: 15 | N40: 0 | O40: 0
A41: 塑膠工業7 | B41: 塑膠工業19 | C41: 1304 台聚 | D41: 塑膠工業 | E41: M1300 | F41: 4165011 | G41: 3685781 | H41: 13 | I41: 479230 | J41: 39 | K41: 25 | L41: 7 | M41: 19 | N41: 0 | O41: 0
A42: 塑膠工業10 | B42: 塑膠工業16 | C42: 1305 華夏 | D42: 塑膠工業 | E42: M1300 | F42: 850423 | G42: 775346 | H42: 9.68 | I42: 75077 | J42: 39 | K42: 25 | L42: 10 | M42: 16 | N42: 0 | O42: 0
A43: 塑膠工業13 | B43: 塑膠工業13 | C43: 1307 三芳 | D43: 塑膠工業 | E43: M1300 | F43: 949002 | G43: 959988 | H43: -1.14 | I43: -10986 | J43: 39 | K43: 25 | L43: 13 | M43: 13 | N43: 0 | O43: 0
A44: 塑膠工業3 | B44: 塑膠工業23 | C44: 1308 亞聚 | D44: 塑膠工業 | E44: M1300 | F44: 532521 | G44: 437450 | H44: 21.73 | I44: 95071 | J44: 39 | K44: 25 | L44: 3 | M44: 23 | N44: 0 | O44: 0
A45: 塑膠工業8 | B45: 塑膠工業18 | C45: 1309 台達化 | D45: 塑膠工業 | E45: M1300 | F45: 1445653 | G45: 1285028 | H45: 12.5 | I45: 160625 | J45: 39 | K45: 25 | L45: 8 | M45: 18 | N45: 0 | O45: 0
A46: 塑膠工業20 | B46: 塑膠工業6 | C46: 1310 台苯 | D46: 塑膠工業 | E46: M1300 | F46: 720506 | G46: 877555 | H46: -17.9 | I46: -157049 | J46: 39 | K46: 25 | L46: 20 | M46: 6 | N46: 0 | O46: 0
A47: 塑膠工業1 | B47: 塑膠工業25 | C47: 1312 國喬 | D47: 塑膠工業 | E47: M1300 | F47: 1791123 | G47: 1259065 | H47: 42.26 | I47: 532058 | J47: 39 | K47: 25 | L47: 1 | M47: 25 | N47: 0 | O47: 0
A48: 塑膠工業14 | B48: 塑膠工業12 | C48: 1313 聯成 | D48: 塑膠工業 | E48: M1300 | F48: 4286677 | G48: 4384870 | H48: -2.24 | I48: -98193 | J48: 39 | K48: 25 | L48: 14 | M48: 12 | N48: 0 | O48: 0
A49: 塑膠工業19 | B49: 塑膠工業7 | C49: 1314 中石化 | D49: 塑膠工業 | E49: M1300 | F49: 2043929 | G49: 2375622 | H49: -13.96 | I49: -331693 | J49: 39 | K49: 25 | L49: 19 | M49: 7 | N49: 0 | O49: 0
A50: 塑膠工業17 | B50: 塑膠工業9 | C50: 1315 達新 | D50: 塑膠工業 | E50: M1300 | F50: 184467 | G50: 202243 | H50: -8.79 | I50: -17776 | J50: 39 | K50: 25 | L50: 17 | M50: 9 | N50: 0 | O50: 0
A51: 塑膠工業16 | B51: 塑膠工業10 | C51: 1321 大洋 | D51: 塑膠工業 | E51: M1300 | F51: 304849 | G51: 326211 | H51: -6.55 | I51: -21362 | J51: 39 | K51: 25 | L51: 16 | M51: 10 | N51: 0 | O51: 0
A52: 塑膠工業25 | B52: 塑膠工業1 | C52: 1323 永裕 | D52: 塑膠工業 | E52: M1300 | F52: 143000 | G52: 189115 | H52: -24.38 | I52: -46115 | J52: 39 | K52: 25 | L52: 25 | M52: 1 | N52: 0 | O52: 0
A53: 塑膠工業5 | B53: 塑膠工業21 | C53: 1324 地球 | D53: 塑膠工業 | E53: M1300 | F53: 62235 | G53: 54847 | H53: 13.47 | I53: 7388 | J53: 39 | K53: 25 | L53: 5 | M53: 21 | N53: 0 | O53: 0
A54: 塑膠工業24 | B54: 塑膠工業2 | C54: 1325 恒大 | D54: 塑膠工業 | E54: M1300 | F54: 23183 | G54: 29223 | H54: -20.67 | I54: -6040 | J54: 39 | K54: 25 | L54: 24 | M54: 2 | N54: 0 | O54: 0
A55: 塑膠工業6 | B55: 塑膠工業20 | C55: 1326 台化 | D55: 塑膠工業 | E55: M1300 | F55: 27143490 | G55: 24019167 | H55: 13.01 | I55: 3124323 | J55: 39 | K55: 25 | L55: 6 | M55: 20 | N55: 0 | O55: 0
A56: 塑膠工業21 | B56: 塑膠工業5 | C56: 1337 再生-KY | D56: 塑膠工業 | E56: M1300 | F56: 61049 | G56: 75613 | H56: -19.26 | I56: -14564 | J56: 39 | K56: 25 | L56: 21 | M56: 5 | N56: 0 | O56: 0
A57: 塑膠工業15 | B57: 塑膠工業11 | C57: 1340 勝悅-KY | D57: 塑膠工業 | E57: M1300 | F57: 15979 | G57: 16514 | H57: -3.24 | I57: -535 | J57: 39 | K57: 25 | L57: 15 | M57: 11 | N57: 0 | O57: 0
A58: 塑膠工業22 | B58: 塑膠工業4 | C58: 1341 富林-KY | D58: 塑膠工業 | E58: M1300 | F58: 187099 | G58: 234302 | H58: -20.15 | I58: -47203 | J58: 39 | K58: 25 | L58: 22 | M58: 4 | N58: 0 | O58: 0
A59: 塑膠工業2 | B59: 塑膠工業24 | C59: 4303 信立 | D59: 塑膠工業 | E59: M1300 | F59: 84663 | G59: 63992 | H59: 32.3 | I59: 20671 | J59: 39 | K59: 25 | L59: 2 | M59: 24 | N59: 0 | O59: 0
A60: 塑膠工業18 | B60: 塑膠工業8 | C60: 4304 勝昱 | D60: 塑膠工業 | E60: M1300 | F60: 30112 | G60: 34196 | H60: -11.94 | I60: -4084 | J60: 39 | K60: 25 | L60: 18 | M60: 8 | N60: 0 | O60: 0
A61: 塑膠工業9 | B61: 塑膠工業17 | C61: 4305 世坤 | D61: 塑膠工業 | E61: M1300 | F61: 82577 | G61: 73762 | H61: 11.95 | I61: 8815 | J61: 39 | K61: 25 | L61: 9 | M61: 17 | N61: 0 | O61: 0
A62: 塑膠工業12 | B62: 塑膠工業14 | C62: 4306 炎洲 | D62: 塑膠工業 | E62: M1300 | F62: 969662 | G62: 949610 | H62: 2.11 | I62: 20052 | J62: 39 | K62: 25 | L62: 12 | M62: 14 | N62: 0 | O62: 0
A63: 塑膠工業23 | B63: 塑膠工業3 | C63: 9950 萬國通 | D63: 塑膠工業 | E63: M1300 | F63: 174403 | G63: 218855 | H63: -20.31 | I63: -44452 | J63: 39 | K63: 25 | L63: 23 | M63: 3 | N63: 0 | O63: 0
A64: 紡織纖維36 | B64: 紡織纖維16 | C64: 1402 遠東新 | D64: 紡織纖維 | E64: M1400 | F64: 19649054 | G64: 22045002 | H64: -10.87 | I64: -2395948 | J64: 64 | K64: 51 | L64: 36 | M64: 16 | N64: 0 | O64: 0
A65: 紡織纖維29 | B65: 紡織纖維23 | C65: 1409 新纖 | D65: 紡織纖維 | E65: M1400 | F65: 3391760 | G65: 3387023 | H65: 0.14 | I65: 4737 | J65: 64 | K65: 51 | L65: 29 | M65: 23 | N65: 0 | O65: 0
A66: 紡織纖維4 | B66: 紡織纖維48 | C66: 1410 南染 | D66: 紡織纖維 | E66: M1400 | F66: 19688 | G66: 11987 | H66: 64.24 | I66: 7701 | J66: 64 | K66: 51 | L66: 4 | M66: 48 | N66: 0 | O66: 0
A67: 紡織纖維33 | B67: 紡織纖維19 | C67: 1413 宏洲 | D67: 紡織纖維 | E67: M1400 | F67: 178124 | G67: 196446 | H67: -9.33 | I67: -18322 | J67: 64 | K67: 51 | L67: 33 | M67: 19 | N67: 0 | O67: 0
A68: =D68&L68 -> 紡織纖維28 | B68: =D68&M68 -> 紡織纖維24 | C68: 1414 東和 | D68: 紡織纖維 | E68: M1400 | F68: 40915 | G68: 39790 | H68: 2.83 | I68: =F68-G68 -> 1125 | J68: =IF(E68="","",MATCH(E68,E:E,0)) -> 64 | K68: =COUNTIF(D:D,D68) -> 51 | L68: =IF(H68="","",RANK(H68,OFFSET(H$1,$J68-1,,$K68,),0)) -> 28 | M68: =IF(H68="","",RANK(H68,OFFSET(H$1,$J68-1,,$K68,),1)) -> 24 | N68: 0 | O68: 0
A69: 紡織纖維38 | B69: 紡織纖維14 | C69: 1417 嘉裕 | D69: 紡織纖維 | E69: M1400 | F69: 16382 | G69: 19960 | H69: -17.93 | I69: -3578 | J69: 64 | K69: 51 | L69: 38 | M69: 14 | N69: 0 | O69: 0
A70: 紡織纖維2 | B70: 紡織纖維50 | C70: 1418 東華 | D70: 紡織纖維 | E70: M1400 | F70: 1312 | G70: 679 | H70: 93.23 | I70: 633 | J70: 64 | K70: 51 | L70: 2 | M70: 50 | N70: 0 | O70: 0
A71: 紡織纖維30 | B71: 紡織纖維22 | C71: 1419 新紡 | D71: 紡織纖維 | E71: M1400 | F71: 330627 | G71: 337096 | H71: -1.92 | I71: -6469 | J71: 64 | K71: 51 | L71: 30 | M71: 22 | N71: 0 | O71: 0
A72: 紡織纖維3 | B72: 紡織纖維49 | C72: 1423 利華 | D72: 紡織纖維 | E72: M1400 | F72: 11062 | G72: 6712 | H72: 64.81 | I72: 4350 | J72: 64 | K72: 51 | L72: 3 | M72: 49 | N72: 0 | O72: 0
A73: 紡織纖維20 | B73: 紡織纖維32 | C73: 1434 福懋 | D73: 紡織纖維 | E73: M1400 | F73: 2564073 | G73: 2308607 | H73: 11.07 | I73: 255466 | J73: 64 | K73: 51 | L73: 20 | M73: 32 | N73: 0 | O73: 0
A74: 紡織纖維21 | B74: 紡織纖維31 | C74: 1440 南紡 | D74: 紡織纖維 | E74: M1400 | F74: 1418665 | G74: 1314202 | H74: 7.95 | I74: 104463 | J74: 64 | K74: 51 | L74: 21 | M74: 31 | N74: 0 | O74: 0
A75: 紡織纖維41 | B75: 紡織纖維11 | C75: 1441 大東 | D75: 紡織纖維 | E75: M1400 | F75: 108493 | G75: 134774 | H75: -19.5 | I75: -26281 | J75: 64 | K75: 51 | L75: 41 | M75: 11 | N75: 0 | O75: 0
A76: 紡織纖維32 | B76: 紡織纖維20 | C76: 1444 力麗 | D76: 紡織纖維 | E76: M1400 | F76: 583534 | G76: 631626 | H76: -7.61 | I76: -48092 | J76: 64 | K76: 51 | L76: 32 | M76: 20 | N76: 0 | O76: 0
A77: 紡織纖維45 | B77: 紡織纖維7 | C77: 1445 大宇 | D77: 紡織纖維 | E77: M1400 | F77: 50509 | G77: 79857 | H77: -36.75 | I77: -29348 | J77: 64 | K77: 51 | L77: 45 | M77: 7 | N77: 0 | O77: 0
A78: 紡織纖維51 | B78: 紡織纖維1 | C78: 1446 宏和 | D78: 紡織纖維 | E78: M1400 | F78: 10852 | G78: 143087 | H78: -92.42 | I78: -132235 | J78: 64 | K78: 51 | L78: 51 | M78: 1 | N78: 0 | O78: 0
A79: 紡織纖維43 | B79: 紡織纖維9 | C79: 1447 力鵬 | D79: 紡織纖維 | E79: M1400 | F79: 1714781 | G79: 2368662 | H79: -27.61 | I79: -653881 | J79: 64 | K79: 51 | L79: 43 | M79: 9 | N79: 0 | O79: 0
A80: 紡織纖維19 | B80: 紡織纖維33 | C80: 1449 佳和 | D80: 紡織纖維 | E80: M1400 | F80: 232350 | G80: 207114 | H80: 12.18 | I80: 25236 | J80: 64 | K80: 51 | L80: 19 | M80: 33 | N80: 0 | O80: 0
A81: 紡織纖維31 | B81: 紡織纖維21 | C81: 1451 年興 | D81: 紡織纖維 | E81: M1400 | F81: 438156 | G81: 458452 | H81: -4.43 | I81: -20296 | J81: 64 | K81: 51 | L81: 31 | M81: 21 | N81: 0 | O81: 0
A82: 紡織纖維10 | B82: 紡織纖維42 | C82: 1452 宏益 | D82: 紡織纖維 | E82: M1400 | F82: 129933 | G82: 105403 | H82: 23.27 | I82: 24530 | J82: 64 | K82: 51 | L82: 10 | M82: 42 | N82: 0 | O82: 0
A83: 紡織纖維16 | B83: 紡織纖維36 | C83: 1454 台富 | D83: 紡織纖維 | E83: M1400 | F83: 136416 | G83: 117467 | H83: 16.13 | I83: 18949 | J83: 64 | K83: 51 | L83: 16 | M83: 36 | N83: 0 | O83: 0
A84: 紡織纖維13 | B84: 紡織纖維39 | C84: 1455 集盛 | D84: 紡織纖維 | E84: M1400 | F84: 641314 | G84: 547969 | H84: 17.03 | I84: 93345 | J84: 64 | K84: 51 | L84: 13 | M84: 39 | N84: 0 | O84: 0
A85: 紡織纖維35 | B85: 紡織纖維17 | C85: 1457 宜進 | D85: 紡織纖維 | E85: M1400 | F85: 254736 | G85: 284681 | H85: -10.52 | I85: -29945 | J85: 64 | K85: 51 | L85: 35 | M85: 17 | N85: 0 | O85: 0
A86: 紡織纖維11 | B86: 紡織纖維41 | C86: 1459 聯發 | D86: 紡織纖維 | E86: M1400 | F86: 121057 | G86: 98437 | H86: 22.98 | I86: 22620 | J86: 64 | K86: 51 | L86: 11 | M86: 41 | N86: 0 | O86: 0
A87: 紡織纖維25 | B87: 紡織纖維27 | C87: 1460 宏遠 | D87: 紡織纖維 | E87: M1400 | F87: 729701 | G87: 683189 | H87: 6.81 | I87: 46512 | J87: 64 | K87: 51 | L87: 25 | M87: 27 | N87: 0 | O87: 0
A88: 紡織纖維48 | B88: 紡織纖維4 | C88: 1463 強盛新 | D88: 紡織纖維 | E88: M1400 | F88: 178204 | G88: 450723 | H88: -60.46 | I88: -272519 | J88: 64 | K88: 51 | L88: 48 | M88: 4 | N88: 0 | O88: 0
A89: 紡織纖維17 | B89: 紡織纖維35 | C89: 1464 得力 | D89: 紡織纖維 | E89: M1400 | F89: 1202274 | G89: 1036037 | H89: 16.05 | I89: 166237 | J89: 64 | K89: 51 | L89: 17 | M89: 35 | N89: 0 | O89: 0
A90: 紡織纖維49 | B90: 紡織纖維3 | C90: 1465 偉全 | D90: 紡織纖維 | E90: M1400 | F90: 15920 | G90: 42887 | H90: -62.88 | I90: -26967 | J90: 64 | K90: 51 | L90: 49 | M90: 3 | N90: 0 | O90: 0
A91: 紡織纖維27 | B91: 紡織纖維25 | C91: 1466 聚隆 | D91: 紡織纖維 | E91: M1400 | F91: 232850 | G91: 223697 | H91: 4.09 | I91: 9153 | J91: 64 | K91: 51 | L91: 27 | M91: 25 | N91: 0 | O91: 0
A92: 紡織纖維7 | B92: 紡織纖維45 | C92: 1467 南緯 | D92: 紡織纖維 | E92: M1400 | F92: 469955 | G92: 372010 | H92: 26.33 | I92: 97945 | J92: 64 | K92: 51 | L92: 7 | M92: 45 | N92: 0 | O92: 0
A93: 紡織纖維8 | B93: 紡織纖維44 | C93: 1468 昶和 | D93: 紡織纖維 | E93: M1400 | F93: 69212 | G93: 55590 | H93: 24.5 | I93: 13622 | J93: 64 | K93: 51 | L93: 8 | M93: 44 | N93: 0 | O93: 0
A94: 紡織纖維40 | B94: 紡織纖維12 | C94: 1470 大統新創 | D94: 紡織纖維 | E94: M1400 | F94: 55157 | G94: 67897 | H94: -18.76 | I94: -12740 | J94: 64 | K94: 51 | L94: 40 | M94: 12 | N94: =U94 -> 0 | O94: =V94 -> 0
A95: 紡織纖維9 | B95: 紡織纖維43 | C95: 1473 台南 | D95: 紡織纖維 | E95: M1400 | F95: 977784 | G95: 788461 | H95: 24.01 | I95: 189323 | J95: 64 | K95: 51 | L95: 9 | M95: 43 | N95: 0 | O95: 0
A96: 紡織纖維18 | B96: 紡織纖維34 | C96: 1474 弘裕 | D96: 紡織纖維 | E96: M1400 | F96: 251702 | G96: 218813 | H96: 15.03 | I96: 32889 | J96: 64 | K96: 51 | L96: 18 | M96: 34 | N96: 0 | O96: 0
A97: 紡織纖維22 | B97: 紡織纖維30 | C97: 1475 業旺 | D97: 紡織纖維 | E97: M1400 | F97: 146029 | G97: 135817 | H97: 7.52 | I97: 10212 | J97: 64 | K97: 51 | L97: 22 | M97: 30 | N97: 0 | O97: 0
A98: 紡織纖維42 | B98: 紡織纖維10 | C98: 1476 儒鴻 | D98: 紡織纖維 | E98: M1400 | F98: 2633763 | G98: 3330196 | H98: -20.91 | I98: -696433 | J98: 64 | K98: 51 | L98: 42 | M98: 10 | N98: 0 | O98: 0
A99: 紡織纖維37 | B99: 紡織纖維15 | C99: 1477 聚陽 | D99: 紡織纖維 | E99: M1400 | F99: 2969487 | G99: 3500665 | H99: -15.17 | I99: -531178 | J99: 64 | K99: 51 | L99: 37 | M99: 15 | N99: 0 | O99: 0
A100: 紡織纖維5 | B100: 紡織纖維47 | C100: 4401 東隆興 | D100: 紡織纖維 | E100: M1400 | F100: 348724 | G100: 223081 | H100: 56.32 | I100: 125643 | J100: 64 | K100: 51 | L100: 5 | M100: 47 | N100: 0 | O100: 0
A101: 紡織纖維47 | B101: 紡織纖維5 | C101: 4402 郡都開發 | D101: 紡織纖維 | E101: M1400 | F101: 1287 | G101: 2521 | H101: -48.95 | I101: -1234 | J101: 64 | K101: 51 | L101: 47 | M101: 5 | N101: 0 | O101: 0
A102: 紡織纖維12 | B102: 紡織纖維40 | C102: 4406 新昕纖 | D102: 紡織纖維 | E102: M1400 | F102: 43656 | G102: 37066 | H102: 17.78 | I102: 6590 | J102: 64 | K102: 51 | L102: 12 | M102: 40 | N102: 0 | O102: 0
A103: 紡織纖維1 | B103: 紡織纖維51 | C103: 4413 飛寶企業 | D103: 紡織纖維 | E103: M1400 | F103: 57975 | G103: 25476 | H103: 127.57 | I103: 32499 | J103: 64 | K103: 51 | L103: 1 | M103: 51 | N103: 0 | O103: 0
A104: 紡織纖維26 | B104: 紡織纖維26 | C104: 4414 如興 | D104: 紡織纖維 | E104: M1400 | F104: 1223003 | G104: 1148538 | H104: 6.48 | I104: 74465 | J104: 64 | K104: 51 | L104: 26 | M104: 26 | N104: 0 | O104: 0
A105: 紡織纖維46 | B105: 紡織纖維6 | C105: 4417 金洲 | D105: 紡織纖維 | E105: M1400 | F105: 188568 | G105: 305154 | H105: -38.21 | I105: -116586 | J105: 64 | K105: 51 | L105: 46 | M105: 6 | N105: 0 | O105: 0
A106: 紡織纖維24 | B106: 紡織纖維28 | C106: 4420 光明 | D106: 紡織纖維 | E106: M1400 | F106: 74540 | G106: 69568 | H106: 7.15 | I106: 4972 | J106: 64 | K106: 51 | L106: 24 | M106: 28 | N106: 0 | O106: 0
A107: 紡織纖維15 | B107: 紡織纖維37 | C107: 4426 利勤 | D107: 紡織纖維 | E107: M1400 | F107: 79501 | G107: 68360 | H107: 16.3 | I107: 11141 | J107: 64 | K107: 51 | L107: 15 | M107: 37 | N107: 0 | O107: 0
A108: 紡織纖維50 | B108: 紡織纖維2 | C108: 4432 銘旺實 | D108: 紡織纖維 | E108: M1400 | F108: 37475 | G108: 156235 | H108: -76.01 | I108: -118760 | J108: 64 | K108: 51 | L108: 50 | M108: 2 | N108: 0 | O108: 0
A109: 紡織纖維6 | B109: 紡織纖維46 | C109: 4433 興采 | D109: 紡織纖維 | E109: M1400 | F109: 306455 | G109: 224529 | H109: 36.49 | I109: 81926 | J109: 64 | K109: 51 | L109: 6 | M109: 46 | N109: 0 | O109: 0
A110: 紡織纖維39 | B110: 紡織纖維13 | C110: 4438 廣越 | D110: 紡織纖維 | E110: M1400 | F110: 826547 | G110: 1015421 | H110: -18.6 | I110: -188874 | J110: 64 | K110: 51 | L110: 39 | M110: 13 | N110: 0 | O110: 0
A111: 紡織纖維14 | B111: 紡織纖維38 | C111: 4439 冠星-KY | D111: 紡織纖維 | E111: M1400 | F111: 531352 | G111: 454519 | H111: 16.9 | I111: 76833 | J111: 64 | K111: 51 | L111: 14 | M111: 38 | N111: 0 | O111: 0
A112: 紡織纖維34 | B112: 紡織纖維18 | C112: 4440 宜新實業 | D112: 紡織纖維 | E112: M1400 | F112: 72812 | G112: 80950 | H112: -10.05 | I112: -8138 | J112: 64 | K112: 51 | L112: 34 | M112: 18 | N112: 0 | O112: 0
A113: 紡織纖維44 | B113: 紡織纖維8 | C113: 4442 竣邦-KY | D113: 紡織纖維 | E113: M1400 | F113: 90145 | G113: 137199 | H113: -34.3 | I113: -47054 | J113: 64 | K113: 51 | L113: 44 | M113: 8 | N113: 0 | O113: 0
A114: 紡織纖維23 | B114: 紡織纖維29 | C114: 6506 雙邦 | D114: 紡織纖維 | E114: M1400 | F114: 165080 | G114: 153981 | H114: 7.21 | I114: 11099 | J114: 64 | K114: 51 | L114: 23 | M114: 29 | N114: 0 | O114: 0
A115: 電機機械86 | B115: 電機機械12 | C115: 1503 士電 | D115: 電機機械 | E115: M1500 | F115: 2920936 | G115: 4248122 | H115: -31.24 | I115: -1327186 | J115: 115 | K115: 97 | L115: 86 | M115: 12 | N115: 0 | O115: 0
A116: 電機機械38 | B116: 電機機械60 | C116: 1504 東元 | D116: 電機機械 | E116: M1500 | F116: 4435229 | G116: 4303352 | H116: 3.06 | I116: 131877 | J116: 115 | K116: 97 | L116: 38 | M116: 60 | N116: 0 | O116: 0
A117: 電機機械28 | B117: 電機機械70 | C117: 1506 正道 | D117: 電機機械 | E117: M1500 | F117: 80734 | G117: 74550 | H117: 8.3 | I117: 6184 | J117: 115 | K117: 97 | L117: 28 | M117: 70 | N117: 0 | O117: 0
A118: 電機機械24 | B118: 電機機械74 | C118: 1513 中興電 | D118: 電機機械 | E118: M1500 | F118: 2155049 | G118: 1929217 | H118: 11.71 | I118: 225832 | J118: 115 | K118: 97 | L118: 24 | M118: 74 | N118: 0 | O118: 0
A119: 電機機械17 | B119: 電機機械81 | C119: 1514 亞力 | D119: 電機機械 | E119: M1500 | F119: 679782 | G119: 571823 | H119: 18.88 | I119: 107959 | J119: 115 | K119: 97 | L119: 17 | M119: 81 | N119: 0 | O119: 0
A120: 電機機械84 | B120: 電機機械14 | C120: 1515 力山 | D120: 電機機械 | E120: M1500 | F120: 239627 | G120: 335834 | H120: -28.65 | I120: -96207 | J120: 115 | K120: 97 | L120: 84 | M120: 14 | N120: 0 | O120: 0
A121: 電機機械56 | B121: 電機機械42 | C121: 1517 利奇 | D121: 電機機械 | E121: M1500 | F121: 163301 | G121: 178660 | H121: -8.6 | I121: -15359 | J121: 115 | K121: 97 | L121: 56 | M121: 42 | N121: 0 | O121: 0
A122: 電機機械54 | B122: 電機機械44 | C122: 1519 華城 | D122: 電機機械 | E122: M1500 | F122: 1176341 | G122: 1275049 | H122: -7.74 | I122: -98708 | J122: 115 | K122: 97 | L122: 54 | M122: 44 | N122: 0 | O122: 0
A123: 電機機械23 | B123: 電機機械75 | C123: 1526 日馳 | D123: 電機機械 | E123: M1500 | F123: 68759 | G123: 60941 | H123: 12.83 | I123: 7818 | J123: 115 | K123: 97 | L123: 23 | M123: 75 | N123: 0 | O123: 0
A124: 電機機械57 | B124: 電機機械41 | C124: 1527 鑽全 | D124: 電機機械 | E124: M1500 | F124: 267891 | G124: 293324 | H124: -8.67 | I124: -25433 | J124: 115 | K124: 97 | L124: 57 | M124: 41 | N124: 0 | O124: 0
A125: 電機機械30 | B125: 電機機械68 | C125: 1528 恩德 | D125: 電機機械 | E125: M1500 | F125: 186120 | G125: 173640 | H125: 7.19 | I125: 12480 | J125: 115 | K125: 97 | L125: 30 | M125: 68 | N125: 0 | O125: 0
A126: 電機機械1 | B126: 電機機械97 | C126: 1529 樂事綠能 | D126: 電機機械 | E126: M1500 | F126: 118552 | G126: 41581 | H126: 185.11 | I126: 76971 | J126: 115 | K126: 97 | L126: 1 | M126: 97 | N126: 0 | O126: 0
A127: 電機機械71 | B127: 電機機械27 | C127: 1530 亞崴 | D127: 電機機械 | E127: M1500 | F127: 171648 | G127: 206986 | H127: -17.07 | I127: -35338 | J127: 115 | K127: 97 | L127: 71 | M127: 27 | N127: 0 | O127: 0
A128: 電機機械70 | B128: 電機機械28 | C128: 1531 高林股 | D128: 電機機械 | E128: M1500 | F128: 114415 | G128: 135929 | H128: -15.83 | I128: -21514 | J128: 115 | K128: 97 | L128: 70 | M128: 28 | N128: 0 | O128: 0
A129: 電機機械76 | B129: 電機機械22 | C129: 1532 勤美 | D129: 電機機械 | E129: M1500 | F129: 837571 | G129: 1068173 | H129: -21.59 | I129: -230602 | J129: 115 | K129: 97 | L129: 76 | M129: 22 | N129: 0 | O129: 0
A130: 電機機械46 | B130: 電機機械52 | C130: 1535 中宇 | D130: 電機機械 | E130: M1500 | F130: 793174 | G130: 821315 | H130: -3.43 | I130: -28141 | J130: 115 | K130: 97 | L130: 46 | M130: 52 | N130: 0 | O130: 0
A131: 電機機械77 | B131: 電機機械21 | C131: 1537 廣隆 | D131: 電機機械 | E131: M1500 | F131: 501917 | G131: 649163 | H131: -22.68 | I131: -147246 | J131: 115 | K131: 97 | L131: 77 | M131: 21 | N131: 0 | O131: 0
A132: =D132&L132 -> 電機機械8 | B132: =D132&M132 -> 電機機械90 | C132: 1538 正峰 | D132: 電機機械 | E132: M1500 | F132: 11618 | G132: 8910 | H132: 30.39 | I132: =F132-G132 -> 2708 | J132: =IF(E132="","",MATCH(E132,E:E,0)) -> 115 | K132: =COUNTIF(D:D,D132) -> 97 | L132: =IF(H132="","",RANK(H132,OFFSET(H$1,$J132-1,,$K132,),0)) -> 8 | M132: =IF(H132="","",RANK(H132,OFFSET(H$1,$J132-1,,$K132,),1)) -> 90 | N132: 0 | O132: 0
A133: 電機機械91 | B133: 電機機械7 | C133: 1539 巨庭 | D133: 電機機械 | E133: M1500 | F133: 90103 | G133: 150123 | H133: -39.98 | I133: -60020 | J133: 115 | K133: 97 | L133: 91 | M133: 7 | N133: 0 | O133: 0
A134: 電機機械96 | B134: 電機機械2 | C134: 1540 喬福 | D134: 電機機械 | E134: M1500 | F134: 28572 | G134: 53499 | H134: -46.59 | I134: -24927 | J134: 115 | K134: 97 | L134: 96 | M134: 2 | N134: 0 | O134: 0
A135: 電機機械93 | B135: 電機機械5 | C135: 1541 錩泰 | D135: 電機機械 | E135: M1500 | F135: 186643 | G135: 323932 | H135: -42.38 | I135: -137289 | J135: 115 | K135: 97 | L135: 93 | M135: 5 | N135: 0 | O135: 0
A136: 電機機械80 | B136: 電機機械18 | C136: 1558 伸興 | D136: 電機機械 | E136: M1500 | F136: 600591 | G136: 783818 | H136: -23.38 | I136: -183227 | J136: 115 | K136: 97 | L136: 80 | M136: 18 | N136: 0 | O136: 0
A137: 電機機械33 | B137: 電機機械65 | C137: 1560 中砂 | D137: 電機機械 | E137: M1500 | F137: 604077 | G137: 565808 | H137: 6.76 | I137: 38269 | J137: 115 | K137: 97 | L137: 33 | M137: 65 | N137: 0 | O137: 0
A138: 電機機械97 | B138: 電機機械1 | C138: 1570 力肯 | D138: 電機機械 | E138: M1500 | F138: 28798 | G138: 55007 | H138: -47.65 | I138: -26209 | J138: 115 | K138: 97 | L138: 97 | M138: 1 | N138: 0 | O138: 0
A139: 電機機械78 | B139: 電機機械20 | C139: 1580 新麥 | D139: 電機機械 | E139: M1500 | F139: 293518 | G139: 381500 | H139: -23.06 | I139: -87982 | J139: 115 | K139: 97 | L139: 78 | M139: 20 | N139: 0 | O139: 0
A140: 電機機械61 | B140: 電機機械37 | C140: 1583 程泰 | D140: 電機機械 | E140: M1500 | F140: 270309 | G140: 306298 | H140: -11.75 | I140: -35989 | J140: 115 | K140: 97 | L140: 61 | M140: 37 | N140: 0 | O140: 0
A141: 電機機械69 | B141: 電機機械29 | C141: 1586 和勤 | D141: 電機機械 | E141: M1500 | F141: 157756 | G141: 186978 | H141: -15.63 | I141: -29222 | J141: 115 | K141: 97 | L141: 69 | M141: 29 | N141: 0 | O141: 0
A142: 電機機械36 | B142: 電機機械62 | C142: 1589 永冠-KY | D142: 電機機械 | E142: M1500 | F142: 507677 | G142: 481634 | H142: 5.41 | I142: 26043 | J142: 115 | K142: 97 | L142: 36 | M142: 62 | N142: 0 | O142: 0
A143: 電機機械32 | B143: 電機機械66 | C143: 1590 亞德客-KY | D143: 電機機械 | E143: M1500 | F143: 2371072 | G143: 2219508 | H143: 6.83 | I143: 151564 | J143: 115 | K143: 97 | L143: 32 | M143: 66 | N143: 0 | O143: 0
A144: 電機機械2 | B144: 電機機械96 | C144: 1591 駿吉-KY | D144: 電機機械 | E144: M1500 | F144: 7415 | G144: 3965 | H144: 87.01 | I144: 3450 | J144: 115 | K144: 97 | L144: 2 | M144: 96 | N144: 0 | O144: 0
A145: 電機機械21 | B145: 電機機械77 | C145: 1597 直得 | D145: 電機機械 | E145: M1500 | F145: 89452 | G145: 76931 | H145: 16.28 | I145: 12521 | J145: 115 | K145: 97 | L145: 21 | M145: 77 | N145: 0 | O145: 0
A146: 電機機械48 | B146: 電機機械50 | C146: 1599 宏佳騰 | D146: 電機機械 | E146: M1500 | F146: 146222 | G146: 152660 | H146: -4.22 | I146: -6438 | J146: 115 | K146: 97 | L146: 48 | M146: 50 | N146: 0 | O146: 0
A147: 電機機械40 | B147: 電機機械58 | C147: 2049 上銀 | D147: 電機機械 | E147: M1500 | F147: 1930542 | G147: 1900341 | H147: 1.59 | I147: 30201 | J147: 115 | K147: 97 | L147: 40 | M147: 58 | N147: 0 | O147: 0
A148: 電機機械47 | B148: 電機機械51 | C148: 2066 世德 | D148: 電機機械 | E148: M1500 | F148: 224989 | G148: 234176 | H148: -3.92 | I148: -9187 | J148: 115 | K148: 97 | L148: 47 | M148: 51 | N148: 0 | O148: 0
A149: 電機機械27 | B149: 電機機械71 | C149: 2067 嘉鋼 | D149: 電機機械 | E149: M1500 | F149: 70760 | G149: 65271 | H149: 8.41 | I149: 5489 | J149: 115 | K149: 97 | L149: 27 | M149: 71 | N149: 0 | O149: 0
A150: 電機機械35 | B150: 電機機械63 | C150: 2070 精湛 | D150: 電機機械 | E150: M1500 | F150: 42905 | G150: 40492 | H150: 5.96 | I150: 2413 | J150: 115 | K150: 97 | L150: 35 | M150: 63 | N150: 0 | O150: 0
A151: 電機機械94 | B151: 電機機械4 | C151: 2230 泰茂 | D151: 電機機械 | E151: M1500 | F151: 134304 | G151: 237655 | H151: -43.49 | I151: -103351 | J151: 115 | K151: 97 | L151: 94 | M151: 4 | N151: 0 | O151: 0
A152: 電機機械13 | B152: 電機機械85 | C152: 2235 謚源 | D152: 電機機械 | E152: M1500 | F152: 44278 | G152: 35691 | H152: 24.06 | I152: 8587 | J152: 115 | K152: 97 | L152: 13 | M152: 85 | N152: 0 | O152: 0
A153: 電機機械67 | B153: 電機機械31 | C153: 2371 大同 | D153: 電機機械 | E153: M1500 | F153: 3041720 | G153: 3558687 | H153: -14.53 | I153: -516967 | J153: 115 | K153: 97 | L153: 67 | M153: 31 | N153: 0 | O153: 0
A154: 電機機械26 | B154: 電機機械72 | C154: 3162 精確 | D154: 電機機械 | E154: M1500 | F154: 629045 | G154: 572741 | H154: 9.83 | I154: 56304 | J154: 115 | K154: 97 | L154: 26 | M154: 72 | N154: 0 | O154: 0
A155: 電機機械50 | B155: 電機機械48 | C155: 3167 大量 | D155: 電機機械 | E155: M1500 | F155: 256117 | G155: 273970 | H155: -6.52 | I155: -17853 | J155: 115 | K155: 97 | L155: 50 | M155: 48 | N155: 0 | O155: 0
A156: 電機機械41 | B156: 電機機械57 | C156: 3226 龍鋒 | D156: 電機機械 | E156: M1500 | F156: 183710 | G156: 182309 | H156: 0.77 | I156: 1401 | J156: 115 | K156: 97 | L156: 41 | M156: 57 | N156: 0 | O156: 0
A157: 電機機械55 | B157: 電機機械43 | C157: 3379 彬台 | D157: 電機機械 | E157: M1500 | F157: 85211 | G157: 92958 | H157: -8.33 | I157: -7747 | J157: 115 | K157: 97 | L157: 55 | M157: 43 | N157: 0 | O157: 0
A158: 電機機械42 | B158: 電機機械56 | C158: 3426 台興 | D158: 電機機械 | E158: M1500 | F158: 65569 | G158: 65560 | H158: 0.01 | I158: 9 | J158: 115 | K158: 97 | L158: 42 | M158: 56 | N158: =U158 -> 0 | O158: =V158 -> 0
A159: 電機機械52 | B159: 電機機械45 | C159: 3685 元創精密 | D159: 電機機械 | E159: M1500 | F159: 72966 | G159: 79033 | H159: -7.68 | I159: -6067 | J159: 115 | K159: 97 | L159: 52 | M159: 45 | N159: 0 | O159: 0
A160: 電機機械81 | B160: 電機機械17 | C160: 4502 健信 | D160: 電機機械 | E160: M1500 | F160: 56704 | G160: 75743 | H160: -25.14 | I160: -19039 | J160: 115 | K160: 97 | L160: 81 | M160: 17 | N160: 0 | O160: 0
A161: 電機機械15 | B161: 電機機械83 | C161: 4503 金雨 | D161: 電機機械 | E161: M1500 | F161: 41741 | G161: 34481 | H161: 21.06 | I161: 7260 | J161: 115 | K161: 97 | L161: 15 | M161: 83 | N161: 0 | O161: 0
A162: 電機機械89 | B162: 電機機械9 | C162: 4506 崇友 | D162: 電機機械 | E162: M1500 | F162: 363964 | G162: 596731 | H162: -39.01 | I162: -232767 | J162: 115 | K162: 97 | L162: 89 | M162: 9 | N162: 0 | O162: 0
A163: 電機機械44 | B163: 電機機械54 | C163: 4510 高鋒 | D163: 電機機械 | E163: M1500 | F163: 101945 | G163: 102793 | H163: -0.82 | I163: -848 | J163: 115 | K163: 97 | L163: 44 | M163: 54 | N163: 0 | O163: 0
A164: 電機機械12 | B164: 電機機械86 | C164: 4513 福裕 | D164: 電機機械 | E164: M1500 | F164: 82872 | G164: 66601 | H164: 24.43 | I164: 16271 | J164: 115 | K164: 97 | L164: 12 | M164: 86 | N164: 0 | O164: 0
A165: 電機機械63 | B165: 電機機械35 | C165: 4523 永彰 | D165: 電機機械 | E165: M1500 | F165: 41835 | G165: 47845 | H165: -12.56 | I165: -6010 | J165: 115 | K165: 97 | L165: 63 | M165: 35 | N165: 0 | O165: 0
A166: 電機機械73 | B166: 電機機械25 | C166: 4526 東台 | D166: 電機機械 | E166: M1500 | F166: 369586 | G166: 456844 | H166: -19.1 | I166: -87258 | J166: 115 | K166: 97 | L166: 73 | M166: 25 | N166: 0 | O166: 0
A167: 電機機械52 | B167: 電機機械45 | C167: 4527 方方土霖 | D167: 電機機械 | E167: M1500 | F167: 161864 | G167: 175326 | H167: -7.68 | I167: -13462 | J167: 115 | K167: 97 | L167: 52 | M167: 45 | N167: 0 | O167: 0
A168: 電機機械72 | B168: 電機機械26 | C168: 4528 江興鍛 | D168: 電機機械 | E168: M1500 | F168: 114265 | G168: 139369 | H168: -18.01 | I168: -25104 | J168: 115 | K168: 97 | L168: 72 | M168: 26 | N168: 0 | O168: 0
A169: 電機機械58 | B169: 電機機械40 | C169: 4532 瑞智 | D169: 電機機械 | E169: M1500 | F169: 2011265 | G169: 2248382 | H169: -10.55 | I169: -237117 | J169: 115 | K169: 97 | L169: 58 | M169: 40 | N169: 0 | O169: 0
A170: 電機機械82 | B170: 電機機械16 | C170: 4533 協易機 | D170: 電機機械 | E170: M1500 | F170: 353612 | G170: 478805 | H170: -26.15 | I170: -125193 | J170: 115 | K170: 97 | L170: 82 | M170: 16 | N170: 0 | O170: 0
A171: 電機機械83 | B171: 電機機械15 | C171: 4534 慶騰 | D171: 電機機械 | E171: M1500 | F171: 54527 | G171: 74184 | H171: -26.5 | I171: -19657 | J171: 115 | K171: 97 | L171: 83 | M171: 15 | N171: 0 | O171: 0
A172: 電機機械60 | B172: 電機機械38 | C172: 4535 至興 | D172: 電機機械 | E172: M1500 | F172: 197459 | G172: 222381 | H172: -11.21 | I172: -24922 | J172: 115 | K172: 97 | L172: 60 | M172: 38 | N172: 0 | O172: 0
A173: 電機機械4 | B173: 電機機械94 | C173: 4538 大詠城 | D173: 電機機械 | E173: M1500 | F173: 24788 | G173: 15160 | H173: 63.51 | I173: 9628 | J173: 115 | K173: 97 | L173: 4 | M173: 94 | N173: 0 | O173: 0
A174: 電機機械62 | B174: 電機機械36 | C174: 4540 全球傳動 | D174: 電機機械 | E174: M1500 | F174: 128136 | G174: 145376 | H174: -11.86 | I174: -17240 | J174: 115 | K174: 97 | L174: 62 | M174: 36 | N174: 0 | O174: 0
A175: 電機機械10 | B175: 電機機械88 | C175: 4543 萬在 | D175: 電機機械 | E175: M1500 | F175: 60454 | G175: 46675 | H175: 29.52 | I175: 13779 | J175: 115 | K175: 97 | L175: 10 | M175: 88 | N175: 0 | O175: 0
A176: 電機機械14 | B176: 電機機械84 | C176: 4549 桓達 | D176: 電機機械 | E176: M1500 | F176: 102178 | G176: 84398 | H176: 21.07 | I176: 17780 | J176: 115 | K176: 97 | L176: 14 | M176: 84 | N176: 0 | O176: 0
A177: 電機機械3 | B177: 電機機械95 | C177: 4550 長佳 | D177: 電機機械 | E177: M1500 | F177: 83666 | G177: 49384 | H177: 69.42 | I177: 34282 | J177: 115 | K177: 97 | L177: 3 | M177: 95 | N177: 0 | O177: 0
A178: 電機機械88 | B178: 電機機械10 | C178: 4552 力達-KY | D178: 電機機械 | E178: M1500 | F178: 176395 | G178: 266760 | H178: -33.88 | I178: -90365 | J178: 115 | K178: 97 | L178: 88 | M178: 10 | N178: 0 | O178: 0
A179: 電機機械34 | B179: 電機機械64 | C179: 4555 氣立 | D179: 電機機械 | E179: M1500 | F179: 121516 | G179: 114595 | H179: 6.04 | I179: 6921 | J179: 115 | K179: 97 | L179: 34 | M179: 64 | N179: 0 | O179: 0
A180: 電機機械25 | B180: 電機機械73 | C180: 4558 寶緯 | D180: 電機機械 | E180: M1500 | F180: 121167 | G180: 109717 | H180: 10.44 | I180: 11450 | J180: 115 | K180: 97 | L180: 25 | M180: 73 | N180: 0 | O180: 0
A181: 電機機械29 | B181: 電機機械69 | C181: 4560 強信-KY | D181: 電機機械 | E181: M1500 | F181: 136942 | G181: 126684 | H181: 8.1 | I181: 10258 | J181: 115 | K181: 97 | L181: 29 | M181: 69 | N181: 0 | O181: 0
A182: 電機機械5 | B182: 電機機械93 | C182: 4561 健椿 | D182: 電機機械 | E182: M1500 | F182: 77574 | G182: 49762 | H182: 55.89 | I182: 27812 | J182: 115 | K182: 97 | L182: 5 | M182: 93 | N182: 0 | O182: 0
A183: 電機機械74 | B183: 電機機械24 | C183: 4562 穎漢 | D183: 電機機械 | E183: M1500 | F183: 55512 | G183: 68922 | H183: -19.46 | I183: -13410 | J183: 115 | K183: 97 | L183: 74 | M183: 24 | N183: 0 | O183: 0
A184: 電機機械16 | B184: 電機機械82 | C184: 4563 百德 | D184: 電機機械 | E184: M1500 | F184: 261523 | G184: 217953 | H184: 19.99 | I184: 43570 | J184: 115 | K184: 97 | L184: 16 | M184: 82 | N184: 0 | O184: 0
A185: 電機機械85 | B185: 電機機械13 | C185: 4564 元翎 | D185: 電機機械 | E185: M1500 | F185: 88513 | G185: 127240 | H185: -30.44 | I185: -38727 | J185: 115 | K185: 97 | L185: 85 | M185: 13 | N185: 0 | O185: 0
A186: 電機機械64 | B186: 電機機械34 | C186: 4566 時碩工業 | D186: 電機機械 | E186: M1500 | F186: 390743 | G186: 446931 | H186: -12.57 | I186: -56188 | J186: 115 | K186: 97 | L186: 64 | M186: 34 | N186: 0 | O186: 0
A187: 電機機械92 | B187: 電機機械6 | C187: 4568 科際精密 | D187: 電機機械 | E187: M1500 | F187: 80032 | G187: 134164 | H187: -40.35 | I187: -54132 | J187: 115 | K187: 97 | L187: 92 | M187: 6 | N187: 0 | O187: 0
A188: 電機機械95 | B188: 電機機械3 | C188: 4571 鈞興-KY | D188: 電機機械 | E188: M1500 | F188: 199950 | G188: 369147 | H188: -45.83 | I188: -169197 | J188: 115 | K188: 97 | L188: 95 | M188: 3 | N188: 0 | O188: 0
A189: 電機機械75 | B189: 電機機械23 | C189: 4572 駐龍 | D189: 電機機械 | E189: M1500 | F189: 50134 | G189: 63329 | H189: -20.84 | I189: -13195 | J189: 115 | K189: 97 | L189: 75 | M189: 23 | N189: 0 | O189: 0
A190: 電機機械11 | B190: 電機機械87 | C190: 4576 大銀微系統 | D190: 電機機械 | E190: M1500 | F190: 208836 | G190: 163879 | H190: 27.43 | I190: 44957 | J190: 115 | K190: 97 | L190: 11 | M190: 87 | N190: 0 | O190: 0
A191: 電機機械49 | B191: 電機機械49 | C191: 4580 捷流閥業 | D191: 電機機械 | E191: M1500 | F191: 176367 | G191: 184761 | H191: -4.54 | I191: -8394 | J191: 115 | K191: 97 | L191: 49 | M191: 49 | N191: 0 | O191: 0
A192: 電機機械22 | B192: 電機機械76 | C192: 4583 台灣精銳 | D192: 電機機械 | E192: M1500 | F192: 274018 | G192: 238744 | H192: 14.77 | I192: 35274 | J192: 115 | K192: 97 | L192: 22 | M192: 76 | N192: 0 | O192: 0
A193: 電機機械43 | B193: 電機機械55 | C193: 4584 君帆 | D193: 電機機械 | E193: M1500 | F193: 115995 | G193: 116948 | H193: -0.81 | I193: -953 | J193: 115 | K193: 97 | L193: 43 | M193: 55 | N193: 0 | O193: 0
A194: 電機機械65 | B194: 電機機械33 | C194: 5288 豐祥-KY | D194: 電機機械 | E194: M1500 | F194: 563988 | G194: 649624 | H194: -13.18 | I194: -85636 | J194: 115 | K194: 97 | L194: 65 | M194: 33 | N194: 0 | O194: 0
A195: 電機機械45 | B195: 電機機械53 | C195: 6122 擎邦 | D195: 電機機械 | E195: M1500 | F195: 269583 | G195: 275659 | H195: -2.2 | I195: -6076 | J195: 115 | K195: 97 | L195: 45 | M195: 53 | N195: 0 | O195: 0
A196: =D196&L196 -> 電機機械68 | B196: =D196&M196 -> 電機機械30 | C196: 6425 易發 | D196: 電機機械 | E196: M1500 | F196: 60446 | G196: 71282 | H196: -15.2 | I196: =F196-G196 -> -10836 | J196: =IF(E196="","",MATCH(E196,E:E,0)) -> 115 | K196: =COUNTIF(D:D,D196) -> 97 | L196: =IF(H196="","",RANK(H196,OFFSET(H$1,$J196-1,,$K196,),0)) -> 68 | M196: =IF(H196="","",RANK(H196,OFFSET(H$1,$J196-1,,$K196,),1)) -> 30 | N196: 0 | O196: 0
A197: 電機機械87 | B197: 電機機械11 | C197: 6603 富強鑫 | D197: 電機機械 | E197: M1500 | F197: 247154 | G197: 369260 | H197: -33.07 | I197: -122106 | J197: 115 | K197: 97 | L197: 87 | M197: 11 | N197: 0 | O197: 0
A198: 電機機械90 | B198: 電機機械8 | C198: 6606 建德工業 | D198: 電機機械 | E198: M1500 | F198: 37431 | G198: 62185 | H198: -39.81 | I198: -24754 | J198: 115 | K198: 97 | L198: 90 | M198: 8 | N198: 0 | O198: 0
A199: 電機機械9 | B199: 電機機械89 | C199: 6609 瀧澤科 | D199: 電機機械 | E199: M1500 | F199: 213747 | G199: 164649 | H199: 29.82 | I199: 49098 | J199: 115 | K199: 97 | L199: 9 | M199: 89 | N199: 0 | O199: 0
A200: 電機機械66 | B200: 電機機械32 | C200: 6829 千附精密 | D200: 電機機械 | E200: M1500 | F200: 134535 | G200: 156553 | H200: -14.06 | I200: -22018 | J200: 115 | K200: 97 | L200: 66 | M200: 32 | N200: 0 | O200: 0
... 2800 more rows

Sheet 表C_RAW
A1: 排名(正向) | B1: 排名(反向) | D1: TSE新產業_名稱 | E1: TSE新產業_代碼 | F1: 累計營收(千元) | G1: 去年累計營收(千元) | H1: 累計營收成長率％ | J1: 產業位址 | K1: 產業家數 | L1: 排名(正向) | M1: 排名(反向) | N1: 排名(正向) | O1: 排名(反向) | P1: 產業營收 | Q1: 單月營收(千元) | R1: 上月單月營收(千元) | S1: 本月較上月變動金額 | T1: 單月營收與上月比％ | U1: 排名(正向) | V1: 排名(反向)
C2: 公司 | E2: 2025-02-27 | F2: 2025-02-27 | G2: 2025-02-27 | H2: 2025-02-27 | N2: =U2 -> 2 | O2: =V2 -> 33 | P2: 水泥工業 | Q2: =SUMIF($D:$D,$P2,F:F) -> 34924667 | R2: =SUMIF($D:$D,$P2,G:G) -> 25521974 | S2: =Q2-R2 -> 9402693 | T2: =ROUND(S2/R2*100,2) -> 36.84 | U2: =RANK(T2,T:T) -> 2 | V2: =RANK(T2,T:T,1) -> 33
A3: =D3&L3 -> 水泥工業1 | B3: =D3&M3 -> 水泥工業7 | C3: 1101 台泥 | D3: 水泥工業 | E3: M1100 | F3: 21336840 | G3: 12036511 | H3: 77.27 | I3: =F3-G3 -> 9300329 | J3: =IF(E3="","",MATCH(E3,E:E,0)) -> 3 | K3: =COUNTIF(D:D,D3) -> 7 | L3: =IF(H3="","",RANK(H3,OFFSET(H$1,$J3-1,,$K3,),0)) -> 1 | M3: =IF(H3="","",RANK(H3,OFFSET(H$1,$J3-1,,$K3,),1)) -> 7 | N3: =U3 -> 21 | O3: 14 | P3: 食品工業 | Q3: =SUMIF($D:$D,$P3,F:F) -> 168451883 | R3: 162642343 | S3: =Q3-R3 -> 5809540 | T3: =ROUND(S3/R3*100,2) -> 3.57 | U3: =RANK(T3,T:T) -> 21 | V3: 14
A4: =D4&L4 -> 水泥工業6 | B4: =D4&M4 -> 水泥工業2 | C4: 1102 亞泥 | D4: 水泥工業 | E4: M1100 | F4: 10062045 | G4: 10090552 | H4: -0.28 | I4: =F4-G4 -> -28507 | J4: =IF(E4="","",MATCH(E4,E:E,0)) -> 3 | K4: =COUNTIF(D:D,D4) -> 7 | L4: =IF(H4="","",RANK(H4,OFFSET(H$1,$J4-1,,$K4,),0)) -> 6 | M4: =IF(H4="","",RANK(H4,OFFSET(H$1,$J4-1,,$K4,),1)) -> 2 | N4: 27 | O4: 8 | P4: 塑膠工業 | Q4: 161427869 | R4: 161145626 | S4: 282243 | T4: 0.18 | U4: 27 | V4: 8
A5: 水泥工業3 | B5: 水泥工業5 | C5: 1103 嘉泥 | D5: 水泥工業 | E5: M1100 | F5: 486172 | G5: 444255 | H5: 9.44 | I5: 41917 | J5: 3 | K5: 7 | L5: 3 | M5: 5 | N5: 23 | O5: 12 | P5: 紡織纖維 | Q5: 95877237 | R5: 95004112 | S5: 873125 | T5: 0.92 | U5: 23 | V5: 12
A6: 水泥工業5 | B6: 水泥工業3 | C6: 1104 環泥 | D6: 水泥工業 | E6: M1100 | F6: 1226440 | G6: 1158116 | H6: 5.9 | I6: 68324 | J6: 3 | K6: 7 | L6: 5 | M6: 3 | N6: 16 | O6: 19 | P6: 電機機械 | Q6: 79359058 | R6: 74058242 | S6: 5300816 | T6: 7.16 | U6: 16 | V6: 19
A7: 水泥工業4 | B7: 水泥工業4 | C7: 1108 幸福 | D7: 水泥工業 | E7: M1100 | F7: 804398 | G7: 743486 | H7: 8.19 | I7: 60912 | J7: 3 | K7: 7 | L7: 4 | M7: 4 | N7: 10 | O7: 25 | P7: 電器電纜 | Q7: 46339723 | R7: 40736137 | S7: 5603586 | T7: 13.76 | U7: 10 | V7: 25
A8: 水泥工業7 | B8: 水泥工業1 | C8: 1109 信大 | D8: 水泥工業 | E8: M1100 | F8: 543202 | G8: 693330 | H8: -21.65 | I8: -150128 | J8: 3 | K8: 7 | L8: 7 | M8: 1 | N8: 18 | O8: 17 | P8: 化學工業 | Q8: 50968262 | R8: 48273839 | S8: 2694423 | T8: 5.58 | U8: 18 | V8: 17
A9: 水泥工業2 | B9: 水泥工業6 | C9: 1110 東泥 | D9: 水泥工業 | E9: M1100 | F9: 465570 | G9: 355724 | H9: 30.88 | I9: 109846 | J9: 3 | K9: 7 | L9: 2 | M9: 6 | N9: 13 | O9: 22 | P9: 生技醫療 | Q9: 49164444 | R9: 44279579 | S9: 4884865 | T9: 11.03 | U9: 13 | V9: 22
A10: 食品工業20 | B10: 食品工業10 | C10: 1201 味全 | D10: 食品工業 | E10: M1200 | F10: 3442294 | G10: 3552846 | H10: -3.11 | I10: -110552 | J10: 10 | K10: 29 | L10: 20 | M10: 10 | N10: 29 | O10: 6 | P10: 玻璃陶瓷 | Q10: 8052455 | R10: 8272301 | S10: -219846 | T10: -2.66 | U10: 29 | V10: 6
A11: 食品工業18 | B11: 食品工業12 | C11: 1203 味王 | D11: 食品工業 | E11: M1200 | F11: 1010885 | G11: 1033777 | H11: -2.21 | I11: -22892 | J11: 10 | K11: 29 | L11: 18 | M11: 12 | N11: 28 | O11: 7 | P11: 造紙工業 | Q11: 29465322 | R11: 30267733 | S11: -802411 | T11: -2.65 | U11: 28 | V11: 7
A12: 食品工業13 | B12: 食品工業17 | C12: 1210 大成 | D12: 食品工業 | E12: M1200 | F12: 16771965 | G12: 16716391 | H12: 0.33 | I12: 55574 | J12: 10 | K12: 29 | L12: 13 | M12: 17 | N12: 32 | O12: 3 | P12: 鋼鐵工業 | Q12: 152913801 | R12: 159370980 | S12: -6457179 | T12: -4.05 | U12: 32 | V12: 3
A13: 食品工業1 | B13: 食品工業29 | C13: 1213 大飲 | D13: 食品工業 | E13: M1200 | F13: 46447 | G13: 25421 | H13: 82.71 | I13: 21026 | J13: 10 | K13: 29 | L13: 1 | M13: 29 | N13: 19 | O13: 16 | P13: 橡膠工業 | Q13: 34069762 | R13: 32484433 | S13: 1585329 | T13: 4.88 | U13: 19 | V13: 16
A14: 食品工業21 | B14: 食品工業9 | C14: 1215 卜蜂 | D14: 食品工業 | E14: M1200 | F14: 4361729 | G14: 4535808 | H14: -3.84 | I14: -174079 | J14: 10 | K14: 29 | L14: 21 | M14: 9 | N14: 30 | O14: 5 | P14: 汽車工業 | Q14: 115943604 | R14: 119689501 | S14: -3745897 | T14: -3.13 | U14: 30 | V14: 5
A15: 食品工業7 | B15: 食品工業23 | C15: 1216 統一 | D15: 食品工業 | E15: M1200 | F15: 113330461 | G15: 106566178 | H15: 6.35 | I15: 6764283 | J15: 10 | K15: 29 | L15: 7 | M15: 23 | N15: 5 | O15: 30 | P15: 半導體 | Q15: 1063474974 | R15: 862160263 | S15: 201314711 | T15: 23.35 | U15: 5 | V15: 30
A16: 食品工業14 | B16: 食品工業16 | C16: 1217 愛之味 | D16: 食品工業 | E16: M1200 | F16: 783035 | G16: 786176 | H16: -0.4 | I16: -3141 | J16: 10 | K16: 29 | L16: 14 | M16: 16 | N16: 3 | O16: 32 | P16: 電腦及週邊 | Q16: 1390507723 | R16: 1072186485 | S16: 318321238 | T16: 29.69 | U16: 3 | V16: 32
A17: 食品工業24 | B17: 食品工業6 | C17: 1218 泰山 | D17: 食品工業 | E17: M1200 | F17: 1673833 | G17: 1890797 | H17: -11.47 | I17: -216964 | J17: 10 | K17: 29 | L17: 24 | M17: 6 | N17: 12 | O17: 23 | P17: 光電業 | Q17: 197773228 | R17: 176577413 | S17: 21195815 | T17: 12 | U17: 12 | V17: 23
A18: 食品工業15 | B18: 食品工業15 | C18: 1219 福壽 | D18: 食品工業 | E18: M1200 | F18: 2341159 | G18: 2368329 | H18: -1.15 | I18: -27170 | J18: 10 | K18: 29 | L18: 15 | M18: 15 | N18: 14 | O18: 21 | P18: 通信網路業 | Q18: 196417319 | R18: 179689651 | S18: 16727668 | T18: 9.31 | U18: 14 | V18: 21
A19: 食品工業11 | B19: 食品工業19 | C19: 1220 台榮 | D19: 食品工業 | E19: M1200 | F19: 489613 | G19: 478685 | H19: 2.28 | I19: 10928 | J19: 10 | K19: 29 | L19: 11 | M19: 19 | N19: 7 | O19: 28 | P19: 電子零組件 | Q19: 399744013 | R19: 342246159 | S19: 57497854 | T19: 16.8 | U19: 7 | V19: 28
A20: 食品工業16 | B20: 食品工業14 | C20: 1225 福懋油 | D20: 食品工業 | E20: M1200 | F20: 2158758 | G20: 2192651 | H20: -1.55 | I20: -33893 | J20: 10 | K20: 29 | L20: 16 | M20: 14 | N20: 9 | O20: 26 | P20: 電子通路業 | Q20: 497281598 | R20: 433573113 | S20: 63708485 | T20: 14.69 | U20: 9 | V20: 26
A21: 食品工業10 | B21: 食品工業20 | C21: 1227 佳格 | D21: 食品工業 | E21: M1200 | F21: 4873756 | G21: 4727720 | H21: 3.09 | I21: 146036 | J21: 10 | K21: 29 | L21: 10 | M21: 20 | N21: 6 | O21: 29 | P21: 資訊服務業 | Q21: 30206070 | R21: 25132242 | S21: 5073828 | T21: 20.19 | U21: 6 | V21: 29
A22: 食品工業23 | B22: 食品工業7 | C22: 1229 聯華 | D22: 食品工業 | E22: M1200 | F22: 1653244 | G22: 1848096 | H22: -10.54 | I22: -194852 | J22: 10 | K22: 29 | L22: 23 | M22: 7 | N22: 4 | O22: 31 | P22: 其他電子業 | Q22: 1232064369 | R22: 989990669 | S22: 242073700 | T22: 24.45 | U22: 4 | V22: 31
A23: 食品工業6 | B23: 食品工業24 | C23: 1231 聯華食 | D23: 食品工業 | E23: M1200 | F23: 2124317 | G23: 1997316 | H23: 6.36 | I23: 127001 | J23: 10 | K23: 29 | L23: 6 | M23: 24 | N23: 1 | O23: 34 | P23: 綠能環保 | Q23: 18585732 | R23: 13384285 | S23: 5201447 | T23: 38.86 | U23: 1 | V23: 34
A24: 食品工業22 | B24: 食品工業8 | C24: 1232 大統益 | D24: 食品工業 | E24: M1200 | F24: 3461769 | G24: 3714653 | H24: -6.81 | I24: -252884 | J24: 10 | K24: 29 | L24: 22 | M24: 8 | N24: 26 | O24: 9 | P24: 數位雲端 | Q24: 34239571 | R24: 34133216 | S24: 106355 | T24: 0.31 | U24: 26 | V24: 9
A25: 食品工業19 | B25: 食品工業11 | C25: 1233 天仁 | D25: 食品工業 | E25: M1200 | F25: 382004 | G25: 392155 | H25: -2.59 | I25: -10151 | J25: 10 | K25: 29 | L25: 19 | M25: 11 | N25: 24 | O25: 11 | P25: 建材營造 | Q25: 63528512 | R25: 63257377 | S25: 271135 | T25: 0.43 | U25: 24 | V25: 11
A26: 食品工業27 | B26: 食品工業3 | C26: 1234 黑松 | D26: 食品工業 | E26: M1200 | F26: 1620011 | G26: 1988695 | H26: -18.54 | I26: -368684 | J26: 10 | K26: 29 | L26: 27 | M26: 3 | N26: 8 | O26: 27 | P26: 航運業 | Q26: 261187086 | R26: 223863122 | S26: 37323964 | T26: 16.67 | U26: 8 | V26: 27
A27: 食品工業2 | B27: 食品工業28 | C27: 1235 興泰 | D27: 食品工業 | E27: M1200 | F27: 10353 | G27: 7587 | H27: 36.46 | I27: 2766 | J27: 10 | K27: 29 | L27: 2 | M27: 28 | N27: 15 | O27: 20 | P27: 觀光餐旅 | Q27: 31452831 | R27: 28975868 | S27: 2476963 | T27: 8.55 | U27: 15 | V27: 20
A28: 食品工業25 | B28: 食品工業5 | C28: 1236 宏亞 | D28: 食品工業 | E28: M1200 | F28: 382900 | G28: 443237 | H28: -13.61 | I28: -60337 | J28: 10 | K28: 29 | L28: 25 | M28: 5 | N28: 17 | O28: 18 | P28: 金融業 | Q28: 409349636 | R28: 383404355 | S28: 25945281 | T28: 6.77 | U28: 17 | V28: 18
A29: 食品工業28 | B29: 食品工業2 | C29: 1256 鮮活果汁-KY | D29: 食品工業 | E29: M1200 | F29: 508292 | G29: 627739 | H29: -19.03 | I29: -119447 | J29: 10 | K29: 29 | L29: 28 | M29: 2 | N29: 34 | O29: 1 | P29: 貿易百貨 | Q29: 104252032 | R29: 116936987 | S29: -12684955 | T29: -10.85 | U29: 34 | V29: 1
A30: 食品工業4 | B30: 食品工業26 | C30: 1264 德麥 | D30: 食品工業 | E30: M1200 | F30: 1094007 | G30: 1022510 | H30: 6.99 | I30: 71497 | J30: 10 | K30: 29 | L30: 4 | M30: 26 | N30: =U30 -> 20 | O30: =V30 -> 15 | P30: 文化創意業 | Q30: =SUMIF($D:$D,$P30,F:F) -> 10504110 | R30: =SUMIF($D:$D,$P30,G:G) -> 10098230 | S30: =Q30-R30 -> 405880 | T30: =ROUND(S30/R30*100,2) -> 4.02 | U30: =RANK(T30,T:T) -> 20 | V30: =RANK(T30,T:T,1) -> 15
A31: 食品工業26 | B31: 食品工業4 | C31: 1294 漢田生技 | D31: 食品工業 | E31: M1200 | F31: 100985 | G31: 117216 | H31: -13.85 | I31: -16231 | J31: 10 | K31: 29 | L31: 26 | M31: 4 | N31: 33 | O31: 2 | P31: 農業科技 | Q31: 743149 | R31: 826648 | S31: -83499 | T31: -10.1 | U31: 33 | V31: 2
A32: 食品工業9 | B32: 食品工業21 | C32: 1702 南僑 | D32: 食品工業 | E32: M1200 | F32: 3802641 | G32: 3627012 | H32: 4.84 | I32: 175629 | J32: 10 | K32: 29 | L32: 9 | M32: 21 | N32: 11 | O32: 24 | P32: 運動休閒 | Q32: 114457773 | R32: 101209076 | S32: 13248697 | T32: 13.09 | U32: 11 | V32: 24
A33: 食品工業5 | B33: 食品工業25 | C33: 1737 臺鹽 | D33: 食品工業 | E33: M1200 | F33: 569749 | G33: 534435 | H33: 6.61 | I33: 35314 | J33: 10 | K33: 29 | L33: 5 | M33: 25 | N33: 22 | O33: 13 | P33: 居家生活 | Q33: 42581103 | R33: 41465395 | S33: 1115708 | T33: 2.69 | U33: 22 | V33: 13
A34: 食品工業3 | B34: 食品工業27 | C34: 1796 金穎生技 | D34: 食品工業 | E34: M1200 | F34: 105848 | G34: 84015 | H34: 25.99 | I34: 21833 | J34: 10 | K34: 29 | L34: 3 | M34: 27 | N34: 25 | O34: 10 | P34: 油電燃氣業 | Q34: 126640872 | R34: 126221956 | S34: 418916 | T34: 0.33 | U34: 25 | V34: 10
A35: 食品工業29 | B35: 食品工業1 | C35: 3054 立萬利 | D35: 食品工業 | E35: M1200 | F35: 12845 | G35: 22738 | H35: -43.51 | I35: -9893 | J35: 10 | K35: 29 | L35: 29 | M35: 1 | N35: 31 | O35: 4 | P35: 其他 | Q35: 99492030 | R35: 103626609 | S35: -4134579 | T35: -3.99 | U35: 31 | V35: 4
A36: 食品工業12 | B36: 食品工業18 | C36: 4205 中華食 | D36: 食品工業 | E36: M1200 | F36: 322660 | G36: 315713 | H36: 2.2 | I36: 6947 | J36: 10 | K36: 29 | L36: 12 | M36: 18 | N36: 0 | O36: 0
A37: 食品工業17 | B37: 食品工業13 | C37: 4207 環泰 | D37: 食品工業 | E37: M1200 | F37: 866047 | G37: 881387 | H37: -1.74 | I37: -15340 | J37: 10 | K37: 29 | L37: 17 | M37: 13 | N37: 0 | O37: 0
A38: 食品工業8 | B38: 食品工業22 | C38: 6846 綠茵 | D38: 食品工業 | E38: M1200 | F38: 150276 | G38: 143060 | H38: 5.04 | I38: 7216 | J38: 10 | K38: 29 | L38: 8 | M38: 22 | N38: 0 | O38: 0
A39: 塑膠工業12 | B39: 塑膠工業13 | C39: 1301 台塑 | D39: 塑膠工業 | E39: M1300 | F39: 30109841 | G39: 30448890 | H39: -1.11 | I39: -339049 | J39: 39 | K39: 25 | L39: 12 | M39: 13 | N39: 0 | O39: 0
A40: 塑膠工業7 | B40: 塑膠工業19 | C40: 1303 南亞 | D40: 塑膠工業 | E40: M1300 | F40: 42538893 | G40: 37104227 | H40: 14.65 | I40: 5434666 | J40: 39 | K40: 25 | L40: 7 | M40: 19 | N40: 0 | O40: 0
A41: 塑膠工業12 | B41: 塑膠工業13 | C41: 1304 台聚 | D41: 塑膠工業 | E41: M1300 | F41: 7850792 | G41: 7938514 | H41: -1.11 | I41: -87722 | J41: 39 | K41: 25 | L41: 12 | M41: 13 | N41: 0 | O41: 0
A42: 塑膠工業19 | B42: 塑膠工業7 | C42: 1305 華夏 | D42: 塑膠工業 | E42: M1300 | F42: 1625769 | G42: 1923367 | H42: -15.47 | I42: -297598 | J42: 39 | K42: 25 | L42: 19 | M42: 7 | N42: 0 | O42: 0
A43: 塑膠工業8 | B43: 塑膠工業18 | C43: 1307 三芳 | D43: 塑膠工業 | E43: M1300 | F43: 1908990 | G43: 1669490 | H43: 14.35 | I43: 239500 | J43: 39 | K43: 25 | L43: 8 | M43: 18 | N43: 0 | O43: 0
A44: 塑膠工業17 | B44: 塑膠工業9 | C44: 1308 亞聚 | D44: 塑膠工業 | E44: M1300 | F44: 969971 | G44: 1074967 | H44: -9.77 | I44: -104996 | J44: 39 | K44: 25 | L44: 17 | M44: 9 | N44: 0 | O44: 0
A45: 塑膠工業9 | B45: 塑膠工業17 | C45: 1309 台達化 | D45: 塑膠工業 | E45: M1300 | F45: 2730681 | G45: 2431811 | H45: 12.29 | I45: 298870 | J45: 39 | K45: 25 | L45: 9 | M45: 17 | N45: 0 | O45: 0
A46: 塑膠工業10 | B46: 塑膠工業16 | C46: 1310 台苯 | D46: 塑膠工業 | E46: M1300 | F46: 1598061 | G46: 1588293 | H46: 0.61 | I46: 9768 | J46: 39 | K46: 25 | L46: 10 | M46: 16 | N46: 0 | O46: 0
A47: 塑膠工業2 | B47: 塑膠工業24 | C47: 1312 國喬 | D47: 塑膠工業 | E47: M1300 | F47: 3050187 | G47: 2338599 | H47: 30.43 | I47: 711588 | J47: 39 | K47: 25 | L47: 2 | M47: 24 | N47: 0 | O47: 0
A48: 塑膠工業20 | B48: 塑膠工業6 | C48: 1313 聯成 | D48: 塑膠工業 | E48: M1300 | F48: 8670693 | G48: 10469974 | H48: -17.19 | I48: -1799281 | J48: 39 | K48: 25 | L48: 20 | M48: 6 | N48: 0 | O48: 0
A49: 塑膠工業21 | B49: 塑膠工業5 | C49: 1314 中石化 | D49: 塑膠工業 | E49: M1300 | F49: 4419551 | G49: 5462327 | H49: -19.09 | I49: -1042776 | J49: 39 | K49: 25 | L49: 21 | M49: 5 | N49: 0 | O49: 0
A50: 塑膠工業5 | B50: 塑膠工業21 | C50: 1315 達新 | D50: 塑膠工業 | E50: M1300 | F50: 386710 | G50: 324396 | H50: 19.21 | I50: 62314 | J50: 39 | K50: 25 | L50: 5 | M50: 21 | N50: 0 | O50: 0
A51: 塑膠工業16 | B51: 塑膠工業10 | C51: 1321 大洋 | D51: 塑膠工業 | E51: M1300 | F51: 631084 | G51: 670102 | H51: -5.82 | I51: -39018 | J51: 39 | K51: 25 | L51: 16 | M51: 10 | N51: 0 | O51: 0
A52: 塑膠工業25 | B52: 塑膠工業1 | C52: 1323 永裕 | D52: 塑膠工業 | E52: M1300 | F52: 332115 | G52: 499954 | H52: -33.57 | I52: -167839 | J52: 39 | K52: 25 | L52: 25 | M52: 1 | N52: 0 | O52: 0
A53: 塑膠工業14 | B53: 塑膠工業12 | C53: 1324 地球 | D53: 塑膠工業 | E53: M1300 | F53: 117082 | G53: 122834 | H53: -4.68 | I53: -5752 | J53: 39 | K53: 25 | L53: 14 | M53: 12 | N53: 0 | O53: 0
A54: 塑膠工業24 | B54: 塑膠工業2 | C54: 1325 恒大 | D54: 塑膠工業 | E54: M1300 | F54: 52406 | G54: 71959 | H54: -27.17 | I54: -19553 | J54: 39 | K54: 25 | L54: 24 | M54: 2 | N54: 0 | O54: 0
A55: 塑膠工業15 | B55: 塑膠工業11 | C55: 1326 台化 | D55: 塑膠工業 | E55: M1300 | F55: 51162657 | G55: 53864779 | H55: -5.02 | I55: -2702122 | J55: 39 | K55: 25 | L55: 15 | M55: 11 | N55: 0 | O55: 0
A56: 塑膠工業23 | B56: 塑膠工業3 | C56: 1337 再生-KY | D56: 塑膠工業 | E56: M1300 | F56: 136662 | G56: 177168 | H56: -22.86 | I56: -40506 | J56: 39 | K56: 25 | L56: 23 | M56: 3 | N56: 0 | O56: 0
A57: 塑膠工業22 | B57: 塑膠工業4 | C57: 1340 勝悅-KY | D57: 塑膠工業 | E57: M1300 | F57: 32492 | G57: 41471 | H57: -21.65 | I57: -8979 | J57: 39 | K57: 25 | L57: 22 | M57: 4 | N57: 0 | O57: 0
A58: 塑膠工業4 | B58: 塑膠工業22 | C58: 1341 富林-KY | D58: 塑膠工業 | E58: M1300 | F58: 421401 | G58: 337999 | H58: 24.68 | I58: 83402 | J58: 39 | K58: 25 | L58: 4 | M58: 22 | N58: 0 | O58: 0
A59: 塑膠工業1 | B59: 塑膠工業25 | C59: 4303 信立 | D59: 塑膠工業 | E59: M1300 | F59: 148655 | G59: 32028 | H59: 364.14 | I59: 116627 | J59: 39 | K59: 25 | L59: 1 | M59: 25 | N59: 0 | O59: 0
A60: 塑膠工業6 | B60: 塑膠工業20 | C60: 4304 勝昱 | D60: 塑膠工業 | E60: M1300 | F60: 64308 | G60: 54864 | H60: 17.21 | I60: 9444 | J60: 39 | K60: 25 | L60: 6 | M60: 20 | N60: 0 | O60: 0
A61: 塑膠工業3 | B61: 塑膠工業23 | C61: 4305 世坤 | D61: 塑膠工業 | E61: M1300 | F61: 156338 | G61: 122022 | H61: 28.12 | I61: 34316 | J61: 39 | K61: 25 | L61: 3 | M61: 23 | N61: 0 | O61: 0
A62: 塑膠工業11 | B62: 塑膠工業15 | C62: 4306 炎洲 | D62: 塑膠工業 | E62: M1300 | F62: 1919272 | G62: 1911910 | H62: 0.39 | I62: 7362 | J62: 39 | K62: 25 | L62: 11 | M62: 15 | N62: 0 | O62: 0
A63: 塑膠工業18 | B63: 塑膠工業8 | C63: 9950 萬國通 | D63: 塑膠工業 | E63: M1300 | F63: 393258 | G63: 463681 | H63: -15.19 | I63: -70423 | J63: 39 | K63: 25 | L63: 18 | M63: 8 | N63: 0 | O63: 0
A64: 紡織纖維32 | B64: 紡織纖維20 | C64: 1402 遠東新 | D64: 紡織纖維 | E64: M1400 | F64: 41694056 | G64: 42553445 | H64: -2.02 | I64: -859389 | J64: 64 | K64: 51 | L64: 32 | M64: 20 | N64: 0 | O64: 0
A65: 紡織纖維30 | B65: 紡織纖維22 | C65: 1409 新纖 | D65: 紡織纖維 | E65: M1400 | F65: 6778783 | G65: 6825475 | H65: -0.68 | I65: -46692 | J65: 64 | K65: 51 | L65: 30 | M65: 22 | N65: 0 | O65: 0
A66: 紡織纖維39 | B66: 紡織纖維13 | C66: 1410 南染 | D66: 紡織纖維 | E66: M1400 | F66: 31675 | G66: 35959 | H66: -11.91 | I66: -4284 | J66: 64 | K66: 51 | L66: 39 | M66: 13 | N66: 0 | O66: 0
A67: 紡織纖維38 | B67: 紡織纖維14 | C67: 1413 宏洲 | D67: 紡織纖維 | E67: M1400 | F67: 374570 | G67: 400131 | H67: -6.39 | I67: -25561 | J67: 64 | K67: 51 | L67: 38 | M67: 14 | N67: 0 | O67: 0
A68: =D68&L68 -> 紡織纖維37 | B68: =D68&M68 -> 紡織纖維15 | C68: 1414 東和 | D68: 紡織纖維 | E68: M1400 | F68: 80705 | G68: 85695 | H68: -5.82 | I68: =F68-G68 -> -4990 | J68: =IF(E68="","",MATCH(E68,E:E,0)) -> 64 | K68: =COUNTIF(D:D,D68) -> 51 | L68: =IF(H68="","",RANK(H68,OFFSET(H$1,$J68-1,,$K68,),0)) -> 37 | M68: =IF(H68="","",RANK(H68,OFFSET(H$1,$J68-1,,$K68,),1)) -> 15 | N68: 0 | O68: 0
A69: 紡織纖維51 | B69: 紡織纖維1 | C69: 1417 嘉裕 | D69: 紡織纖維 | E69: M1400 | F69: 36342 | G69: 164090 | H69: -77.85 | I69: -127748 | J69: 64 | K69: 51 | L69: 51 | M69: 1 | N69: 0 | O69: 0
A70: 紡織纖維3 | B70: 紡織纖維49 | C70: 1418 東華 | D70: 紡織纖維 | E70: M1400 | F70: 1991 | G70: 1253 | H70: 58.9 | I70: 738 | J70: 64 | K70: 51 | L70: 3 | M70: 49 | N70: 0 | O70: 0
A71: 紡織纖維11 | B71: 紡織纖維41 | C71: 1419 新紡 | D71: 紡織纖維 | E71: M1400 | F71: 667723 | G71: 537303 | H71: 24.27 | I71: 130420 | J71: 64 | K71: 51 | L71: 11 | M71: 41 | N71: 0 | O71: 0
A72: 紡織纖維47 | B72: 紡織纖維5 | C72: 1423 利華 | D72: 紡織纖維 | E72: M1400 | F72: 17774 | G72: 27692 | H72: -35.82 | I72: -9918 | J72: 64 | K72: 51 | L72: 47 | M72: 5 | N72: 0 | O72: 0
A73: 紡織纖維23 | B73: 紡織纖維29 | C73: 1434 福懋 | D73: 紡織纖維 | E73: M1400 | F73: 4872680 | G73: 4540612 | H73: 7.31 | I73: 332068 | J73: 64 | K73: 51 | L73: 23 | M73: 29 | N73: 0 | O73: 0
A74: 紡織纖維29 | B74: 紡織纖維23 | C74: 1440 南紡 | D74: 紡織纖維 | E74: M1400 | F74: 2732867 | G74: 2715543 | H74: 0.64 | I74: 17324 | J74: 64 | K74: 51 | L74: 29 | M74: 23 | N74: 0 | O74: 0
A75: 紡織纖維2 | B75: 紡織纖維50 | C75: 1441 大東 | D75: 紡織纖維 | E75: M1400 | F75: 243267 | G75: 140420 | H75: 73.24 | I75: 102847 | J75: 64 | K75: 51 | L75: 2 | M75: 50 | N75: 0 | O75: 0
A76: 紡織纖維34 | B76: 紡織纖維18 | C76: 1444 力麗 | D76: 紡織纖維 | E76: M1400 | F76: 1215160 | G76: 1246431 | H76: -2.51 | I76: -31271 | J76: 64 | K76: 51 | L76: 34 | M76: 18 | N76: 0 | O76: 0
A77: 紡織纖維42 | B77: 紡織纖維10 | C77: 1445 大宇 | D77: 紡織纖維 | E77: M1400 | F77: 130366 | G77: 156807 | H77: -16.86 | I77: -26441 | J77: 64 | K77: 51 | L77: 42 | M77: 10 | N77: 0 | O77: 0
A78: 紡織纖維50 | B78: 紡織纖維2 | C78: 1446 宏和 | D78: 紡織纖維 | E78: M1400 | F78: 153938 | G78: 515119 | H78: -70.12 | I78: -361181 | J78: 64 | K78: 51 | L78: 50 | M78: 2 | N78: 0 | O78: 0
A79: 紡織纖維48 | B79: 紡織纖維4 | C79: 1447 力鵬 | D79: 紡織纖維 | E79: M1400 | F79: 4083443 | G79: 6612745 | H79: -38.25 | I79: -2529302 | J79: 64 | K79: 51 | L79: 48 | M79: 4 | N79: 0 | O79: 0
A80: 紡織纖維46 | B80: 紡織纖維6 | C80: 1449 佳和 | D80: 紡織纖維 | E80: M1400 | F80: 439464 | G80: 623543 | H80: -29.52 | I80: -184079 | J80: 64 | K80: 51 | L80: 46 | M80: 6 | N80: 0 | O80: 0
A81: 紡織纖維41 | B81: 紡織纖維11 | C81: 1451 年興 | D81: 紡織纖維 | E81: M1400 | F81: 896608 | G81: 1059304 | H81: -15.36 | I81: -162696 | J81: 64 | K81: 51 | L81: 41 | M81: 11 | N81: 0 | O81: 0
A82: 紡織纖維14 | B82: 紡織纖維38 | C82: 1452 宏益 | D82: 紡織纖維 | E82: M1400 | F82: 235336 | G82: 196194 | H82: 19.95 | I82: 39142 | J82: 64 | K82: 51 | L82: 14 | M82: 38 | N82: 0 | O82: 0
A83: 紡織纖維20 | B83: 紡織纖維32 | C83: 1454 台富 | D83: 紡織纖維 | E83: M1400 | F83: 253883 | G83: 234214 | H83: 8.4 | I83: 19669 | J83: 64 | K83: 51 | L83: 20 | M83: 32 | N83: 0 | O83: 0
A84: 紡織纖維43 | B84: 紡織纖維9 | C84: 1455 集盛 | D84: 紡織纖維 | E84: M1400 | F84: 1189284 | G84: 1448720 | H84: -17.91 | I84: -259436 | J84: 64 | K84: 51 | L84: 43 | M84: 9 | N84: 0 | O84: 0
A85: 紡織纖維35 | B85: 紡織纖維17 | C85: 1457 宜進 | D85: 紡織纖維 | E85: M1400 | F85: 539417 | G85: 565118 | H85: -4.55 | I85: -25701 | J85: 64 | K85: 51 | L85: 35 | M85: 17 | N85: 0 | O85: 0
A86: 紡織纖維36 | B86: 紡織纖維16 | C86: 1459 聯發 | D86: 紡織纖維 | E86: M1400 | F86: 219486 | G86: 231698 | H86: -5.27 | I86: -12212 | J86: 64 | K86: 51 | L86: 36 | M86: 16 | N86: 0 | O86: 0
A87: 紡織纖維24 | B87: 紡織纖維28 | C87: 1460 宏遠 | D87: 紡織纖維 | E87: M1400 | F87: 1413485 | G87: 1330194 | H87: 6.26 | I87: 83291 | J87: 64 | K87: 51 | L87: 24 | M87: 28 | N87: 0 | O87: 0
A88: 紡織纖維1 | B88: 紡織纖維51 | C88: 1463 強盛新 | D88: 紡織纖維 | E88: M1400 | F88: 628927 | G88: 48687 | H88: 1191.78 | I88: 580240 | J88: 64 | K88: 51 | L88: 1 | M88: 51 | N88: 0 | O88: 0
A89: 紡織纖維5 | B89: 紡織纖維47 | C89: 1464 得力 | D89: 紡織纖維 | E89: M1400 | F89: 2238311 | G89: 1526877 | H89: 46.59 | I89: 711434 | J89: 64 | K89: 51 | L89: 5 | M89: 47 | N89: 0 | O89: 0
A90: 紡織纖維45 | B90: 紡織纖維7 | C90: 1465 偉全 | D90: 紡織纖維 | E90: M1400 | F90: 58807 | G90: 76325 | H90: -22.95 | I90: -17518 | J90: 64 | K90: 51 | L90: 45 | M90: 7 | N90: 0 | O90: 0
A91: 紡織纖維9 | B91: 紡織纖維43 | C91: 1466 聚隆 | D91: 紡織纖維 | E91: M1400 | F91: 456547 | G91: 361825 | H91: 26.18 | I91: 94722 | J91: 64 | K91: 51 | L91: 9 | M91: 43 | N91: 0 | O91: 0
A92: 紡織纖維26 | B92: 紡織纖維26 | C92: 1467 南緯 | D92: 紡織纖維 | E92: M1400 | F92: 841965 | G92: 796925 | H92: 5.65 | I92: 45040 | J92: 64 | K92: 51 | L92: 26 | M92: 26 | N92: 0 | O92: 0
A93: 紡織纖維44 | B93: 紡織纖維8 | C93: 1468 昶和 | D93: 紡織纖維 | E93: M1400 | F93: 124802 | G93: 156505 | H93: -20.26 | I93: -31703 | J93: 64 | K93: 51 | L93: 44 | M93: 8 | N93: 0 | O93: 0
A94: 紡織纖維33 | B94: 紡織纖維19 | C94: 1470 大統新創 | D94: 紡織纖維 | E94: M1400 | F94: 123054 | G94: 125707 | H94: -2.11 | I94: -2653 | J94: 64 | K94: 51 | L94: 33 | M94: 19 | N94: =U94 -> 0 | O94: =V94 -> 0
A95: 紡織纖維25 | B95: 紡織纖維27 | C95: 1473 台南 | D95: 紡織纖維 | E95: M1400 | F95: 1766245 | G95: 1662658 | H95: 6.23 | I95: 103587 | J95: 64 | K95: 51 | L95: 25 | M95: 27 | N95: 0 | O95: 0
A96: 紡織纖維19 | B96: 紡織纖維33 | C96: 1474 弘裕 | D96: 紡織纖維 | E96: M1400 | F96: 470515 | G96: 433441 | H96: 8.55 | I96: 37074 | J96: 64 | K96: 51 | L96: 19 | M96: 33 | N96: 0 | O96: 0
A97: 紡織纖維27 | B97: 紡織纖維25 | C97: 1475 業旺 | D97: 紡織纖維 | E97: M1400 | F97: 281846 | G97: 270253 | H97: 4.29 | I97: 11593 | J97: 64 | K97: 51 | L97: 27 | M97: 25 | N97: 0 | O97: 0
A98: 紡織纖維12 | B98: 紡織纖維40 | C98: 1476 儒鴻 | D98: 紡織纖維 | E98: M1400 | F98: 5963959 | G98: 4810837 | H98: 23.97 | I98: 1153122 | J98: 64 | K98: 51 | L98: 12 | M98: 40 | N98: 0 | O98: 0
A99: 紡織纖維16 | B99: 紡織纖維36 | C99: 1477 聚陽 | D99: 紡織纖維 | E99: M1400 | F99: 6470152 | G99: 5480892 | H99: 18.05 | I99: 989260 | J99: 64 | K99: 51 | L99: 16 | M99: 36 | N99: 0 | O99: 0
A100: 紡織纖維21 | B100: 紡織纖維31 | C100: 4401 東隆興 | D100: 紡織纖維 | E100: M1400 | F100: 571805 | G100: 528514 | H100: 8.19 | I100: 43291 | J100: 64 | K100: 51 | L100: 21 | M100: 31 | N100: 0 | O100: 0
A101: 紡織纖維49 | B101: 紡織纖維3 | C101: 4402 郡都開發 | D101: 紡織纖維 | E101: M1400 | F101: 3808 | G101: 7320 | H101: -47.98 | I101: -3512 | J101: 64 | K101: 51 | L101: 49 | M101: 3 | N101: 0 | O101: 0
A102: 紡織纖維7 | B102: 紡織纖維45 | C102: 4406 新昕纖 | D102: 紡織纖維 | E102: M1400 | F102: 80722 | G102: 58127 | H102: 38.87 | I102: 22595 | J102: 64 | K102: 51 | L102: 7 | M102: 45 | N102: 0 | O102: 0
A103: 紡織纖維13 | B103: 紡織纖維39 | C103: 4413 飛寶企業 | D103: 紡織纖維 | E103: M1400 | F103: 83451 | G103: 67534 | H103: 23.57 | I103: 15917 | J103: 64 | K103: 51 | L103: 13 | M103: 39 | N103: 0 | O103: 0
A104: 紡織纖維18 | B104: 紡織纖維34 | C104: 4414 如興 | D104: 紡織纖維 | E104: M1400 | F104: 2371541 | G104: 2138784 | H104: 10.88 | I104: 232757 | J104: 64 | K104: 51 | L104: 18 | M104: 34 | N104: 0 | O104: 0
A105: 紡織纖維6 | B105: 紡織纖維46 | C105: 4417 金洲 | D105: 紡織纖維 | E105: M1400 | F105: 493722 | G105: 354386 | H105: 39.32 | I105: 139336 | J105: 64 | K105: 51 | L105: 6 | M105: 46 | N105: 0 | O105: 0
A106: 紡織纖維8 | B106: 紡織纖維44 | C106: 4420 光明 | D106: 紡織纖維 | E106: M1400 | F106: 144108 | G106: 104319 | H106: 38.14 | I106: 39789 | J106: 64 | K106: 51 | L106: 8 | M106: 44 | N106: 0 | O106: 0
A107: 紡織纖維40 | B107: 紡織纖維12 | C107: 4426 利勤 | D107: 紡織纖維 | E107: M1400 | F107: 147861 | G107: 171326 | H107: -13.7 | I107: -23465 | J107: 64 | K107: 51 | L107: 40 | M107: 12 | N107: 0 | O107: 0
A108: 紡織纖維31 | B108: 紡織纖維21 | C108: 4432 銘旺實 | D108: 紡織纖維 | E108: M1400 | F108: 193710 | G108: 197272 | H108: -1.81 | I108: -3562 | J108: 64 | K108: 51 | L108: 31 | M108: 21 | N108: 0 | O108: 0
A109: 紡織纖維4 | B109: 紡織纖維48 | C109: 4433 興采 | D109: 紡織纖維 | E109: M1400 | F109: 530984 | G109: 351732 | H109: 50.96 | I109: 179252 | J109: 64 | K109: 51 | L109: 4 | M109: 48 | N109: 0 | O109: 0
A110: 紡織纖維17 | B110: 紡織纖維35 | C110: 4438 廣越 | D110: 紡織纖維 | E110: M1400 | F110: 1841968 | G110: 1599665 | H110: 15.15 | I110: 242303 | J110: 64 | K110: 51 | L110: 17 | M110: 35 | N110: 0 | O110: 0
A111: 紡織纖維10 | B111: 紡織纖維42 | C111: 4439 冠星-KY | D111: 紡織纖維 | E111: M1400 | F111: 985957 | G111: 790190 | H111: 24.77 | I111: 195767 | J111: 64 | K111: 51 | L111: 10 | M111: 42 | N111: 0 | O111: 0
A112: 紡織纖維28 | B112: 紡織纖維24 | C112: 4440 宜新實業 | D112: 紡織纖維 | E112: M1400 | F112: 153762 | G112: 148330 | H112: 3.66 | I112: 5432 | J112: 64 | K112: 51 | L112: 28 | M112: 24 | N112: 0 | O112: 0
A113: 紡織纖維15 | B113: 紡織纖維37 | C113: 4442 竣邦-KY | D113: 紡織纖維 | E113: M1400 | F113: 227344 | G113: 191698 | H113: 18.59 | I113: 35646 | J113: 64 | K113: 51 | L113: 15 | M113: 37 | N113: 0 | O113: 0
A114: 紡織纖維22 | B114: 紡織纖維30 | C114: 6506 雙邦 | D114: 紡織纖維 | E114: M1400 | F114: 319061 | G114: 296278 | H114: 7.69 | I114: 22783 | J114: 64 | K114: 51 | L114: 22 | M114: 30 | N114: 0 | O114: 0
A115: 電機機械53 | B115: 電機機械45 | C115: 1503 士電 | D115: 電機機械 | E115: M1500 | F115: 7169059 | G115: 6777078 | H115: 5.78 | I115: 391981 | J115: 115 | K115: 97 | L115: 53 | M115: 45 | N115: 0 | O115: 0
A116: 電機機械70 | B116: 電機機械28 | C116: 1504 東元 | D116: 電機機械 | E116: M1500 | F116: 8738581 | G116: 9077716 | H116: -3.74 | I116: -339135 | J116: 115 | K116: 97 | L116: 70 | M116: 28 | N116: 0 | O116: 0
A117: 電機機械71 | B117: 電機機械27 | C117: 1506 正道 | D117: 電機機械 | E117: M1500 | F117: 155284 | G117: 165448 | H117: -6.14 | I117: -10164 | J117: 115 | K117: 97 | L117: 71 | M117: 27 | N117: 0 | O117: 0
A118: 電機機械49 | B118: 電機機械48 | C118: 1513 中興電 | D118: 電機機械 | E118: M1500 | F118: 4084266 | G118: 3803719 | H118: 7.38 | I118: 280547 | J118: 115 | K118: 97 | L118: 49 | M118: 48 | N118: 0 | O118: 0
A119: 電機機械56 | B119: 電機機械42 | C119: 1514 亞力 | D119: 電機機械 | E119: M1500 | F119: 1251605 | G119: 1211917 | H119: 3.27 | I119: 39688 | J119: 115 | K119: 97 | L119: 56 | M119: 42 | N119: 0 | O119: 0
A120: 電機機械97 | B120: 電機機械1 | C120: 1515 力山 | D120: 電機機械 | E120: M1500 | F120: 575461 | G120: 1396048 | H120: -58.78 | I120: -820587 | J120: 115 | K120: 97 | L120: 97 | M120: 1 | N120: 0 | O120: 0
A121: 電機機械10 | B121: 電機機械88 | C121: 1517 利奇 | D121: 電機機械 | E121: M1500 | F121: 341961 | G121: 205137 | H121: 66.7 | I121: 136824 | J121: 115 | K121: 97 | L121: 10 | M121: 88 | N121: 0 | O121: 0
A122: 電機機械11 | B122: 電機機械87 | C122: 1519 華城 | D122: 電機機械 | E122: M1500 | F122: 2451390 | G122: 1479535 | H122: 65.69 | I122: 971855 | J122: 115 | K122: 97 | L122: 11 | M122: 87 | N122: 0 | O122: 0
A123: 電機機械27 | B123: 電機機械71 | C123: 1526 日馳 | D123: 電機機械 | E123: M1500 | F123: 129700 | G123: 105297 | H123: 23.18 | I123: 24403 | J123: 115 | K123: 97 | L123: 27 | M123: 71 | N123: 0 | O123: 0
A124: 電機機械57 | B124: 電機機械41 | C124: 1527 鑽全 | D124: 電機機械 | E124: M1500 | F124: 561215 | G124: 554635 | H124: 1.19 | I124: 6580 | J124: 115 | K124: 97 | L124: 57 | M124: 41 | N124: 0 | O124: 0
A125: 電機機械87 | B125: 電機機械11 | C125: 1528 恩德 | D125: 電機機械 | E125: M1500 | F125: 359760 | G125: 462021 | H125: -22.13 | I125: -102261 | J125: 115 | K125: 97 | L125: 87 | M125: 11 | N125: 0 | O125: 0
A126: 電機機械3 | B126: 電機機械95 | C126: 1529 樂事綠能 | D126: 電機機械 | E126: M1500 | F126: 160133 | G126: 57764 | H126: 177.22 | I126: 102369 | J126: 115 | K126: 97 | L126: 3 | M126: 95 | N126: 0 | O126: 0
A127: 電機機械4 | B127: 電機機械94 | C127: 1530 亞崴 | D127: 電機機械 | E127: M1500 | F127: 378634 | G127: 163919 | H127: 130.99 | I127: 214715 | J127: 115 | K127: 97 | L127: 4 | M127: 94 | N127: 0 | O127: 0
A128: 電機機械51 | B128: 電機機械47 | C128: 1531 高林股 | D128: 電機機械 | E128: M1500 | F128: 250344 | G128: 233421 | H128: 7.25 | I128: 16923 | J128: 115 | K128: 97 | L128: 51 | M128: 47 | N128: 0 | O128: 0
A129: 電機機械92 | B129: 電機機械6 | C129: 1532 勤美 | D129: 電機機械 | E129: M1500 | F129: 1905744 | G129: 2705619 | H129: -29.56 | I129: -799875 | J129: 115 | K129: 97 | L129: 92 | M129: 6 | N129: 0 | O129: 0
A130: 電機機械68 | B130: 電機機械30 | C130: 1535 中宇 | D130: 電機機械 | E130: M1500 | F130: 1614489 | G130: 1662251 | H130: -2.87 | I130: -47762 | J130: 115 | K130: 97 | L130: 68 | M130: 30 | N130: 0 | O130: 0
A131: 電機機械61 | B131: 電機機械37 | C131: 1537 廣隆 | D131: 電機機械 | E131: M1500 | F131: 1151080 | G131: 1149950 | H131: 0.1 | I131: 1130 | J131: 115 | K131: 97 | L131: 61 | M131: 37 | N131: 0 | O131: 0
A132: =D132&L132 -> 電機機械7 | B132: =D132&M132 -> 電機機械91 | C132: 1538 正峰 | D132: 電機機械 | E132: M1500 | F132: 20528 | G132: 9494 | H132: 116.22 | I132: =F132-G132 -> 11034 | J132: =IF(E132="","",MATCH(E132,E:E,0)) -> 115 | K132: =COUNTIF(D:D,D132) -> 97 | L132: =IF(H132="","",RANK(H132,OFFSET(H$1,$J132-1,,$K132,),0)) -> 7 | M132: =IF(H132="","",RANK(H132,OFFSET(H$1,$J132-1,,$K132,),1)) -> 91 | N132: 0 | O132: 0
A133: 電機機械78 | B133: 電機機械20 | C133: 1539 巨庭 | D133: 電機機械 | E133: M1500 | F133: 240227 | G133: 261980 | H133: -8.3 | I133: -21753 | J133: 115 | K133: 97 | L133: 78 | M133: 20 | N133: 0 | O133: 0
A134: 電機機械65 | B134: 電機機械33 | C134: 1540 喬福 | D134: 電機機械 | E134: M1500 | F134: 82849 | G134: 83675 | H134: -0.99 | I134: -826 | J134: 115 | K134: 97 | L134: 65 | M134: 33 | N134: 0 | O134: 0
A135: 電機機械35 | B135: 電機機械63 | C135: 1541 錩泰 | D135: 電機機械 | E135: M1500 | F135: 510395 | G135: 445839 | H135: 14.48 | I135: 64556 | J135: 115 | K135: 97 | L135: 35 | M135: 63 | N135: 0 | O135: 0
A136: 電機機械29 | B136: 電機機械69 | C136: 1558 伸興 | D136: 電機機械 | E136: M1500 | F136: 1384409 | G136: 1140249 | H136: 21.41 | I136: 244160 | J136: 115 | K136: 97 | L136: 29 | M136: 69 | N136: 0 | O136: 0
A137: 電機機械41 | B137: 電機機械57 | C137: 1560 中砂 | D137: 電機機械 | E137: M1500 | F137: 1169885 | G137: 1045827 | H137: 11.86 | I137: 124058 | J137: 115 | K137: 97 | L137: 41 | M137: 57 | N137: 0 | O137: 0
A138: 電機機械17 | B138: 電機機械81 | C138: 1570 力肯 | D138: 電機機械 | E138: M1500 | F138: 83805 | G138: 61513 | H138: 36.24 | I138: 22292 | J138: 115 | K138: 97 | L138: 17 | M138: 81 | N138: 0 | O138: 0
A139: 電機機械47 | B139: 電機機械51 | C139: 1580 新麥 | D139: 電機機械 | E139: M1500 | F139: 675018 | G139: 621763 | H139: 8.57 | I139: 53255 | J139: 115 | K139: 97 | L139: 47 | M139: 51 | N139: 0 | O139: 0
A140: 電機機械54 | B140: 電機機械44 | C140: 1583 程泰 | D140: 電機機械 | E140: M1500 | F140: 576607 | G140: 551841 | H140: 4.49 | I140: 24766 | J140: 115 | K140: 97 | L140: 54 | M140: 44 | N140: 0 | O140: 0
A141: 電機機械84 | B141: 電機機械14 | C141: 1586 和勤 | D141: 電機機械 | E141: M1500 | F141: 344733 | G141: 420339 | H141: -17.99 | I141: -75606 | J141: 115 | K141: 97 | L141: 84 | M141: 14 | N141: 0 | O141: 0
A142: 電機機械38 | B142: 電機機械60 | C142: 1589 永冠-KY | D142: 電機機械 | E142: M1500 | F142: 989311 | G142: 869010 | H142: 13.84 | I142: 120301 | J142: 115 | K142: 97 | L142: 38 | M142: 60 | N142: 0 | O142: 0
A143: 電機機械49 | B143: 電機機械48 | C143: 1590 亞德客-KY | D143: 電機機械 | E143: M1500 | F143: 4590580 | G143: 4274960 | H143: 7.38 | I143: 315620 | J143: 115 | K143: 97 | L143: 49 | M143: 48 | N143: 0 | O143: 0
A144: 電機機械94 | B144: 電機機械4 | C144: 1591 駿吉-KY | D144: 電機機械 | E144: M1500 | F144: 11380 | G144: 17585 | H144: -35.29 | I144: -6205 | J144: 115 | K144: 97 | L144: 94 | M144: 4 | N144: 0 | O144: 0
A145: 電機機械39 | B145: 電機機械59 | C145: 1597 直得 | D145: 電機機械 | E145: M1500 | F145: 166383 | G145: 147838 | H145: 12.54 | I145: 18545 | J145: 115 | K145: 97 | L145: 39 | M145: 59 | N145: 0 | O145: 0
A146: 電機機械43 | B146: 電機機械55 | C146: 1599 宏佳騰 | D146: 電機機械 | E146: M1500 | F146: 298882 | G146: 271682 | H146: 10.01 | I146: 27200 | J146: 115 | K146: 97 | L146: 43 | M146: 55 | N146: 0 | O146: 0
A147: 電機機械45 | B147: 電機機械53 | C147: 2049 上銀 | D147: 電機機械 | E147: M1500 | F147: 3830883 | G147: 3505137 | H147: 9.29 | I147: 325746 | J147: 115 | K147: 97 | L147: 45 | M147: 53 | N147: 0 | O147: 0
A148: 電機機械69 | B148: 電機機械29 | C148: 2066 世德 | D148: 電機機械 | E148: M1500 | F148: 459165 | G148: 476627 | H148: -3.66 | I148: -17462 | J148: 115 | K148: 97 | L148: 69 | M148: 29 | N148: 0 | O148: 0
A149: 電機機械62 | B149: 電機機械36 | C149: 2067 嘉鋼 | D149: 電機機械 | E149: M1500 | F149: 136031 | G149: 136718 | H149: -0.5 | I149: -687 | J149: 115 | K149: 97 | L149: 62 | M149: 36 | N149: 0 | O149: 0
A150: 電機機械75 | B150: 電機機械23 | C150: 2070 精湛 | D150: 電機機械 | E150: M1500 | F150: 83397 | G150: 90156 | H150: -7.5 | I150: -6759 | J150: 115 | K150: 97 | L150: 75 | M150: 23 | N150: 0 | O150: 0
A151: 電機機械8 | B151: 電機機械90 | C151: 2230 泰茂 | D151: 電機機械 | E151: M1500 | F151: 371959 | G151: 186653 | H151: 99.28 | I151: 185306 | J151: 115 | K151: 97 | L151: 8 | M151: 90 | N151: 0 | O151: 0
A152: 電機機械58 | B152: 電機機械40 | C152: 2235 謚源 | D152: 電機機械 | E152: M1500 | F152: 79969 | G152: 79451 | H152: 0.65 | I152: 518 | J152: 115 | K152: 97 | L152: 58 | M152: 40 | N152: 0 | O152: 0
A153: 電機機械77 | B153: 電機機械21 | C153: 2371 大同 | D153: 電機機械 | E153: M1500 | F153: 6600407 | G153: 7149646 | H153: -7.68 | I153: -549239 | J153: 115 | K153: 97 | L153: 77 | M153: 21 | N153: 0 | O153: 0
A154: 電機機械2 | B154: 電機機械96 | C154: 3162 精確 | D154: 電機機械 | E154: M1500 | F154: 1201786 | G154: 411517 | H154: 192.04 | I154: 790269 | J154: 115 | K154: 97 | L154: 2 | M154: 96 | N154: 0 | O154: 0
A155: 電機機械6 | B155: 電機機械92 | C155: 3167 大量 | D155: 電機機械 | E155: M1500 | F155: 530087 | G155: 244792 | H155: 116.55 | I155: 285295 | J155: 115 | K155: 97 | L155: 6 | M155: 92 | N155: 0 | O155: 0
A156: 電機機械63 | B156: 電機機械35 | C156: 3226 龍鋒 | D156: 電機機械 | E156: M1500 | F156: 366019 | G156: 367901 | H156: -0.51 | I156: -1882 | J156: 115 | K156: 97 | L156: 63 | M156: 35 | N156: 0 | O156: 0
A157: 電機機械1 | B157: 電機機械97 | C157: 3379 彬台 | D157: 電機機械 | E157: M1500 | F157: 178169 | G157: 44606 | H157: 299.43 | I157: 133563 | J157: 115 | K157: 97 | L157: 1 | M157: 97 | N157: 0 | O157: 0
A158: 電機機械23 | B158: 電機機械75 | C158: 3426 台興 | D158: 電機機械 | E158: M1500 | F158: 131129 | G158: 103832 | H158: 26.29 | I158: 27297 | J158: 115 | K158: 97 | L158: 23 | M158: 75 | N158: =U158 -> 0 | O158: =V158 -> 0
A159: 電機機械76 | B159: 電機機械22 | C159: 3685 元創精密 | D159: 電機機械 | E159: M1500 | F159: 151999 | G159: 164561 | H159: -7.63 | I159: -12562 | J159: 115 | K159: 97 | L159: 76 | M159: 22 | N159: 0 | O159: 0
A160: 電機機械95 | B160: 電機機械3 | C160: 4502 健信 | D160: 電機機械 | E160: M1500 | F160: 132447 | G160: 231648 | H160: -42.82 | I160: -99201 | J160: 115 | K160: 97 | L160: 95 | M160: 3 | N160: 0 | O160: 0
A161: 電機機械30 | B161: 電機機械68 | C161: 4503 金雨 | D161: 電機機械 | E161: M1500 | F161: 76222 | G161: 63040 | H161: 20.91 | I161: 13182 | J161: 115 | K161: 97 | L161: 30 | M161: 68 | N161: 0 | O161: 0
A162: 電機機械25 | B162: 電機機械73 | C162: 4506 崇友 | D162: 電機機械 | E162: M1500 | F162: 960695 | G162: 771642 | H162: 24.5 | I162: 189053 | J162: 115 | K162: 97 | L162: 25 | M162: 73 | N162: 0 | O162: 0
A163: 電機機械80 | B163: 電機機械18 | C163: 4510 高鋒 | D163: 電機機械 | E163: M1500 | F163: 204738 | G163: 234531 | H163: -12.7 | I163: -29793 | J163: 115 | K163: 97 | L163: 80 | M163: 18 | N163: 0 | O163: 0
A164: 電機機械73 | B164: 電機機械25 | C164: 4513 福裕 | D164: 電機機械 | E164: M1500 | F164: 149473 | G164: 160103 | H164: -6.64 | I164: -10630 | J164: 115 | K164: 97 | L164: 73 | M164: 25 | N164: 0 | O164: 0
A165: 電機機械28 | B165: 電機機械70 | C165: 4523 永彰 | D165: 電機機械 | E165: M1500 | F165: 89680 | G165: 73299 | H165: 22.35 | I165: 16381 | J165: 115 | K165: 97 | L165: 28 | M165: 70 | N165: 0 | O165: 0
A166: 電機機械44 | B166: 電機機械54 | C166: 4526 東台 | D166: 電機機械 | E166: M1500 | F166: 826430 | G166: 751974 | H166: 9.9 | I166: 74456 | J166: 115 | K166: 97 | L166: 44 | M166: 54 | N166: 0 | O166: 0
A167: 電機機械79 | B167: 電機機械19 | C167: 4527 方方土霖 | D167: 電機機械 | E167: M1500 | F167: 337190 | G167: 369446 | H167: -8.73 | I167: -32256 | J167: 115 | K167: 97 | L167: 79 | M167: 19 | N167: 0 | O167: 0
A168: 電機機械81 | B168: 電機機械17 | C168: 4528 江興鍛 | D168: 電機機械 | E168: M1500 | F168: 253634 | G168: 304177 | H168: -16.62 | I168: -50543 | J168: 115 | K168: 97 | L168: 81 | M168: 17 | N168: 0 | O168: 0
A169: 電機機械14 | B169: 電機機械84 | C169: 4532 瑞智 | D169: 電機機械 | E169: M1500 | F169: 4259647 | G169: 2996792 | H169: 42.14 | I169: 1262855 | J169: 115 | K169: 97 | L169: 14 | M169: 84 | N169: 0 | O169: 0
A170: 電機機械5 | B170: 電機機械93 | C170: 4533 協易機 | D170: 電機機械 | E170: M1500 | F170: 832417 | G170: 383843 | H170: 116.86 | I170: 448574 | J170: 115 | K170: 97 | L170: 5 | M170: 93 | N170: 0 | O170: 0
A171: 電機機械60 | B171: 電機機械38 | C171: 4534 慶騰 | D171: 電機機械 | E171: M1500 | F171: 128711 | G171: 128539 | H171: 0.13 | I171: 172 | J171: 115 | K171: 97 | L171: 60 | M171: 38 | N171: 0 | O171: 0
A172: 電機機械74 | B172: 電機機械24 | C172: 4535 至興 | D172: 電機機械 | E172: M1500 | F172: 419840 | G172: 450446 | H172: -6.79 | I172: -30606 | J172: 115 | K172: 97 | L172: 74 | M172: 24 | N172: 0 | O172: 0
A173: 電機機械85 | B173: 電機機械13 | C173: 4538 大詠城 | D173: 電機機械 | E173: M1500 | F173: 39948 | G173: 49287 | H173: -18.95 | I173: -9339 | J173: 115 | K173: 97 | L173: 85 | M173: 13 | N173: 0 | O173: 0
A174: 電機機械91 | B174: 電機機械7 | C174: 4540 全球傳動 | D174: 電機機械 | E174: M1500 | F174: 273512 | G174: 380747 | H174: -28.16 | I174: -107235 | J174: 115 | K174: 97 | L174: 91 | M174: 7 | N174: 0 | O174: 0
A175: 電機機械67 | B175: 電機機械31 | C175: 4543 萬在 | D175: 電機機械 | E175: M1500 | F175: 107129 | G175: 109449 | H175: -2.12 | I175: -2320 | J175: 115 | K175: 97 | L175: 67 | M175: 31 | N175: 0 | O175: 0
A176: 電機機械59 | B176: 電機機械39 | C176: 4549 桓達 | D176: 電機機械 | E176: M1500 | F176: 186576 | G176: 185394 | H176: 0.64 | I176: 1182 | J176: 115 | K176: 97 | L176: 59 | M176: 39 | N176: 0 | O176: 0
A177: 電機機械96 | B177: 電機機械2 | C177: 4550 長佳 | D177: 電機機械 | E177: M1500 | F177: 133050 | G177: 291394 | H177: -54.34 | I177: -158344 | J177: 115 | K177: 97 | L177: 96 | M177: 2 | N177: 0 | O177: 0
A178: 電機機械34 | B178: 電機機械64 | C178: 4552 力達-KY | D178: 電機機械 | E178: M1500 | F178: 443325 | G178: 385964 | H178: 14.86 | I178: 57361 | J178: 115 | K178: 97 | L178: 34 | M178: 64 | N178: 0 | O178: 0
A179: 電機機械52 | B179: 電機機械46 | C179: 4555 氣立 | D179: 電機機械 | E179: M1500 | F179: 236111 | G179: 222497 | H179: 6.12 | I179: 13614 | J179: 115 | K179: 97 | L179: 52 | M179: 46 | N179: 0 | O179: 0
A180: 電機機械24 | B180: 電機機械74 | C180: 4558 寶緯 | D180: 電機機械 | E180: M1500 | F180: 230884 | G180: 184844 | H180: 24.91 | I180: 46040 | J180: 115 | K180: 97 | L180: 24 | M180: 74 | N180: 0 | O180: 0
A181: 電機機械31 | B181: 電機機械67 | C181: 4560 強信-KY | D181: 電機機械 | E181: M1500 | F181: 263626 | G181: 218354 | H181: 20.73 | I181: 45272 | J181: 115 | K181: 97 | L181: 31 | M181: 67 | N181: 0 | O181: 0
A182: 電機機械93 | B182: 電機機械5 | C182: 4561 健椿 | D182: 電機機械 | E182: M1500 | F182: 127335 | G182: 185382 | H182: -31.31 | I182: -58047 | J182: 115 | K182: 97 | L182: 93 | M182: 5 | N182: 0 | O182: 0
A183: 電機機械37 | B183: 電機機械61 | C183: 4562 穎漢 | D183: 電機機械 | E183: M1500 | F183: 124434 | G183: 109022 | H183: 14.14 | I183: 15412 | J183: 115 | K183: 97 | L183: 37 | M183: 61 | N183: 0 | O183: 0
A184: 電機機械42 | B184: 電機機械56 | C184: 4563 百德 | D184: 電機機械 | E184: M1500 | F184: 479476 | G184: 430004 | H184: 11.51 | I184: 49472 | J184: 115 | K184: 97 | L184: 42 | M184: 56 | N184: 0 | O184: 0
A185: 電機機械9 | B185: 電機機械89 | C185: 4564 元翎 | D185: 電機機械 | E185: M1500 | F185: 215753 | G185: 122244 | H185: 76.49 | I185: 93509 | J185: 115 | K185: 97 | L185: 9 | M185: 89 | N185: 0 | O185: 0
A186: 電機機械33 | B186: 電機機械65 | C186: 4566 時碩工業 | D186: 電機機械 | E186: M1500 | F186: 837674 | G186: 712027 | H186: 17.65 | I186: 125647 | J186: 115 | K186: 97 | L186: 33 | M186: 65 | N186: 0 | O186: 0
A187: 電機機械22 | B187: 電機機械76 | C187: 4568 科際精密 | D187: 電機機械 | E187: M1500 | F187: 214195 | G187: 169557 | H187: 26.33 | I187: 44638 | J187: 115 | K187: 97 | L187: 22 | M187: 76 | N187: 0 | O187: 0
A188: 電機機械46 | B188: 電機機械52 | C188: 4571 鈞興-KY | D188: 電機機械 | E188: M1500 | F188: 569419 | G188: 522212 | H188: 9.04 | I188: 47207 | J188: 115 | K188: 97 | L188: 46 | M188: 52 | N188: 0 | O188: 0
A189: 電機機械88 | B189: 電機機械10 | C189: 4572 駐龍 | D189: 電機機械 | E189: M1500 | F189: 113463 | G189: 154926 | H189: -26.76 | I189: -41463 | J189: 115 | K189: 97 | L189: 88 | M189: 10 | N189: 0 | O189: 0
A190: 電機機械15 | B190: 電機機械83 | C190: 4576 大銀微系統 | D190: 電機機械 | E190: M1500 | F190: 372715 | G190: 264055 | H190: 41.15 | I190: 108660 | J190: 115 | K190: 97 | L190: 15 | M190: 83 | N190: 0 | O190: 0
A191: 電機機械64 | B191: 電機機械34 | C191: 4580 捷流閥業 | D191: 電機機械 | E191: M1500 | F191: 361128 | G191: 363715 | H191: -0.71 | I191: -2587 | J191: 115 | K191: 97 | L191: 64 | M191: 34 | N191: 0 | O191: 0
A192: 電機機械36 | B192: 電機機械62 | C192: 4583 台灣精銳 | D192: 電機機械 | E192: M1500 | F192: 512762 | G192: 448669 | H192: 14.29 | I192: 64093 | J192: 115 | K192: 97 | L192: 36 | M192: 62 | N192: 0 | O192: 0
A193: 電機機械18 | B193: 電機機械80 | C193: 4584 君帆 | D193: 電機機械 | E193: M1500 | F193: 232943 | G193: 173164 | H193: 34.52 | I193: 59779 | J193: 115 | K193: 97 | L193: 18 | M193: 80 | N193: 0 | O193: 0
A194: 電機機械55 | B194: 電機機械43 | C194: 5288 豐祥-KY | D194: 電機機械 | E194: M1500 | F194: 1213612 | G194: 1170798 | H194: 3.66 | I194: 42814 | J194: 115 | K194: 97 | L194: 55 | M194: 43 | N194: 0 | O194: 0
A195: 電機機械86 | B195: 電機機械12 | C195: 6122 擎邦 | D195: 電機機械 | E195: M1500 | F195: 545242 | G195: 695627 | H195: -21.62 | I195: -150385 | J195: 115 | K195: 97 | L195: 86 | M195: 12 | N195: 0 | O195: 0
A196: =D196&L196 -> 電機機械89 | B196: =D196&M196 -> 電機機械9 | C196: 6425 易發 | D196: 電機機械 | E196: M1500 | F196: 131728 | G196: 179971 | H196: -26.81 | I196: =F196-G196 -> -48243 | J196: =IF(E196="","",MATCH(E196,E:E,0)) -> 115 | K196: =COUNTIF(D:D,D196) -> 97 | L196: =IF(H196="","",RANK(H196,OFFSET(H$1,$J196-1,,$K196,),0)) -> 89 | M196: =IF(H196="","",RANK(H196,OFFSET(H$1,$J196-1,,$K196,),1)) -> 9 | N196: 0 | O196: 0
A197: 電機機械16 | B197: 電機機械82 | C197: 6603 富強鑫 | D197: 電機機械 | E197: M1500 | F197: 616557 | G197: 438099 | H197: 40.73 | I197: 178458 | J197: 115 | K197: 97 | L197: 16 | M197: 82 | N197: 0 | O197: 0
A198: 電機機械66 | B198: 電機機械32 | C198: 6606 建德工業 | D198: 電機機械 | E198: M1500 | F198: 99616 | G198: 101277 | H198: -1.64 | I198: -1661 | J198: 115 | K198: 97 | L198: 66 | M198: 32 | N198: 0 | O198: 0
A199: 電機機械13 | B199: 電機機械85 | C199: 6609 瀧澤科 | D199: 電機機械 | E199: M1500 | F199: 378396 | G199: 234972 | H199: 61.04 | I199: 143424 | J199: 115 | K199: 97 | L199: 13 | M199: 85 | N199: 0 | O199: 0
A200: 電機機械19 | B200: 電機機械79 | C200: 6829 千附精密 | D200: 電機機械 | E200: M1500 | F200: 291088 | G200: 225718 | H200: 28.96 | I200: 65370 | J200: 115 | K200: 97 | L200: 19 | M200: 79 | N200: 0 | O200: 0
... 2800 more rows
